Workbook

Sheet ISIN List (hidden)
A1: ISIN | B1: ISIN Description
A2: (Select) | B2: (Select)
A3: INE950J01019 | B3: ADANI KRISHNAPATNAM PORT LIMITED
A4: INE950J03015 | B4: ADANI KRISHNAPATNAM PORT LIMITED
A5: IN8016X01019 | B5: ARYAN SHARE & STOCK BROKERS LIMITED
A6: INE016X01010 | B6: ARYAN SHARE & STOCK BROKERS LIMITED
A7: INE05N901012 | B7: BANNARI AMMAN FOOD PRODUCTS PRIVATE LIMITED
A8: INE05N904016 | B8: BANNARI AMMAN FOOD PRODUCTS PRIVATE LIMITED
A9: INE918K07BP7 | B9: EDELWEISS FINVEST LIMITED
A10: INE918K07DL2 | B10: EDELWEISS FINVEST LIMITED
A11: INE01VR01017 | B11: M K ROY & BROS PROJECTS LIMITED
A12: INE646T07019 | B12: NUEVO NEXTRA DEVELOPERS PRIVATE LIMITED
A13: INE646T07027 | B13: NUEVO NEXTRA DEVELOPERS PRIVATE LIMITED
A14: INE646T07035 | B14: NUEVO NEXTRA DEVELOPERS PRIVATE LIMITED
A15: INE646T07043 | B15: NUEVO NEXTRA DEVELOPERS PRIVATE LIMITED
A16: INE062X01014 | B16: RUDRA SOLARFARMS PRIVATE LIMITED
A17: INE062X08019 | B17: RUDRA SOLARFARMS PRIVATE LIMITED
A18: INE062X08027 | B18: RUDRA SOLARFARMS PRIVATE LIMITED
A19: INE062X08035 | B19: RUDRA SOLARFARMS PRIVATE LIMITED
A20: INE062X08043 | B20: RUDRA SOLARFARMS PRIVATE LIMITED
A21: INE02DE01011 | B21: THE MALAYALA MANORAMA CO PRIVATE LIMITED
A22: INE868R01016 | B22: K' LINE (INDIA) PRIVATE LIMITED
A23: INE0FGJ01017 | B23: .HARYANA CITY GAS DISTRIBUTION (BHIWADI) LIMITED
A24: INE777V01011 | B24: 10I COMMERCE SERVICES PRIVATE LIMITED
A25: INE777V03017 | B25: 10I COMMERCE SERVICES PRIVATE LIMITED
A26: INE777V03025 | B26: 10I COMMERCE SERVICES PRIVATE LIMITED
A27: INE777V03033 | B27: 10I COMMERCE SERVICES PRIVATE LIMITED
A28: INE777V03041 | B28: 10I COMMERCE SERVICES PRIVATE LIMITED
A29: INE777V03058 | B29: 10I COMMERCE SERVICES PRIVATE LIMITED
A30: INE0MZT01012 | B30: 1888 OLD LAKE LIMITED
A31: INE0MZT04016 | B31: 1888 OLD LAKE LIMITED
A32: INE0GNQ01016 | B32: 1908 E-VENTURES PRIVATE LIMITED
A33: INF0HSN22015 | B33: 1FUNDS TRUST
A34: INE0NQ101012 | B34: 1T9 TECHNOLOGY PRIVATE LIMITED
A35: INE01TG01014 | B35: 2 X 2 LOGISTICS PRIVATE LIMITED
A36: INE03WB01015 | B36: 20 MCC PRIVATE LIMITED
A37: INE144J01027 | B37: 20 MICRONS LIMITED
A38: IN8144J01026 | B38: 20 MICRONS LIMITED
A39: INE799W01013 | B39: 20 MICRONS NANO MINERALS LIMITED
A40: INE0O9515013 | B40: 2022 PL GAMORA
A41: INE0MKL15011 | B41: 2022 SBL NITA
A42: INE0OQ015013 | B42: 2023 PL MEGADOOT
A43: INE091F01010 | B43: 20TH CENTURY ENGINEERING LIMITED
A44: IN8253B01014 | B44: 21st CENTURY MANAGEMENT SERVICES LIMITED
A45: INE253B01015 | B45: 21st CENTURY MANAGEMENT SERVICES LIMITED
A46: INE04YI01014 | B46: 360 ONE IFSC LIMITED
A47: INE440P01018 | B47: 360 ONE INVESTMENT ADVISER AND TRUSTEE SERVICES LIMITED
A48: IN8466L01011 | B48: 360 ONE WAM LIMITED
A49: IN8466L01029 | B49: 360 ONE WAM LIMITED
A50: IN8466L07018 | B50: 360 ONE WAM LIMITED
A51: INE466L01038 | B51: 360 ONE WAM LIMITED
A52: INE466L07027 | B52: 360 ONE WAM LIMITED
A53: INE01G901015 | B53: 361 DEGREE ENTERTAINMENT & MEDIA PRIVATE LIMITED
A54: INE054L01016 | B54: 3D TECHNOPACK PRIVATE LIMITED
A55: INE0E6D01015 | B55: 3DIMENSION CAPITAL SERVICES LTD
A56: INE0LMB01010 | B56: 3E ADVISORS PRIVATE LIMITED
A57: INE03CP01017 | B57: 3EYE VENTURES PRIVATE LIMITED
A58: INE03RA01017 | B58: 3I INFOTECH CONSULTANCY SERVICES LIMITED
A59: INE725O01015 | B59: 3I INFOTECH DIGITAL BPS LIMITED
A60: INE748C01038 | B60: 3I INFOTECH LIMITED
A61: IN8748C01011 | B61: 3I INFOTECH LIMITED
A62: IN8748C01029 | B62: 3I INFOTECH LIMITED
A63: INE01NK01019 | B63: 3M ELECTRO AND COMMUNICATION INDIA PRIVATE LIMITED
A64: IN8470A01016 | B64: 3M INDIA LIMITED
A65: INE470A01017 | B65: 3M INDIA LIMITED
A66: INE0PAC01014 | B66: 3N HEALTH FOODS PRIVATE LIMITED
A67: IN8105C01014 | B67: 3P LAND HOLDINGS LIMITED
A68: INE105C01023 | B68: 3P LAND HOLDINGS LIMITED
A69: IN8768P01011 | B69: 3RD ROCK MULTIMEDIA LIMITED
A70: INE768P01012 | B70: 3RD ROCK MULTIMEDIA LIMITED
A71: INE0KAB01017 | B71: 3RDFLIX VISUAL EFFECTS PRIVATE LIMITED
A72: INE0KAB03013 | B72: 3RDFLIX VISUAL EFFECTS PRIVATE LIMITED
A73: INE0KAB03021 | B73: 3RDFLIX VISUAL EFFECTS PRIVATE LIMITED
A74: INE0KAB03039 | B74: 3RDFLIX VISUAL EFFECTS PRIVATE LIMITED
A75: INE0KAB03047 | B75: 3RDFLIX VISUAL EFFECTS PRIVATE LIMITED
A76: INE0KAB03054 | B76: 3RDFLIX VISUAL EFFECTS PRIVATE LIMITED
A77: INE0KAB03062 | B77: 3RDFLIX VISUAL EFFECTS PRIVATE LIMITED
A78: INE0KAB03070 | B78: 3RDFLIX VISUAL EFFECTS PRIVATE LIMITED
A79: INE0KAB03088 | B79: 3RDFLIX VISUAL EFFECTS PRIVATE LIMITED
A80: INE0KAB03096 | B80: 3RDFLIX VISUAL EFFECTS PRIVATE LIMITED
A81: INE0KAB03104 | B81: 3RDFLIX VISUAL EFFECTS PRIVATE LIMITED
A82: INE0KAB03112 | B82: 3RDFLIX VISUAL EFFECTS PRIVATE LIMITED
A83: INE0KAB03120 | B83: 3RDFLIX VISUAL EFFECTS PRIVATE LIMITED
A84: INE0KAB03138 | B84: 3RDFLIX VISUAL EFFECTS PRIVATE LIMITED
A85: INE0KAB03146 | B85: 3RDFLIX VISUAL EFFECTS PRIVATE LIMITED
A86: IN90KAB01015 | B86: 3RDFLIX VISUAL EFFECTS PRIVATE LIMITED
A87: INE0JKB01018 | B87: 4A FINANCIAL TECHNOLOGIES PRIVATE LIMITED
A88: INE0IB001018 | B88: 4D INDIATEQ LIMITED
A89: INE287Y01015 | B89: 4PEL DISTRIBUTED SOLAR POWER PRIVATE LIMITED
A90: INE471Y01015 | B90: 4PEL ENERGY SERVICES PRIVATE LIMITED
A91: INE0CVZ01019 | B91: 4PEL GREEN POWER PRIVATE LIMITED
A92: INE0CW001019 | B92: 4PEL GREEN SOLUTIONS PRIVATE LIMITED
A93: INE908Y01016 | B93: 4PEL SAUR VIDYUT PRIVATE LIMITED
A94: INE00SK01010 | B94: 4PEL SOLAR DAYLIGHT ENERGY PRIVATE LIMITED
A95: INE00SK03016 | B95: 4PEL SOLAR DAYLIGHT ENERGY PRIVATE LIMITED
A96: INE610R01012 | B96: 4PEL SOLAR ENERGY PRIVATE LIMITED
A97: INE00SL01018 | B97: 4PEL SOLAR SUN FLAME PRIVATE LIMITED
A98: INE07Z901016 | B98: 4PEL SUN ABILITY PRIVATE LIMITED
A99: INE0AY001019 | B99: 4PEL SUN FLASH PRIVATE LIMITED
A100: INE0A4M01015 | B100: 4PEL SURYA MITRA PRIVATE LIMITED
A101: INE01KD01010 | B101: 4PEL SURYA PRAKASH PRIVATE LIMITED
A102: INE0NNR01010 | B102: 4S SYNERGIES PRIVATE LIMITED
A103: INE09ME01017 | B103: 50 HERTZ LIMITED
A104: IN8618L01017 | B104: 5PAISA CAPITAL LIMITED
A105: INE618L01018 | B105: 5PAISA CAPITAL LIMITED
A106: INE111B01023 | B106: 63 MOONS TECHNOLOGIES LIMITED
A107: IN8111B01014 | B107: 63 MOONS TECHNOLOGIES LIMITED
A108: INE188W01019 | B108: 63IDEAS INFOLABS PRIVATE LIMITED
A109: INE188W03015 | B109: 63IDEAS INFOLABS PRIVATE LIMITED
A110: INE188W03023 | B110: 63IDEAS INFOLABS PRIVATE LIMITED
A111: INE188W03031 | B111: 63IDEAS INFOLABS PRIVATE LIMITED
A112: INE188W03049 | B112: 63IDEAS INFOLABS PRIVATE LIMITED
A113: INE188W03056 | B113: 63IDEAS INFOLABS PRIVATE LIMITED
A114: INE188W03064 | B114: 63IDEAS INFOLABS PRIVATE LIMITED
A115: INE188W03072 | B115: 63IDEAS INFOLABS PRIVATE LIMITED
A116: INE188W03080 | B116: 63IDEAS INFOLABS PRIVATE LIMITED
A117: INE188W03098 | B117: 63IDEAS INFOLABS PRIVATE LIMITED
A118: INE188W03106 | B118: 63IDEAS INFOLABS PRIVATE LIMITED
A119: INE188W03114 | B119: 63IDEAS INFOLABS PRIVATE LIMITED
A120: INE188W03122 | B120: 63IDEAS INFOLABS PRIVATE LIMITED
A121: INE188W03130 | B121: 63IDEAS INFOLABS PRIVATE LIMITED
A122: INE188W03148 | B122: 63IDEAS INFOLABS PRIVATE LIMITED
A123: INE188W03155 | B123: 63IDEAS INFOLABS PRIVATE LIMITED
A124: INE188W03163 | B124: 63IDEAS INFOLABS PRIVATE LIMITED
A125: INE0IFG01019 | B125: 6IPAIN HEALTHCARE PVT LTD
A126: INE0M6N01014 | B126: 7 STAR EMPIRE LIMITED
A127: INE0D5Z01011 | B127: 7 STEPS CONSULTORES PRIVATE LIMITED
A128: INE0HPP01011 | B128: 7-INDIA CONVENIENCE RETAIL LIMITED
A129: INE0HPP08016 | B129: 7-INDIA CONVENIENCE RETAIL LIMITED
A130: IN8413X01026 | B130: 7NR RETAIL LIMITED
A131: INE413X01027 | B131: 7NR RETAIL LIMITED
A132: INE454F01010 | B132: 7SEAS ENTERTAINMENT LIMITED
A133: IN8454F01019 | B133: 7SEAS ENTERTAINMENT LIMITED
A134: INE0JHC01012 | B134: 88ACADEMICS (INDIA) PRIVATE LIMITED
A135: INE0JHC03018 | B135: 88ACADEMICS (INDIA) PRIVATE LIMITED
A136: INE0GGS01016 | B136: 99 ALGORITHMS PRIVATE LIMITED
A137: INE0GGS03012 | B137: 99 ALGORITHMS PRIVATE LIMITED
A138: INE0GGS03020 | B138: 99 ALGORITHMS PRIVATE LIMITED
A139: INE0GGS03038 | B139: 99 ALGORITHMS PRIVATE LIMITED
A140: INE0GGS03046 | B140: 99 ALGORITHMS PRIVATE LIMITED
A141: INE0GGS03053 | B141: 99 ALGORITHMS PRIVATE LIMITED
A142: INE0GGS03061 | B142: 99 ALGORITHMS PRIVATE LIMITED
A143: INE0GGS03079 | B143: 99 ALGORITHMS PRIVATE LIMITED
A144: INE0GGS03087 | B144: 99 ALGORITHMS PRIVATE LIMITED
A145: INE0GGS03095 | B145: 99 ALGORITHMS PRIVATE LIMITED
A146: INE0GGS03103 | B146: 99 ALGORITHMS PRIVATE LIMITED
A147: INE174T01015 | B147: 9X MEDIA PRIVATE LIMITED
A148: INE0DHA01019 | B148: A & D INTERNATIONAL PRIVATE LIMITED
A149: IN8319X01017 | B149: A & M FEBCON LIMITED
A150: INE319X01018 | B150: A & M FEBCON LIMITED
A151: INE542S01015 | B151: A A ESTATES PVT LTD
A152: INE749Y01014 | B152: A AND M JUMBO BAGS LIMITED
A153: INE749Y04018 | B153: A AND M JUMBO BAGS LIMITED
A154: IN8749Y01013 | B154: A AND M JUMBO BAGS LIMITED
A155: IN808PH01016 | B155: A B COTSPIN INDIA LIMITED
A156: INE08PH01015 | B156: A B COTSPIN INDIA LIMITED
A157: IN800YB01018 | B157: A B INFRABUILD LIMITED
A158: INE00YB01017 | B158: A B INFRABUILD LIMITED
A159: INE06JL01014 | B159: A B MOTIONS PRIVATE LIMITED
A160: INE982R01015 | B160: A B N INTERCORP LIMITED
A161: IN8982R01014 | B161: A B N INTERCORP LIMITED
A162: INE0FPS01019 | B162: A B SUGARS LIMITED
A163: INE02PG01010 | B163: A B T LIMITED
A164: INE02PG07157 | B164: A B T LIMITED
A165: INE02PG07165 | B165: A B T LIMITED
A166: INE02PG07173 | B166: A B T LIMITED
A167: INE02PG07181 | B167: A B T LIMITED
A168: INE02PG07199 | B168: A B T LIMITED
A169: INE02PG07207 | B169: A B T LIMITED
A170: INE02PG07215 | B170: A B T LIMITED
A171: INE02PG07223 | B171: A B T LIMITED
A172: INE02PG07231 | B172: A B T LIMITED
A173: INE02PG07249 | B173: A B T LIMITED
A174: INE02PG07256 | B174: A B T LIMITED
A175: INE02PG07264 | B175: A B T LIMITED
A176: INE02PG07272 | B176: A B T LIMITED
A177: INE02PG07280 | B177: A B T LIMITED
A178: INE02PG07298 | B178: A B T LIMITED
A179: INE02PG07306 | B179: A B T LIMITED
A180: INE02PG07314 | B180: A B T LIMITED
A181: INE02PG07322 | B181: A B T LIMITED
A182: INE02PG07330 | B182: A B T LIMITED
A183: INE02PG07348 | B183: A B T LIMITED
A184: INE02PG07355 | B184: A B T LIMITED
A185: INE02PG07363 | B185: A B T LIMITED
A186: INE02PG07371 | B186: A B T LIMITED
A187: INE02PG07389 | B187: A B T LIMITED
A188: INE02PG07397 | B188: A B T LIMITED
A189: INE02PG07405 | B189: A B T LIMITED
A190: INE02PG07439 | B190: A B T LIMITED
A191: INE02PG07454 | B191: A B T LIMITED
A192: INE0JGK01017 | B192: A D S I.T. SOLUTIONS INDIA LIMITED
A193: INE063901016 | B193: A G SUPERSTRUCTURES PRIVATE LIMITED
A194: INE063901024 | B194: A G SUPERSTRUCTURES PRIVATE LIMITED
A195: INE063901032 | B195: A G SUPERSTRUCTURES PRIVATE LIMITED
A196: INE0KA201011 | B196: A G T ELECTRONICS LIMITED
A197: INE0O6N01012 | B197: A G UNIVERSAL LIMITED
A198: INE534E01020 | B198: A INFRASTRUCTURE LIMITED
A199: INE534E04016 | B199: A INFRASTRUCTURE LIMITED
A200: INE534E04024 | B200: A INFRASTRUCTURE LIMITED
... 4300 more rows

Sheet Home
E3: Assessment Year 2024-25
C4: S.NO | D4: Schedule Name | E4: Schedules for filing Income Tax Return | F4: =CONCATENATE("Description",CHAR(10),"Click on applicable links to navigate to the respective sheet / schedule.") -> Description Click on applicable links to navigate to the respective sheet / schedule. | G4: Select Applicable sheets below by choosing Y/N and click on apply | H4: Select Sheets to print and click on apply
C5: 1 | D5: PART A - General | E5: Personal Info., Filing Status, Audit Info | F5: Details of Personal Information and filing status | G5: Y | H5: Y
C6: =C5+1 -> 2 | D6: Nature Of Business | E6: Nature Of Business | F6: Nature of business or profession, if more than one tradenames please specify upto 3 tradenames | G6: N | H6: N
C7: =C6+1 -> 3 | D7: Part A - BS | E7: Part A-BS | F7: BALANCE SHEET AS ON 31ST DAY OF MARCH, 2022(fill items 1 to 5 in a case where regular books of accounts are maintained, otherwise fill item 6) | G7: N | H7: N
C8: 4 | D8: Manufacturing Account | E8: Schedule Manufacturing Account | F8: Manufacturing Account for the financial year 2021-22 (fill items 1 to 3 in a case where regular books of accounts are maintained, otherwise fill items 61 to 64 as applicable) | G8: N | H8: N
C9: 5 | D9: Trading Account | E9: Schedule Trading Account | F9: Part A-Trading Account -Trading Account for the financial year 2021-22 (fill items 4 to 12 in a case where regular books of accounts are maintained, otherwise fill items 61 to 64 as applicable) | G9: N | H9: N
C10: 6 | D10: Profit and Loss | E10: Part A-P & L | F10: Profit and Loss Account for the previous year 2021-22(fill items 1 to 52 in a case where regular books of accounts are maintained, otherwise fill item 53) | G10: N | H10: N
C11: 7 | D11: Part A - OI | E11: Part A -OI | F11: Other Information (optional in a case not liable for audit under section 44AB) | G11: N | H11: N
C12: 8 | D12: Quantitative Details | E12: Part A-QD | F12: Quantitative details (optional in a case not liable for audit under section 44AB) | G12: N | H12: N
C13: =C5+1 -> 2 | D13: Schedule S | E13: Schedule S | F13: Details of Salary | G13: Y | H13: Y
C14: 3 | D14: House Property | E14: Schedule HP | F14: Details of Income from House Property | G14: Y | H14: Y
C15: 4 | D15: BP | E15: Schedule BP | F15: Computation of income from business or profession | G15: N | H15: N
C16: 5 | D16: DPM - DOA | E16: Schedule DPM, Schedule DOA | F16: Depreciation on Plant and Machinery , Depreciation on other assets | G16: N | H16: N
C17: 6 | D17: DEP_DCG | E17: Schedule DEP, Schedule DCG | F17: Summary of depreciation on assets, Deemed Capital Gains on sale of depreciable assets | G17: N | H17: N
C18: 7 | D18: ESR | E18: Schedule ESR | F18: Deduction under section 35 | G18: N | H18: N
C19: =C14+1 -> 4 | D19: CG | E19: Schedule CG | F19: Capital Gains | G19: Y | H19: Y
C20: 5 | D20: Schedule 112A | E20: Schedule 112A | F20: 112A | G20: Y | H20: Y
C21: 6 | D21: Schedule 115AD(1)(iii) proviso | E21: Schedule 115AD(1)(iii)Proviso | F21: 115AD(1)(iii)Proviso | G21: Y | H21: Y
C22: 7 | D22: VDA | E22: Schedule VDA | F22: Virtual Digital Assets | G22: Y | H22: Y
C23: 8 | D23: OS | E23: Schedule OS | F23: Income from other sources | G23: Y | H23: Y
C24: 9 | D24: CYLA - BFLA | E24: Schedule CYLA, Schedule BFLA | F24: Details of Income after set-off of current years losses, Details of Income after Set off of Brought Forward Losses of earlier years | G24: Y | H24: Y
C25: 10 | D25: CFL | E25: Schedule CFL | F25: Details of Losses to be carried forward to future Years | G25: Y | H25: Y
C26: 11 | D26: Unabsorbed Depreciation | E26: Schedule UD | F26: Unabsorbed depreciation and allowance under section 35(4) | G26: N | H26: N
C27: 12 | D27: ICDS | E27: Schedule ICDS | F27: Effect of Income Computation Disclosure Standards on profit | G27: N | H27: N
C28: 13 | D28: 10AA | E28: Schedule 10A, 10AA, 10B,10BA | F28: Deduction under section 10A, Deduction under section 10AA | G28: N | H28: N
C29: =C25+1 -> 11 | D29: 80G | E29: Schedule 80G | F29: Details of donations entitled for deduction under section 80G | G29: Y | H29: Y
C30: 12 | D30: 80D | E30: Schedule 80D | F30: Details of health insurance for deduction under Section 80D | G30: Y | H30: Y
C31: 13 | D31: RA | E31: Schedule 80RA | F31: Details of donations to research associations etc. | G31: N | H31: N
C32: =C30+1 -> 13 | D32: 80GGA | E32: Schedule 80GGA | F32: Details of donations for scientific research or rural development | G32: Y | H32: Y
C33: 14 | D33: 80 | E33: Schedule80-IA,IB,IC | F33: Deductions under section 80-IA, Deductions under section 80-IB, Deductions under section 80-IC | G33: Y | H33: Y
C34: 15 | D34: VI-A | E34: Schedule VIA | F34: Deductions under Chapter VI-A | G34: Y | H34: Y
C35: 16 | D35: 80U-80DD | E35: Schedule 80U-80DD | F35: Details of deduction in case of a person with disability | G35: Y | H35: Y
C36: 17 | D36: 80GGC | E36: Schedule 80GGC | F36: Details of contribution made to political parties | G36: Y | H36: Y
C37: 18 | D37: SPI - SI | E37: Schedule SPI, Schedule SI, Schedule IF | F37: Income of specified persons(spouse, minor child etc.) includable in income of the assessee , Income chargeable to Income tax at special rates IB, Information regarding partnership firms in which you are partner | G37: Y | H37: Y
C38: 19 | D38: AMT | E38: Schedule AMT | F38: Computation of Alternate Minimum Tax payable under section 115JC | G38: Y | H38: Y
C39: 20 | D39: AMTC | E39: Schedule AMTC | F39: Computation of tax credit under section 115JD | G39: Y | H39: Y
C40: 21 | D40: EI | E40: Schedule EI | F40: Details of Exempt Income (Income not to be included in Total Income) | G40: Y | H40: Y
C41: 22 | D41: PTI | E41: Schedule PTI | F41: Pass Through Income details from business trust or investment fund as per section 115UA, 115UB | G41: Y | H41: Y
C42: 23 | D42: TPSA | E42: Schedule TPSA | F42: Schedule for Transfer Pricing Secondary Adjustment | G42: N | H42: N
C43: =C41+1 -> 23 | D43: FSI | E43: Schedule FSI | F43: Details of Income from outside India and tax relief | G43: Y | H43: Y
C44: 24 | D44: TR_FA | E44: Schedule TR, Schedule FA | F44: Summary of tax relief claimed for taxes paid outside India, Schedule FA Details of foreign assets | G44: Y | H44: Y
C45: 25 | D45: Sch 5A | E45: Schedule 5A | F45: Information regarding apportionment of income between spouses governed by Portuguese Civil Code | G45: Y | H45: Y
C46: 26 | D46: AL | E46: Schedule AL | F46: Asset and Liability at the end of the year (other than those included in Part A – BS) | G46: Y | H46: Y
C47: 27 | D47: GST | E47: Schedule GST | F47: INFORMATION REGARDING TURNOVER/GROSS RECEIPT REPORTED FOR GST | G47: N | H47: N
C48: 27 | D48: Part B - TI TTI | E48: Part B-TI, Part B-TTI | F48: Computation of total income | G48: Y | H48: Y
C49: 28 | D49: IT | E49: Tax Payments | F49: Details of payments of Advance Tax and Self-Assessment Tax | G49: Y | H49: Y
C50: 29 | D50: ESOP | E50: Tax deferred on ESOP | F50: Information related to Tax deferred - relatable to income on perquisites referred in section 17(2)(vi) received from employer, being an eligible start-up referred to in section 80-IAC | G50: Y | H50: Y
C51: 30 | D51: TDS | E51: Tax Payments(TDS1, TDS2, TDS3) | F51: Details of Tax Deducted at Source from SALARY, Details of Tax Collected at Source | G51: Y | H51: Y
C52: 31 | D52: Verification | E52: Verification | F52: Verification | G52: Y | H52: Y

Sheet PART A - General
C3: FORM | E3: ITR-2 | N3: INDIAN INCOME TAX RETURN | AN3: Assessment Year
N4: [For Individuals and HUFs not having income from profits and gains of business or profession] | AN4: 2024-25
N5: (Please see Rule 12 of the Income Tax-Rules,1962) (Please Refer instructions)
C7: PERSONAL INFORMATION | E7: First Name | O7: Middle Name | W7: Last Name | AK7: PAN
E8: GHANSHAM | O8: K. | W8: TYAGI | AK8: BANPT6072G | BG8: No
E9: Flat / Door / Block No | W9: Name of Premises / Building / Village | AK9: Status (I-Individual,H-HUF) | BB9: (Select)
E10: 415/5699 | AK10: I-INDIVIDUAL | BB10: I-INDIVIDUAL | BE10: I | BF10: H
E11: Road / Street / Post Office | W11: Area / Locality | AK11: Date of Birth/Formation (DD/MM/YYYY) | BB11: H-HUF | BD11: (Select) | BE11: (Select) | BF11: (Select)
W12: BHAGPUR | AK12: 12/12/1975 | BD12: Male | BE12: M-Male | BF12: Not applicable
BD13: Female | BE13: F-Female
E14: Town/City/District | W14: State | AE14: Country | AO14: Pin Code | BD14: Transgender | BE14: Transgender
E15: NASIK | W15: 19-MAHARASHTRA | AE15: 91-INDIA | AO15: 422502 | BD15: Not applicable
E16: No Zip Code? | AH16: Zip Code
E17: Email Address-1 (self) | N17: Email Address - 2 | W17: Mobile No 1 | AA17: STD/ISD code | AE17: Residential/Office Phone Number with STD/ISD code | AK17: Mobile No-2
E18: TYAGI75@YAHOO.COM | N18: RATHORE_INCOMETAX@YAHOO.CO.IN | W18: 91 | X18: 7854685234 | AK18: 91 | AL18: 9811116835 | BD18: (Select)
N19: Filed u/s | Q19: Filed in response to notice u/s | X19: 139(4)- After due date | AE19: Residential Status in India | AK19: RES - Resident | BB19: =VLOOKUP(sheet1.ReturnFileSec,ReturnFileUnderSection,2,FALSE) -> 12-
E20: If revised/defective/Modified, enter Receipt no | AF20: Date of filing of Original Return (DD/MM/YYYY) | BB20: 1
E22: If filed, in response to a notice u/s 139(9)/142(1)/148/153C or order u/s 119(2)(b), enter Unique Number/Document Identification Number and date of such notice/order, or if filed u/s 92CD enter date of advance pricing agreement
E23: Unique Number/ Document Identification Number | AF23: Date or if filed u/s 92CD enter date of advance pricing agreement
E24: Conditions for Residential Status (Applicable for Individuals Only) | W24: You were in India for 182 days or more during the previous year [section 6(1)(a)]
E25: (i) Please specify the jurisdiction(s) of residence during the previous year -
E26: Sl.No. | F26: Jurisdiction(s) of residence | AA26: Taxpayer Identification Number(s)
E27: 1 | F27: (Select)
E28: =E27+1 -> 2 | F28: (Select)
E30: (ii) In case you are a Citizen of India or a Person of Indian Origin (POI), please specify -
E31: Total period of stay in India during the previous year (in days)
E32: Total period of stay in India during the 4 preceding years (in days)
E33: Aadhaar
E34: Do you wish to exercise the option u/s 115BAC(6) of Opting out of new tax regime ? (default is “No”) 1. By selecting "No" option your income and tax computation shall be as per “NEW TAX REGIME” 2. By selecting "Yes" option your income and tax computation shall be as per “OLD TAX REGIME” Note- For Opting out, option should be exercised along with the return of income filed u/s 139(1) | BB34: 2
E35: Option for current assessment year | AK35: (Select)
E36: For other than not opting, please furnish date of filing of form 10-IE along with Acknowledgment number
E37: Date of filing of Form 10IE (DD/MM/YYYY)
E38: Acknowledgment number
E39: Are you filing return of income under Seventh proviso to section 139(1) but otherwise not required to furnish return of income? If yes, please furnish following information [Note: To be filled only if a person is not required to furnish a return of income under section 139(1) but filing return of income due to fulfilling one or more conditions mentioned in the seventh proviso to section 139(1)] | AK39: No
E40: Have you deposited amount or aggregate of amounts exceeding Rs. 1 Crore in one or more current account during the previous year? (Yes/No)
E41: Have you incurred expenditure of an amount or aggregate of amount exceeding Rs. 2 lakhs for travel to a foreign country for yourself or for any other person
E42: Have you incurred expenditure of amount or aggregate of amount exceeding Rs. 1 lakh on consumption of electricity during the previous year? (Yes/No)
E43: Are you required to file a return as per other conditions prescribed under clause (iv) of seventh proviso to section 139(1) (If yes,please furnish following information)
E44: (i) if his total sales, turnover or gross receipts, as the case may be in the business exceeds sixty lakh rupees during the previous year; or
E45: (ii) if his total gross receipts in profession exceeds ten lakh rupees during the previous year; or
E46: (i) The aggregate of tax deducted at source and tax collected at source during the previous year, in the case of the person, is twenty-five thousand rupees (fifty-thousand for resident senior citizen) or more; or
E47: (ii) The deposits in one or more savings bank account of the person, in aggregate, is rupees fifty lakh or more, during the previous year.
E48: Aadhaar Number [Please enter the Aadhaar Number. Applicable to Individual only] | BB48: (Select) | BC48: (Select)
E49: Aadhaar Enrolment Id [Note: If Aadhaar Number is not yet allotted, then Aadhaar Enrolment Id is required. All the digits in enrolment ID & Date and time of enrolment to be entered continuously. For example Enrolment ID: 1234/12345/12345 & Date/Time of enrolment: 01/12/2016 11:50:22 to be entered as 1234123451234501122016115022] | AF49: 9999999999999999999999999999
E50: Do you want to claim the benefit u/s 115H (Applicable in case of Resident)? | Z50: NO | AF50: Are you governed by Portuguese Civil Code as per section 5A ? (If “YES” please fill Schedule 5A) | AR50: No
E51: Passport No. (Individual) (If available) | BB51: No
E52: Whether you are an FPI? | Z52: No | AF52: If yes, provide SEBI Registration Number
E53: Whether this return is being filed by a representative assessee? If yes, please furnish following information | AM53: N-No
E54: a | G54: Name of the representative
E55: b | N55: Capacity of representative
E56: c | G56: Address of the representative
E57: d | G57: Permanent Account Number (PAN) of the Representative
E58: e | N58: Aadhaar Number of the representative
E59: Whether you are Director in a company at any time during the previous year? If yes, please furnish following information - | AM59: Yes
E60: Sl. No. | F60: Name of company | O60: Type of Company | X60: PAN | AG60: Whether its shares are listed or unlisted | AK60: Director Identification Number (DIN)
E61: 1 | F61: GHANSHYAM MALLS LTD. | O61: Domestic | X61: ABCCG2456W | AG61: Listed | AK61: 00017545
E62: =E61+1 -> 2
E63: =E62+1 -> 3
E65: Whether you are a Partner in a Firm? If yes, please furnish following information - | AM65: (Select)
E66: Sl. No. | F66: Name of Firm | W66: PAN
E67: 1
E69: Legal Entity Identifier (LEI) details (mandatory if refund is 50 Crores or more)
E70: LEI Number | AC70: Valid upto date
E71: Due date u/s 139(1) | W71: 31/07/2024
E72: Whether you have held unlisted equity shares at any time during the previous year? If yes, please furnish following information - | AM72: No
E73: Sl. No. | F73: Name of company | N73: Type of Company | O73: PAN | P73: Opening Balance | X73: Shares acquired during the year | AJ73: Shares transferred during the year | AN73: Closing Balance
P74: No. of shares | T74: Cost of acquisition | X74: No. of shares | Z74: Date of subscription / purchase | AC74: Face value per share | AE74: Issue price per share (in case of fresh issue) | AH74: Purchase price per share (in case of purchase from existing shareholder) | AJ74: No. of shares | AL74: Sale consideration | AN74: No. of shares | AR74: Cost of acquisition
E75: 1
E76: =E75+1 -> 2
E77: =E76+1 -> 3
E78: =E77+1 -> 4
E80: In case of non-resident, is there a permanent establishment (PE) in India?

Sheet Nature Of Business (hidden)
C3: NATURE OF BUSINESS | D3: Nature of business/profession, if more than one business/profession indicate the three main activities/Products (OTHER THAN THOSE DECLARING INCOME UNDER SECTIONS 44AD, 44ADA AND 44AE) | L3: =SUMIF(N5:N7,"A",O5:O7) -> 0 | M3: =SUMIF(N5:N7,"B",O5:O7) -> 0 | N3: =IF(OR(MID(sheet1.LiableSec44ABflg,1,1)="(",MID(sheet1.LiableSec44ABflg,1,1)=""),"NA",MID(sheet1.LiableSec44ABflg,1,1)) ->  | O3: =sheet11.Section44AD -> 0 | P3: =PL.BusinessReceipts+PLCrEx.TotExciseCustomsVAT+PL.GrossReceipt ->  | Q3: =PL.GrossReceipts+PL.GrossReceipt_ii -> 
D4: Sl.No. | E4: Code-Sub Sector [Please see instruction No.7(i)] | F4: Trade name of the proprietorship, if any | G4: Description | O4: =IF(AND(N3="N",M3>=1),IF(AND(O3>0,P3<=20000000),1,IF(AND(O3>0,P3>20000000),2,IF(AND(OR(O3=0,O3=""),P3<=10000000),3,IF(AND(OR(O3=0,O3=""),P3>10000000),4,5)))),0) ->  | P4: =IF(AND(L3>=1, N3="N"),IF(AND(Q3<=5000000),1,2),0) -> 
D5: 1 | M5: =MID(E5,1,SEARCH("-",E5)-1) ->  | N5: =IF(ISERROR(IF(OR(M5="0601",M5="0602",M5="0603",M5="0604",M5="0605",M5="0606",M5="0607"),"A","B")),0,IF(OR(M5="0601",M5="0602",M5="0603",M5="0604",M5="0605",M5="0606",M5="0607"),"A","B")) -> 0 | O5: 1
D6: =D5+1 -> 2 | M6: =MID(E6,1,SEARCH("-",E6)-1) ->  | N6: =IF(ISERROR(IF(OR(M6="0601",M6="0602",M6="0603",M6="0604",M6="0605",M6="0606",M6="0607"),"A","B")),0,IF(OR(M6="0601",M6="0602",M6="0603",M6="0604",M6="0605",M6="0606",M6="0607"),"A","B")) -> 0 | O6: 1
D7: =D6+1 -> 3 | M7: =MID(E7,1,SEARCH("-",E7)-1) ->  | N7: =IF(ISERROR(IF(OR(M7="0601",M7="0602",M7="0603",M7="0604",M7="0605",M7="0606",M7="0607"),"A","B")),0,IF(OR(M7="0601",M7="0602",M7="0603",M7="0604",M7="0605",M7="0606",M7="0607"),"A","B")) -> 0 | O7: 1

Sheet Part A - BS (hidden)
C3: Part A-BS | F3: BALANCE SHEET AS ON 31ST DAY OF MARCH,2022 OR AS ON THE DATE OF CLOSURE OF BUSINESS AS APPLICABLE OF THE PROPRIETORY BUSINESS OR PROFESSION
C4: SOURCES OF FUNDS | D4: 1 | E4: Proprietor’s fund
E5: a | F5: Proprietor’s capital | K5: a
E6: b | F6: Reserves and Surplus
F7: i | G7: Revaluation Reserve | I7: bi
F8: ii | G8: Capital Reserve | I8: bii
F9: iii | G9: Statutory Reserve | I9: biii
F10: iv | G10: Any other Reserve | I10: biv
F11: v | G11: Total (bi + bii + biii + biv) | K11: bv | L11: =SUM(J7,J8,J9,J10) -> 0
E12: c | F12: Total proprietor’s fund (a + bv) | K12: 1c | L12: =SUM(L5,L11) -> 0
D13: 2 | E13: Loan funds
E14: a | F14: Secured loans
F15: i | G15: Foreign Currency Loans | I15: ai
F16: ii | G16: Rupee Loans
G17: A | H17: From Banks | I17: iiA
G18: B | H18: From others | I18: iiB
G19: C | H19: Total ( iiA + iiB) | I19: iiC | J19: =SUM(J17,J18) -> 0
F20: iii | G20: Total (ai + iiC) | K20: aiii | L20: =SUM(J15,J19) -> 0
E21: b | F21: Unsecured loans (including deposits)
F22: i | G22: From Banks | I22: bi
F23: ii | G23: From others | I23: bii
F24: iii | G24: Total (bi + bii) | K24: biii | L24: =SUM(J22,J23) -> 0
E25: c | F25: Total Loan Funds (aiii + biii) | K25: 2c | L25: =SUM(L20,L24) -> 0
D26: 3 | E26: Deferred tax liability | K26: 3
D27: 4 | E27: Sources of funds (1c + 2c +3) | K27: 4 | L27: =SUM(L12,L25,L26) -> 0
C28: APPLICATION OF FUNDS | D28: 1 | E28: Fixed assets
E29: a | F29: Gross: Block | I29: 1a
E30: b | F30: Depreciation | I30: 1b
E31: c | F31: Net Block (1a – 1b) | I31: 1c | J31: =MAX(0,(sheet2.GrossBlock-sheet2.Depreciation)) -> 0
E32: d | F32: Capital work-in-progress | I32: 1d
E33: e | F33: Total (1c + 1d) | K33: 1e | L33: =SUM(J31,J32) -> 0
D34: 2 | E34: Investments
E35: a | F35: Long-term investments
F36: i | G36: Government and other Securities - Quoted | I36: ai
F37: ii | G37: Government and other Securities – Unquoted | I37: aii
F38: iii | G38: Total (ai + aii) | K38: aiii | L38: =SUM(J36,J37) -> 0
E39: b | F39: Short-Term investments
F40: i | G40: Equity Shares, including share application money | I40: bi
F41: ii | G41: Preference Shares | I41: bii
F42: iii | G42: Debenture | I42: biii
F43: iv | G43: Total (bi + bii + biii) | K43: biv | L43: =SUM(J40,J41,J42) -> 0
E44: c | F44: Total investments (aiii + biv) | K44: 2c | L44: =SUM(L38,L43) -> 0
D45: 3 | E45: Current assets, loans and advances
E46: a | F46: Current assets
F47: i | G47: Inventories
G48: A | H48: Stores/consumables including packing material | I48: iA
G49: B | H49: Raw materials | I49: iB
G50: C | H50: Stock-in-process | I50: iC
G51: D | H51: Finished Goods/Traded Goods | I51: iD
G52: E | H52: Total (iA + iB + iC + iD) | K52: iE | L52: =SUM(J48,J49,J50,J51) -> 0
F53: ii | G53: Sundry Debtors | K53: aii
F54: iii | G54: Cash and Bank Balances
G55: A | H55: Cash-in-hand | I55: iiiA
G56: B | H56: Balance with bank | I56: iiiB
G57: C | H57: Total (iiiA + iiiB) | K57: iiiC | L57: =SUM(J55,J56) -> 0
F58: iv | G58: Other Current Assets | K58: aiv
F59: v | G59: Total current assets (iE + aii + iiiC + aiv) | K59: av | L59: =SUM(L52,L53,L57,L58) -> 0
E60: b | F60: Loans and advances
F61: i | G61: Advances recoverable in cash or in kind or for value to be received | I61: bi
F62: ii | G62: Deposits, loans and advances to corporates and others | I62: bii
F63: iii | G63: Balance with Revenue Authorities | I63: biii
F64: iv | G64: Total (bi + bii + biii) | K64: biv | L64: =SUM(J61,J62,J63) -> 0
E65: c | F65: Total of current assets, loans and advances (av + biv) | K65: 3c | L65: =SUM(L59,L64) -> 0
E66: d | F66: Current liabilities and provisions
F67: i | G67: Current liabilities
G68: A | H68: Sundry Creditors | I68: iA
G69: B | H69: Liability for Leased Assets | I69: iB
G70: C | H70: Interest Accrued on above | I70: iC
G71: D | H71: Interest accrued but not due on loans | I71: iD
G72: E | H72: Total (iA + iB + iC + iD) | K72: iE | L72: =SUM(J68,J69,J70,J71) -> 0
F73: ii | G73: Provisions
G74: A | H74: Provision for Income Tax | I74: iiA
G75: B | H75: Provision for Wealth Tax | I75: iiB
G76: B | H76: Provision for Leave encashment/Superannuation/Gratuity | I76: iiB
G77: C | H77: Other Provisions | I77: iiC
G78: D | H78: Total (iiA + iiB + iiC ) | K78: iiD | L78: =SUM(J74,J76,J77) -> 0
F79: iii | G79: Total (iE + iiD) | K79: diii | L79: =SUM(L72,L78) -> 0
E80: e | F80: Net current assets (3c – diii) | K80: 3e | L80: =(sheet3.TotCurrAssetLoanAdv-sheet3.TotCurrLiabilitiesProvision) -> 0
D81: 4 | E81: a | F81: Miscellaneous expenditure not written off or adjusted | I81: 4a
E82: b | F82: Deferred tax asset | I82: 4b
E83: c | F83: Profit and loss account / Accumulated balance | I83: 4c
E84: d | F84: Total (4a + 4b + 4c) | K84: 4d | L84: =SUM(J81,J82,J83) -> 0
D85: 5 | E85: Total, application of funds (1e + 2c + 3e +4d) | K85: 5 | L85: =SUM(L33,L44,L80,L84) -> 0
C86: NO ACCOUNT CASE | D86: 6 | E86: In a case where regular books of account of business or profession are not maintained -furnish the following information as on 31st day of March, 2022, in respect of business or profession)
E87: a | F87: Amount of total sundry debtors | K87: 6a
E88: b | F88: Amount of total sundry creditors | K88: 6b
E89: c | F89: Amount of total stock-in-trade | K89: 6c
E90: d | F90: Amount of the cash balance | K90: 6d

Sheet Manufacturing Account (hidden)
C3: Schedule Manufacturing Account | G3: Part A-Manufacturing Account- Manufacturing Account for the financial year 2021-22 (fill items 1 to 3 in a case where regular books of accounts are maintained, otherwise fill items 61 to 65 as applicable)
C4: 1 | D4: Debits to manufacturing account
D5: Opening Inventory
D6: A | E6: i | F6: Opening stock of raw-material | Q6: Ai
E7: ii | F7: Opening stock of Work in progress | Q7: Aii
E8: iii | F8: Total (i + ii) | Q8: Aiii | R8: =MAX(0,(ManuFactureAcc_OpenStockRawMaterial+ManuFactureAcc_OpenStockWorkProgress)) -> 0
D9: B | E9: Purchases (net of refunds and duty or tax, if any) | Q9: B
D10: C | E10: Direct wages | Q10: C
D11: D | E11: Direct expenses (Di + Dii + Diii) | Q11: D | R11: =SUM(ManuFactureAcc_CarriageInward,ManuFactureAcc_PowerAndFuel,ManuFactureAcc_OtherDirectExpenses) -> 0
E12: i | F12: Carriage inward | Q12: Di
E13: ii | F13: Power and fuel | Q13: Dii
E14: iii | F14: Other direct expenses | Q14: Diii
D15: E | E15: Factory Overheads
E16: i | F16: Indirect wages | Q16: Ei
E17: ii | F17: Factory rent and rates | Q17: Eii
E18: iii | F18: Factory Insurance | Q18: Eiii
E19: iv | F19: Factory fuel and power | Q19: Eiv
E20: v | F20: Factory general expenses | Q20: Ev
E21: vi | F21: Depreciation of factory machinery | Q21: Evi
E22: vii | F22: Total (i+ii+iii+iv+v+vi) | Q22: Evii | R22: =SUM(ManuFactureAcc_IndirectWages,ManuFactureAcc_FactoryRentRates,ManuFactureAcc_FactoryInsurance,ManuFactureAcc_FactoryFuelAndPower,ManuFactureAcc_FactoryGeneralExpenses,ManuFactureAcc_DepreciationOfFactoryMachinary) -> 0
D23: F | E23: Total of Debits to Manufacturing Account (Aiii+B+C+D+Evii) | Q23: F | R23: =SUM(ManuFactureAcc_TotalOpeningInventary,ManuFactureAcc_Purchases,ManuFactureAcc_DirectWages,ManuFactureAcc_TotalOfDirectExpenses,ManuFactureAcc_TotalFactoryOverheads) -> 0
C24: 2 | D24: Closing Stock
D25: i | E25: Raw material | Q25: i
D26: ii | E26: Work-in-progress | Q26: ii
D27: iii | E27: Total (2i +2ii) | Q27: iii | R27: =SUM(ManuFactureAcc_RawMaterial,ManuFactureAcc_WorkInProgress) -> 0
C28: 3 | D28: Cost of Goods Produced – transferred to Trading Account (1F-2) | Q28: 3 | R28: =ManuFactureAcc_TotalOfDebitstoManuFacturingAcc-ManuFactureAcc_TotalClosingClock -> 0

Sheet Trading Account (hidden)
C3: Schedule Trading Account | G3: Part A-Trading Account -Trading Account for the financial year 2021-22 (fill items 4 to 12 in a case where regular books of accounts are maintained, otherwise fill items 61 to 65 as applicable)
C4: 4 | D4: Revenue from operations
D5: A | E5: Sales/ Gross receipts of business (net of returns and refunds and duty or tax, if any)
E6: i | F6: Sale of goods
E7: ii | F7: Sale of services
E8: iii | F8: Other operating revenues (specify nature and amount)
F9: Sl.No. | G9: Nature | H9: Amount
F10: 1
F11: =F10+1 -> 2
F14: iii | G14: Total (1+2) | K14: =SUM(TradingAcc_RevenueAmount) -> 0
E15: iv | F15: Total(i+ii+iii) | M15: Aiv | N15: =SUM(TradingAcc_SalesOfGoods,TradingAcc_SalesOfServices,TradingAcc_RevenueTotal) -> 0
D16: B | E16: Gross receipts from Profession | M16: B
D17: C | E17: Duties, taxes and cess received or receivable in respect of goods and services sold or supplied
E18: i | F18: Union Excise duties
E19: ii | F19: Service Tax
E20: iii | F20: VAT/ Sales tax
E21: iv | F21: Central Goods & Service Tax (CGST)
E22: v | F22: State Goods & Services Tax (SGST)
E23: vi | F23: Integrated Goods & Services Tax (IGST)
E24: vii | F24: Union Territory Goods & Services Tax (UTGST)
E25: viii | F25: Any other duty, tax and cess
E26: ix | F26: Total (i + ii + iii + iv +v+ vi+vii+viii) | M26: 4Cix | N26: =SUM(TradingAcc_UnionExciseDuties,TradingAcc_ServiceTax,TradingAcc_VatOrSalesTax,TradingAcc_CGST,TradingAcc_SGST,TradingAcc_IGST,TradingAcc_UTGST,TradingAcc_AnyOtherDuty) -> 0
D27: D | E27: Total Revenue from operations (Aiv + B +Cix) | M27: 4D | N27: =SUM(TradingAcc_TotalOfSalesOrGross,TradingAcc_GrossRecieptsFromProfession,TradingAcc_TotalDutiesTaxesCess) -> 0
C28: 5 | D28: Closing Stock of Finished Stocks | M28: 5
C29: 6 | D29: Total of credits to Trading Account (4D + 5 ) | M29: 6 | N29: =SUM(TradingAcc_TotalRevenueFromOperations,TradingAcc_ClosingStockOfFinishedStocks) -> 0
C30: 7 | D30: Opening Stock of Finished Goods | M30: 7
C31: 8 | D31: Purchases (net of refunds and duty or tax, if any) | M31: 8
C32: 9 | D32: Direct Expenses (9i + 9ii + 9iii) | M32: 9 | N32: =SUM(TradingAcc_CarriageInward,TradingAcc_PowerAndFuel,SUM(TradingAcc_OtherDirectAmount)) -> 0
D33: i | E33: Carriage inward
D34: ii | E34: Power and fuel
D35: iii | E35: Other direct expenses
F36: Sl.No. | G36: Nature of direct expenses | H36: Amount
F37: 1
F38: =F37+1 -> 2
F41: 9iii | G41: Total | K41: =SUM(TradingAcc_OtherDirectAmount) -> 0
C42: 10 | D42: Duties and taxes, paid or payable, in respect of goods and services purchased
D43: i | E43: Custom duty
D44: ii | E44: Counter veiling duty
D45: iii | E45: Special additional duty
D46: iv | E46: Union excise duty
D47: v | E47: Service Tax
D48: vi | E48: VAT/ Sales tax
D49: vii | E49: Central Goods & Service Tax (CGST)
D50: viii | E50: State Goods & Services Tax (SGST)
D51: ix | E51: Integrated Goods & Services Tax (IGST)
D52: x | E52: Union Territory Goods & Services Tax (UTGST)
D53: xi | E53: Any other tax, paid or payable
D54: xii | E54: Total (10i + 10ii + 10iii + 10iv + 10v + 10vi + 10vii + 10viii + 10ix + 10x+10xi) | M54: 10xii | N54: =SUM(TradingAcc_CustomDuty,TradingAcc_CounterVeilingDuty,TradingAcc_SpecialAdditionalDuty,TradingAcc_UnionExciseDuty,TradingAcc_DutiesServiceTax,TradingAcc_DutiesVatOrSalesTax,TradingAcc_DutiesCGST,TradingAcc_DutiesSGST,TradingAcc_DutiesIGST,TradingAcc_DutiesUTGST,TradingAcc_DutiesAnyOtherTax) -> 0
C55: 11 | D55: Cost of goods produced – Transferred from Manufacturing Account | M55: 11 | N55: =ManuFactureAcc_CostOfGoodsProduced -> 0
C56: 12 | D56: Gross Profit from Business/Profession - transferred to Profit and Loss account (6-7-8-9-10xii-11) | M56: 12 | N56: =TradingAcc_TotalOfCreditsToTradingAccount-TradingAcc_OpeningStockOfFinishedGoods-TradingAcc_Purchases-TradingAcc_TotalDirectExpenses-TradingAcc_TotalDuties-TradingAcc_CostOfGoods -> 0

Sheet Profit and Loss (hidden)
C3: Part A-P &L | F3: Profit and Loss Account for the financial year 2021-22 (fill items 13 to 60 in a case where regular books of accounts are maintained, otherwise fill items 61 to 65 as applicable)
D4: 13 | E4: Gross profit transferred from Trading Account | K4: 13 | L4: =TradingAcc_GrossProfitOrLoss -> 0
D5: 14 | E5: Other income
E6: i | F6: Rent | I6: i
E7: ii | F7: Commission | I7: ii
E8: iii | F8: Dividend income | I8: iii
E9: iv | F9: Interest income | I9: iv
E10: v | F10: Profit on sale of fixed assets | I10: v
E11: vi | F11: Profit on sale of investment being securities chargeable to Securities Transaction Tax (STT) | I11: vi
E12: vii | F12: Profit on sale of other investment | I12: vii
E13: viii | F13: Gain (Loss) on account of foreign exchange fluctuation u/s 43AA | I13: viii
E14: ix | F14: Profit on conversion of inventory into capital asset u/s 28(via) (Fair Market Value of inventory as on the date of conversion) | I14: ix
E15: x | F15: Agriculture income | I15: x
E16: xi | F16: Any other income (specify nature and amount)
G17: Sl.No | H17: Nature | J17: Amount
G18: 1
G19: =G18+1 -> 2
G20: =G19+1 -> 3
G21: =G20+1 -> 4
H22: Total | J22: =SUM(Nature_Amt2) -> 0
E24: xii | F24: Total of other income (i + ii + iii + iv + v + vi + vii + viii + ix + x+ xi) | K24: 14xii | L24: =SUM(J6,J7,J8,J9,J10,J11,J12,J13,J14,J15,J22) -> 0
D25: 15 | E25: Total of credits to profit and loss account (13+14xii) | K25: 15 | L25: =SUM(PL_GrossProfitLoss,PL.TotOthIncome) -> 0
D26: 16 | E26: Freight outward | K26: 16
D27: 17 | E27: Consumption of stores and spare parts | K27: 17
D28: 18 | E28: Power and fuel | K28: 18
D29: 19 | E29: Rents | K29: 19
D30: 20 | E30: Repairs to building | K30: 20
D31: 21 | E31: Repairs to machinery | K31: 21
D32: 22 | E32: Compensation to employees
E33: i | F33: Salaries and wages | I33: 22i
E34: ii | F34: Bonus | I34: 22ii
E35: iii | F35: Reimbursement of medical expenses | I35: 22iii
E36: iv | F36: Leave encashment | I36: 22iv
E37: v | F37: Leave travel benefits | I37: 22v
E38: vi | F38: Contribution to approved superannuation fund | I38: 22vi
E39: vii | F39: Contribution to recognised provident fund | I39: 22vii
E40: viii | F40: Contribution to recognised gratuity fund | I40: 22viii
E41: ix | F41: Contribution to any other fund | I41: 22ix
E42: x | F42: Any other benefit to employees in respect of which an expenditure has been incurred | I42: 22x
E43: xi | F43: Total compensation to employees (22i + 22ii + 22iii + 22iv + 22v + 22vi + 22vii + 22viii + 22ix + 22x) | K43: 22xi | L43: =SUM(J33:J42) -> 0
E44: xii | F44: Whether any compensation, included in 22xi, paid to non-residents | I44: xiia
F45: If Yes, amount paid to non-residents | I45: xiib
D46: 23 | E46: Insurance
E47: i | F47: Medical Insurance | I47: 23i
E48: ii | F48: Life Insurance | I48: 23ii
E49: iii | F49: Keyman’s Insurance | I49: 23iii
E50: iv | F50: Other Insurance including factory, office, car, goods,etc. | I50: 23iv
E51: v | F51: Total expenditure on insurance (23i+23ii+23iii+23iv) | K51: 23v | L51: =SUM(J47:J50) -> 0 | W51: =SUM(L26:L31,PL.TotEmployeeComp,J44:J45,L51:L57,PL.CommissionExpdr,PLRY.Total,PLPC.Total,L70:L80,PL.AuditFee,PL.OtherExpenses) -> 0
D52: 24 | E52: Workmen and staff welfare expenses | K52: 24
D53: 25 | E53: Entertainment | K53: 25
D54: 26 | E54: Hospitality | K54: 26
D55: 27 | E55: Conference | K55: 27
D56: 28 | E56: Sales promotion including publicity (other than advertisement) | K56: 28
D57: 29 | E57: Advertisement | K57: 29
D58: 30 | E58: Commission
E59: i | F59: Paid outside India, or paid in India to a non-resident other than a company or a foreign company | I59: i
E60: ii | F60: To others | I60: ii
E61: iii | F61: Total (i + ii) | K61: 30iii | L61: =SUM(J59:J60) -> 0
D62: 31 | E62: Royalty
E63: i | F63: Paid outside India, or paid in India to a non-resident other than a company or a foreign company | I63: i
E64: ii | F64: To others | I64: ii
E65: iii | F65: Total (i + ii) | K65: 31iii | L65: =SUM(J63:J64) -> 0
D66: 32 | E66: Professional / Consultancy fees / Fee for technical services
E67: i | F67: Paid outside India, or paid in India to a non-resident other than a company or a foreign company | I67: i
E68: ii | F68: To others | I68: ii
E69: iii | F69: Total (i + ii) | K69: 32iii | L69: =SUM(J67:J68) -> 0
D70: 33 | E70: Hotel , boarding and Lodging | K70: 33
D71: 34 | E71: Traveling expenses other than on foreign traveling | K71: 34
D72: 35 | E72: Foreign travelling expenses | K72: 35
D73: 36 | E73: Conveyance expenses | K73: 36
D74: 37 | E74: Telephone expenses | K74: 37
D75: 38 | E75: Guest House expenses | K75: 38
D76: 39 | E76: Club expenses | K76: 39
D77: 40 | E77: Festival celebration expenses | K77: 40
D78: 41 | E78: Scholarship | K78: 41
D79: 42 | E79: Gift | K79: 42
D80: 43 | E80: Donation | K80: 43
D81: 44 | E81: Rates and taxes, paid or payable to Government or any local body (excluding taxes on income)
E82: i | F82: Union excise duty | I82: 44i
E83: ii | F83: Service tax | I83: 44ii
E84: iii | F84: VAT/ Sales tax | I84: 44iii
E85: iv | F85: Cess | I85: 44iv
E86: v | F86: Central Goods & Service Tax (CGST) | I86: 44v
E87: vi | F87: State Goods & Services Tax (SGST) | I87: 44vi
E88: vii | F88: Integrated Goods & Services Tax (IGST) | I88: 44vii
E89: viii | F89: Union Territory Goods & Services Tax (UTGST) | I89: 44viii
E90: ix | F90: Any other rate, tax, duty or cess including STT and CTT | I90: 44ix
E91: x | F91: Total rates and taxes paid or payable (44i+44ii+44iii+44iv+44v+ 44vi + 44vii + 44viii + 44ix) | K91: 44x | L91: =SUM(J82:J90) -> 0
D92: 45 | E92: Audit fee | K92: 45
D93: 46 | E93: Other expenses (Specify nature and amount)
G94: Sl.No. | H94: Nature | J94: Amount
G95: 1
G96: =G95+1 -> 2
G97: =G96+1 -> 3
G98: =G97+1 -> 4
H99: TOTAL | K99: 46 | L99: =SUM(Nature_Amt3) -> 0
D101: 47 | E101: Bad debts (Specify PAN/ Aadhaar No. of the person, if available, for whom Bad Debt for amount of ₹ 1 lakh or more is claimed and amount)
D102: i | F102: Sl.No. | H102: PAN | I102: Aadhaar Number | J102: Amount
F103: 1
F104: =F103+1 -> 2
F105: 3
F106: 4
F107: 5
F108: 6
F109: 7
F110: TOTAL | K110: 47i | L110: =SUM(PLBD.Amount) -> 0
D112: ii | E112: Others (more than Rs. 1 lakh or more) where PAN/ Aadhaar No. is not available, (provide name and complete address)
E113: Sl.No. | F113: Name | H113: Flat/Door/Block No. | I113: Name of Premises/Building/Village | J113: Road/Street/Post Office | K113: Area/locality | L113: Town/City/District | M113: State | N113: Country | O113: Pin code | P113: Zipcode | Q113: Amount
E114: 1 | M114: (Select) | N114: (Select) | T114: =SUM(PL_Amount) -> 0
E115: =E114+1 -> 2 | M115: (Select) | N115: (Select)
E116: =E115+1 -> 3 | M116: (Select) | N116: (Select)
E117: =E116+1 -> 4 | M117: (Select) | N117: (Select)
E119: TOTAL | P119: 47ii | Q119: =SUM(PL_Amount) -> 0
E120: iii | F120: Others (amounts less than Rs. 1 lakh) | I120: iii
E121: iv | F121: Total Bad Debt (47i + 47ii + 47iii) | K121: 47iv | L121: =MAX(SUM(SUM(PLBD.Amount),SUM(PL_Amount),PL.OthersAmtLt1Lakh),0) -> 0
D122: 48 | E122: Provision for bad and doubtful debts | K122: 48
D123: 49 | E123: Other provisions | K123: 49
D124: 50 | E124: Profit before interest, depreciation and taxes[15 – (16 to 21 + 22xi + 23v + 24 to 29 + 30iii + 31iii + 32iii + 33 to 43 + 44x + 45 + 46 + 47iv + 48 + 49)] | K124: 50 | L124: =(PL_TotalOfCreditsToProfit-SUM(L26:L31,PL.TotEmployeeComp,PL.TotInsurances,L52:L57,PL.CommissionExpdr,PLRY.Total,PLPC.Total,L70:L80,PLRateEx.TotExciseCustomsVAT,PL.AuditFee,PL.OtherExpenses,PL.BadDebt,PL.ProvForBadDoubtDebt,PL.OthProvisionsExpdr)) -> 0
D125: 51 | E125: Interest
E126: i | F126: Paid outside India, or paid in India to a non-resident other than a company or a foreign company | I126: i
E127: ii | F127: To others | I127: ii
E128: iii | F128: Total (i + ii) | K128: 51iii | L128: =SUM(J126,J127) -> 0
D129: 52 | E129: Depreciation and amortization | K129: 52
D130: 53 | E130: Net Profit before taxes (50 – 51iii – 52) | K130: 53 | L130: =(PL.PBIDTA-PL.InterestExpdr-PL.DepreciationAmort) -> 0
C131: PROVISIONS FOR TAX AND APPROPRIATIONS | D131: 54 | E131: Provision for current tax | K131: 54
D132: 55 | E132: Provision for Deferred Tax | K132: 55
D133: 56 | E133: Profit after tax (53 – 54 – 55) | K133: 56 | L133: =(PL.PBT-PL.ProvForCurrTax-PL.ProvDefTax) -> 0
D134: 57 | E134: Balance brought forward from previous year | K134: 57
D135: 58 | E135: Amount available for appropriation (56+ 57) | K135: 58 | L135: =SUM(L133,L134) -> 0
D136: 59 | E136: Transferred to reserves and surplus | K136: 59
D137: 60 | E137: Balance carried to balance sheet in proprietor’s account (58– 59) | K137: 60 | L137: =(PL.AmtAvlAppr-PL.TrfToReserves) -> 0
C138: COMPUTATION - PRESUMPTIVE INCOME | D138: 61 | E138: COMPUTATION OF PRESUMPTIVE BUSINESS INCOME UNDER SECTION 44AD
D139: Sl.No. | E139: Name of the Business | H139: Business Code | K139: Description
D140: 1
D141: =D140+1 -> 2
D142: =D141+1 -> 3
D143: i | E143: Gross turnover/Gross receipts (ia+ib) | K143: =SUM(PL_61a,PL_61b) -> 0
E144: a | F144: Through a/c payee cheque or a/c payee bank draft or bank electronic clearing system received before specified date or other prescribed electronic modes before specified date
E145: b | F145: Any other mode
D146: ii | E146: Presumptive income under section 44AD(iia+iib) | K146: =SUM(PL_61iia,PL_61iib) -> 0
E147: a | F147: 6% of 61ia, or the amount claimed to have been earned, whichever is higher
E148: b | F148: 8% of 61ib, or the amount claimed to have been earned, whichever is higher
D149: Note: If income is less than the above percentage of Gross Receipts/Turnover, it is mandatory to maintain books of accounts and have a tax audit under 44AB
D150: 62 | E150: COMPUTATION OF PRESUMPTIVE INCOME FROM PROFESSIONS UNDER SECTION 44ADA
D151: Sl.No. | E151: Name of the Business | H151: Business Code | K151: Description
D152: 1
D153: =D152+1 -> 2
D154: =D153+1 -> 3
E155: i | F155: Gross Receipts
E156: ii | F156: Presumptive Income under section 44ADA (50% of 62i, or the amount claimed to have been earned, whichever is higher)
D157: Note: If income is less than 50% of Gross Receipts, it is mandatory to maintain books of accounts and have a tax audit under 44AB
D158: 63 | E158: COMPUTATION OF PRESUMPTIVE INCOME FROM GOODS CARRIAGES UNDER SECTION 44AE
D159: Sl.No. | E159: Name of the Business | H159: Business Code | K159: Description
D160: 1 | H160: (Select)
D161: 2 | H161: (Select)
D162: 3 | H162: (Select)
D163: i | E163: Serial number
D164: Sl.No. | E164: Registration No. of goods carriage | H164: Whether owned/leased/hired | I164: Tonnage Capacity of goods carriage(in MT) | J164: Number of months for which goods carriage was owned / leased / hired by assessee | K164: Presumptive income u/s 44AE for the goods carriage (Computed @ Rs.1000 per tone per month in case tonnage exceeds 12MT, or else @ Rs.7500 per month) or the amount claimed to have been earned, whichever is higher
D165: 1 | H165: (Select) | V165: =I165*J165*1000 -> 0 | W165: =J165*7500 -> 0
D166: =D165+1 -> 2 | H166: (Select) | V166: 0 | W166: 0
D167: 3 | H167: (Select) | V167: 0 | W167: 0
D168: 4 | H168: (Select) | V168: 0 | W168: 0
D169: 5 | H169: (Select) | V169: 0 | W169: 0
D170: 6 | H170: (Select) | V170: 0 | W170: 0
D171: 7 | H171: (Select) | V171: 0 | W171: 0
D172: 8 | H172: (Select) | V172: 0 | W172: 0
D173: 9 | H173: (Select) | V173: 0 | W173: 0
D174: 10 | H174: (Select) | V174: 0 | W174: 0
E176: Total | J176: =SUM(Sheet44AE.NoOfMonths) -> 0 | K176: =SUM(Sheet44AE.PresumptiveIncome) -> 0
D177: ii | E177: Total presumptive income from goods carriage u/s 44AE [total of column (5) of table at Point 63(i) | K177: =SUM(Sheet44AE.PresumptiveIncome) -> 0
D178: Note: If the profits are lower than prescribed under S.44AE or the number of goods carriage owned / leased / hired at any time during the year exceeds 10, then , it is mandatory to maintain books of accounts and have a tax audit under 44AB
D179: 64 | E179: IF REGULAR BOOKS OF ACCOUNT OF BUSINESS OR PROFESSION ARE NOT MAINTAINED, furnish the following information for previous year 2021-22 in respect of business or profession-
E180: i | F180: For assessee carrying on Business
F181: a | G181: Gross turnover/Gross receipts (a1+a2) | L181: =SUM(PL_64ia1,PL_64ia2) -> 0
G182: 1 | H182: Through a/c payee cheque or a/c payee bank draft or bank electronic clearing system received or other prescribed electronic modes before specified date
G183: 2 | H183: Any other mode
F184: b | G184: Gross profit
F185: c | G185: Expenses
F186: d | G186: Net profit | L186: =MAX(0,(PL_64ib-PL_64ic)) -> 0
E187: ii | F187: For assessee carrying on Profession
F188: a | G188: Gross receipts (a1 + a2) | L188: =SUM(PL_64iia_i,PL_64iia_ii) -> 0
G189: i | H189: Through a/c payee cheque or a/c payee bank draft or bank electronic clearing system received before specified date or other prescribed electronic modes before specified date
G190: ii | H190: Any other mode
F191: b | G191: Gross profit
F192: c | G192: Expenses
F193: d | G193: Net profit | L193: =MAX(0,(PL_64iib-PL_64iic)) -> 0
E194: iii | F194: Total Profit (64(i)d+ 64(ii)d) | L194: =PL_64id+PL_64iid -> 0
D195: 65 | E195: i | F195: Turnover From Speculative Activity
E196: ii | F196: Gross Profit
E197: iii | F197: Expenditure, if any
E198: iv | F198: Net Income From Speculative Activity (65ii-65iii) | L198: =PL_65ii-PL_65iii -> 0

Sheet Part A - OI (hidden)
C3: Part A- OI | F3: Other Information (mandatory if liable for audit under section 44AB, for other fill, if applicable).
C4: OTHER INFORMATION | D4: 1 | E4: Method of accounting employed in the previous year | K4: 1 | L4: Mercantile
D5: 2 | E5: Is there any change in method of accounting | K5: 2 | L5: No
D6: 3a | E6: Increase in the profit or decrease in loss because of deviation, if any, as per Income Computation Disclosure Standards notified under section 145(2) [column 11a(iii) of Schedule ICDS] | K6: 3a | L6: =ICDS.Total -> 0
D7: 3b | E7: Decrease in the profit or increase in loss because of deviation, if any, as per Income Computation Disclosure Standards notified under section 145(2) [column 11b(iii) of Schedule ICDS] | K7: 3b | L7: =ICDS.Totalb -> 0
D8: 4 | E8: Method of valuation of closing stock employed in the previous year
E9: a | F9: Raw Material (if at cost or market rates whichever is less write 1, if at cost write 2, if at market rate write 3) | K9: 4a | L9: (Select)
E10: b | F10: Finished goods (if at cost or market rates whichever is less write 1, if at cost write 2, if at market rate write 3) | K10: 4b | L10: (Select)
E11: c | F11: Is there any change in stock valuation method (Select) | K11: 4c | L11: (Select)
E12: d | F12: Increase in the profit or loss because of deviation, if any, from the method of valuation specified under section 145A | K12: 4d
E13: e | F13: Decrease in the profit or increase in loss because of deviation, if any, from the method of valuation specified under section 145A | K13: 4e
D14: 5 | E14: Amounts not credited to the profit and loss account, being
E15: a | F15: the items falling within the scope of section 28 | I15: 5a
E16: b | F16: The proforma credits, drawbacks, refund of duty of customs or excise or service tax, or refund of sales tax or value added tax, or refund of GST, where such credits, drawbacks or refunds are admitted as due by the authorities concerned | I16: 5b
E17: c | F17: escalation claims accepted during the previous year | I17: 5c
E18: d | F18: Any other item of income | I18: 5d
E19: e | F19: Capital receipt, if any | I19: 5e
E20: f | F20: Total of amounts not credited to profit and loss account (5a+5b+5c+5d+5e) | K20: 5f | L20: =SUM(J15:J19) -> 0
D21: 6 | E21: Amounts debited to the profit and loss account, to the extent disallowable under section 36 due to non-fulfilment of conditions specified in relevant clauses:-
E22: a | F22: Premium paid for insurance against risk of damage or destruction of stocks or store [36(1)(i)] | I22: 6a
E23: b | F23: Premium paid for insurance on the health of employees [36(1)(ib)] | I23: 6b
E24: c | F24: Any sum paid to an employee as bonus or commission for services rendered, where such sum was otherwise payable to him as profits or dividend. [36(1)(ii)] | I24: 6c
E25: d | F25: Any amount of interest paid in respect of borrowed capital [36(1)(iii)] | I25: 6d
E26: e | F26: Amount of discount on a zero-coupon bond [36(1)(iiia)] | I26: 6e
E27: f | F27: Amount of contributions to a recognised provident fund [36(1)(iv)] | I27: 6f
E28: g | F28: Amount of contributions to an approved superannuation fund [36(1)(iv)] | I28: 6g
E29: h | F29: Amount of contribution to a pension scheme referred to in section 80CCD [36(1)(iva)] | I29: 6h
E30: i | F30: Amount of contributions to an approved gratuity [36(1)(v)] | I30: 6i
E31: j | F31: Amount of contributions to any other fund | I31: 6j
E32: k | F32: Any sum received from employees as contribution to any provident fund or superannuation fund or any fund set up under ESI Act or any other fund for the welfare of employees to the extent not credited to the employees account on or before the due date [36(1)(va)] | I32: 6k
E33: l | F33: Amount of bad and doubtful debts [36(1)(vii)] | I33: 6l
E34: m | F34: Provision for bad and doubtful debts [36(1)(viia)] | I34: 6m
E35: n | F35: Amount transferred to any special reserve [36(1)(viii)] | I35: 6n
E36: o | F36: Expenditure for the purposes of promoting family planning amongst employees [36(1)(ix)] | I36: 6o
E37: p | F37: Amount of securities transaction paid in respect of transaction in securities if such income is not included in business income [36(1)(xv)] | I37: 6p
E38: q | F38: Marked to market loss or other expected loss as computed in accordance with the ICDS notified u/s 145(2) [36(1)(xviii)] | I38: 6q
E39: r | F39: Any other disallowance | I39: 6r
E40: s | F40: Total amount disallowable under section 36 (total of 6a to 6r) | K40: 6s | L40: =SUM(J22:J39) -> 0
D41: 7 | E41: Amounts debited to the profit and loss account, to the extent disallowable under section 37
E42: a | F42: Expenditure of capital nature [37(1)] | I42: 7a
E43: b | F43: Expenditure of personal nature [37(1)] | I43: 7b
E44: c | F44: Expenditure laid out or expended wholly and exclusively NOT for the purpose of business or profession [37(1)] | I44: 7c
E45: d | F45: Expenditure on advertisement in any souvenir, brochure, tract, pamphlet or the like, published by a political party [37(2B)] | I45: 7d
E46: e | F46: Expenditure by way of penalty or fine for violation of any law for the time being in force | I46: 7e
E47: f | F47: Any other penalty or fine | I47: 7f
E48: g | F48: Expenditure incurred for any purpose which is an offence or which is prohibited by law; | I48: 7g
E49: h | F49: Amount of any liability of a contingent nature | I49: 7h
E50: i | F50: Any other amount not allowable under section 37 | I50: 7i
E51: j | F51: Total amount disallowable under section 37(total of 7a to 7i) | K51: 7j | L51: =SUM(J42:J50) -> 0
D52: 8 | E52: A | F52: Amounts debited to the profit and loss account, to the extent disallowable under section 40
F53: a | G53: Amount disallowable under section 40 (a)(i), on account of non-compliance with the provisions of Chapter XVII-B | I53: Aa
F54: b | G54: Amount disallowable under section 40(a)(ia) on account of non-compliance with the provisions of Chapter XVII-B | I54: Ab
F55: c | G55: Amount disallowable under section 40 (a)(ib), on account of non-compliance with the provisions of Chapter VIII of the Finance Act, 2016 | I55: Ac
F56: d | G56: Amount disallowable under section 40(a)(iii) on account of non-compliance with the provisions of Chapter XVII-B | I56: Ad
F57: e | G57: Amount of tax or rate levied or assessed on the basis of profits [40(a)(ii)] | I57: Ae
F58: f | G58: Amount paid as wealth tax [40(a)(iia)] | I58: Af
F59: g | G59: Amount paid by way of royalty, license fee, service fee etc. as per section 40(a)(iib) | I59: Ag
F60: h | G60: Amount of interest, salary, bonus, commission or remuneration paid to any partner or member inadmissible under section [40(b)/40(ba)] | I60: Ah
F61: i | G61: Any other disallowance | I61: Ai
F62: j | G62: Total amount disallowable under section 40(total of Aa to Ai) | K62: 8Aj | L62: =SUM(J53:J61) -> 0
E63: B | F63: Any amount disallowed under section 40 in any preceding previous year but allowable during the previous year | K63: 8B
D64: 9 | E64: Amounts debited to the profit and loss account, to the extent disallowable under section 40A
E65: a | F65: Amounts paid to persons specified in section 40A(2)(b) | I65: 9a
E66: b | F66: Amount paid, otherwise than by account payee cheque or account payee bank draft or use of electronic clearing system through a bank account or through such electronic mode as may be prescribed, , disallowable under section 40A(3) | I66: 9b
E67: c | F67: Provision for payment of gratuity [40A(7)] | I67: 9c
E68: d | F68: any sum paid by the assessee as an employer for setting up or as contribution to any fund, trust, company, AOP, or BOI or society or any other institution;[40A(9)] | I68: 9d
E69: e | F69: Any other disallowance | I69: 9e
E70: f | F70: Total amount disallowable under section 40A (total of 9a to 9e) | K70: 9f | L70: =SUM(J65:J69) -> 0
D71: 10 | E71: Any amount disallowed under section 43B in any preceding previous year but allowable during the previous year
E72: a | F72: Any sum in the nature of tax, duty, cess or fee under any law | I72: 10a
E73: b | F73: Any sum payable by way of contribution to any provident fund or superannuation fund or gratuity fund or any other fund for the welfare of employees | I73: 10b
E74: c | F74: Any sum payable to an employee as bonus or commission for services rendered | I74: 10c
E75: d | F75: Any sum payable as interest on any loan or borrowing from any public financial institution or a State financial corporation or a State Industrial investment corporation | I75: 10d
E76: da | F76: Any sum payable as interest on any loan or borrowing from a deposit taking non-banking financial company or systemically important non-deposit taking non-banking financial company, in accordance with the terms and conditions of the agreement governing such loan or borrowing | I76: 10da
E77: e | F77: Any sum payable as interest on any loan or borrowing from any scheduled bank or a co-operative bank other than a primary agricultural credit society or a primary co-operative agricultural and rural development bank | I77: 10e
E78: f | F78: Any sum payable towards leave encashment | I78: 10f
E79: g | F79: Any sum payable to the Indian Railways for the use of railway assets | I79: 10g
E80: h | F80: Total amount allowable under section 43B (total of 10a to 10g) | K80: 10h | L80: =SUM(J72:J79) -> 0
D81: 11 | E81: Any amount debited to profit and loss account of the previous year but disallowable under section 43B:-
E82: a | F82: Any sum in the nature of tax, duty, cess or fee under any law | I82: 11a
E83: b | F83: Any sum payable by way of contribution to any provident fund or superannuation fund or gratuity fund or any other fund for the welfare of employees | I83: 11b
E84: c | F84: Any sum payable to an employee as bonus or commission for services rendered | I84: 11c
E85: d | F85: Any sum payable as interest on any loan or borrowing from any public financial institution or a State financial corporation or a State Industrial investment corporation | I85: 11d
E86: da | F86: Any sum payable as interest on any loan or borrowing from a deposit taking non-banking financial company or systemically important non-deposit taking non-banking financial company, in accordance with the terms and conditions of the agreement governing such loan or borrowing | I86: 11d(a)
E87: e | F87: Any sum payable as interest on any loan or borrowing from any scheduled bank or a co-operative bank other than a primary agricultural credit society or a primary co-operative agricultural and rural development bank | I87: 11e
E88: f | F88: Any sum payable towards leave encashment | I88: 11f
E89: g | F89: Any sum payable to the Indian Railways for the use of railway assets | I89: 11g
E90: h | F90: Total amount disallowable under Section 43B(total of 11a to 11g) | K90: 11h | L90: =SUM(J82:J89) -> 0
D91: 12 | E91: Amount of credit outstanding in the accounts in respect of
E92: a | F92: Union Excise Duty | I92: 12a
E93: b | F93: Service tax | I93: 12b
E94: c | F94: VAT/sales tax | I94: 12c
E95: d | F95: Central Goods & Service Tax (CGST) | I95: 12d
E96: e | F96: State Goods & Services Tax (SGST) | I96: 12e
E97: f | F97: Integrated Goods & Services Tax (IGST) | I97: 12f
E98: g | F98: Union Territory Goods & Services Tax (UTGST) | I98: 12g
E99: h | F99: Any other tax | I99: 12h
E100: i | F100: Total amount outstanding (total of 12a to 12h) | K100: 12i | L100: =SUM(J92:J99) -> 0
D101: 13 | E101: Amounts deemed to be profits and gains under section 33AB or 33ABA (13a+13b) | K101: 13 | L101: =MAX(0,L102+L103) -> 0
E102: a | G102: 33AB | K102: 13a
E103: b | G103: 33ABA | K103: 13b
D104: 14 | E104: Any amount of profit chargeable to tax under section 41 | K104: 14
D105: 15 | E105: Amount of income or expenditure of prior period credited or debited to the profit and loss account (net) | K105: 15
D106: 16 | E106: Amount of Expenditure disallowed u/s 14A | K106: 16
D109: 17 | E109: Whether assessee is exercising option under subsection 2A of section 92CE [If yes , please fill schedule TPSA] | K109: 17 | L109: No

Sheet Quantitative Details (hidden)
D3: Part A – QD | E3: Quantitative details (mandatory if liable for audit under section 44AB) (Note : Numeric values not filled will default to zero)
D4: (a) In the case of a trading concern
D5: Item Name | E5: Unit | F5: Opening stock | G5: Purchase during the previous year | H5: Sales during the previous year | I5: Closing stock | J5: Shortage/ excess, if any
D6: 1 | E6: 2 | F6: 3 | G6: 4 | H6: 5 | I6: 6 | J6: 7
E7: (Select)
E8: (Select)
E9: (Select)
E10: (Select)
E11: (Select)
E12: (Select)
E13: (Select)
E14: (Select)
E15: (Select)
E16: (Select)
E17: (Select)
E18: (Select)
E19: (Select)
E20: (Select)
E21: (Select)
E22: (Select)
E23: (Select)
E24: (Select)
E25: (Select)
D29: (b) In the case of a manufacturing concern - Raw Materials
D30: Item Name | E30: Unit of measure | F30: Opening stock | G30: Purchase during the previous year | H30: Consumption during the previous year | I30: Sales during the previous year | J30: Closing stock | K30: Yield Finished Products | L30: Percentage of yield | M30: Shortage/ excess, if any
D31: 1 | E31: 2 | F31: 3 | G31: 4 | H31: 5 | I31: 6 | J31: 7 | K31: 8 | L31: 9 | M31: 10
E32: (Select)
E33: (Select)
E34: (Select)
E35: (Select)
E36: (Select)
E37: (Select)
E38: (Select)
E39: (Select)
E40: (Select)
E41: (Select)
E42: (Select)
E43: (Select)
E44: (Select)
E45: (Select)
E46: (Select)
E47: (Select)
E48: (Select)
E49: (Select)
E50: (Select)
E51: (Select)
D55: (C) In the case of a manufacturing concern -Finished Products/By-products
D56: Item Name | E56: Unit | F56: Opening stock | G56: Purchase during the previous year | H56: Quantity manufactured during the previous year | I56: Sales during the previous year | J56: Closing stock | K56: Shortage/ excess, if any
D57: 1 | E57: 2 | F57: 3 | G57: 4 | H57: 5 | I57: 6 | J57: 7 | K57: 8
E58: (Select)
E59: (Select)
E60: (Select)
E61: (Select)
E62: (Select)
E63: (Select)
E64: (Select)
E65: (Select)
E66: (Select)
E67: (Select)
E68: (Select)
E69: (Select)
E70: (Select)
E71: (Select)
E72: (Select)
E73: (Select)
E74: (Select)
E75: (Select)
E76: (Select)
E77: (Select)

Sheet Sheet1 (hidden)
A2: =CONCATENATE(YEAR(TODAY()),"-",IF(MONTH(TODAY())<10,"0",""),MONTH(TODAY()),"-",IF(DAY(TODAY())<10,"0",""),DAY(TODAY())) -> 2024-08-21 | B2: Date Of interest calculation | D2: Interest u/s 234A | E2: 0 | H2: Point No.15 of Income Details : Net Tax liability | I2: 0
A3: 21/08/2024 | B3: Date of filing | D3: Interest u/s 234B | E3: 0 | H3: TDS | I3: 0
B4: Due date for filing of returns | D4: Interest u/s 234C | E4: 0 | H4: TCS | I4: 0
A5: 01/04/2022 | B5: Date Of interest calculation 234A | H5: Assessed Tax | I5: 0
A7: Reference Of Tax Head | B7: IsSenior | C7: Tax Head | D7: Value | E7: ISSuperSenior | F7: IsNormal | G7: Age
A8: Point 7 of Income Detail | B8: TRUE | C8: Taxable Income | D8: 0 | E8: FALSE | F8: TRUE | G8: 2014
A10: GrpA(Normal Citizen) | B10: 200000 | D10: =IF(GrpC,0,IF(AND(TaxableIncome>=0,TaxableIncome<=B10),0,0)) -> 0
B11: 500000 | D11: =IF(GrpC,0,IF(AND(TaxableIncome>=200001,TaxableIncome<=B11),(ROUND(VALUE(TaxableIncome-B10) * 0.1,0)),0)) -> 0
B12: 1000000 | D12: =IF(GrpC,0,IF(AND(TaxableIncome>=500001,TaxableIncome<=B12),(ROUND(VALUE(TaxableIncome-B11) * 0.2,0))+30000,0)) -> 0
B13: 1000001 | D13: =IF(GrpC,0,IF((TaxableIncome>=B13),(ROUND(VALUE(TaxableIncome-B12) * 0.3,0))+130000,0)) -> 0
A15: GrpB(Senior Citizen) | B15: 250000 | D15: =IF(GrpA,0,IF(AND(TaxableIncome>=0,TaxableIncome<=B15),0,0)) -> 0
B16: 500000 | D16: =IF(GrpA,0,IF(AND(TaxableIncome>=250001,TaxableIncome<=B16),(ROUND(VALUE(TaxableIncome-B15) * 0.1,0)),0)) -> 0
B17: 1000000 | D17: =IF(GrpA,0,IF(AND(TaxableIncome>=500001,TaxableIncome<=B17),(ROUND(VALUE(TaxableIncome-B16) * 0.2,0))+25000,0)) -> 0
B18: 1000001 | D18: =IF(GrpA,0,IF((TaxableIncome>=B18),(ROUND(VALUE(TaxableIncome-B17) * 0.3,0))+125000,0)) -> 0 | F18: 459920
F19: =F18-D18 -> 459920
A20: GrpC(Super Senior Citizen)
B22: 500000 | D22: =IF(GrpB,0,IF(AND(TaxableIncome>=0,TaxableIncome<=B22),0,0)) -> 0
B23: 1000000 | D23: =IF(GrpB,0,IF(AND(TaxableIncome>=500001,TaxableIncome<=B23),(ROUND(VALUE(TaxableIncome-B22) * 0.2,0)),0)) -> 0
B24: 1000001 | D24: =IF(GrpB,0,IF((TaxableIncome>=B24),(ROUND(VALUE(TaxableIncome-B23) * 0.3,0))+100000,0)) -> 0
A26: Tax on Taxable Income | D26: =SUM(D10:D24) -> 0

Sheet ITold (hidden)
A1: 18A | B1: Tax Payments
A2: A | B2: Details of payments of Advance Tax and Self-Assessment Tax
B3: Sl No | C3: BSR Code Must be filled to include the payment in the Total | D3: Date of Deposit (DD/MM/YYYY) | E3: Serial Number of Challan | F3: Amount (Rs) | S3: ExSAT | T3: =SUMIF(FormulaOfExSAT,"=A",IT.Amt) -> 0
B4: 1 | C4: 2 | D4: 3 | E4: 4 | F4: 5
B5: 1 | O5: =VALUE(MID(D5,7,4)) ->  | P5: =VALUE(MID(D5,1,2)) ->  | Q5: =VALUE(MID(D5,4,2)) ->  | R5: =IF(O5>2016,2,IF(O5>=2016,IF(Q5>=4,2,1),1)) ->  | S5: =IF(R5>1,6,IF(O5<2016,IF((Q5=6)*(P5>15),2,IF(Q5<7,1,IF((Q5=9)*(P5>15),3,IF(Q5<10,2,IF((Q5=12)*(P5>15),4,IF(Q5<13,3,4)))))),IF(Q5<3,4,IF(P5<16,4,5)))) ->  | T5: =IF(O5<=2016,IF(R5>1,IF(Q5<4,Q5+9,Q5-3),0),Q5+9) ->  | U5: =IF(O5<=2016,IF(R5>1,IF(Q5<4,Q5+9,IF(Q5=9,IF(P5 <=7,"A",Q5-3),Q5-3)),0),Q5+9) -> 
B6: =B5+1 -> 2 | O6: =VALUE(MID(D6,7,4)) ->  | P6: =VALUE(MID(D6,1,2)) ->  | Q6: =VALUE(MID(D6,4,2)) ->  | R6: =IF(O6>2016,2,IF(O6>=2016,IF(Q6>=4,2,1),1)) ->  | S6: =IF(R6>1,6,IF(O6<2016,IF((Q6=6)*(P6>15),2,IF(Q6<7,1,IF((Q6=9)*(P6>15),3,IF(Q6<10,2,IF((Q6=12)*(P6>15),4,IF(Q6<13,3,4)))))),IF(Q6<3,4,IF(P6<16,4,5)))) ->  | T6: =IF(O6<=2016,IF(R6>1,IF(Q6<4,Q6+9,Q6-3),0),Q6+9) ->  | U6: =IF(O6<=2016,IF(R6>1,IF(Q6<4,Q6+9,IF(Q6=9,IF(P6 <=7,"A",Q6-3),Q6-3)),0),Q6+9) -> 
B7: =B6+1 -> 3 | O7: =VALUE(MID(D7,7,4)) ->  | P7: =VALUE(MID(D7,1,2)) ->  | Q7: =VALUE(MID(D7,4,2)) ->  | R7: =IF(O7>2016,2,IF(O7>=2016,IF(Q7>=4,2,1),1)) ->  | S7: =IF(R7>1,6,IF(O7<2016,IF((Q7=6)*(P7>15),2,IF(Q7<7,1,IF((Q7=9)*(P7>15),3,IF(Q7<10,2,IF((Q7=12)*(P7>15),4,IF(Q7<13,3,4)))))),IF(Q7<3,4,IF(P7<16,4,5)))) ->  | T7: =IF(O7<=2016,IF(R7>1,IF(Q7<4,Q7+9,Q7-3),0),Q7+9) ->  | U7: =IF(O7<=2016,IF(R7>1,IF(Q7<4,Q7+9,IF(Q7=9,IF(P7 <=7,"A",Q7-3),Q7-3)),0),Q7+9) -> 
B8: =B7+1 -> 4 | O8: =VALUE(MID(D8,7,4)) ->  | P8: =VALUE(MID(D8,1,2)) ->  | Q8: =VALUE(MID(D8,4,2)) ->  | R8: =IF(O8>2016,2,IF(O8>=2016,IF(Q8>=4,2,1),1)) ->  | S8: =IF(R8>1,6,IF(O8<2016,IF((Q8=6)*(P8>15),2,IF(Q8<7,1,IF((Q8=9)*(P8>15),3,IF(Q8<10,2,IF((Q8=12)*(P8>15),4,IF(Q8<13,3,4)))))),IF(Q8<3,4,IF(P8<16,4,5)))) ->  | T8: =IF(O8<=2016,IF(R8>1,IF(Q8<4,Q8+9,Q8-3),0),Q8+9) ->  | U8: =IF(O8<=2016,IF(R8>1,IF(Q8<4,Q8+9,IF(Q8=9,IF(P8 <=7,"A",Q8-3),Q8-3)),0),Q8+9) -> 
C10: Total | F10: =SUM(IT.Amt) -> 26000
A11: NOTE | C11: Enter the totals of Advance tax and Self-Assessment tax in Sl No. 10a & 10d of Part B-TTI
T13: =SUMIF(FormulaOfSAT,"=12",IT.Amt) -> 0 | U13: =SUMIF(FormulaOfSAT,"=24",IT.Amt) -> 0
T14: =SUMIF(FormulaOfSAT,"=11",IT.Amt) -> 0 | U14: =SUMIF(FormulaOfSAT,"=23",IT.Amt) -> 0
T15: =SUMIF(FormulaOfSAT,"=10",IT.Amt) -> 0 | U15: =SUMIF(FormulaOfSAT,"=22",IT.Amt) -> 0
T16: =SUMIF(FormulaOfSAT,"=9",IT.Amt) -> 0 | U16: =SUMIF(FormulaOfSAT,"=21",IT.Amt) -> 0
T17: =SUMIF(FormulaOfSAT,"=8",IT.Amt) -> 0 | U17: =SUMIF(FormulaOfSAT,"=20",IT.Amt) -> 0
T18: =SUMIF(FormulaOfSAT,"=7",IT.Amt) -> 0 | U18: =SUMIF(FormulaOfSAT,"=19",IT.Amt) -> 0
T19: =SUMIF(FormulaOfSAT,"=6",IT.Amt) -> 0 | U19: =SUMIF(FormulaOfSAT,"=18",IT.Amt) -> 0
R20: Quarter Income Break up | S20: =SUMIF(FormulaOfQ,"=5",IT.Amt) -> 0 | T20: =SUMIF(FormulaOfSAT,"=5",IT.Amt) -> 0 | U20: =SUMIF(FormulaOfSAT,"=17",IT.Amt) -> 0
S21: =SUMIF(FormulaOfQ,"=4",IT.Amt) -> 26000 | T21: =SUMIF(FormulaOfSAT,"=4",IT.Amt) -> 0 | U21: =SUMIF(FormulaOfSAT,"=16",IT.Amt) -> 0
S22: =SUMIF(FormulaOfQ,"=3",IT.Amt) -> 0 | T22: =SUMIF(FormulaOfSAT,"=3",IT.Amt) -> 0 | U22: =SUMIF(FormulaOfSAT,"=15",IT.Amt) -> 0
S23: =SUMIF(FormulaOfQ,"=2",IT.Amt) -> 0 | T23: =SUMIF(FormulaOfSAT,"=2",IT.Amt) -> 0 | U23: =SUMIF(FormulaOfSAT,"=14",IT.Amt) -> 0
O24: Self Assesment | P24: =SUMIF(IT.FormulaOFS,">=2",IT.Amt) -> 0 | Q24: Advance Tax | R24: =SUMIF(IT.FormulaOFS,"<2",IT.Amt) -> 26000 | S24: =SUMIF(FormulaOfQ,"=1",IT.Amt) -> 0 | T24: =SUMIF(FormulaOfSAT,"=1",IT.Amt) -> 0 | U24: =SUMIF(FormulaOfSAT,"=13",IT.Amt) -> 0

Sheet Part A Gen_139(8A) (hidden)
C3: FORM | E3: ITR-U | J3: INDIAN INCOME TAX UPDATED RETURN
J4: [ For persons to update income within twenty-four months from end of the relevant assessment year] (Refer Instructions for eligibility ) (Please see rule 12AC of the Income-tax Rules, 1962)
E5: PART A GENERAL - Personal Information
E6: (A1) PAN | T6: (A2) Name
E7: =IF(sheet1.PAN="","",sheet1.PAN) -> BANPT6072G | T7: =CONCATENATE(sheet1.FirstName," ",sheet1.MiddleName," ",sheet1.SurNameOrOrgName) -> GHANSHAM K. TYAGI
E8: (A3) Aadhaar Number (Please enter Aadhaar Number. Applicable to Individual only) | Y8: (A3a) Aadhaar Enrolment Id (28 digits) (If eligible for Aadhaar No.) | AP8: (A4) Assessment Year
E9: =IF(sheet1.adhaarno="","",sheet1.adhaarno) ->  | AP9: AY 2023-24
E10: (A5) Whether return previously filed for this assessment year? | AS10: (Select)
E11: (A6) If Yes, Whether U/s | Z11: (Select)
E12: (A7) If applicable, enter form filed, acknowledgement no. or Receipt no. and date of filing original return (DD/MM/YYYY)
E13: ITR Type | Z13: (Select)
E14: Acknowledgement Number | AA14: Date of Filing of Original Return
E15: (A8) Are you eligible for filing an updated return as per the conditions laid out in first, second and third provisos to section 139(8A)? | AS15: (Select)
E16: (A9) Please choose the ITR form for updating your income (ITRs 1-7 to be selected from drop-down and filled as per the details made available by e-filing utility– see instruction) | AS16: ITR2
E17: (A10) Reasons for updating your income: | AZ17: =COUNTIF(U_ReasonsForUpdatingIncome,"Reduction of carried forward loss") -> 0 | BA17: =COUNTIF(U_ReasonsForUpdatingIncome,"Reduction of unabsorbed depreciation") -> 0 | BB17: =COUNTIF(U_ReasonsForUpdatingIncome,"Reduction of tax credit u/s 115JB/115JC") -> 0
E18: (Select)
E22: (A11) Are you filing the updated return during the period | AM22: (Select)
E23: (A12) (a) Are you filing the updated return to reduce carried forward loss or unabsorbed depreciation or tax credit? | AS23: (Select)
E24: (b) If Yes , please specify the assessment years where carried forward loss or unabsorbed depreciation or tax credit is being affected because of the updated return | AZ24: =COUNTIF(U_UnabsorbedDepreciationYear,"2023-24") -> 0 | BA24: =COUNTIF(U_UnabsorbedDepreciationYear,"2024-25") -> 0
E25: Sl.No. | F25: Assessment Year | L25: Whether return has been filed after giving effect of Sl. No. 12a above | AA25: Return Filed, if yes is selected
E26: 1 | F26: (Select)
E27: 2 | F27: (Select)

Sheet Schedule S
U1: 0
C3: Schedule S | E3: Details of Income from Salary (Fields marked in RED must not be left Blank. Empty numeric values treated as zeroes)
D4: Name of Employer | G4: GODREJ MARKETING LTD | H4: Nature of employer | J4: OTHERS | K4: TAN of Employer (mandatory if tax is deducted) | L4: PNEG30679F
D5: Address of employer | H5: 115/25, BHAGPUR | J5: Town/City | K5: Pin code | L5: Zip code | Q5: 27
D6: State | H6: 19-MAHARASHTRA | J6: NASIK | K6: 422502 | Q6: 2
D7: 1 | E7: Gross Salary (1a + 1b + 1c + 1d + 1e + 1f) | K7: 1 | L7: 22386000 | Q7: =SUMIF(Salary.ValueSection1,"Stock options allotted or transferred by employer being an eligible start-up referred to in section 80-IAC-Tax to be deferred",Salary.ValueAmount1) -> 0
E8: a | F8: Salary as per section 17(1) | I8: 1a | J8: 19471800 | Q8: 0
F9: Sl no | G9: Nature of salary | H9: Description | J9: Amount
F10: 1 | G10: Basic Salary | J10: 19410000
F11: =F10+1 -> 2 | G11: Children Education Allowance | J11: 1800
F12: =F11+1 -> 3 | G12: Leave Encashment | J12: 42000
F13: 4 | G13: Other Allowance | J13: 18000
E14: b | F14: Value of perquisites as per section 17(2) | I14: 1b | J14: 2914200
F15: Sl no | G15: Nature of perquisites | H15: Description | J15: Amount
F16: 1 | G16: Accommodation | J16: 2914200
F17: =1+F16 -> 2
F18: =1+F17 -> 3
E19: c | F19: Profit in lieu of salary as per section 17(3) | I19: 1c | J19: 0
F20: Sl no | G20: Nature of Profit in lieu of Salary | H20: Description | J20: Amount
F21: 1
F22: =1+F21 -> 2
E23: d | F23: Income from retirement benefit account maintained in a notified country u/s 89A | I23: 1d | J23: 0
F24: Sl no | G24: Country | J24: Amount
F25: 1 | G25: United States of America
F26: 2 | G26: United Kingdom of Great Britain and Northern Ireland
F27: 3 | G27: Canada
E28: e | F28: income from retirement benefit account maintained in a Country other than notified country u/s 89A" | I28: 1e | J28: 0
E29: f | F29: Income taxable during the previous year on which relief u/s 89A was claimed in any earlier previous year. | I29: 1f
D31: Name of Employer | H31: Nature of employer | J31: (Select) | K31: TAN of Employer (mandatory if tax is deducted)
D32: Address of employer | J32: Town/City | K32: Pin code | L32: Zip code
D33: State | H33: (Select)
D34: 1 | E34: Gross Salary (1a + 1b + 1c + 1d + 1e + 1f) | K34: 1 | L34: 0 | Q34: =SUMIF(Salary.ValueSection2,"Stock options allotted or transferred by employer being an eligible start-up referred to in section 80-IAC",Salary.ValueAmount2) -> 0
E35: a | F35: Salary as per section 17(1) | I35: 1a | J35: 0
F36: Sl no | G36: Nature of salary | H36: Description | J36: Amount
F37: 1 | G37: (Select)
F38: =F37+1 -> 2 | G38: (Select)
F39: =F38+1 -> 3
F40: 4
E41: b | F41: Value of perquisites as per section 17(2) | I41: 1b | J41: 0
F42: Sl no | G42: Nature of perquisites | H42: Description | J42: Amount
F43: 1 | G43: (Select)
F44: =1+F43 -> 2 | G44: (Select)
F45: =1+F44 -> 3 | G45: (Select)
E46: c | F46: Profit in lieu of salary as per section 17(3) | I46: 1c | J46: 0
F47: Sl no | G47: Nature of Profit in lieu of Salary | H47: Description | J47: Amount
F48: 1 | G48: (Select)
F49: =1+F48 -> 2 | G49: (Select)
E50: d | F50: Income from retirement benefit account maintained in a notified country u/s 89A | I50: 1d | J50: 0
F51: Sl no | G51: Country | J51: Amount
F52: 1 | G52: United States of America
F53: 2 | G53: United Kingdom of Great Britain and Northern Ireland
F54: 3 | G54: Canada
E55: e | F55: income from retirement benefit account maintained in a Country other than notified country u/s 89A" | I55: 1e
E56: f | F56: Income taxable during the previous year on which relief u/s 89A was claimed in any earlier previous year. | I56: 1f
D59: 2 | E59: Total gross salary from all employers | K59: 2 | L59: 22386000
D60: 3a | E60: Less : Income claimed for relief from taxation u/s 89A | K60: 3a | L60: 0
D61: 3 | E61: Less : allowances to the extent exempt u/s 10 (Note: Ensure that it is included in salary income u/s 17(1)/17(2)/17(3)) | K61: 3 | L61: =SUM(Salary.Amount1) -> 0
F62: Sl.No | G62: Nature of Exempt Allowance | H62: Description | J62: Amount
F63: 1 | G63: (Select) | I63: 1
F64: =F63+1 -> 2 | G64: (Select) | I64: =I63+1 -> 2
F65: =F64+1 -> 3 | G65: (Select) | I65: =I64+1 -> 3
F66: =F65+1 -> 4 | G66: (Select) | I66: =I65+1 -> 4
F67: =F66+1 -> 5 | G67: (Select) | I67: =I66+1 -> 5
D69: 4 | E69: Net Salary (2 – 3 - 3a) | H69: 22386000 | J69: 19471800 | K69: 4 | L69: =MAX(0,(Tempgross-SAL.ExemptUSectionOth1-Increliefus89A)) -> 22386000
D70: 5 | E70: Deduction u/s 16 (5a + 5b + 5c) | K70: 5 | L70: =SUM(SAL.DeductionUnder6Section1,SAL.Entertainment_allowance_1,SAL.DeductionUnderSection1) -> 50000
E71: a | F71: Standard deduction u/s 16(ia) | I71: 5a | J71: =MIN(SAL.Netsalary1,50000) -> 50000
E72: b | F72: Entertainment allowance u/s 16(ii) | I72: 5b | R72: 19410000
E73: c | F73: Professional tax u/s 16(iii) | I73: 5c
D74: 6 | E74: Income chargeable under the Head ‘Salaries’ (4 - 5) | K74: 6 | L74: =MAX(0,(SAL.Netsalary1-SAL.Deduction1)) -> 22336000
G98: aaa

Sheet House Property
C3: SCH HP | F3: Details of Income from House Property (Fields marked in RED must not be left Blank)
D4: 1A | F4: Address Of Property (Note : Do not leave address blank ) | G4: Town/ City | H4: State | I4: Country | J4: PIN Code | K4: Zip Code
F5: 383/14, GROUND FLOOR, NEW MULTAN NAGAR | G5: FARIDABAD | H5: 12-HARYANA | I5: 91-INDIA | J5: 121002
F6: Owner of the Property (Please specify if others is selected ) | G6: Self | I6: Is the property co-owned? | J6: No | K6: Your percentage of share in the property.%
F7: S.No | G7: Name of co owner(s) | H7: PAN of Co-owner(s) | I7: Aadhaar Number of the Co-owner(s) | J7: Percentage share of other co-owner(s) in property% | K7: 100 | N7: 27
F8: 1 | N8: 2
F9: =F8+1 -> 2 | T9: tempPercentagecountValue
F10: 3
F11: 4
F12: 5
F13: 6
F14: 7
F15: Type Of House Property? | H15: Let Out
F16: S.No | G16: Name(s) of Tenant (s) (if let out) | H16: PAN of Tenant(s) (if available) | I16: Aadhaar Number of Tenant (s) | J16: PAN / TAN of Tenant(s) (if TDS credit is claimed)
F17: 1 | G17: Dr. Shyam Bihari
F18: =F17+1 -> 2
F19: =F18+1 -> 3
E20: a | F20: Gross Rent received or receivable or letable value | J20: a | K20: 400000
E21: b | F21: The amount of rent which cannot be realized
E22: c | F22: Tax paid to local authorities | I22: 17000
E23: d | F23: Total (b + c) | I23: =SUM(I21:I22) -> 17000
E24: e | F24: Annual value (a – d) (nil, if self -occupied etc. as per section 23(2)of the Act) | J24: e | K24: =MAX((K20-I23),0) -> 383000
E25: f | F25: Annual value of the property owned (own percentage share x e) | J25: f | K25: =MAX(ROUND(((K7/100)*K24),0),0) -> 383000
E26: g | F26: 30% of 1f | I26: =MAX(ROUND(IF(((30/100)*K25) < 0,0,(30/100*K25)),0),0) -> 114900
E27: h | F27: Interest payable on borrowed capital | H27: Cannot exceed 2 lacs if not let out | I27: 330000
E28: i | F28: Total (g + h) | J28: i | K28: =SUM(I26,I27) -> 444900
E29: j | F29: Arrears/Unrealized Rent received during the year Less 30% | J29: j
E30: k | F30: Income from house property (f – i + j) | J30: k | K30: =(K25-K28+K29) -> -61900
D31: 1B | F31: Address Of Property (Note : Do not leave address blank ) | G31: Town/ City | H31: State | I31: Country | J31: PIN Code | K31: Zip Code
F32: 383/14, FIRST FLOOR, NEW MULTAN NAGAR | G32: FARIDABAD | H32: 12-HARYANA | I32: 91-INDIA | J32: 121002
F33: Owner of the Property (Please specify if others is selected ) | G33: Self | I33: Is the property co-owned? | J33: No | K33: Your percentage of share in the property.%
F34: S.No | G34: Name of co owner(s) | H34: PAN of Co-owner(s) | I34: Aadhaar Number of the Co-owner(s) | J34: Percentage share of other co-owner(s) in property% | K34: 100
F35: 1
F36: =F35+1 -> 2
F37: 3
F38: 4
F39: 5
F40: 6
F41: 7
F42: Type Of House Property? | H42: Let Out
F43: S.No | G43: Name(s) of Tenant (s) (if let out) | H43: PAN of Tenant(s) (if available) | I43: Aadhaar Number of Tenant (s) | J43: PAN / TAN of Tenant(s) (if TDS credit is claimed)
F44: 1 | G44: Jugal Furniture | J44: DELJ49542D
F45: =F44+1 -> 2
F46: =F45+1 -> 3
E47: a | F47: Gross Rent received or receivable or letable value | J47: a | K47: 600000
E48: b | F48: The amount of rent which cannot be realized
E49: c | F49: Tax paid to local authorities | I49: 17000
E50: d | F50: Total (b + c) | I50: =SUM(I48:I49) -> 17000
E51: e | F51: Annual value (a – d) (nil, if self -occupied etc. as per section 23(2)of the Act) | J51: e | K51: =MAX((K47-I50),0) -> 583000
E52: f | F52: Annual value of the property owned (own percentage share x e) | J52: f | K52: =MAX(0,ROUND(((K34/100)*K51),0)) -> 583000
E53: g | F53: 30% of 1f | I53: =MAX(ROUND(IF(((30/100)*K52) < 0,0,(30/100*K52)),0),0) -> 174900
E54: h | F54: Interest payable on borrowed capital | H54: Cannot exceed 2 lacs if not let out | I54: 330000
E55: i | F55: Total (g + h) | J55: i | K55: =SUM(I53,I54) -> 504900
E56: j | F56: Arrears/Unrealized Rent received during the year Less 30% | J56: j
E57: k | F57: Income from house property (f – i + j) | J57: k | K57: =(K52-K55+K56) -> 78100
D58: 2 | E58: Pass through income/Loss if any * | J58: 2 | K58: 0 | N58: =IF(bacValue=1,0,MAX(HP.TotalIncomeChargeableUnHP,-200000)) -> 0
D59: 3 | E59: Income under the head “Income from house property” (Ʃ1k+2) (if negative take the figure to 2i of schedule CYLA) | J59: 3 | K59: 16200 | N59: =MAX(0,(-HP.TotalIncomeChargeableUnHP-200000)) -> 0

Sheet BP (hidden)
C3: Schedule BP | F3: Computation of income from business or profession
C4: INCOME FROM BUSINESS OR PROFESSION | D4: A | E4: From business or profession other than speculative business or specified business
E5: 1 | F5: Profit before tax as per profit and loss account ((item 53 ,61(ii)), 62(ii), 63(ii), 64(iii) and 65(iv) of P&L)(in case of no account case)] | J5: 1 | K5: =PL.PBT+PL_61ii+PL_63ii+PL_64iii+PL_65iv+IF(PL_62ii<>0,PL_62ii,0) -> 0
E6: 2a | F6: Net profit or loss from speculative business included in 1 (enter –ve sign in case of loss) [Sl.no 65iv of Schedule P&L] | H6: 2a | N6: FINALPBT | O6: =PL.PBT+PL_61ii+PL_63ii+PL_64iii+PL_65iv+IF(PL_62ii<>0,PL_62ii,0) -> 0
E7: 2b | F7: Net profit or Loss from Specified Business u/s 35AD included in 1 (enter –ve sign in case of loss) | H7: 2b
E8: 3 | F8: Income/ receipts credited to profit and loss account considered under other heads of income or chargeable u/s 115BBF or chargeable u/s 1115BBG
F9: a | G9: Salaries | H9: 3a
F10: b | G10: House Property | H10: 3b
F11: c | G11: Capital Gains | H11: 3c
F12: d | G12: Other Sources | H12: 3d | I12: =sheet10.IncRecCredPLOthHeads4Div+sheet10.IncRecCredPLOthHeads4OthDiv -> 0
F13: i | G13: Dividend Income | H13: 3di
F14: ii | G14: Other than Dividend Income | H14: 3dii
F15: e | G15: u/s 115BBF | H15: 3e
F16: f | G16: u/s 115BBG | H16: 3f
E17: 4a | F17: Profit or loss included in 1, which is referred to in section 44AD/44ADA/44AE/44B/44BB/44BBA/44DA | H17: 4 | I17: =SUM(BP_4_44AD,BP_4_44ADA,BP_4_44AE,BP_4_44B,BP_4_44BB,BP_4_44BBA,BP_4_44DA) -> 0
F18: Sl no | G18: Section | I18: Amount
F19: a | G19: 44AD | H19: 4a | I19: =sheet11.Section44AD -> 0
F20: b | G20: 44ADA | H20: 4b | I20: =sheet11.Section44ADA -> 0
F21: c | G21: 44AE | H21: 4c | I21: =sheet11.Section44AE -> 0
F22: d | G22: 44B | H22: 4d | I22: =sheet11.Section44B -> 0
F23: e | G23: 44BB | H23: 4e | I23: =Sheet11.Section44BB -> 0
F24: f | G24: 44BBA | H24: 4f | I24: =sheet11.Section44BBA -> 0
F25: g | G25: 44DA | H25: 4g | I25: =sheet12.Section44DA -> 0
E26: 4b | F26: Profit from activities covered under rule 7, 7A, 7B(1), 7B(1A) and 8 | I26: =SUM(BP_4b_ProfitRule7,BP_4b_ProfitRule7A,BP_4b_ProfitRule7B1,BP_4b_ProfitRule7B2,BP_4b_ProfitRule8) -> 0
F27: Sl no | G27: Section | I27: Amount
F28: a | G28: Profit from activities covered under rule 7 | H28: 4ba
F29: b | G29: Profit from activities covered under rule 7A | H29: 4bb
F30: c | G30: Profit from activities covered under rule 7B(1) | H30: 4bc
F31: d | G31: Profit from activities covered under rule 7B(1A) | H31: 4bd
F32: e | G32: Profit from activities covered under rule 8 | H32: 4be
E33: 5 | F33: Income credited to Profit and Loss account (included in 1) which is exempt
F34: a | G34: share of income from firm(s) | H34: 5a
F35: b | G35: Share of income from AOP/ BOI | H35: 5b
F36: c | G36: Any other exempt Income (specify nature and amount)
G37: Nature | I37: Amount
F38: 1 | H38: 1
F39: =F38+1 -> 2 | H39: =H38+1 -> 2
F40: =F39+1 -> 3 | H40: =H39+1 -> 3
G42: Total (ci + cii + ciii) | H42: 5c | I42: =SUM(Amt_1) -> 0
F43: d | G43: Total exempt income (5a+5b+5c) | H43: 5d | I43: =SUM(I34,I35,I42) -> 0
E44: 6 | F44: Balance (1– 2a – 2b – 3a - 3b – 3c - 3d -3e-3f – 4a-4b– 5d) | J44: 6 | K44: =(K5-I6-I7-I9-I10-I11-I12-I15-I16-I17-I26-I43) -> 0
E45: 7 | F45: Expenses debited to profit and loss account considered under other heads of income/related to income chargeable u/s 115BBF or u/s 115BBG
F46: a | G46: Salaries | H46: 7a
F47: b | G47: House Property | H47: 7b
F48: c | G48: Capital Gains | H48: 7c
F49: d | G49: Other Sources | H49: 7d
F50: e | G50: u/s 115BBF | H50: 7e
F51: f | G51: u/s 115BBG | H51: 7f
E52: 8a | F52: Expenses debited to profit and loss account which relate to exempt income | H52: 8a
E53: 8b | F53: Expenses debited to profit and loss account which relate to exempt income and disallowed u/s 14A (16 of Part A-OI) | H53: 8b | I53: =sheet7.AmountOfExpenditure14A -> 0
E54: 9 | F54: Total (7a + 7b + 7c + 7d + 7e +7f+ 8a+8b) | H54: 9 | I54: =SUM(I46:I53) -> 0
E55: 10 | F55: Adjusted profit or loss (6+9) | J55: 10 | K55: =SUM(K44,I54) -> 0
E56: 11 | F56: Depreciation and amortization debited to profit and loss account | J56: 11 | K56: =PL.DepreciationAmort+ManuFactureAcc_DepreciationOfFactoryMachinary -> 0
E57: 12 | F57: Depreciation allowable under Income-tax Act
F58: i | G58: Depreciation allowable under section 32(1)(ii) and 32(1)(iia) (item 6 of Schedule-DEP) | H58: 12i | I58: =IF(DEP.TotalDepreciation>0,DEP.TotalDepreciation,0) -> 0
F59: ii | G59: Depreciation allowable under section 32(1)(i) (Make your own computation refer Appendix IA of IncomeTax Rules) | H59: 12ii
F60: iii | G60: Total (12i + 12ii) | J60: 12iii | K60: =SUM(I58,I59) -> 0
E61: 13 | F61: Profit or loss after adjustment for depreciation (10 +11 - 12iii) | J61: 13 | K61: =(sheet11.AdjustedPLOthThanSpecBus+sheet11.DepreciationDebPLCosAct-sheet11.TotDeprAllowITAct) -> 0
E62: 14 | F62: Amounts debited to the profit and loss account, to the extent disallowable under section 36 (6s of Part A-OI) | H62: 14 | I62: =sheet6.TotAmtDisallUs36 -> 0
E63: 15 | F63: Amounts debited to the profit and loss account, to the extent disallowable under section 37 (7J of Part-OI) | H63: 15 | I63: =sheet6.TotAmtDisallUs37 -> 0
E64: 16 | F64: Amounts debited to the profit and loss account, to the extent disallowable under section 40 (8Aj of Part-OI) | H64: 16 | I64: =sheet7.TotAmtDisallUs40 -> 0
E65: 17 | F65: Amounts debited to the profit and loss account, to the extent disallowable under section 40A (9F of Part-OI) | H65: 17 | I65: =sheet7.TotAmtDisallUs40A -> 0
E66: 18 | F66: Any amount debited to profit and loss account of the previous year but disallowable under section 43B (11h of Part-OI) | H66: 18 | I66: =sheet7.TotAmtUs43b1 -> 0
E67: 19 | F67: Interest disallowable under section 23 of the Micro, Small and Medium Enterprises Development Act,2006 | H67: 19
E68: 20 | F68: Deemed income under section 41 | H68: 20
E69: 21 | F69: Deemed income under section 32AD/33AB/33ABA/35ABA//35ABB/40A(3A)/72A/80HHD/80-IA (21a+21b+21c+21d+21e+21f+21g+21h+21i) | H69: 21 | I69: =MAX(0,SUM(I70:I78)) -> 0
F70: a | G70: 32AD | H70: 21a
F71: b | G71: 33AB | H71: 21b
F72: c | G72: 33ABA | H72: 21c
F73: d | G73: 35ABA | H73: 21d
F74: e | G74: 35ABB | H74: 21e
F75: f | G75: 40A(3A) | H75: 21f
F76: g | G76: 72A | H76: 21g
F77: h | G77: 80HHD | H77: 21h
F78: i | G78: 80-IA | H78: 21i
E79: 22 | F79: Deemed income under section 43CA | H79: 22
E80: 23 | F80: Any other item of addition under section 28 to 44DA | H80: 23
E81: 24 | F81: Any other expense not allowable / any other income not included in profit and loss account(including income from salary, commission, bonus and interest from firms in which individual/HUF/prop. concern is a partner) | H81: 24 | I81: =SUM(I82:I86) -> 0
F82: a | G82: Salary | H82: 24a
F83: b | G83: Bonus | H83: 24b
F84: c | G84: Commission | H84: 24c
F85: d | G85: Interest | H85: 24d
F86: e | G86: Others | H86: 24e
E87: 25 | F87: Increase in profit or decrease in loss on account of ICDS adjustments and deviation in method of valuation of stock (Column 3a + 4d of Part A - OI) | J87: 25 | K87: =SUM(sheet5.ProfDeviatDueAcctMeth,sheet6.EffectOnPL) -> 0
E88: 26 | F88: Total (14 + 15 +16 +17 +18 +19 + 20 +21 + 22 + 23 + 24+25) | J88: 26 | K88: =SUM(I62:I81,K87)-sheet11.DeemIncUs3380HHD80IA -> 0
E89: 27 | F89: Deduction allowable under section 32(1)(iii) | H89: 27
E90: 28 | F90: Deduction allowable under section 32AD | H90: 28 | I90: 0
E91: 29 | F91: Amount of deduction under section 35 or 35CCC or 35CCD in excess of the amount debited to profit and loss account (item X(4) of Schedule ESR) (if amount deductible under section 35 or 35CCC or 35CCD is lower than amount debited to P&L account, it will go to item 24) | H91: 29 | I91: =ESRTOT.ExcessAmtOverDebPL -> 0
E92: 30 | F92: Any amount disallowed under section 40 in any preceding previous year but allowable during the previous year(8B of Part-OI) | H92: 30 | I92: =sheet7.AmtDisallUs40PyNowAll -> 0
E93: 31 | F93: Any amount disallowed under section 43B in any preceding previous year but allowable during the previous year(10h of Part-OI) | H93: 31 | I93: =sheet7.TotAmtUs43b -> 0
E94: 31 | F94: Deduction under section 35AC
F95: a | G95: Amount, if any, debited to profit and loss account | H95: 31a
F96: b | G96: Amount allowable as deduction | H96: 31b
F97: c | G97: Excess amount allowable as deduction (31b – 31a) | H97: 31c | I97: =IF((I96-I95)<0,0,(I96-I95)) -> 0
E98: 32 | F98: Any other amount allowable as deduction | H98: 32
E99: 33 | F99: Decrease in profit or increase in loss on account of ICDS adjustments and deviation in method of valuation of stock (Column 3b + 4e of Part A- OI) | J99: 33 | K99: =SUM(sheet5.ProfDeviatDueAcctMethb,sheet6.EffectOnPL4e) -> 0
E100: 34 | F100: Total (27+28+29+30+31+32+33) | J100: 34 | K100: =SUM(sheet11.DeductUs32_1_iii,sheet11.DeductUs32AD,sheet11.DebPLUs35ExcessAmt,sheet11.AmtDisallUs40NowAllow,sheet11.AmtDisallUs43BNowAllow,sheet11.AnyOthAmtAllDeduct,BP.DecPIncL) -> 0
E101: 35 | F101: Income (13 + 26– 34) | J101: 35 | K101: =(K61+K88-K100) -> 0
E102: 36 | F102: Profits and gains of business or profession deemed to be under -
F103: i | G103: Section 44AD (61(ii) of schedule P&L) | H103: 36i | I103: =PL_61ii -> 0
F104: ii | G104: Section 44ADA (62(ii) of schedule P&L) | H104: 36ii | I104: =PL_62ii -> 0
F105: iii | G105: Section 44AE (63(ii) of schedule P&L) | H105: 36iii | I105: =PL_63ii -> 0
F106: iv | G106: Section 44B | H106: 36iv
F107: v | G107: Section 44BB | H107: 36v
F108: vi | G108: Section 44BBA | H108: 36vi
F109: vii | G109: Section 44BBB | H109: 36vii
F110: viii | G110: Section 44D | H110: 36viii
F111: vii | G111: Section 44DA | H111: 36ix
F112: ix | G112: Chapter-XII-G | H112: x
F113: viii | G113: Total (36i to 36vii) | J113: 36viii | K113: =MAX(0,SUM(sheet11.Section44AD,sheet11.Section44AE,sheet11.Section44B,Sheet11.Section44BB,sheet11.Section44BBA,sheet12.Section44DA,sheet11.Section44ADA)) -> 0
E114: 34 | F114: Profit or loss before deduction under section 10A/10AA (32 + 33xii) | J114: 34 | K114: 0
E115: 35 | F115: Deductions under section
F116: i | G116: 10A (6 of Schedule-10A) | H116: 35i | I116: 0
F117: ii | G117: 10AA (d of Schedule-10AA) | H117: 35ii | I117: 0
F118: iii | G118: 10B (f of Schedule-10B) | H118: 35iii | I118: 0
F119: iv | G119: 10BA (f of Schedule-10BA) | H119: 35iv | I119: 0
F120: iii | G120: Total (35i + 35ii) | J120: 35iii | K120: 0
E121: 37 | F121: Net profit or loss from business or profession other than speculative and specified business (35+36viii) | J121: 37 | K121: =(sheet11.PLAftAdjDedBusOthThanSpec+sheet12.TotDeemedProfitBusUs) -> 0
E122: 38 | F122: Net Profit or loss from business or profession other than speculative business and specified business, after applying rule 7A,7B or 8, if applicable (if rule 7A, 7B or 8 is not applicable, enter same figure as in 37) (if loss take the figure to 2i of item E) (38a+ 38b + 38c + 38d + 38e + 38f) | J122: A38 | K122: =SUM(BP_Chargeable_rule7,BP_Chargeable_rule7A,BP_Chargeable_rule7B1,BP_Chargeable_rule7B1A,BP_Chargeable_rule8,BP_Chargeable_ruleOther) -> 0
F123: a | G123: Chargeable income under Rule 7 | H123: 38a
F124: b | G124: Deemed chargeable Income under Rule 7A | H124: 38b
F125: c | G125: Deemed chargeable Income under Rule 7B(1) | H125: 38c
F126: d | G126: Deemed chargeable Income under Rule 7B(1A) | H126: 38d
F127: e | G127: Deemed chargeable Income under Rule 8 | H127: 38e
F128: f | G128: Income other than Rule7, 7A, 7B & 8 (Item No. 37) | H128: 38f | I128: =sheet12.NetPLAftAdjBusOthThanSpec -> 0
E129: 39 | F129: Balance of income deemed to be from Agriculture, after applying Rule 7, 7A, 7B(1), 7B(1A) and Rule 8 for aggregation of income purposes as per Finance Act. | J129: 39 | K129: =MAX(0,(BP_4b_TotalProfitFromActivates-SUM(I123:I127))) -> 0
D130: B | E130: Computation of income from speculative business
E131: 40 | F131: Net profit or loss from speculative business as per profit or loss account (Item No.2a) | J131: 40 | K131: =(sheet10.NetPLFromSpecBus) -> 0
E132: 41 | F132: Additions in accordance with section 28 to 44DA | J132: 41
E133: 42 | F133: Deductions in accordance with section 28 to 44DA | J133: 42
E134: 43 | F134: Income from speculative business(40+41-42) (if loss, take the figure to 6xv of schedule CFL) | J134: B43 | K134: =(sheet12.NetPLFrmSpecBus+sheet12.AdditionUs28to44DA-sheet12.DeductUs28to44DA) -> 0
D135: C | E135: Computation of income from specified business under section 35AD
E136: 44 | F136: Net profit or loss from specified business as per profit or loss account | J136: 44 | K136: =(sheet10.NetPLFromSpecifiedBus) -> 0
E137: 45 | F137: Additions in accordance with section 28 to 44DA | J137: 45
E138: 46 | F138: Deductions in accordance with section 28 to 44DA (other than deduction under section,- (i) 35AD, (ii)32 or 35 on which deduction u/s 35AD is claimed) | J138: 46
E139: 47 | F139: Profit or loss from specified business (44+45-46) | J139: 47 | K139: =(sheet12.NetPLFrmSpecifiedBus+sheet12.AddSec2844DA-sheet12.DedSec2844DA) -> 0
E140: 48 | F140: Deductions in accordance with section 35AD(1) | J140: 48 | K140: 0
F141: a | G141: 35AD(1) | J141: 46a
F142: b | G142: 35AD(1A) | J142: 46b
E143: 49 | F143: Income from Specified Business (47-48) (if loss, take the figure to 7xv of schedule CFL) | J143: C49 | K143: =(sheet12.ProfLossFromSpecifiedBus-sheet12.DeductUs35AD) -> 0
E144: 50 | F144: Relevant clause of sub-section (5) of section 35AD which covers the specified business (to be selected from drop down menu)
F145: 1 | G145: (Select) | N145: =MID(EI.Drpdn,1,4) -> (Sel
F146: 2 | G146: (Select) | N146: =MID(EI.Drpdn,1,4) -> (Sel
N147: (Sel
D148: D | E148: Income chargeable under the head ‘Profits and gains from Business or profession’ (A38+B43+C49) | J148: D | K148: =MAX(0,sheet12.AdjustedPLFrmSpecifiedBus)+MAX(0,sheet12.AdjustedPLFrmSpecuBus)+sheet12.NetPLBusOthThanSpec7A7B7C -> 0
D149: Please include the income of the specified persons referred to in Schedule SPI while computing the income under this head
D154: E | E154: Intra head set off of business loss of current year
P155: TempBusLoss
D156: Type of business income | G156: Income of current year (Fill this column only if figure is zero or positive) (1) | I156: Business loss set off (2) | K156: Business income remaining after set off (3) = (1)-(2) | O156: Normal Bus loss | P156: 0
D157: (i) Loss to be set off (Fill this row only if figure is negative) | I157: =ABS(MIN(0,sheet12.NetPLBusOthThanSpec7A7B7C)) -> 0 | O157: After Speculative loss Set off | P157: =(TempBussLoss-sheet12.IncOfCurYrUnderThatHeada) -> 0
D158: (ii) Income from speculative business | G158: =MAX(0,sheet12.AdjustedPLFrmSpecuBus) -> 0 | I158: =MIN(sheet12.LossSetOffOnBusLoss,sheet12.IncOfCurYrUnderThatHeada) -> 0 | K158: =sheet12.IncOfCurYrUnderThatHeada-sheet12.BusLossSetoffa -> 0 | O158: After Specified loss Setoff | P158: =(TempAfterSpecSetoff-sheet12.IncOfCurYrUnderThatHeadb) -> 0
D159: (iii) Income from specified business | G159: =MAX(0,sheet12.AdjustedPLFrmSpecifiedBus) -> 0 | I159: =MIN((sheet12.LossSetOffOnBusLoss-sheet12.BusLossSetoffa),G159) -> 0 | K159: =sheet12.IncOfCurYrUnderThatHeadb-sheet12.BusLossSetoffb -> 0
D160: (iv) Total loss set off (ii + iii) | I160: =SUM(I158:I159) -> 0
D161: (v) Loss remaining after set off (i – iv) | I161: =MAX(sheet12.LossSetOffOnBusLoss-sheet12.TotLossSetOffOnBus) -> 0
D162: Note : Please include the income of the specified persons referred to in Schedule SPI while computing the income under this head

Sheet DPM - DOA (hidden)
P2: =F12+F15-F10-F11-F14 -> 0 | Q2: =G12+G15-G10-G11-G14 -> 0 | R2: =H12+H15-H10-H11-H14 -> 0 | S2: =I12+I15-I10-I11-I14 -> 0
C3: Schedule DPM | E3: Depreciation on Plant and Machinery (Other than assets on which full capital expenditure is allowable as deduction under any other section) | P3: =G38+G41-G36-G37-G40 -> 0 | Q3: 0 | R3: 0 | S3: 0 | T3: 0 | U3: 0
C4: DEPRECIATION ON PLANT AND MACHINERY | D4: 1 | E4: Block of assets | F4: Plant and machinery
D5: 2 | E5: Rate (%) | F5: 15 | G5: 30 | H5: 40 | I5: 45
F6: (i) | G6: (ii) | H6: (iii) | I6: (iv) | AS6: 50 | AT6: 60 | AU6: 80 | AV6: 100
D7: 3 | E7: Written down value on the first day of previous year | T7: 15 | U7: 30 | V7: 40 | W7: 50 | X7: 60 | Y7: 80 | Z7: 100 | AS7: (iv) | AT7: (v) | AU7: (vi) | AV7: (vii)
D8: 3(b) | E8: Written down value on the first day of previous year, of those block of assets which were eligible for depreciation @ 50%, 60% or 80% as per the old Table
D9: 3a | E9: Amount as adjusted on account of opting for taxation under section 115BAC
D10: 3b | E10: Adjusted Written down value on the first day of previous year (3) + (3a) | G10: =0+DPM30.WDVFirstDayBAC -> 0 | H10: =0+DPM40.WDVFirstDayBAC -> 0 | I10: 0
D11: 4 | E11: Additions for a period of 180 days or more in the previous year | S11: Total Counted Value at 16 DPM | T11: =(F12+F15-F7-F11-F14-F26) -> 0 | U11: =(G12+G15-G7-G11-G14-G26) -> 0 | V11: =(H12+H15-H7-H11-H14-H26) -> 0 | W11: =(AS13+AS16-AS11-AS12-AS15-AS27) -> 0 | X11: =(AT13+AT16-AT11-AT12-AT15-AT27) -> 0 | Y11: =(AU13+AU16-AU11-AU12-AU15-AU27) -> 0 | Z11: =(AV13+AV16-AV11-AV12-AV15-AV27) -> 0
D12: 5 | E12: Consideration or other realization during the previous year out of 3 or 4
D13: 6 | E13: Amount on which depreciation at full rate to be allowed (3 + 4 -5) (Enter 0, if result is negative) | F13: =MAX(0,DPM15.WDVFirstDay+DPM15.AdditionsGrThan180Days-DPM15.RealizationTotalPeriod) -> 0 | G13: =MAX(0,DPM30.WDVFirstDay+DPM30.AdditionsGrThan180Days-DPM30.RealizationTotalPeriod) -> 0 | H13: =MAX(0,DPM40.WDVFirstDay+DPM40.AdditionsGrThan180Days-DPM40.RealizationTotalPeriod) -> 0 | I13: =MAX(0,DPM45.WDVFirstDay3+DPM45.AdditionsGrThan180Days-DPM45.RealizationTotalPeriod) -> 0
D14: 7 | E14: Additions for a period of less than 180 days in the previous year | AS14: =MAX(0,AS11+AS12-AS13) -> 0 | AT14: =MAX(0,AT11+AT12-AT13) -> 0 | AU14: =MAX(0,AU11+AU12-AU13) -> 0 | AV14: =MAX(0,AV11+AV12-AV13) -> 0
D15: 8 | E15: Consideration or other realizations during the year out of 7 | T15: B5 | U15: B10 | V15: B100 | W15: F10 | X15: I25 | Y15: S20
D16: 9 | E16: Amount on which depreciation at half rate to be allowed (7 – 8) (Enter 0, if result is negative) | F16: =MAX(0,F14-F15+MIN(0,F7+F11-F12)) -> 0 | G16: =MAX(0,G14-G15+MIN(0,G7+G11-G12)) -> 0 | H16: =MAX(0,H14-H15+MIN(0,H7+H11-H12)) -> 0 | I16: =MAX(0,I14-I15+MIN(0,I7+I11-I12)) -> 0 | S16: Total Counted Value at 16 DOA | T16: =(G38+G41-G36-G37-G40-G51) -> 0 | U16: 0 | V16: 0 | W16: 0 | X16: 0 | Y16: 0
D17: 10 | E17: Depreciation on 6 at full rate | F17: =ROUND(DPM15.FullRateDeprAmt*DPM15.RATE/100,0) -> 0 | G17: =ROUND(DPM30.FullRateDeprAmt*DPM30.RATE/100,0) -> 0 | H17: =ROUND(DPM40.FullRateDeprAmt*DPM40.RATE/100,0) -> 0 | I17: =ROUND(DPM45.FullRateDeprAmt*DPM45.RATE/100,0) -> 0 | AS17: =MAX(0,AS15-AS16+MIN(0,AS11+AS12-AS13)) -> 0 | AT17: =MAX(0,AT15-AT16+MIN(0,AT11+AT12-AT13)) -> 0 | AU17: =MAX(0,AU15-AU16+MIN(0,AU11+AU12-AU13)) -> 0 | AV17: =MAX(0,AV15-AV16+MIN(0,AV11+AV12-AV13)) -> 0
D18: 11 | E18: Depreciation on 9 at half rate | F18: =ROUND(DPM15.HalfRateDeprAmt*DPM15.RATE/200,0) -> 0 | G18: =ROUND(DPM30.HalfRateDeprAmt*DPM30.RATE/200,0) -> 0 | H18: =ROUND(DPM40.HalfRateDeprAmt*DPM40.RATE/200,0) -> 0 | I18: =ROUND(DPM45.HalfRateDeprAmt*DPM45.RATE/200,0) -> 0 | AS18: =ROUND(DPM50.FullRateDeprAmt*DPM50.RATE/100,0) -> 0 | AT18: =ROUND(DPM60.FullRateDeprAmt*DPM60.RATE/100,0) -> 0 | AU18: =ROUND(DPM80.FullRateDeprAmt*DPM80.RATE/100,0) -> 0 | AV18: =ROUND(DPM100.FullRateDeprAmt*DPM100.RATE/100,0) -> 0
D19: 12 | E19: Additional depreciation, if any, on 4 | AS19: =ROUND(DPM50.HalfRateDeprAmt*DPM50.RATE/200,0) -> 0 | AT19: =ROUND(DPM60.HalfRateDeprAmt*DPM60.RATE/200,0) -> 0 | AU19: =ROUND(DPM80.HalfRateDeprAmt*DPM80.RATE/200,0) -> 0 | AV19: =ROUND(DPM100.HalfRateDeprAmt*DPM100.RATE/200,0) -> 0
D20: 13 | E20: Additional depreciation, if any, on 7
D21: 14 | E21: Additional depreciation relating to immediately preceding year' on asset put to use for less than 180 days
D22: 15 | E22: Total depreciation (10+11+12+13+14) | F22: =DPM15.DepreciationAtHalfRate + DPM15.DepreciationAtFullRate + DPM15.AddlnDeprDuringYearAdditions + DPM15.AddlnDeprOnGT180DayAdditions + DPM15.AddlnDeprlessthan180days -> 0 | G22: =DPM30.DepreciationAtHalfRate + DPM30.DepreciationAtFullRate + DPM30.AddlnDeprDuringYearAdditions + DPM30.AddlnDeprOnGT180DayAdditions + DPM30.AddlnDeprlessthan180days -> 0 | H22: =DPM40.DepreciationAtHalfRate + DPM40.DepreciationAtFullRate + DPM40.AddlnDeprDuringYearAdditions + DPM40.AddlnDeprOnGT180DayAdditions + DPM40.AddlnDeprlessthan180days -> 0 | I22: =DPM45.DepreciationAtHalfRate + DPM45.DepreciationAtFullRate + DPM45.AddlnDeprDuringYearAdditions + DPM45.AddlnDeprOnGT180DayAdditions + DPM45.AddlnDeprlessthan180days -> 0
D23: 16 | E23: Depreciation disallowed under section 38(2) of the I.T. Act (out of column 15)
D24: 17 | E24: Net aggregate depreciation (15-16) | F24: =MAX(0,F22-F23) -> 0 | G24: =MAX(0,G22-G23) -> 0 | H24: =MAX(0,H22-H23) -> 0 | I24: =MAX(0,I22-I23) -> 0
D25: 18 | E25: Proportionate aggregate depreciation allowable in the event of succession, amalgamation, demerger etc. (out of column 17)
D26: 19 | E26: Expenditure incurred in connection with transfer of asset/ assets | T26: 15 | U26: 30 | V26: 40 | W26: 50 | X26: 60 | Y26: 80 | Z26: 100 | AS26: =DPM50.DepreciationAtHalfRate + DPM50.DepreciationAtFullRate + DPM50.AddlnDeprDuringYearAdditions + DPM50.AddlnDeprOnGT180DayAdditions+DPM50.AddlnDeprlessthan180days -> 0 | AT26: =DPM60.DepreciationAtHalfRate + DPM60.DepreciationAtFullRate + DPM60.AddlnDeprDuringYearAdditions + DPM60.AddlnDeprOnGT180DayAdditions+DPM60.AddlnDeprlessthan180days -> 0 | AU26: =DPM80.DepreciationAtHalfRate + DPM80.DepreciationAtFullRate + DPM80.AddlnDeprDuringYearAdditions + DPM80.AddlnDeprOnGT180DayAdditions+DPM80.AddlnDeprlessthan180days -> 0 | AV26: =DPM100.DepreciationAtHalfRate + DPM100.DepreciationAtFullRate + DPM100.AddlnDeprDuringYearAdditions + DPM100.AddlnDeprOnGT180DayAdditions+DPM100.AddlnDeprlessthan180days -> 0
D27: 20 | E27: Capital gains/ loss under section 50 (5 + 8 -3-4 -7 -19) (Enter negative only if block ceases to exist) | S27: Val Enter By User At DPM16 | T27: 123123 | U27: 1233 | V27: 13123
D28: 21 | E28: Written down value on the last day of previous year (6+ 9 -15) (enter 0 if result is negative) | F28: =MAX(DPM15.WDVFirstDay+DPM15.AdditionsGrThan180Days -DPM15.RealizationTotalPeriod + DPM15.AdditionsLessThan180Days - DPM15.RealizationPeriodDuringYear - DPM15.TotalDepreciation,0) -> 0 | G28: =MAX(DPM30.WDVFirstDay+DPM30.AdditionsGrThan180Days -DPM30.RealizationTotalPeriod + DPM30.AdditionsLessThan180Days - DPM30.RealizationPeriodDuringYear - DPM30.TotalDepreciation,0) -> 0 | H28: =MAX(DPM40.WDVFirstDay+DPM40.AdditionsGrThan180Days -DPM40.RealizationTotalPeriod + DPM40.AdditionsLessThan180Days - DPM40.RealizationPeriodDuringYear - DPM40.TotalDepreciation,0) -> 0 | I28: =MAX(DPM45.WDVFirstDay+DPM45.AdditionsGrThan180Days -DPM45.RealizationTotalPeriod + DPM45.AdditionsLessThan180Days - DPM45.RealizationPeriodDuringYear - DPM45.TotalDepreciation,0) -> 0
E29: Block Ceases to Exist. Select Y / N | F29: Y | G29: N | H29: N | I29: N | J29: N | K29: N | L29: N | AS29: =MAX(DPM50.WDVFirstDay+DPM50.AdditionsGrThan180Days -DPM50.RealizationTotalPeriod + DPM50.AdditionsLessThan180Days - DPM50.RealizationPeriodDuringYear - DPM50.TotalDepreciation,0) -> 0 | AT29: =MAX(DPM60.WDVFirstDay+DPM60.AdditionsGrThan180Days -DPM60.RealizationTotalPeriod + DPM60.AdditionsLessThan180Days - DPM60.RealizationPeriodDuringYear - DPM60.TotalDepreciation,0) -> 0 | AU29: =MAX(DPM80.WDVFirstDay+DPM80.AdditionsGrThan180Days -DPM80.RealizationTotalPeriod + DPM80.AdditionsLessThan180Days - DPM80.RealizationPeriodDuringYear - DPM80.TotalDepreciation,0) -> 0 | AV29: =MAX(DPM100.WDVFirstDay+DPM100.AdditionsGrThan180Days -DPM100.RealizationTotalPeriod + DPM100.AdditionsLessThan180Days - DPM100.RealizationPeriodDuringYear - DPM100.TotalDepreciation,0) -> 0
C31: Schedule DOA | E31: Depreciation on other assets(Other than assets on which full capital expenditure is allowable as deduction) | T31: B5 | U31: B10 | V31: B100 | W31: F10 | X31: I25 | Y31: S20
C32: DEPRECIATION ON OTHER ASSETS | D32: 1 | E32: Block of assets | F32: Land | G32: Building(not including land) | J32: Furniture and fittings | K32: Intangible assets | L32: Ships | S32: Val Enter By User at DOA 16 | T32: 30282 | U32: 2323 | V32: 555 | W32: 12312313 | X32: 23232323
D34: 2 | E34: Rate (%) | F34: Nil | G34: 5 | H34: 10 | I34: 40 | J34: 10 | K34: 25 | L34: 20
F35: (i) | G35: (ii) | H35: (iii) | I35: (iv) | J35: (v) | K35: (vi) | L35: (vii)
D36: 3 | E36: Written down value on the first day of previous year
D37: 4 | E37: Additions for a period of 180 days or more in the previous year
D38: 5 | E38: Consideration or other realization during the previous year out of 3 or 4
D39: 6 | E39: Amount on which depreciation at full rate to be allowed (3 + 4 -5) (Enter 0, if result is negative) | G39: =MAX(0,G36+G37-G38) -> 0 | H39: 0 | I39: 0 | J39: 0 | K39: 0 | L39: 0
D40: 7 | E40: Additions for a period of less than 180 days in the previous year
D41: 8 | E41: Consideration or other realizations during the year out of 7
D42: 9 | E42: Amount on which depreciation at half rate to be allowed (7-8) (Enter 0, if result is negative) | G42: =MAX(0,G40-G41+MIN(0,G36+G37-G38)) -> 0 | H42: 0 | I42: 0 | J42: 0 | K42: 0 | L42: 0
D43: 10 | E43: Depreciation on 6 at full rate | G43: =ROUND(DAOB5.FullRateDeprAmt*DAOB5.RATE/100,0) -> 0 | H43: =ROUND(DAOB10.FullRateDeprAmt*DAOB10.RATE/100,0) -> 0 | I43: =ROUND(DAOB100.FullRateDeprAmt*DAOB100.RATE/100,0) -> 0 | J43: =ROUND(DAOF10.FullRateDeprAmt*DAOF10.RATE/100,0) -> 0 | K43: =ROUND(DAOI25.FullRateDeprAmt*DAOI25.RATE/100,0) -> 0 | L43: =ROUND(DAOS20.FullRateDeprAmt*DAOS20.RATE/100,0) -> 0
D44: 11 | E44: Depreciation on 9 at half rate | G44: =ROUND(DAOB5.HalfRateDeprAmt*DAOB5.RATE/200,0) -> 0 | H44: =ROUND(DAOB10.HalfRateDeprAmt*DAOB10.RATE/200,0) -> 0 | I44: =ROUND(DAOB100.HalfRateDeprAmt*DAOB100.RATE/200,0) -> 0 | J44: =ROUND(DAOF10.HalfRateDeprAmt*DAOF10.RATE/200,0) -> 0 | K44: =ROUND(DAOI25.HalfRateDeprAmt*DAOI25.RATE/200,0) -> 0 | L44: =ROUND(DAOS20.HalfRateDeprAmt*DAOS20.RATE/200,0) -> 0
D45: 12 | E45: Additional depreciation, if any, on 4 | G45: 0 | H45: 0 | L45: 0
D46: 13 | E46: Additional depreciation, if any, on 7 | G46: 0 | H46: 0 | L46: 0
D47: 12 | E47: Total depreciation (10+11) | G47: =DAOB5.DepreciationAtHalfRate + DAOB5.DepreciationAtFullRate + DAOB5.AddlnDeprDuringYearAdditions + DAOB5.AddlnDeprOnGT180DayAdditions -> 0 | H47: =DAOB10.DepreciationAtHalfRate + DAOB10.DepreciationAtFullRate + DAOB10.AddlnDeprDuringYearAdditions + DAOB10.AddlnDeprOnGT180DayAdditions -> 0 | I47: =DAOB100.DepreciationAtHalfRate + DAOB100.DepreciationAtFullRate + DAOB100.AddlnDeprDuringYearAdditions + DAOB100.AddlnDeprOnGT180DayAdditions -> 0 | J47: =DAOF10.DepreciationAtHalfRate + DAOF10.DepreciationAtFullRate + DAOF10.AddlnDeprDuringYearAdditions + DAOF10.AddlnDeprOnGT180DayAdditions -> 0 | K47: =DAOI25.DepreciationAtHalfRate + DAOI25.DepreciationAtFullRate + DAOI25.AddlnDeprDuringYearAdditions + DAOI25.AddlnDeprOnGT180DayAdditions -> 0 | L47: =DAOS20.DepreciationAtHalfRate + DAOS20.DepreciationAtFullRate + DAOS20.AddlnDeprDuringYearAdditions + DAOS20.AddlnDeprOnGT180DayAdditions -> 0
D48: 13 | E48: Depreciation disallowed under section 38(2) of the I.T. Act (out of column 12)
D49: 14 | E49: Net aggregate depreciation (12-13) | G49: =MAX(0,DAOB5.TotalDepreciation-DAOB5.DepUnderSec38) -> 0 | H49: =MAX(0,DAOB10.TotalDepreciation-DAOB10.DepUnderSec38) -> 0 | I49: =MAX(0,DAOB100.TotalDepreciation-DAOB100.DepUnderSec38) -> 0 | J49: =MAX(0,DAOF10.TotalDepreciation-DAOF10.DepUnderSec38) -> 0 | K49: =MAX(0,DAOI25.TotalDepreciation-DAOI25.DepUnderSec38) -> 0 | L49: =MAX(0,DAOS20.TotalDepreciation-DAOS20.DepUnderSec38) -> 0
D50: 15 | E50: Proportionate aggregate depreciation allowable in the event of succession, amalgamation, demerger etc. (out of column 14)
D51: 16 | E51: Expenditure incurred in connection with transfer of asset/ assets
D52: 17 | E52: Capital gains/ loss under section 50 (5 + 8 -3-4 -7 -16) (Enter negative only if block ceases to exist)
D53: 18 | E53: Written down value on the last day of previous year (6+ 9 -12) (enter 0 if result is negative) | F53: =MAX(0,F36) -> 0 | G53: =MAX(DAOB5.WDVFirstDay+DAOB5.AdditionsGrThan180Days -DAOB5.RealizationTotalPeriod + DAOB5.AdditionsLessThan180Days - DAOB5.RealizationPeriodDuringYear - DAOB5.TotalDepreciation,0) -> 0 | H53: =MAX(DAOB10.WDVFirstDay+DAOB10.AdditionsGrThan180Days -DAOB10.RealizationTotalPeriod + DAOB10.AdditionsLessThan180Days - DAOB10.RealizationPeriodDuringYear - DAOB10.TotalDepreciation,0) -> 0 | I53: =MAX(DAOB100.WDVFirstDay+DAOB100.AdditionsGrThan180Days -DAOB100.RealizationTotalPeriod + DAOB100.AdditionsLessThan180Days - DAOB100.RealizationPeriodDuringYear - DAOB100.TotalDepreciation,0) -> 0 | J53: =MAX(DAOF10.WDVFirstDay+DAOF10.AdditionsGrThan180Days -DAOF10.RealizationTotalPeriod + DAOF10.AdditionsLessThan180Days - DAOF10.RealizationPeriodDuringYear - DAOF10.TotalDepreciation,0) -> 0 | K53: =MAX(DAOI25.WDVFirstDay+DAOI25.AdditionsGrThan180Days -DAOI25.RealizationTotalPeriod + DAOI25.AdditionsLessThan180Days - DAOI25.RealizationPeriodDuringYear - DAOI25.TotalDepreciation,0) -> 0 | L53: =MAX(DAOS20.WDVFirstDay+DAOS20.AdditionsGrThan180Days -DAOS20.RealizationTotalPeriod + DAOS20.AdditionsLessThan180Days - DAOS20.RealizationPeriodDuringYear - DAOS20.TotalDepreciation,0) -> 0

Sheet DEP_DCG (hidden)
C3: Sch DEP | E3: Summary of depreciation on assets (Other than assets on which full capital expenditure is allowable as deduction under any other section)
C4: SUMMARY OF DEPRECIATION ON ASSETS | D4: 1 | E4: Plant and machinery
E5: a | F5: Block entitled for depreciation @ 15 per cent ( Schedule DPM - 17i or 18i as applicable) | G5: 1a | H5: =IF(DPM15.ProAgrdep>0,DPM15.ProAgrdep,DPM15.NetAgrdep) -> 0
E6: b | F6: Block entitled for depreciation @ 30 per cent ( Schedule DPM - 17ii or 18ii as applicable) | G6: 1b | H6: =IF(DPM30.ProAgrdep>0,DPM30.ProAgrdep,DPM30.NetAgrdep) -> 0
E7: c | F7: Block entitled for depreciation @ 40 per cent ( Schedule DPM - 17iii or 18iii as applicable) | G7: 1c | H7: =IF(DPM40.ProAgrdep>0,DPM40.ProAgrdep,DPM40.NetAgrdep) -> 0
E8: d | F8: Block entitled for depreciation @ 50 per cent ( Schedule DPM - 15 iv) | G8: 1d | H8: =DPM50.TotalDepreciation -> 0
E9: e | F9: Block entitled for depreciation @ 60 per cent ( Schedule DPM - 15 v) | G9: 1e | H9: =DPM60.TotalDepreciation -> 0
E10: f | F10: Block entitled for depreciation @ 80 per cent ( Schedule DPM – 15 vi) | G10: 1f | H10: =DPM80.TotalDepreciation -> 0
E11: g | F11: Block entitled for depreciation @ 100 per cent ( Schedule DPM - 15 vii) | G11: 1g | H11: =DPM100.TotalDepreciation -> 0
E12: d | F12: Block entitled for depreciation @ 45 per cent ( Schedule DPM - 17iv or 18iv as applicable) | G12: 1d | H12: =IF(DPM45.ProAgrdep>0,DPM45.ProAgrdep,DPM45.NetAgrdep) -> 0
E13: e | F13: Total depreciation on plant and machinery ( 1a + 1b + 1c +1d) | I13: 1e | J13: =SUM(DEPP.DeprBlockTot15Percent,DEPP.DeprBlockTot30Percent,DEPP.DeprBlockTot40Percent,DEPP.DeprBlockTot45Percent) -> 0
D14: 2 | E14: Building (not including land)
E15: a | F15: Block entitled for depreciation @ 5 per cent (Schedule DOA- 14ii or 15ii as applicable) | G15: 2a | H15: =IF(DAOB5.ProAgrdep>0,DAOB5.ProAgrdep,DAOB5.NetAgrdep) -> 0
E16: b | F16: Block entitled for depreciation @ 10 per cent (Schedule DOA- 14iii or 15iii as applicable) | G16: 2b | H16: =IF(DAOB10.ProAgrdep>0,DAOB10.ProAgrdep,DAOB10.NetAgrdep) -> 0
E17: c | F17: Block entitled for depreciation @ 40 per cent (Schedule DOA- 14iv or 15iv as applicable) | G17: 2c | H17: =IF(DAOB100.ProAgrdep>0,DAOB100.ProAgrdep,DAOB100.NetAgrdep) -> 0
E18: d | F18: Total depreciation on building (2a+2b+2c) | I18: 2d | J18: =SUM(H15:H17) -> 0
D19: 3 | E19: Furniture and fittings (Schedule DOA- 14v or 15v as applicable) | I19: 3 | J19: =IF(DAOF10.ProAgrdep>0,DAOF10.ProAgrdep,DAOF10.NetAgrdep) -> 0
D20: 4 | E20: Intangible assets (Schedule DOA- 14vi or 15vi as applicable) | I20: 4 | J20: =IF(DAOI25.ProAgrdep>0,DAOI25.ProAgrdep,DAOI25.NetAgrdep) -> 0
D21: 5 | E21: Ships (Schedule DOA- 14vii or 15vii as applicable) | I21: 5 | J21: =IF(DAOS20.ProAgrdep>0,DAOS20.ProAgrdep,DAOS20.NetAgrdep) -> 0
D22: 6 | E22: Total depreciation ( 1e+2d+3+4+5) | I22: 6 | J22: =MAX(0,SUM(J13,J18,J19,J20,J21)) -> 0
C24: Sch DCG | E24: Deemed Capital Gains on sale of depreciable assets
D25: 1 | E25: Plant and machinery
E26: a | F26: Block entitled for depreciation @ 15 per cent (Schedule DPM - 20i) | G26: 1a | H26: =DPM15.CapGainUs50 -> 0
E27: b | F27: Block entitled for depreciation @ 30 per cent (Schedule DPM – 20ii) | G27: 1b | H27: =DPM30.CapGainUs50 -> 0
E28: c | F28: Block entitled for depreciation @ 40 per cent (Schedule DPM - 20iii) | G28: 1c | H28: =DPM40.CapGainUs50 -> 0
E29: d | F29: Block entitled for depreciation @ 50 per cent (Schedule DPM - 17iv) | G29: 1d | H29: =DPM50.CapGainUs50 -> 0
E30: e | F30: Block entitled for depreciation @ 60 per cent (Schedule DPM – 17v) | G30: 1e | H30: =DPM60.CapGainUs50 -> 0
E31: f | F31: Block entitled for depreciation @ 80 per cent (Schedule DPM – 17vi) | G31: 1f | H31: =DPM80.CapGainUs50 -> 0
E32: g | F32: Block entitled for depreciation @ 100 per cent (Schedule DPM – 17vii) | G32: 1g | H32: =DPM100.CapGainUs50 -> 0
E33: d | F33: Block entitled for depreciation @ 45 per cent (Schedule DPM - 20iv) | G33: 1d | H33: =DPM45.CapGainUs50 -> 0
E34: e | F34: Total ( 1a +1b + 1c +1d) | I34: 1e | J34: =SUM(DCGP.DeprBlockTot15Percent,DCGP.DeprBlockTot30Percent,DCGP.DeprBlockTot40Percent,DCGP.DeprBlockTot45Percent) -> 0
D35: 2 | E35: Building (not including land)
E36: a | F36: Block entitled for depreciation @ 5 per cent (Schedule DOA- 17ii) | G36: 2a | H36: =DAOB5.CapGainUs50 -> 0
E37: b | F37: Block entitled for depreciation @ 10 per cent (Schedule DOA- 17iii) | G37: 2b | H37: =DAOB10.CapGainUs50 -> 0
E38: c | F38: Block entitled for depreciation @ 40 per cent (Schedule DOA- 17iv) | G38: 2c | H38: =DAOB100.CapGainUs50 -> 0
E39: d | F39: Total ( 2a + 2b + 2c) | I39: 2d | J39: =SUM(H36:H38) -> 0
D40: 3 | E40: Furniture and fittings ( Schedule DOA- 17v) | I40: 3 | J40: =DAOF10.CapGainUs50 -> 0
D41: 4 | E41: Intangible assets (Schedule DOA- 17vi) | I41: 4 | J41: =DAOI25.CapGainUs50 -> 0
D42: 5 | E42: Ships (Schedule DOA- 17vii) | I42: 5 | J42: =DAOS20.CapGainUs50 -> 0
D43: 6 | E43: Total ( 1e+2d+3+4+5) | I43: 6 | J43: =SUM(J34,J39:J42) -> 0

Sheet ESR (hidden)
C3: Schedule ESR | E3: Expenditure on Scientific Research etc. ( Deduction under section 35 or 35CCC or 35CCD)
C4: Sl No | D4: Expenditure of the nature referred to in section (1) | E4: Amount, if any, debited to profit and loss account (2) | F4: Amount of deduction allowable (3) | G4: Amount of deduction in excess of the amount debited to profit and loss account (4) = (3) - (2)
C5: i | D5: 35(1)(i) | G5: =IF((F5-E5) <0,0,(F5-E5)) -> 0
C6: ii | D6: 35(1)(ii) | G6: =IF((F6-E6) <0,0,(F6-E6)) -> 0
C7: iii | D7: 35(1)(iia) | G7: 0
C8: iv | D8: 35(1)(iii) | G8: 0
C9: v | D9: 35(1)(iv) | G9: 0
C10: vi | D10: 35(2AA) | G10: 0
C11: vii | D11: 35(2AB) | G11: 0
C12: viii | D12: 35CCC | G12: 0
C13: ix | D13: 35CCD | G13: 0
C14: x | D14: Total | E14: =SUM(E5:E13) -> 0 | F14: =SUM(F5:F13) -> 0 | G14: =SUM(G5:G13) -> 0
C16: Note: | D16: In case any deduction is claimed under sections 35(1)(ii) or 35(1)(iia) or 35(1)(iii) or 35(2AA), please provide the details as per Schedule RA.

Sheet CG
AC1: Block count STCG | AE1: 20
AC2: Number of blocks | AE2: 1
C3: Schedule CG | G3: Capital Gains | AC3: Block count LTCG | AE3: 31
D4: A | E4: Short-term Capital Gains (STCG) (Sub-items 4 and 5 are not applicable for residents) | AC4: Number of blocks | AE4: 1
E5: 1 | F5: From sale of land or building or both (fill up details separately for each property) (in case of co-ownership, enter your share of capital gain) | Y5: Check Sheet Filled | AB5: STCG Breakup
F6: Date of purchase/ acquisition | AC6: Number of blocks | AE6: 1
F7: Date of sale/transfer
F8: a | G8: i | H8: Full value of consideration received/receivable | P8: ai | Q8: 0 | S8: =Q8 -> 0 | Y8: =IF(STCG.Aai_FullConsideration1<>0,1,0) -> 0 | Z8: Sheet count | AB8: A1e | AC8: =STCG.A1e_CapgainonAssets -> 0
G9: ii | H9: Value of property as per stamp valuation authority | P9: aii | Q9: 0 | Y9: =IF(STCG.Aaii_PropertyValuation1<>0,1,0) -> 0 | Z9: =COUNTIF(CG_RANGE,"=1") -> 0 | AB9: A2c | AC9: =STCG.A20ic_CapgainonAssets -> 0 | AP9: =IF(MID(Sheet1.115H,1,1)="N","NO","YES") -> NO
G10: iii | H10: Full value of consideration adopted as per section 50C for the purpose of Capital Gains [in case (aii) does not exceed 1.10 times (ai), take this figure as (ai), or else take (aii)] | P10: aiii | Q10: =IF(Q9>(1.1*Q8),Q9,Q8) -> 0 | Y10: =IF(STCG.Aaiii_FullConsiderationFiftyC1<>0,1,0) -> 0 | AA10: 0 | AB10: A3ie | AC10: =STCG.A2ie_CapgainonAssets -> 0
F11: b | G11: Deductions under section 48 | AB11: A3iie | AC11: =STCG.A2iie_CapgainonAssets -> 0
C12: CAPITAL GAINS | G12: i | H12: Cost of acquisition without indexation | P12: bi | Q12: 0 | Y12: =IF(STCG.Abi_AquisitCost1<>0,1,0) -> 0 | AB12: A4a | AC12: =STCG.A3a_NRItaxSTTPaid -> 0
G13: ii | H13: Cost of Improvement without indexation | P13: bii | Q13: 0 | Y13: =IF(STCG.Abii_ImproveCost1<>0,1,0) -> 0 | AB13: A4b | AC13: =STCG.A3b_NRItaxSTTNotPaid -> 0
G14: iii | H14: Expenditure wholly and exclusively in connection with transfer | P14: biii | Q14: 0 | Y14: =IF(STCG.Abiii_ExpOnTrans1<>0,1,0) -> 0 | AB14: A5e | AC14: =STCG.A4e_CapgainonAssets -> 0
G15: iv | H15: Total (bi + bii + biii) | P15: biv | Q15: =SUM(Q12:Q14) -> 0 | AB15: A6g | AC15: =STCG.A5e_CapgainonAssets -> 0
F16: c | G16: Balance (aiii – biv) | P16: c | Q16: =(Q10-Q15) -> 0 | AB16: A7 | AC16: =STCG.A7_AmtDeemed -> 0
F17: d | G17: Deduction under section 54B(Specify details in item Dbelow) | P17: d | Q17: 0
F18: e | G18: Short-term Capital Gains on Immovable property (1c - 1d) | R18: A1e | S18: =IF(Q16<0,Q16,IF(Q17>Q16,0,Q16-Q17)) -> 0
F19: f | G19: In case of transfer of immovable property please furnish following details (See Note)
G20: Sl. No. | H20: Name of Buyer | J20: PAN of Buyer | L20: Aadhaar Number of Buyer(s) | M20: Percentage share | N20: Amount | O20: Address of Property | P20: State Code | Q20: Pin Code | R20: Country Code | S20: Zip Code
G21: 1 | P21: (Select) | R21: (Select)
G22: =G21+1 -> 2 | P22: (Select) | R22: (Select)
G23: =G22+1 -> 3 | P23: (Select) | R23: (Select)
Z25: A1e | AA25: 0
F26: Note 1 : Furnishing of PAN is mandatory, if the tax is deduced under section 194-IA. Note 2 : In case of more than one buyer, please indicate the respective percentage share and amount.
E27: 2 | F27: From Slump sale
F28: ai | G28: Fair market value as per Rule 11UAE(2) | P28: 2ai
F29: aii | G29: Fair market value as per Rule 11UAE(3) | P29: 2aii
F30: aiii | G30: Full value of consideration (higher of ai or aii) | P30: 2aiii | Q30: =MAX(Q28,Q29) -> 0 | Y30: =IF(STCG.A20ia_FullConsideration<>0,1,0) -> 0
F31: b | G31: Net worth of the under taking or division | P31: 2b | Y31: =IF(STCG.A20ib_NetWorthOfDivision<>0,1,0) -> 0 | AJ31: neg15
F32: c | G32: Short term capital gains from slump sale (2aiii-2b) | R32: A2c | S32: =(STCG.A20ia_FullConsideration-STCG.A20ib_NetWorthOfDivision) -> 0
E33: 2 | F33: From sale of equity share or unit of equity oriented Mutual Fund (MF) or unit of a business trust on which STT is paid under section 111A(For others) Sec 115AD(1)(b)(ii) proviso for FII
F34: ia | G34: Full value of consideration | P34: ia | Q34: 0 | Y34: =IF(STCG.A2ia_FullConsideration<>0,1,0) -> 0 | AC34: Incomes | AG34: Total Loss in STCG
F35: ib | G35: Deductions under section 48 | AB35: STCG 15% | AC35: 111A | AD35: =SUM(STCG.A2ie_CapgainonAssets,STCG.A3a_NRItaxSTTPaid,-STCG_DTAA_A3ie,-STCG_DTAA_A4a) -> 0
G36: i | H36: Cost of acquisition without indexation | P36: ibi | Q36: 0 | Y36: =IF(STCG.A2ibi_AquisitCost<>0,1,0) -> 0 | AH36: =AD35+AD37 -> 0
G37: ii | H37: Cost of Improvement without indexation | P37: ibii | Q37: 0 | Y37: =IF(STCG.A2ibii_ImproveCost<>0,1,0) -> 0 | AC37: 115AD (1)(b)(ii) | AD37: =SUM(STCG.A2iie_CapgainonAssets,-STCG_DTAA_A3iie) -> 0
G38: iii | H38: Expenditure wholly and exclusively in connection with transfer | P38: ibiii | Q38: 0 | Y38: =IF(STCG.A2ibiii_ExpOnTrans<>0,1,0) -> 0 | AC38: PTI | AD38: =SUM(STCG.A8_PassThroughIncome15,-STCG_DTAA_A8a) -> 0
G39: iv | H39: Total ( ibi + ibii + ibiii) | P39: ibiv | Q39: =SUM(Q36:Q38) -> 0
F40: ic | G40: Balance (ia – ibiv) | P40: ic | Q40: =(STCG.A2ia_FullConsideration-STCG.A2ibiv_TotalDedn) -> 0
F41: id | G41: Loss to be disallowed, under section 94(7) or 94(8) for example if asset bought/acquired within 3 months prior to record date and dividend/income/bonus units are received, then loss arising out of sale of such asset to be ignored (Enter positive values only) | P41: id | Q41: 0 | Y41: =IF(STCG.A2id_LossSec94of7Or94of8<>0,1,0) -> 0 | AB41: LTCG10% | AC41: 112 proviso | AD41: =SUM(LTCG.B3e_CapgainonAssets,-LTCG_DTAA_B4ie) -> 0
F42: ie | G42: Short-term capital gain on equity share or equity oriented MF or unit of a business trust (STT paid) u/s 111A [for others] (3ic +3id) | R42: A2ie | S42: =SUM(Q40,Q41) -> 0 | AC42: 112(1)c(iii) | AD42: =SUM(LTCG.Bi5e_CapgainonAssets,-LTCG_DTAA_B7ie) -> 0
F43: (ii) From sale of equity share or unit of equity oriented Mutual Fund (MF) or unit of a business trust on which STT is paid u/s 115AD(1)(b)(ii) [for FII] | AC43: 115AC(1) | AD43: =SUM(LTCG.Bii5e_CapgainonAssets,-LTCG_DTAA_B7iie) -> 0 | AE43: PTI_112 | AF43: =SUM(LTCG.B12_PassThroughIncome10_112A,-LTCG_DTAA_B12a1) -> 0
F44: iia | G44: Full value of consideration | P44: iia | Y44: =IF(STCG.A2iia_FullConsideration<>0,1,0) -> 0 | AC44: 115ACA(1) | AD44: =SUM(LTCG.Bii3e_CapgainonAssets,-LTCG_DTAA_B4iie) -> 0 | AE44: PTI | AF44: =SUM(LTCG.B12_PassThroughIncome10,-LTCG_DTAA_B12a2) -> 0
F45: iib | G45: Deductions under section 48 | AC45: 115AD(iii) | AD45: =SUM(LTCG.Biii5e_CapgainonAssets,-LTCG_DTAA_B7iiie) -> 0 | AE45: 115AD(iii)_Proviso | AF45: =SUM(LTCG.5.LTCG_AssetsB8Above,-LTCG_DTAA_B8c) -> 0
G46: i | H46: Cost of acquisition without indexation | P46: iibi | Y46: =IF(STCG.A2iibi_AquisitCost<>0,1,0) -> 0 | AC46: 115E(b) | AD46: =SUM(LTCG.B6c_BalonSpeciAsset,-LTCG_DTAA_B9c) -> 0 | AE46: 112A | AF46: =SUM(LTCG.5.LTCG_OnSaleCapitalAssets,-LTCG_DTAA_B5c) -> 0
G47: ii | H47: Cost of Improvement without indexation | P47: iibii | Y47: =IF(STCG.A2iibii_ImproveCost<>0,1,0) -> 0
G48: iii | H48: Expenditure wholly and exclusively in connection with transfer | P48: iibiii | Y48: =IF(STCG.A2iibiii_ExpOnTrans<>0,1,0) -> 0
G49: iv | H49: Total ( i + ii + iii) | P49: iibiv | Q49: =SUM(Q46:Q48) -> 0
F50: iic | G50: Balance (3a – 3biv) | P50: iic | Q50: =(STCG.A2iia_FullConsideration-STCG.A2iibiv_TotalDedn) -> 0 | AB50: LTCG 20% | AC50: 112 | AD50: =SUM(LTCG.B1e_CapgainonAssets,LTCG.B02e_CapgainonAssets,LTCG.B2e_CapgainonAssets,LTCG.B4e_LTCGOnUnlistedSecurity,LTCG.B7e_CapgainonAssets,LTCG.B8_ExemptionGrandTotal,LTCG.B9_AmtDeemed,-LTCG_DTAA_B1e,-LTCG_DTAA_B2e,-LTCG_DTAA_B3e,-LTCG_DTAA_B6c,-LTCG_DTAA_B10e,-LTCG_DTAA_B11) -> 0
F51: iid | G51: Loss to be disallowed u/s 94(7) or 94(8)- for example if asset bought/acquired within 3 months prior to record date and dividend/income/bonus units are received, then loss arising out of sale of such asset to be ignored (Enter positive value only) | P51: iid | Y51: =IF(STCG.A2iid_LossSec94of7Or94of8<>0,1,0) -> 0 | AC51: 115Ea | AD51: =SUM(LTCG.B6f_BalOtherthanSpecAsset,-LTCG_DTAA_B9f) -> 0
F52: iie | G52: Short-term capital gain on equity share or equity oriented MF or unit of a business trust (STT paid) u/s 115AD(1)(b)(ii) [for FII] (2iic +2iid) | R52: A2iie | S52: =(STCG.A2iic_BalanceCG+STCG.A2iid_LossSec94of7Or94of8) -> 0 | AC52: PTI | AD52: =SUM(LTCG.B12_PassThroughIncome20,-LTCG_DTAA_B12b) -> 0
E53: 3 | F53: For NON-RESIDENT, not being an FII- from sale of shares or debentures of an Indian company (to be computed with foreign exchange adjustment under first proviso to section 48)
F54: a | G54: STCG on transactions on which securities transaction tax (STT) is paid | R54: A3a | AB54: STCG 30% | AC54: 115AD | AD54: =SUM(STCG.A4e_CapgainonAssets,-STCG_DTAA_A5e) -> 0
F55: b | G55: STCG on transactions on which securities transaction tax (STT) is not paid | R55: A3b | AC55: PTI | AD55: =SUM(STCG.A8_PassThroughIncome30,-STCG_DTAA_A8b) -> 0
E56: 4 | F56: For NON-RESIDENTS- from sale of securities (other than those at A3 above) by an FII as per section 115AD
F57: a | G57: i | H57: In case securities sold include shares of a company other than quoted shares, enter the following details
H58: a | I58: Full value of consideration received/receivable in respect of unquoted shares | P58: aia | Y58: =IF(STCG.A4aia_FullConsideration<>0,1,0) -> 0 | AB58: Applicable rate | AC58: AR | AD58: =SUM(STCG.A1e_CapgainonAssets,STCG.A20ic_CapgainonAssets,STCG.A3b_NRItaxSTTNotPaid,STCG.A5e_CapgainonAssets,STCG.A7_AmtDeemed,-STCG_DTAA_A1e,-STCG_DTAA_A2c,-STCG_DTAA_A4b,-Stcg_DTAA_A6f,-STCG_DTAA_A7) -> 0
H59: b | I59: Fair market value of unquoted shares determined in the prescribed manner | P59: aib | Y59: =IF(STCG.A4aib_FullMarketvalue<>0,1,0) -> 0 | AC59: PTI | AD59: =SUM(STCG.A8_PassThroughIncome_ApplicableRate,STCG_DTAA_A8c) -> 0
H60: c | I60: Full value of consideration in respect of unquoted shares adopted as per section 50CA for the purpose of Capital Gains (higher of a or b) | P60: aic | Q60: =MAX(STCG.A4aia_FullConsideration,STCG.A4aib_FullMarketvalue) -> 0 | Y60: =IF(STCG.A4aic_FullConsideration50CA<>0,1,0) -> 0
G61: ii | H61: Full value of consideration in respect of securities other than unquoted shares | P61: aii | Y61: =IF(STCG.A4aii_FullConsiderationS<>0,1,0) -> 0
G62: iii | H62: Total (ic + ii) | P62: aiii | Q62: =SUM(STCG.A4aic_FullConsideration50CA,STCG.A4aii_FullConsiderationS) -> 0
F63: b | G63: Deductions under section 48
G64: i | H64: Cost of acquisition without indexation | P64: bi
G65: ii | H65: Cost of improvement without indexation | P65: bii
G66: iii | H66: Expenditure wholly and exclusively in connection with transfer | P66: biii
G67: iv | H67: Total (bi + bii + biii) | P67: biv | Q67: =SUM(Q64:Q66) -> 0
F68: c | G68: Balance (aiii – biv) | P68: c | Q68: =(STCG.A4a_FullConsideration-Q67) -> 0
F69: d | G69: Loss to be disallowed u/s 94(7) or 94(8)- for example if security bought/acquired within 3 months prior to record date and dividend/income/bonus units are received, then loss arising out of sale of such security to be ignored (Enter positive value only) | P69: d
F70: e | G70: Short-term capital gain on sale of securities (other than those at A2 above) by an FII (c +d) | R70: A4e | S70: =(Q68+Q69) -> 0
E71: 5 | F71: From sale of assets other than at A1 or A2 or A3 or A4 above
F72: a | G72: i | H72: In case securities sold include shares of a company other than quoted shares, enter the following details
H73: a | I73: Full value of consideration received/receivable in respect of unquoted shares | P73: aia | Q73: 0 | Y73: =IF(STCG.A5aia_FullConsideration<>0,1,0) -> 0
H74: b | I74: Fair market value of unquoted shares determined in the prescribed manner | P74: aib | Q74: 0 | Y74: =IF(STCG.A5aib_Fullmarketvalue<>0,1,0) -> 0
H75: c | I75: Full value of consideration in respect of unquoted shares adopted as per section 50CA for the purpose of Capital Gains (higher of a or b) | P75: aic | Q75: =MAX(STCG.A5aia_FullConsideration,STCG.A5aib_Fullmarketvalue) -> 0 | Y75: =IF(STCG.A5aic_FullConsideration50CA<>0,1,0) -> 0
G76: ii | H76: Full value of consideration in respect of securities other than unquoted shares | P76: aii | Q76: 0 | Y76: =IF(STCG.A5aii_FullConsideration<>0,1,0) -> 0
G77: iii | H77: Total (ic + ii) | P77: aiii | Q77: =SUM(STCG.A5aic_FullConsideration50CA,STCG.A5aii_FullConsideration) -> 0
F78: a | G78: Full value of consideration | P78: 6a | Y78: =IF(STCG.A5a_FullConsideration<>0,1,0) -> 0
F79: b | G79: Deductions under section 48
G80: i | H80: Cost of acquisition without indexation | P80: bi | Q80: 0 | Y80: =IF(STCG.A5bi_AquisitCost<>0,1,0) -> 0
G81: ii | H81: Cost of Improvement without indexation | P81: bii | Q81: 0 | Y81: =IF(STCG.A5bii_ImproveCost<>0,1,0) -> 0
G82: iii | H82: Expenditure wholly and exclusively in connection with transfer | P82: biii | Q82: 0 | Y82: =IF(STCG.A5biii_ExpOnTrans<>0,1,0) -> 0
G83: iv | H83: Total (bi + bii + biii) | P83: biv | Q83: =SUM(Q80:Q82) -> 0
F84: c | G84: Balance (aiii – biv) | P84: c | Q84: =(STCG.A5a_FullConsideration-STCG.A5biv_TotalDedn) -> 0
F85: d | G85: In case of asset (security/unit)loss to be disallowed u/s 94(7) or 94(8)- for example if asset bought/acquired within 3 months prior to record date and dividend/income/bonus units are received, then loss arising out of sale of such asset to be under (Enter positive value only) | P85: d | Q85: 0 | Y85: =IF(STCG.A5d_LossSec94of7Or94of8<>0,1,0) -> 0 | AC85: Section Wise
F86: e | G86: Deemed short term capital gains on depreciable assets (6 of schedule- DCG) | P86: e | Q86: =DCG.TotalDepreciation -> 0
F87: fi | G87: Deduction under section 54D (Specify details in item Dbelow) | P87: fi | Y87: =IF(STCG.A5ei_ExemptionAmount<>0,1,0) -> 0 | AB87: 54
F88: fii | G88: Deduction under section 54G (Specify details in item Dbelow) | P88: fii | Y88: =IF(STCG.A5eii_ExemptionAmount<>0,1,0) -> 0 | AB88: 54B
F89: fiii | G89: Deduction under section 54GA (Specify details in item Dbelow) | P89: fiii | Y89: =IF(STCG.A5eiii_ExemptionAmount<>0,1,0) -> 0 | AB89: 54D
F90: f | G90: Deduction under section 54D/G/GA | P90: f | Q90: =SUM(Q87:Q89) -> 0 | AB90: 54EC
F91: e | G91: STCG on assets other than at A1 or A2 or A3 or A4 above (c + d ) | R91: A5e | S91: =IF(STCG.A5c_BalanceCG+STCG.A5d_LossSec94of7Or94of8+STCG.A8_DeemedStcgOnAssets<0,STCG.A5c_BalanceCG+STCG.A5d_LossSec94of7Or94of8+STCG.A8_DeemedStcgOnAssets,MAX(0,STCG.A5c_BalanceCG+STCG.A5d_LossSec94of7Or94of8+STCG.A8_DeemedStcgOnAssets-STCG.A5e_ExemptionGrandTotal)) -> 0 | AB91: 54F
E92: 6 | F92: Amount deemed to be short-term capital gains
E93: a | F93: Whether any amount of unutilized capital gain on asset transferred during the previous years shown below was deposited in the Capital Gains Accounts Scheme within due date for that year? If yes, then provide the details below | P93: Not Applicable
G94: Sl.No. | H94: Previous year in which asset transferred | I94: Section under which deduction claimed in that year | J94: New asset acquired/constructed | L94: Amount not used for new asset or remained unutilized in Capital gains account (X)
J95: Year in which asset acquired/constructed | K95: Amount utilised out of Capital Gains account
F96: i | G96: 1
E98: b | F98: Amount deemed to be short term capital gains, other than at ‘a’ | P98: A6 | Q98: 0
F99: Total amount deemed to be short term capital gains (aXi + aXii + b) | R99: A6 | S99: =SUM(STCG.A7_AmtNotUsed_1,STCG.A6_AmountDeemedOth) -> 0 | Y99: =IF(STCG.A7_AmtDeemed<>0,1,0) -> 0
F100: Deemed short term capital gains on depreciable assets (6 of schedule- DCG) | R100: A8 | S100: 0 | Y100: =IF(STCG.A7_AmtDeemed<>0,1,0) -> 0
E101: 7 | F101: Pass Through Income/ Loss in the nature of Short Term Capital Gain, (Fill up schedule PTI) (A7a+ A7b + A7c) | R101: A7 | S101: =SUM(STCG.A8_PassThroughIncome15,STCG.A8_PassThroughIncome15Oth1A,STCG.A8_PassThroughIncome30,STCG.A8_PassThroughIncome_ApplicableRate) -> 0 | Y101: =IF(STCG.A7_AmtDeemed<>0,1,0) -> 0
F102: a | G102: Pass Through Income/ Loss in the nature of Short Term Capital Gain, chargeable @ 15% | P102: 7a | Q102: 0
F103: a2 | G103: Pass Through Income/ Loss in the nature of Short Term Capital Gain, chargeable @ 15% other than Section 111A | P103: 8a2
F104: b | G104: Pass Through Income / Loss in the nature of Short Term Capital Gain, chargeable @ 30% | P104: 7b | Q104: 0
F105: c | G105: Pass Through Income / Loss in the nature of Short Term Capital Gain, chargeable at applicable rates | P105: 7c | Q105: 0
E106: 8 | F106: Amount of STCG included in A1-A7 but claimed as not chargeable to tax or chargeable at special rates in India as per DTAA
G107: Sl. No. (1) | H107: Amount of income (2) | I107: Item No. A1 to A7 above in which included (3) | J107: Country name, code (4) | K107: Article of DTAA (5) | L107: Rate as per Treaty (enter NIL, if not chargeable) (6) | M107: Whether Tax Residency Certificate obtained? (7) | N107: Section of I.T. Act (8) | O107: Rate as per I.T. Act (9) | P107: Applicable rate [lower of (6) or (9)] (10) | Z107: Section Code | AA107: Section Amount | AB107: STCG section Amt | AD107: Total Amount of each section
G108: =1 -> 1 | I108: (Select) | J108: (Select) | P108: 0 | V108: =IFERROR(VLOOKUP(I108,STCG_Dropdown_Lookup,2,0),0) -> 0 | Z108: =V108 -> 0 | AA108: =H108 -> 0 | AB108: =SUMIF(STCG_SectionCodes,Z108,STCG_SectionValues) -> 0 | AD108: A1e | AE108: =IF(MID(sheet1.ResidentialStatus1,1,3)="NRI",SUMIFS(Section_AmountStcgA8,STCG.A8_CertiStatus,"=Yes",Section_CodeStcgA8,AD108),SUMIF(Section_CodeStcgA8,AD108,Section_AmountStcgA8)) -> 0 | AF108: A2c | AG108: =IF(MID(sheet1.ResidentialStatus1,1,3)="NRI",SUMIFS(Section_AmountStcgA8,STCG.A8_CertiStatus,"=Yes",Section_CodeStcgA8,AF108),SUMIF(Section_CodeStcgA8,AF108,Section_AmountStcgA8)) -> 0 | AH108: A3ie | AI108: =IF(MID(sheet1.ResidentialStatus1,1,3)="NRI",SUMIFS(Section_AmountStcgA8,STCG.A8_CertiStatus,"=Yes",Section_CodeStcgA8,AH108),SUMIF(Section_CodeStcgA8,AH108,Section_AmountStcgA8)) -> 0 | AJ108: A3iie | AK108: =IF(MID(sheet1.ResidentialStatus1,1,3)="NRI",SUMIFS(Section_AmountStcgA8,STCG.A8_CertiStatus,"=Yes",Section_CodeStcgA8,AJ108),SUMIF(Section_CodeStcgA8,AJ108,Section_AmountStcgA8)) -> 0 | AL108: A8a | AM108: =IF(MID(sheet1.ResidentialStatus1,1,3)="NRI",SUMIFS(Section_AmountStcgA8,STCG.A8_CertiStatus,"=Yes",Section_CodeStcgA8,AL108),SUMIF(Section_CodeStcgA8,AL108,Section_AmountStcgA8)) -> 0 | AN108: A8b | AO108: =IF(MID(sheet1.ResidentialStatus1,1,3)="NRI",SUMIFS(Section_AmountStcgA8,STCG.A8_CertiStatus,"=Yes",Section_CodeStcgA8,AN108),SUMIF(Section_CodeStcgA8,AN108,Section_AmountStcgA8)) -> 0 | AP108: A8c | AQ108: =IF(MID(sheet1.ResidentialStatus1,1,3)="NRI",SUMIFS(Section_AmountStcgA8,STCG.A8_CertiStatus,"=Yes",Section_CodeStcgA8,AP108),SUMIF(Section_CodeStcgA8,AP108,Section_AmountStcgA8)) -> 0 | AS108: =SUM(STCG.A8_AmtI) -> 0
G109: =G108+1 -> 2 | I109: (Select) | J109: (Select) | P109: 0 | V109: =IFERROR(VLOOKUP(I109,STCG_Dropdown_Lookup,2,0),0) -> 0 | Z109: =V109 -> 0 | AA109: =H109 -> 0 | AB109: =SUMIF(STCG_SectionCodes,Z109,STCG_SectionValues) -> 0 | AD109: A4a | AE109: =IF(MID(sheet1.ResidentialStatus1,1,3)="NRI",SUMIFS(Section_AmountStcgA8,STCG.A8_CertiStatus,"=Yes",Section_CodeStcgA8,AD109),SUMIF(Section_CodeStcgA8,AD109,Section_AmountStcgA8)) -> 0 | AF109: A4b | AG109: =IF(MID(sheet1.ResidentialStatus1,1,3)="NRI",SUMIFS(Section_AmountStcgA8,STCG.A8_CertiStatus,"=Yes",Section_CodeStcgA8,AF109),SUMIF(Section_CodeStcgA8,AF109,Section_AmountStcgA8)) -> 0 | AH109: A4e | AI109: =IF(MID(sheet1.ResidentialStatus1,1,3)="NRI",SUMIFS(Section_AmountStcgA8,STCG.A8_CertiStatus,"=Yes",Section_CodeStcgA8,AH109),SUMIF(Section_CodeStcgA8,AH109,Section_AmountStcgA8)) -> 0 | AJ109: A5e | AK109: =IF(MID(sheet1.ResidentialStatus1,1,3)="NRI",SUMIFS(Section_AmountStcgA8,STCG.A8_CertiStatus,"=Yes",Section_CodeStcgA8,AJ109),SUMIF(Section_CodeStcgA8,AJ109,Section_AmountStcgA8)) -> 0 | AL109: A7 | AM109: =IF(MID(sheet1.ResidentialStatus1,1,3)="NRI",SUMIFS(Section_AmountStcgA8,STCG.A8_CertiStatus,"=Yes",Section_CodeStcgA8,AL109),SUMIF(Section_CodeStcgA8,AL109,Section_AmountStcgA8)) -> 0 | AN109: A6g | AO109: =IF(MID(sheet1.ResidentialStatus1,1,3)="NRI",SUMIFS(Section_AmountStcgA8,STCG.A8_CertiStatus,"=Yes",Section_CodeStcgA8,AN109),SUMIF(Section_CodeStcgA8,AN109,Section_AmountStcgA8)) -> 0
G113: a | H113: Total amount of STCG claimed as not chargeable to tax in India as per DTAA | R113: A8a | S113: =IF(MID(sheet1.ResidentialStatus1,1,3)="NRI",SUM(SUMIFS(STCG.A8_AmtI,STCG.A8_CertiStatus,"Yes",STCG.A8_ApplRate,{"","0"})),SUM(SUMIFS(STCG.A8_AmtI,STCG.A8_ApplRate,{"","0"}))) -> 0
G114: b | H114: Total amount of STCG claimed as chargeable to tax at special rates in India as per DTAA | R114: A8b | S114: =IF(MID(sheet1.ResidentialStatus1,1,3)="NRI",SUMIFS(STCG.A8_AmtI,STCG.A8_CertiStatus,"Yes",STCG.A8_ApplRate,"<>""",STCG.A8_ApplRate,"<>0"),SUM(SUMIFS(STCG.A8_AmtI,STCG.A8_ApplRate,"<>""",STCG.A8_ApplRate,"<>0"))) -> 0
E115: 8 | F115: Amount of STCG included in A1-A7 but not chargeable to tax or chargeable at special rates in India as per DTAA
G116: Sl. | H116: Country name, code | I116: Article of DTAA | J116: Whether Tax Residency Certificate obtained? | K116: Item no. A1 to A7 above in which included | L116: Amount of STCG
G117: 1 | H117: (Select) | J117: (Select)
G118: =G117+1 -> 2 | H118: (Select) | J118: (Select)
G120: III | H120: Total amount of STCG not chargeable to tax as per DTAA | R120: A8 | Y120: =IF(STCG.A8_StcgDTAA<>0,1,0) -> 0
E121: 9 | F121: Amount deemed to be short term capital gains under sections 54B/54D/54G/54GA | AB121: 54G
F122: i | G122: Amount deemed to be short term capital gains under sections 54B | P122: i | AB122: 54GA
F123: ii | G123: Amount deemed to be short term capital gains under sections 54D | P123: ii | AB123: 54GB
F124: iii | G124: Amount deemed to be short term capital gains under sections 54G | P124: iii | AB124: 115F
F125: iv | G125: Amount deemed to be short term capital gains under sections 54GA | P125: iv
F126: Total Amount deemed to be short term capital gains under sections 54B/54D/54G/54GA | R126: A7 | S126: =SUM(Q122:Q125) -> 0
E127: 9 | F127: Deemed short term capital gains on depreciable assets (6 of schedule- DCG) | R127: A9 | S127: =DCG.TotalDepreciation -> 0
E128: 9 | F128: Total short term capital gain (A1e+ A2e+ A3a+ A3b+ A4e+ A5e+A6 +A7-A8a) | R128: A9 | S128: =IF(MID(sheet1.ResidentialStatus1,1,2)="NR",STCG.A1e_CapgainonAssets+STCG.A20ic_CapgainonAssets+STCG.A2ie_CapgainonAssets+STCG.A2iie_CapgainonAssets+STCG.A5e_CapgainonAssets+STCG.A4e_CapgainonAssets+STCG.A3a_NRItaxSTTPaid+STCG.A3b_NRItaxSTTNotPaid+S99+STCG.A8_PassThroughIncome-STCG.A8_StcgDTAA,STCG.A1e_CapgainonAssets+STCG.A20ic_CapgainonAssets+STCG.A2ie_CapgainonAssets+STCG.A4e_CapgainonAssets+STCG.A3a_NRItaxSTTPaid+STCG.A3b_NRItaxSTTNotPaid+STCG.A2iie_CapgainonAssets+STCG.A5e_CapgainonAssets+S99+STCG.A8_PassThroughIncome-STCG.A8_StcgDTAA) -> 0
D129: B | E129: Long-term capital gain (LTCG) (Items 6 , 7 , 8 & 9 are not applicable for residents) | AA129: LTCG Break Up
D130: Long-term Capital Gains | E130: 1 | F130: From sale of land or building or both (fill up details separately for each property)(in case of co-ownership, enter your share of Capital Gain) | AA130: B1e | AB130: =LTCG.B1e_CapgainonAssets -> 0
F131: Date of purchase/ acquisition | W131: =VLOOKUP(MAX(2001,VALUE(IF(LTCG.B_AcqDate1="",2001,VALUE(MID(LTCG.B_AcqDate1,7,4))))),CostInflationtbl,2) -> 100
F132: Date of sale/transfer | W132: =VLOOKUP(VALUE(IF(LTCG.B_SaleTrfDate1="",2001,VALUE(MID(LTCG.B_SaleTrfDate1,7,4)))),CostInflationtbl,2) -> 100
F133: a | G133: i | H133: Full value of consideration received/receivable | P133: ai | Q133: 0 | Y133: =IF(LTCG.Bai_FullConsideration1<>0,1,0) -> 0 | AA133: B2e | AB133: =LTCG.B02e_CapgainonAssets -> 0
G134: ii | H134: Value of property as per stamp valuation authority | P134: aii | Q134: 0 | Y134: =IF(LTCG.Baii_PropertyValuation1<>0,1,0) -> 0 | AA134: B3e | AB134: =LTCG.B2e_CapgainonAssets -> 0
G135: iii | H135: Full value of consideration adopted as per section 50C for the purpose of Capital Gains [in case (aii) does not exceed 1.10 times (ai), take this figure as (ai), or else take (aii)] | P135: aiii | Q135: =IF(Q134>(1.1*Q133),Q134,Q133) -> 0 | Y135: =IF(LTCG.Baiii_FullConsiderationFiftyC1<>0,1,0) -> 0 | Z135: 0 | AA135: Bi4e | AB135: =LTCG.B3e_CapgainonAssets -> 0
F136: b | G136: Deductions under section 48 | AA136: B4iie | AB136: =LTCG.Bii3e_CapgainonAssets -> 0
G137: i | H137: Cost of acquisition | P137: i | Q137: 0
G138: biia | H138: Cost of acquisition with indexation | P138: iia | Q138: =ROUND(Q137*VLOOKUP(VALUE(IF(Q132="",2001,IF(VALUE(MID(Q132,4,2))>3,VALUE(MID(Q132,7,4)),VALUE(MID(Q132,7,4))-1))),CostInflationtbl,2)/VLOOKUP(MAX(2001,VALUE(IF(Q131="",2001,IF(VALUE(MID(Q131,4,2))>3,VALUE(MID(Q131,7,4)),VALUE(MID(Q131,7,4))-1)))),CostInflationtbl,2),0) -> 0 | Y138: =IF(LTCG.Bbi_AquisitCost1<>0,1,0) -> 0 | AA138: B5c | AB138: 0
G139: biib | H139: Total Cost of Improvement with indexation | P139: iib | Q139: =SUM(LTCG.Bbii_ImproveCost1) -> 0
G140: Sl. No. | H140: Cost of improvement | J140: Year of Improvement | L140: Cost of Improvement with indexation
G141: 1 | L141: =ROUND(IF(H141="",0,H141*VLOOKUP(VALUE(IF($Q$132="",2001,IF(VALUE(MID($Q$132,4,2))>3,VALUE(MID($Q$132,7,4)),VALUE(MID($Q$132,7,4))-1))),CostInflationtbl,2)/VLOOKUP(MAX(2001,VALUE(IF(_xlfn.CONCAT("01/04/",MID(J141,1,4))="",2001,VALUE(MID(_xlfn.CONCAT("01/04/",MID(J141,1,4)),7,4))))),CostInflationtbl,2)),0) -> 0
G142: =G141+1 -> 2 | L142: =ROUND(IF(H142="",0,H142*VLOOKUP(VALUE(IF($Q$132="",2001,IF(VALUE(MID($Q$132,4,2))>3,VALUE(MID($Q$132,7,4)),VALUE(MID($Q$132,7,4))-1))),CostInflationtbl,2)/VLOOKUP(MAX(2001,VALUE(IF(_xlfn.CONCAT("01/04/",MID(J142,1,4))="",2001,VALUE(MID(_xlfn.CONCAT("01/04/",MID(J142,1,4)),7,4))))),CostInflationtbl,2)),0) -> 0
G144: biii | H144: Expenditure wholly and exclusively in connection with transfer | P144: biii | Q144: 0 | Y144: =IF(LTCG.Bbiii_ExpOnTrans1<>0,1,0) -> 0 | AA144: B6ie | AB144: =LTCG.Bi5e_CapgainonAssets -> 0
G145: biv | H145: Total (biia + biib + biii) | P145: biv | Q145: =Q138+Q139+Q144 -> 0 | AA145: B6iie | AB145: =LTCG.Bii5e_CapgainonAssets -> 0
F146: c | G146: Balance (aiii – biv) | P146: 1c | Q146: =Q135-Q145 -> 0 | AA146: B6iiie | AB146: =LTCG.Biii5e_CapgainonAssets -> 0
F147: di | G147: Deduction under section 54 (Specify details in item D below) | P147: di | Y147: =IF(LTCG.Bdi_ExemptionAmount1<>0,1,0) -> 0 | AA147: B7c | AB147: =LTCG.B6c_BalonSpeciAsset -> 0
F148: dii | G148: Deduction under section 54B (Specify details in item D below) | P148: dii | Y148: =IF(LTCG.Bdii_ExemptionAmount1<>0,1,0) -> 0 | AA148: B7f | AB148: =LTCG.B6f_BalOtherthanSpecAsset -> 0
F149: diii | G149: Deduction under section 54EC (Specify details in item D below) | P149: diii | Y149: =IF(LTCG.Bdiv_ExemptionAmount1<>0,1,0) -> 0 | AA149: B9 | AB149: =LTCG.B9_AmtDeemed -> 0
F150: dv | G150: Deduction under section 54EE (Specify details in item D below) | P150: dv
F151: div | G151: Deduction under section 54F (Specify details in item D below) | P151: div | Y151: =IF(LTCG.Bdv_ExemptionAmount1<>0,1,0) -> 0
F152: dv | G152: Deduction under section 54GB (Specify details in item D below) | P152: dv | Y152: =IF(Q152<>0,1,0) -> 0
F153: d | G153: Total Deduction under section 54/54B/54EC/54F (Specify details in item D below) | P153: 1d | Q153: =SUM(Q147:Q151) -> 0
F154: e | G154: Long-term Capital Gains on Immovable property (1c - 1d) | R154: B1e | S154: =IF(Q146<0,Q146,IF(Q153>Q146,0,Q146-Q153)) -> 0
F155: f | G155: In case of transfer of immovable property please furnish the following details (See Note)
G156: Sl. No. | H156: Name of Buyer | J156: PAN of Buyer | L156: Aadhaar Number of Buyer(s) | M156: Percentage share | N156: Amount | O156: Address of Property | P156: State Code | Q156: Pin Code | R156: Country Code | S156: Zip Code
G157: 1 | P157: (Select) | R157: (Select)
G158: =G157+1 -> 2 | P158: (Select) | R158: (Select)
G159: =G158+1 -> 3 | P159: (Select) | R159: (Select)
Z161: B1e | AA161: 0
F162: Note 1 : Furnishing of PAN is mandatory, if the tax is deduced under section 194-IA. Note 2 : In case of more than one buyer, please indicate the respective percentage share and amount.
E163: 2 | F163: From Slump sale
F164: ai | G164: Fair market value as per Rule 11UAE(2) | P164: 2ai
F165: aii | G165: Fair market value as per Rule 11UAE(3) | P165: 2aii
F166: aiii | G166: Full value of consideration (higher of ai or aii) | P166: 2aiii | Q166: =MAX(LTCG.B02a_FullConsiderationUAEi,LTCG.B02a_FullConsiderationUAEii) -> 0 | Y166: =IF(Q166<>0,1,0) -> 0
F167: b | G167: Net worth of the under taking or division | P167: 2b | Y167: =IF(Q167<>0,1,0) -> 0
F168: c | G168: Balance (2aiii - 2b) | P168: 2c | Q168: =(LTCG.B02a_FullConsideration-LTCG.B02b_NetWorthOfDivision) -> 0
F169: di | G169: Deduction u/s 54EC (Specify details in item D below) | P169: di | Y169: =IF(Q169<>0,1,0) -> 0
F170: dii | G170: Deduction u/s 54EE (Specify details in item D below) | P170: dii | Y170: =IF(Q170<>0,1,0) -> 0
F171: dii | G171: Deduction u/s 54F (Specify details in item D below) | P171: dii | Y171: =IF(Q171<>0,1,0) -> 0
F172: d | G172: Total Deduction u/s 54EC/54F | P172: 2d | Q172: =SUM(Q169:Q171) -> 0
F173: e | G173: Long term capital gains from slump sale (2c-2d) | R173: B2e | S173: =IF(LTCG.B02c_SlumpBalance<0,LTCG.B02c_SlumpBalance,IF(LTCG.B02d_ExemptionGrandTotal>LTCG.B02c_SlumpBalance,0,LTCG.B02c_SlumpBalance-LTCG.B02d_ExemptionGrandTotal)) -> 0
E174: 2 | F174: From sale of bonds or debenture (other than capital indexed bonds issued by Government)
F175: a | G175: Full value of consideration | P175: a | Q175: 0 | Y175: =IF(Q175<>0,1,0) -> 0
F176: b | G176: Deductions under section 48
G177: i | H177: Cost of acquisition without indexation | P177: bi | Q177: 0 | Y177: =IF(Q177<>0,1,0) -> 0
G178: ii | H178: Cost of improvement without indexation | P178: bii | Q178: 0 | Y178: =IF(Q178<>0,1,0) -> 0
G179: iii | H179: Expenditure wholly and exclusively in connection with transfer | P179: biii | Q179: 0 | Y179: =IF(Q179<>0,1,0) -> 0
G180: iv | H180: Total (bi + bii +biii) | P180: biv | Q180: =SUM(Q177:Q179) -> 0
F181: c | G181: Balance (a – biv) | P181: c | Q181: =(LTCG.B2a_FullConsideration-LTCG.B2biv_TotalDedn) -> 0 | Y181: =IF(Q181<>0,1,0) -> 0
F182: di | G182: Deduction under sections 54EC (Specify details in item D below) | P182: di | Y182: =IF(Q182<>0,1,0) -> 0
F183: di | G183: Deduction under sections 54EE (Specify details in item D below) | P183: dii | Y183: =IF(Q183<>0,1,0) -> 0
F184: d | G184: Deduction under sections 54F(Specify details in item D below) | P184: d | Q184: 0 | Y184: =IF(Q184<>0,1,0) -> 0
F185: d | G185: Total Deduction u/s 54EE/54F | P185: 3d
F186: e | G186: LTCG on bonds or debenture (c – d) | R186: B2e | S186: =IF(LTCG.B2c_BalanceCG<0,LTCG.B2c_BalanceCG,IF(LTCG.B03d_ExemptionGrandTotal>LTCG.B2c_BalanceCG,0,LTCG.B2c_BalanceCG-LTCG.B03d_ExemptionGrandTotal)) -> 0
E187: 3 | F187: From sale of, (i) listed securities (other than a unit) or zero coupon bonds where proviso under section 112(1) is applicable
F188: ia | G188: Full value of consideration | P188: ia | Q188: 0 | Y188: =IF(Q188<>0,1,0) -> 0
F189: ib | G189: Deductions under section 48
G190: i | H190: Cost of acquisition without indexation | P190: ibi | Q190: 0 | Y190: =IF(Q190<>0,1,0) -> 0
G191: ii | H191: Cost of improvement without indexation | P191: ibii | Q191: 0 | Y191: =IF(Q191<>0,1,0) -> 0
G192: iii | H192: Expenditure wholly and exclusively in connection with transfer | P192: ibiii | Q192: 0 | Y192: =IF(Q192<>0,1,0) -> 0
G193: iv | H193: Total (ibi + ibii +ibiii) | P193: ibiv | Q193: =SUM(Q190:Q192) -> 0
F194: ic | G194: Balance (ia – ibiv) | P194: ic | Q194: =(LTCG.B3a_FullConsideration-LTCG.B3biv_TotalDedn) -> 0
F195: di | G195: Deduction under sections 54EC(Specify details in item D below) | P195: di | Y195: =IF(Q195<>0,1,0) -> 0
F196: idiii | G196: Deduction under sections 54EE(Specify details in item D below) | P196: idiii | Y196: =IF(Q196<>0,1,0) -> 0
F197: id | G197: Deduction under sections 54F(Specify details in item D below) | P197: id | Q197: 0 | Y197: =IF(Q197<>0,1,0) -> 0
F198: d | G198: Total Deduction u/s 54EE/54F | P198: 4d
F199: ie | G199: Long-term Capital Gains on assets at B4 above (c – d) | R199: B3ie | S199: =IF(LTCG.B3c_BalanceCG<0,LTCG.B3c_BalanceCG,IF(LTCG.B04d_ExemptionGrandTotal>LTCG.B3c_BalanceCG,0,LTCG.B3c_BalanceCG-LTCG.B04d_ExemptionGrandTotal)) -> 0
F200: From sale of GDR of an Indian company referred in sec. 115ACA
F201: iia | G201: Full value of consideration | P201: iia | Q201: 0 | Y201: =IF(Q201<>0,1,0) -> 0
F202: iib | G202: Deductions under section 48
G203: i | H203: Cost of acquisition without indexation | P203: iibi | Q203: 0 | Y203: =IF(Q203<>0,1,0) -> 0
G204: ii | H204: Cost of improvement without indexation | P204: iibii | Q204: 0 | Y204: =IF(Q204<>0,1,0) -> 0
G205: iii | H205: Expenditure wholly and exclusively in connection with transfer | P205: iibiii | Q205: 0 | Y205: =IF(Q205<>0,1,0) -> 0
G206: iv | H206: Total (bi + bii +biii) | P206: iibiv | Q206: =SUM(Q203:Q205) -> 0
F207: iic | G207: Balance (iia –iibiv) | P207: iic | Q207: =(LTCG.Bii3a_FullConsideration-LTCG.Bii3biv_TotalDedn) -> 0
F208: di | G208: Deduction under sections 54EC(Specify details in item D below) | P208: di | Y208: =IF(Q208<>0,1,0) -> 0
... 210 more rows

Sheet Schedule 112A
C3: Schedule 112A | E3: From sale of equity share in a company or unit of equity oriented fund or unit of a business trust on which STT is paid under section 112A
D4: Sl. No. | E4: Share/Unit acquired | F4: ISIN Code | G4: Name of the Share/Unit | H4: No. of Shares/Units | I4: Sale-price per Share/Unit | J4: Full Value of Consideration If shares/units are acquired on or before 31st January, 2018 (Total Sale Value) (4*5) or If shares/units are acquired after 31st January, 2018 - Please enter Full Value of Consideration | K4: Cost of acquisition without indexation (higher of 8 or 9 ) | L4: Cost of acquisition | M4: If the long term capital asset was acquired before 01.02.2018, Lower of 6 & 11 | N4: Fair Market Value per share/unit as on 31st January,2018 | O4: Total Fair Market Value as on 31st January, 2018 of capital asset as per section 55(2)(ac)- (4*10) | P4: Full value of Consideration - item 4 (b)(i)(B)(2) of LTCG Schedule of ITR3 | Q4: Cost of improvement without indexation - item 5 (b)(ii) of LTCG Schedule of ITR3 | R4: Expenditure wholly and exclusively in connection with transfer | S4: Total deductions (7+12) | T4: Balance 6-13 Item 4 (a) of LTCG Schedule of ITR2
D5: (Col 1) | E5: (Col 1a) | F5: (Col 2) | G5: (Col 3) | H5: (Col 4) | I5: (Col 5) | J5: (Col 6) | K5: (Col 7) | L5: (Col 8) | M5: (Col 9) | N5: (Col 10) | O5: (Col 11) | P5: (Col 12) | Q5: (Col 13) | R5: (Col 12) | S5: (Col 13) | T5: (Col 14)
D6: 1 | E6: (Select) | J6: =ROUND(MAX(0,ROUND(H6,4)*ROUND(I6,4)),0) -> 0 | K6: =ROUND(MAX(0,ROUND(L6,4),ROUND(M6,0)),0) -> 0 | M6: =ROUND(MAX(0,MIN(ROUND(O6,0),ROUND(J6,0))),0) -> 0 | O6: =ROUND(MAX(0,ROUND(H6,4)*ROUND(N6,4)),0) -> 0 | P6: 0 | S6: =ROUND(MAX(0,SUM(ROUND(K6,0),ROUND(R6,4))),0) -> 0 | T6: =ROUND(ROUND(J6,0)-ROUND(S6,0),0) -> 0 | AF6: =IF(ISERROR(IF(F6<>"",VLOOKUP(F6,ISIN112A,2,FALSE))),"",IF(F6<>"",VLOOKUP(F6,ISIN112A,2,FALSE))) -> FALSE
D7: =D6+1 -> 2 | E7: (Select) | J7: =ROUND(MAX(0,ROUND(H7,4)*ROUND(I7,4)),0) -> 0 | K7: =ROUND(MAX(0,ROUND(L7,4),ROUND(M7,0)),0) -> 0 | M7: =ROUND(MAX(0,MIN(ROUND(O7,0),ROUND(J7,0))),0) -> 0 | O7: =ROUND(MAX(0,ROUND(H7,4)*ROUND(N7,4)),0) -> 0 | P7: 0 | S7: =ROUND(MAX(0,SUM(ROUND(K7,0),ROUND(R7,4))),0) -> 0 | T7: =ROUND(ROUND(J7,0)-ROUND(S7,0),0) -> 0 | AF7: =IF(ISERROR(IF(F7<>"",VLOOKUP(F7,ISIN112A,2,FALSE))),"",IF(F7<>"",VLOOKUP(F7,ISIN112A,2,FALSE))) -> FALSE
D8: =D7+1 -> 3 | E8: (Select) | J8: =ROUND(MAX(0,ROUND(H8,4)*ROUND(I8,4)),0) -> 0 | K8: =ROUND(MAX(0,ROUND(L8,4),ROUND(M8,0)),0) -> 0 | M8: =ROUND(MAX(0,MIN(ROUND(O8,0),ROUND(J8,0))),0) -> 0 | O8: =ROUND(MAX(0,ROUND(H8,4)*ROUND(N8,4)),0) -> 0 | P8: 0 | S8: =ROUND(MAX(0,SUM(ROUND(K8,0),ROUND(R8,4))),0) -> 0 | T8: =ROUND(ROUND(J8,0)-ROUND(S8,0),0) -> 0 | AF8: =IF(ISERROR(IF(F8<>"",VLOOKUP(F8,ISIN112A,2,FALSE))),"",IF(F8<>"",VLOOKUP(F8,ISIN112A,2,FALSE))) -> FALSE
D9: =D8+1 -> 4 | E9: (Select) | J9: =ROUND(MAX(0,ROUND(H9,4)*ROUND(I9,4)),0) -> 0 | K9: =ROUND(MAX(0,ROUND(L9,4),ROUND(M9,0)),0) -> 0 | M9: =ROUND(MAX(0,MIN(ROUND(O9,0),ROUND(J9,0))),0) -> 0 | O9: =ROUND(MAX(0,ROUND(H9,4)*ROUND(N9,4)),0) -> 0 | P9: 0 | S9: =ROUND(MAX(0,SUM(ROUND(K9,0),ROUND(R9,4))),0) -> 0 | T9: =ROUND(ROUND(J9,0)-ROUND(S9,0),0) -> 0 | AF9: =IF(ISERROR(IF(F9<>"",VLOOKUP(F9,ISIN112A,2,FALSE))),"",IF(F9<>"",VLOOKUP(F9,ISIN112A,2,FALSE))) -> FALSE
D11: Total | J11: =SUM(TotalSaleValue_112A) -> 0 | K11: =SUM(COAwithoutIndex_112A) -> 0 | L11: =SUM(COAwithIndex_112A) -> 0 | M11: =SUM(LTCGAssetAcquired_112A) -> 0 | O11: =SUM(TotalFairMarketValue_112A) -> 0 | P11: 0 | Q11: 0 | R11: =SUM(ExpenditureWholly_112A) -> 0 | S11: =SUM(TotalDeductions_112A) -> 0 | T11: =SUM(Balance_112A) -> 0

Sheet HelpCSV (hidden)
J1: Instructions for filling Schedule 112A/115AD(1)(b)(iii)(P)
J2: Option 1 – Fill Data directly in utility
J3: 1 | K3: Enter all the required details. To add rows select "Add" and update the details. To delete rows select the row which is to be deleted and then click on "Delete".
J4: 2 | K4: Click on "Save" to go back to schedule 112A/115AD(1)(b)(iii)(P).
J5: Note: | K5: This option is useful when there are limited number of entries in this schedule .
J8: Option 2 – Upload through CSV
J9: 1 | K9: Download the template through the link.
J10: 2 | K10: Click on the template; provide a file name to save the CSV.
J11: 3 | K11: Update the data as per the headings provided in the CSV template (Refer instructions below to fill the csv file).
J12: 4 | K12: Save the date and upload the CSV file in the utility.
J13: 5 | K13: Maintaining data consistency is important to avoid errors upon upload.
J16: Instructions to fill csv file:
J17: 1 | K17: For the first column, referring to column 1a of schedule 112A in the return, ‘Share/Unit acquired’, enter the value ‘BE’ if the share/unit was acquired on or before 31st January 2018. If share/unit was acquired after 31st January 2018, enter value ‘AE’.
J18: 2 | K18: For column 2 ‘ISIN Code’, enter alphanumeric value and first two characters should start with ‘IN’. In case security/Share does not have ISIN Code, enter "INNOTAVAILAB". If in 1a, ‘AE’ is entered, enter ‘INNOTREQUIRD’.
J19: 3 | K19: For column 3 ‘Name of the Share/Unit’, input should contain only alphanumeric values without any special characters. If in 1a, ‘AE’ entered, enter ‘CONSOLIDATED’.
J20: 4 | K20: Column 4 ‘No. of Shares/Units field’ should be numeric, non- negative and decimals are allowed upto 4 digits. If in 1a, ‘AE’ is entered, leave this field as blank.
J21: 5 | K21: Column 5 ‘Sale-price per Share/Unit’ should be numeric, non- negative and decimals are allowed upto 4 digits. If in 1a, ‘AE’ is entered, leave this field as blank.
J22: 6 | K22: Column 6 ‘Full Value of Consideration (Total Sale Value)’ should be equal to the value at sl. No. 4 multiplied by sl. No. 5 (4*5) if ‘BE’ is entered in 1a. Value should be rounded off to the nearest unit. If in 1a ‘AE’ is entered, enter full value of consideration.
J23: 7 | K23: Column 7 ‘Cost of acquisition without indexation’, entered value should be higher of value mentioned in Column 8 [‘Cost of acquisition’] and Column 9 [“If the long-term capital asset was acquired before 01.02.2018, lower of 11 & 6”].
J24: 8 | K24: Column 8 ‘Cost of acquisition’ field should be numeric, non- negative and decimals are allowed upto 4 digits.
J25: 9 | K25: Column 9 ‘If the long-term capital asset was acquired before 01.02.2018, (i.e., if entry in col 1 is “BE”) lower of 11 & 6’ [field should be lower of value mentioned in column 11‘Total Fair Market Value of capital asset as per section 55(2) (ac)’ and in column 6 ‘Full Value Consideration’].
J26: 10 | K26: Column 10 ‘Fair Market Value per share/unit as on 31st January,2018’ should be numeric, non- negative and decimals are allowed upto 4 digits. If in 1a, ‘AE’ is entered, leave this field as blank.
J27: 11 | K27: Column 11 ‘Total Fair Market Value of capital asset as per section 55(2) (ac)’ field should be equal to value at column 4 ‘No. of Shares/Units’ multiply by Column 10 ‘Fair Market Value per share/unit as on 31st January,2018’. Value should be rounded off to the nearest unit.
J28: 12 | K28: Column 12 ‘Expenditure wholly and exclusively in connection with transfer’ field should be numeric, non- negative and decimals are allowed upto 4 digits.
J29: 13 | K29: Column 13 ‘Total deductions (7+12)’ field should be sum of value at column 7 ‘Cost of acquisition without indexation’ and column 12 ‘Expenditure wholly and exclusively in connection with transfer’. Value should be rounded off to the nearest unit.
J30: 14 | K30: Column 14 ‘Balance (6-13)’ field should be equal to value at column 6 ‘Full Value Consideration’ minus value at column 13 ‘Total deductions (7+12)’. Value should be rounded off to the nearest unit.

Sheet Schedule 115AD(1)(iii) proviso
C3: 115AD(1)(iii) proviso | E3: For NON-RESIDENTS - From sale of equity share in a company or unit of equity oriented fund or unit of a business trust on which STT is paid under section 112A
D4: Sl. No. | E4: Share/Unit acquired | F4: ISIN Code | G4: Name of the Share/Unit | H4: No. of Shares/Units | I4: Sale-price per Share/Unit | J4: Full Value of Consideration If shares/units are acquired on or before 31st January, 2018 (Total Sale Value) (4*5) or If shares/units are acquired after 31st January, 2018 - Please enter Full Value of Consideration | K4: Cost of acquisition without indexation (higher of 8 or 9) | L4: Cost of acquisition | M4: If the long term capital asset was acquired before 01.02.2018, Lower of 6 & 12 | N4: Fair Market Value per share/unit as on 31st January,2019 | O4: Total Fair Market Value as on 31st January, 2018 of capital asset as per section 55(2)(ac)- (4*10) | P4: Full value of Consideration - item 8 (b)(i)(B)(2) of LTCG Schedule of ITR4 | Q4: Cost of improvement without indexation - item 8 (b)(ii) of LTCG Schedule of ITR4 | R4: Expenditure wholly and exclusively in connection with transfer | S4: Total deductions (7+12) | T4: Balance (6-13) Item 7 (a) of LTCG Schedule of ITR3
D5: (Col 1) | E5: (Col 1a) | F5: (Col 2) | G5: (Col 3) | H5: (Col 4) | I5: (Col 5) | J5: (Col 6) | K5: (Col 7) | L5: (Col 8) | M5: (Col 9) | N5: (Col 10) | O5: (Col 11) | P5: (Col 12) | Q5: (Col 13) | R5: (Col 12) | S5: (Col 13) | T5: (Col 14)
D6: 1 | J6: =ROUND(MAX(0,ROUND(H6,4)*ROUND(I6,4)),0) -> 0 | K6: =ROUND(MAX(0,ROUND(L6,4),ROUND(M6,0)),0) -> 0 | M6: =ROUND(MAX(0,MIN(ROUND(O6,0),ROUND(J6,0))),0) -> 0 | O6: =ROUND(MAX(0,ROUND(H6,4)*ROUND(N6,4)),0) -> 0 | P6: 0 | S6: =ROUND(MAX(0,SUM(ROUND(K6,0),ROUND(R6,4))),0) -> 0 | T6: =ROUND(ROUND(J6,0)-ROUND(S6,0),0) -> 0 | AB6: =IF(ISERROR(IF(F6<>"",VLOOKUP(F6,ISIN112A,2,FALSE))),"",IF(F6<>"",VLOOKUP(F6,ISIN112A,2,FALSE))) -> FALSE
D7: =D6+1 -> 2 | J7: =ROUND(MAX(0,ROUND(H7,4)*ROUND(I7,4)),0) -> 0 | K7: =ROUND(MAX(0,ROUND(L7,4),ROUND(M7,0)),0) -> 0 | M7: =ROUND(MAX(0,MIN(ROUND(O7,0),ROUND(J7,0))),0) -> 0 | O7: =ROUND(MAX(0,ROUND(H7,4)*ROUND(N7,4)),0) -> 0 | P7: 0 | S7: =ROUND(MAX(0,SUM(ROUND(K7,0),ROUND(R7,4))),0) -> 0 | T7: =ROUND(ROUND(J7,0)-ROUND(S7,0),0) -> 0 | AB7: =IF(ISERROR(IF(F7<>"",VLOOKUP(F7,ISIN112A,2,FALSE))),"",IF(F7<>"",VLOOKUP(F7,ISIN112A,2,FALSE))) -> FALSE
D8: =D7+1 -> 3 | J8: =ROUND(MAX(0,ROUND(H8,4)*ROUND(I8,4)),0) -> 0 | K8: =ROUND(MAX(0,ROUND(L8,4),ROUND(M8,0)),0) -> 0 | M8: =ROUND(MAX(0,MIN(ROUND(O8,0),ROUND(J8,0))),0) -> 0 | O8: =ROUND(MAX(0,ROUND(H8,4)*ROUND(N8,4)),0) -> 0 | P8: 0 | S8: =ROUND(MAX(0,SUM(ROUND(K8,0),ROUND(R8,4))),0) -> 0 | T8: =ROUND(ROUND(J8,0)-ROUND(S8,0),0) -> 0 | AB8: =IF(ISERROR(IF(F8<>"",VLOOKUP(F8,ISIN112A,2,FALSE))),"",IF(F8<>"",VLOOKUP(F8,ISIN112A,2,FALSE))) -> FALSE
D9: =D8+1 -> 4 | J9: =ROUND(MAX(0,ROUND(H9,4)*ROUND(I9,4)),0) -> 0 | K9: =ROUND(MAX(0,ROUND(L9,4),ROUND(M9,0)),0) -> 0 | M9: =ROUND(MAX(0,MIN(ROUND(O9,0),ROUND(J9,0))),0) -> 0 | O9: =ROUND(MAX(0,ROUND(H9,4)*ROUND(N9,4)),0) -> 0 | P9: 0 | S9: =ROUND(MAX(0,SUM(ROUND(K9,0),ROUND(R9,4))),0) -> 0 | T9: =ROUND(ROUND(J9,0)-ROUND(S9,0),0) -> 0 | AB9: =IF(ISERROR(IF(F9<>"",VLOOKUP(F9,ISIN112A,2,FALSE))),"",IF(F9<>"",VLOOKUP(F9,ISIN112A,2,FALSE))) -> FALSE
J11: =SUM(TotalSaleValue_115AD) -> 0 | K11: =SUM(COAwithoutIndex_115AD) -> 0 | L11: =SUM(COAwithIndex_115AD) -> 0 | M11: =SUM(LTCGAssetAcquired_115AD) -> 0 | O11: =SUM(TotalFairMarketValue_115AD) -> 0 | P11: 0 | Q11: 0 | R11: =SUM(ExpenditureWholly_115AD) -> 0 | S11: =SUM(TotalDeductions_115AD) -> 0 | T11: =SUM(Balance_115AD) -> 0

Sheet VDA
C3: Schedule VDA | E3: Income from transfer of Virtual Digital Assets (Note: Details of every transaction are to be filled, wherein every ‘transfer’ is a transaction)
C4: Sl.No. | D4: Date of acquisition | E4: Date of Transfer | F4: Head under which income to be taxed (Capital Gain) | G4: Cost of Acquisition (In case of gift; a. Enter the amount on which tax is paid u/s 56(2)(x) if any b. In any other case cost to previous owner) | H4: Consideration Received | I4: Income from transfer of Virtual Digital Assets (enter nil in case of loss) (Col. 6 – Col. 5)
C6: 1 | I6: =MAX((H6-G6),0) -> 0
C7: =C6+1 -> 2 | F7: (Select) | I7: =MAX((H7-G7),0) -> 0
C8: =C7+1 -> 3 | F8: (Select) | I8: =MAX((H8-G8),0) -> 0
C9: =C8+1 -> 4 | F9: (Select) | I9: =MAX((H9-G9),0) -> 0
G11: Total (Sum of all Positive Incomes of Capital Gain in Col. 7) | I11: =SUMIF(VDA.HeadIncome,"Capital Gain",VDA.TotalIncome) -> 0

Sheet OS
AK1: 1b | AL1: =SUMIF(OS_DTAASectionCode,"=56",os.DTAA_AmtChk) -> 0 | AM1: 1c | AN1: =SUMIF(OS_DTAASectionCode,"=562iii",os.DTAA_AmtChk) -> 0 | AR1: PTI TABLE
AK2: 1a | AL2: =SUMIF(OS_DTAASectionCode,"=56i",os.DTAA_AmtChk) -> 0 | AM2: 1d | AN2: =SUMIF(OS_DTAASectionCode,"=562x",os.DTAA_AmtChk) -> 0
C3: Sch OS | E3: Income from other Sources | AR3: PTI_5A1ai | AS3: =SUMIF(OS_PTISectionCode,AR3,OS_PTI_Amount) -> 0 | AT3: PTI_5A1aiiac | AU3: =SUMIF(OS_PTISectionCode,AT3,OS_PTI_Amount) -> 0 | AV3: PTI_5AD1i | AW3: =SUMIF(OS_PTISectionCode,AV3,OS_PTI_Amount) -> 0 | AX3: PTI_5BBDA | AY3: =SUMIF(OS_PTISectionCode,AX3,OS_PTI_Amount) -> 0 | AZ3: PTI_5BBE | BA3: =SUMIF(OS_PTISectionCode,AZ3,OS_PTI_Amount) -> 0 | BB3: Total | BC3: =SUM(AS3:AS9,AU3:AU9,AW3:AW9,AY3:AY9,BA3:BA4) -> 0
D4: 1 | E4: Gross income chargeable to tax at normal applicable rates (1a+ 1b+ 1c+ 1d + 1e) | J4: =SUM(os.DividendGross,os.InterestGross,os.RentFromMachPlantBldgs,os.Totalsec56,os.TotalAnyOtherIncome) -> 141000 | AR4: PTI_5A1aii | AS4: 0 | AT4: PTI_5A1aiii | AU4: =SUMIF(OS_PTISectionCode,AT4,OS_PTI_Amount) -> 0 | AV4: PTI_5AD1iP | AW4: =SUMIF(OS_PTISectionCode,AV4,OS_PTI_Amount) -> 0 | AX4: PTI_5BBF | AY4: 0 | AZ4: PTI_1 | BA4: =SUMIF(OS_PTISectionCode,AZ4,OS_PTI_Amount) -> 0
E5: a | F5: Dividends, Gross (ai +aii) | I5: 1a | J5: =os.DividendGrossai+os.DividendGrossaii -> 30000 | AR5: PTI_5A1aiia | AS5: 0 | AT5: PTI_5A1bA | AU5: =SUMIF(OS_PTISectionCode,AT5,OS_PTI_Amount) -> 0 | AV5: PTI_5ACA1a | AW5: =SUMIF(OS_PTISectionCode,AV5,OS_PTI_Amount) -> 0 | AX5: PTI_5BBG | AY5: 0
E6: ai | F6: Dividend income [other than (ii)] | I6: 1ai | J6: =BBDA.Upto15Of6+BBDA.Upto15Of9+BBDA.Up16Of9To15Of12+BBDA.Up16Of12To15Of3+BBDA.Up16Of3To31Of3+DivDTAA+IF(os.amountinterestexpenditure="",os.expenditureClaimed1,os.amountinterestexpenditure1) -> 30000 | AR6: PTI_5A1aA | AS6: 0 | AT6: PTI_5A1aiiaci | AU6: =SUMIF(OS_PTISectionCode,AT6,OS_PTI_Amount) -> 0 | AV6: PTI_5AD1iDiv | AW6: =SUMIF(OS_PTISectionCode,AV6,OS_PTI_Amount) -> 0 | AX6: PTI_5AC1b | AY6: 0
E7: aii | F7: Dividend income u/s 2(22)(e) | I7: 1aii | J7: 0 | AR7: PTI_5A1aiiaaP | AS7: 0 | AX7: PTI_5BBJ | AY7: 0
E8: b | F8: Interest Gross (bi + bii + biii + biv + bv+bvi+bvii+bviii+bix) | I8: 1b | J8: =SUM(os.SavingBank,os.TermDeposit,os.IncomeTaxRefund,os.PassThroughIncome,os.Others,IntrstSec10XIFP,IntrstSec10XISP,IntrstSec10XIIFP,IntrstSec10XIISP) -> 37000 | AR8: PTI_5A1aiiaa | AS8: 0 | AT8: PTI_5A1bB | AU8: =SUMIF(OS_PTISectionCode,AT8,OS_PTI_Amount) -> 0 | AV8: PTI_5BBA | AW8: =SUMIF(OS_PTISectionCode,AV8,OS_PTI_Amount) -> 0 | AX8: PTI_5Ea | AY8: 0
F9: i | G9: From Savings Bank | I9: 1bi | J9: 37000 | AH9: 5A1ai | AR9: PTI_5A1aiiab | AS9: 0 | AT9: PTI_5AC1a | AU9: =SUMIF(OS_PTISectionCode,AT9,OS_PTI_Amount) -> 0 | AV9: PTI_5BBC | AW9: =SUMIF(OS_PTISectionCode,AV9,OS_PTI_Amount) -> 0 | AX9: PTI_5BB | AY9: 0
F10: ii | G10: From Deposit (Bank/ Post Office/ Co-operative Society) | I10: 1bii | J10: 0 | AH10: =MAX(0,MAX(0,SUMIF(os.check,AH9,os.SourceAmount))-MAX(0,IF(MID(sheet1.ResidentialStatus1,1,3)="NRI",SUMIFS(os.DTAA_AmtChk,os.TRC,"=Yes",OS_DTAASectionCode,AH9),SUMIF(OS_DTAASectionCode,AH9,os.DTAA_AmtChk))))+MAX((Os_PTI_5A1ai-Os_PTI_5A1ai_DTAA),0) -> 0
F11: iii | G11: From Income Tax refund | I11: 1biii | J11: 0 | AR11: PTI_5A1aiiaaP | AS11: =IF(MID(sheet1.ResidentialStatus1,1,3)="NRI",SUMIFS(os.DTAA_AmtChk,os.TRC,"=Yes",OS_DTAASectionCode,AR11),SUMIF(OS_DTAASectionCode,AR11,os.DTAA_AmtChk)) -> 0 | AT11: PTI_5A1aiiaci | AU11: =IF(MID(sheet1.ResidentialStatus1,1,3)="NRI",SUMIFS(os.DTAA_AmtChk,os.TRC,"=Yes",OS_DTAASectionCode,AT11),SUMIF(OS_DTAASectionCode,AT11,os.DTAA_AmtChk)) -> 0 | AV11: PTI_5AD1iDiv | AW11: =IF(MID(sheet1.ResidentialStatus1,1,3)="NRI",SUMIFS(os.DTAA_AmtChk,os.TRC,"=Yes",OS_DTAASectionCode,AV11),SUMIF(OS_DTAASectionCode,AV11,os.DTAA_AmtChk)) -> 0 | AX11: PTI_5AC1b | AY11: =IF(MID(sheet1.ResidentialStatus1,1,3)="NRI",SUMIFS(os.DTAA_AmtChk,os.TRC,"=Yes",OS_DTAASectionCode,AX11),SUMIF(OS_DTAASectionCode,AX11,os.DTAA_AmtChk)) -> 0
F12: iv | G12: In the nature of Pass through income\loss | I12: 1biv | J12: 0 | AR12: PTI_5A1ai | AS12: 0 | AT12: PTI_5A1aiiac | AU12: 0 | AV12: PTI_5AD1i | AW12: =IF(MID(sheet1.ResidentialStatus1,1,3)="NRI",SUMIFS(os.DTAA_AmtChk,os.TRC,"=Yes",OS_DTAASectionCode,AV12),SUMIF(OS_DTAASectionCode,AV12,os.DTAA_AmtChk)) -> 0 | AX12: PTI_5BBDA | AY12: =IF(MID(sheet1.ResidentialStatus1,1,3)="NRI",SUMIFS(os.DTAA_AmtChk,os.TRC,"=Yes",OS_DTAASectionCode,AX12),SUMIF(OS_DTAASectionCode,AX12,os.DTAA_AmtChk)) -> 0 | AZ12: PTI_5BBE | BA12: =IF(MID(sheet1.ResidentialStatus1,1,3)="NRI",SUMIFS(os.DTAA_AmtChk,os.TRC,"=Yes",OS_DTAASectionCode,AZ12),SUMIF(OS_DTAASectionCode,AZ12,os.DTAA_AmtChk)) -> 0 | BB12: Total | BC12: =SUM(AS12:AS20,AU12:AU20,AW12:AW20,AY12:AY20,BA12:BA17) -> 0
F13: v | G13: Interest accrued on contributions to provident fund to the extent taxable as per first proviso to section 10(11) | I13: 1bv | AR13: PTI_5A1aA | AS13: =IF(MID(sheet1.ResidentialStatus1,1,3)="NRI",SUMIFS(os.DTAA_AmtChk,os.TRC,"=Yes",OS_DTAASectionCode,AR13),SUMIF(OS_DTAASectionCode,AR13,os.DTAA_AmtChk)) -> 0
F14: vi | G14: Interest accrued on contributions to provident fund to the extent taxable as per Second proviso to section 10(11) | I14: 1bvi
F15: vii | G15: Interest accrued on contributions to provident fund to the extent taxable as per first proviso to section 10(12) | I15: 1bvii
F16: viii | G16: Interest accrued on contributions to provident fund to the extent taxable as per second proviso to section 10(12) | I16: 1bviii | AX16: PTI_5BBJ | AY16: =IF(MID(sheet1.ResidentialStatus1,1,3)="NRI",SUMIFS(os.DTAA_AmtChk,os.TRC,"=Yes",OS_DTAASectionCode,AX16),SUMIF(OS_DTAASectionCode,AX16,os.DTAA_AmtChk)) -> 0
C17: OTHER SOURCES | F17: ix | G17: others | I17: 1bix | J17: 0 | AR17: PTI_5A1aii | AS17: 0 | AT17: PTI_5A1aiii | AU17: 0 | AV17: PTI_5AD1iP | AW17: =IF(MID(sheet1.ResidentialStatus1,1,3)="NRI",SUMIFS(os.DTAA_AmtChk,os.TRC,"=Yes",OS_DTAASectionCode,AV17),SUMIF(OS_DTAASectionCode,AV17,os.DTAA_AmtChk)) -> 0 | AX17: PTI_5BBF | AY17: =IF(MID(sheet1.ResidentialStatus1,1,3)="NRI",SUMIFS(os.DTAA_AmtChk,os.TRC,"=Yes",OS_DTAASectionCode,AX17),SUMIF(OS_DTAASectionCode,AX17,os.DTAA_AmtChk)) -> 0 | AZ17: PTI_1 | BA17: =IF(MID(sheet1.ResidentialStatus1,1,3)="NRI",SUMIFS(os.DTAA_AmtChk,os.TRC,"=Yes",OS_DTAASectionCode,AZ17),SUMIF(OS_DTAASectionCode,AZ17,os.DTAA_AmtChk)) -> 0
E18: c | F18: Rental income from machinery, plants, buildings, etc., Gross | I18: 1c | J18: 0 | AH18: Dtaa(1a) | AI18: =IF(MID(sheet1.ResidentialStatus1,1,3)="NRI",SUMIFS(os.DTAA_AmtChk,os.TRC,"=Yes",OS_DTAASectionCode,"=56i"),SUMIF(OS_DTAASectionCode,"=56i",os.DTAA_AmtChk)) -> 0 | AR18: PTI_5A1aiia | AS18: 0 | AT18: PTI_5A1bA | AU18: 0 | AV18: PTI_5ACA1a | AW18: =IF(MID(sheet1.ResidentialStatus1,1,3)="NRI",SUMIFS(os.DTAA_AmtChk,os.TRC,"=Yes",OS_DTAASectionCode,AV18),SUMIF(OS_DTAASectionCode,AV18,os.DTAA_AmtChk)) -> 0 | AX18: PTI_5BBG | AY18: =IF(MID(sheet1.ResidentialStatus1,1,3)="NRI",SUMIFS(os.DTAA_AmtChk,os.TRC,"=Yes",OS_DTAASectionCode,AX18),SUMIF(OS_DTAASectionCode,AX18,os.DTAA_AmtChk)) -> 0
E19: d | F19: Income of the nature referred to in section 56(2)(x) which is chargeable to tax (di + dii + diii + div + dv) | I19: 1d | J19: =MAX(0,(J20+J21+J22+J23+J24)) -> 74000 | AH19: Dtaa(1b) | AI19: =IF(MID(sheet1.ResidentialStatus1,1,3)="NRI",SUMIFS(os.DTAA_AmtChk,os.TRC,"=Yes",OS_DTAASectionCode,"=56"),SUMIF(OS_DTAASectionCode,"=56",os.DTAA_AmtChk)) -> 0 | AR19: PTI_5A1aiiaa | AS19: 0 | AT19: PTI_5A1bB | AU19: 0 | AV19: PTI_5BBA | AW19: =IF(MID(sheet1.ResidentialStatus1,1,3)="NRI",SUMIFS(os.DTAA_AmtChk,os.TRC,"=Yes",OS_DTAASectionCode,AV19),SUMIF(OS_DTAASectionCode,AV19,os.DTAA_AmtChk)) -> 0 | AX19: PTI_5Ea | AY19: =IF(MID(sheet1.ResidentialStatus1,1,3)="NRI",SUMIFS(os.DTAA_AmtChk,os.TRC,"=Yes",OS_DTAASectionCode,AX19),SUMIF(OS_DTAASectionCode,AX19,os.DTAA_AmtChk)) -> 0
F20: i | G20: Aggregate value of sum of money received without consideration | I20: 1di | J20: 0 | AH20: Dtaa(115BB) | AI20: =IF(MID(sheet1.ResidentialStatus1,1,3)="NRI",SUMIFS(os.DTAA_AmtChk,os.TRC,"=Yes",OS_DTAASectionCode,"=5BB"),SUMIF(OS_DTAASectionCode,"=5BB",os.DTAA_AmtChk)) -> 0 | AR20: PTI_5A1aiiab | AS20: 0 | AT20: PTI_5AC1a | AU20: 0 | AV20: PTI_5BBC | AW20: =IF(MID(sheet1.ResidentialStatus1,1,3)="NRI",SUMIFS(os.DTAA_AmtChk,os.TRC,"=Yes",OS_DTAASectionCode,AV20),SUMIF(OS_DTAASectionCode,AV20,os.DTAA_AmtChk)) -> 0 | AX20: PTI_5BB | AY20: =IF(MID(sheet1.ResidentialStatus1,1,3)="NRI",SUMIFS(os.DTAA_AmtChk,os.TRC,"=Yes",OS_DTAASectionCode,AX20),SUMIF(OS_DTAASectionCode,AX20,os.DTAA_AmtChk)) -> 0
F21: ii | G21: In case immovable property is received without consideration, stamp duty value of property | I21: 1dii | J21: 0
F22: iii | G22: In case immovable property is received for inadequate consideration, stamp duty value of property in excess of such consideration | I22: 1diii | J22: 0
F23: iv | G23: In case any other property is received without consideration, fair market value of property | I23: 1div | J23: 74000
F24: v | G24: In case any other property is received for inadequate consideration, fair market value of property in excess of such consideration | I24: 1dv | J24: 0
E25: e | F25: Any other income (please specify nature) | J25: =SUM(os.OtherSections)+os_FamilyPension+OSIncomeNotified89A+OSIncomeNotifiedOther89A+OSIncomeTaxblPreYr89A+OSBusiness56+OSBonus56 -> 0
F26: Sl. No | G26: Nature | J26: Amount
F27: 1 | G27: Family Pension | J27: 0
F28: 2 | G28: Income from retirement benefit account maintained in a notified country u/s 89A | J28: =OSIncomeNotified89A_AmountUS+OSIncomeNotified89A_AmountUK+OSIncomeNotified89A_AmountCan -> 0
F29: 2a | G29: United States of America
F30: 2b | G30: United Kingdom of Great Britain and Northern Ireland
F31: 2c | G31: Canada
F32: 3 | G32: Income from retirement benefit account maintained in a country other than notified country u/s 89A | J32: 0
F33: 4 | G33: Income taxable during the previous year on which relief u/s 89A was claimed in any earlier previous year
F34: 5 | G34: Any specified sum received by a unit holder from a business trust during the previous year referred to in section 56(2)(xii)
F35: 6 | G35: Any sum received, including the amount allocated by way of bonus, at any time during a previous year, under a life insurance policy referred to in section 56(2)(xiii)
F36: 7
F37: 8 | AB37: OS_Section Breakup
AB38: 1a | AC38: =os.DividendGross -> 30000
D39: 2 | E39: Income chargeable at special rates (2a(i)+2a(ii)+ 2b+ 2c+ 2d + 2e+2f related to Sl.No. 1) | I39: 2 | J39: =SUM(os.WinLottRacePuzz,os.WinOnlineGame,os.Total115BE,os.IncomeBenefitTotal,os.TotalChargeableSpecialRate,os.TotalPassThroughIncome,DTAA_1a_OS,DTAA_1b_OS,DTAA_1c_OS,DTAA_1d_OS) -> 0
E40: a(i) | F40: Winnings from lotteries, crossword puzzles races, card games etc. chargeable u/s 115BB | I40: 2a(i) | J40: 0
E41: a(ii) | F41: Income by way of winnings from online games chargeable u/s 115BBJ | I41: 2a(ii)
E42: b | F42: Income chargeable u/s 115BBE (bi + bii + biii + biv+ bv + bvi) | I42: 2b | J42: =MAX(0,(J43+J44+J45+J46+J47+J48)) -> 0
F43: i | G43: Cash credits u/s 68 | I43: 2bi | J43: 0
F44: ii | G44: Unexplained investments u/s 69 | I44: 2bii | J44: 0
F45: iii | G45: Unexplained money etc. u/s 69A | I45: 2biii | J45: 0
F46: iv | G46: Undisclosed investments etc. u/s 69B | I46: 2biv | J46: 0
F47: v | G47: Unexplained expenditure etc. u/s 69C | I47: 2bv | J47: 0
F48: vi | G48: Amount borrowed or repaid on hundi u/s 69D | I48: 2bvi | J48: 0
E49: c | F49: Accumulated balance of recognised provident fund taxable u/s 111 | I49: c | J49: =SUM(os.IncomeBenefit) -> 0 | AI49: 5A1aiia | AJ49: =SUMIF(os.check,"=5A1aiia",SRCamt) -> 0 | AK49: 5A1bA | AL49: =SUMIF(os.check,"=5A1bA",SRCamt) -> 0 | AM49: 5BBA | AN49: =SUMIF(os.check,"=5BBA",SRCamt) -> 0
F50: Sl. No | G50: Assessment Year | H50: Income Benefit | J50: Tax Benefit | AI50: 5A1aii | AJ50: =SUMIF(os.check,"=5A1aii",SRCamt) -> 0 | AK50: 5A1aiii | AL50: =SUMIF(os.check,"=5A1aiii",SRCamt) -> 0 | AM50: 5AD1ip | AN50: =SUMIF(os.check,"=5AD1ip",SRCamt) -> 0
F51: 1 | G51: (Select) | AI51: 5A1aii | AJ51: =SUMIF(os.check,"=5A1aii",SRCamt) -> 0 | AK51: 5A1aiii | AL51: =SUMIF(os.check,"=5A1aiii",SRCamt) -> 0 | AM51: 5AD1ip | AN51: =SUMIF(os.check,"=5AD1ip",SRCamt) -> 0
F52: =F51+1 -> 2 | G52: (Select) | AI52: 5A1ai | AJ52: =SUMIF(os.check,"=5A1ai",SRCamt) -> 0 | AK52: 5A1aiiac | AL52: =SUMIF(os.check,"=5A1aiiac",SRCamt) -> 0 | AM52: 5AD1i | AN52: =SUMIF(os.check,"=5AD1i",SRCamt) -> 0
F53: =F52+1 -> 3 | G53: (Select) | AI53: 111 | AJ53: =SUM(os.IncomeBenefitTotal) -> 0 | AK53: 5ACA(1)(a) | AL53: =SUMIF(os.check,"=5ACA1a",SRCamt) -> 0 | AM53: 5BBC | AN53: =SUMIF(os.check,"=5BBC",SRCamt) -> 0
AB54: 1b | AC54: =os.InterestGross -> 37000 | AI54: 5BBF | AJ54: =SUMIF(os.check,"=5BBF",SRCamt) -> 0 | AK54: 5BBG | AL54: =SUMIF(os.check,"=5BBG",SRCamt) -> 0 | AM54: 5BBDA | AN54: =SUMIF(os.check,"=5BBDA",SRCamt) -> 0
F55: Total | J55: =SUM(os.TaxBenefit) -> 0 | AI55: 5A1aiiaci | AJ55: =SUMIF(os.check,"=5A1aiiaci",SRCamt) -> 0 | AK55: 5A1aiiaaP | AL55: =SUMIF(os.check,"=5A1aiiaaP",SRCamt) -> 0 | AM55: 5AD1iDiv | AN55: =SUMIF(os.check,"=5AD1iDiv",SRCamt) -> 0
E56: d | F56: Any other income chargeable at special rate (total of di to dxx) | I56: d | J56: =SUM(os.SourceAmount) -> 0 | X56: OS Section | Y56: OS Value | AI56: 5A1aA | AJ56: =SUMIF(os.check,"=5A1aA",SRCamt) -> 0 | AM56: 5AC1b | AN56: =SUMIF(os.check,"=5AC1b",SRCamt) -> 0
F57: Sl. No | G57: Nature | H57: Amount | AI57: 1b | AJ57: =SUMIF(os.check,"=56",SRCamt) -> 0 | AK57: 5A1aiiab | AL57: =SUMIF(os.check,"=5A1aiiab",SRCamt) -> 0 | AM57: 5AC1a | AN57: =SUMIF(os.check,"=5AC1a",SRCamt) -> 0 | AO57: Total
F58: =1 -> 1 | X58: =IF(G58="(Select)",0,IF(G58="",0,1)) -> 0 | Y58: =IF(H58="",0,IF(H58="0",0,1)) -> 0 | AB58: =TRIM(MID(G58,1,SEARCH("-",G58)-1)) ->  | AC58: =H58 -> 0 | AI58: 1a | AJ58: =SUMIF(os.check,"=56i",SRCamt) -> 0 | AK58: 5A1aiiaa | AL58: =SUMIF(os.check,"=5A1aiiaa",SRCamt) -> 0 | AM58: 5A1bB | AN58: =SUMIF(os.check,"=5A1bB",SRCamt) -> 0 | AO58: 5Ea | AP58: =SUMIF(os.check,"=5Ea",SRCamt) -> 0
F59: =F58+1 -> 2 | X59: 0 | Y59: 0 | AB59: =TRIM(MID(G59,1,SEARCH("-",G59)-1)) ->  | AC59: =H59 -> 0
F60: =F59+1 -> 3 | X60: 0 | Y60: 0 | AC60: 0
F61: =F60+1 -> 4 | X61: 0 | Y61: 0 | AB61: =TRIM(MID(G61,1,SEARCH("-",G61)-1)) ->  | AC61: =H61 -> 0
F62: =F61+1 -> 5 | X62: 0 | Y62: 0 | AB62: =TRIM(MID(G62,1,SEARCH("-",G62)-1)) ->  | AC62: =H62 -> 0
F63: =F62+1 -> 6 | X63: 0 | Y63: 0 | AB63: =TRIM(MID(G63,1,SEARCH("-",G63)-1)) ->  | AC63: =H63 -> 0
E66: e | F66: Pass through income/Loss in the nature of income from other sources claimed as chargeable at special rates | J66: =SUM(os.PTIAmount) -> 0
F67: Sl. No | G67: Nature | H67: Amount
F68: =1 -> 1 | AB68: =TRIM(MID(G68,1,SEARCH("-",G68)-1)) ->  | AC68: =H68 -> 0 | AD68: =IF(ISERROR(VLOOKUP(G68,OS_PTI_LookUp1,2,FALSE)),"",VLOOKUP(G68,OS_PTI_LookUp1,2,FALSE)) -> 
F69: =F68+1 -> 2 | AC69: 0
F70: =F69+1 -> 3 | AC70: 0
F71: =F70+1 -> 4 | AC71: 0
F72: =F71+1 -> 5 | AC72: 0
F73: =F72+1 -> 6 | AC73: 0
E75: f | F75: Amount included in 1 and 2 above, which is chargeable at special rates in India as per DTAA (total of column (2) of table below) | N75: =IF(Residentialstatuscheck="NRI",SUMIF(os.TRC,"Yes",os.Amount_income),SUM(os.Amount_income)) -> 0 | AC75: OS_DTAA BREAKUP
F76: Sl. No | G76: Amount of income | H76: Item No.1ai,1b to 2 in which included | I76: Country name, code | J76: Article of DTAA | K76: Rate as per Treaty (enter NIL, if not chargeable) | L76: Whether TRC obtained (Y/N) | M76: Section of I.T. Act | N76: Rate as per I.T. Act | O76: Applicable rate [lower of (6) or (9)] | AA76: Section Code | AB76: Src Amt | AC76: Section amt | AD76: Appropriate Section | AE76: Section Value Check | AF76: Is empty | AK76: Residentialstatuscheck | AM76: =IF(MID(sheet1.ResidentialStatus1,1,3)="RES","RES","NRI") -> RES | AN76: 5A1aiia | AO76: =IF(MID(sheet1.ResidentialStatus1,1,3)="NRI",SUMIFS(os.DTAA_AmtChk,os.TRC,"=Yes",OS_DTAASectionCode,"=5A1aiia"),SUMIF(OS_DTAASectionCode,"=5A1aiia",os.DTAA_AmtChk)) -> 0 | AR76: 5A1bA | AS76: =IF(MID(sheet1.ResidentialStatus1,1,3)="NRI",SUMIFS(os.DTAA_AmtChk,os.TRC,"=Yes",OS_DTAASectionCode,"=5A1b"),SUMIF(OS_DTAASectionCode,"=5A1b",os.DTAA_AmtChk)) -> 0 | AT76: 5BBA | AU76: =IF(MID(sheet1.ResidentialStatus1,1,3)="NRI",SUMIFS(os.DTAA_AmtChk,os.TRC,"=Yes",OS_DTAASectionCode,"=5BBA"),SUMIF(OS_DTAASectionCode,"=5BBA",os.DTAA_AmtChk)) -> 0
F77: 1 | H77: (Select) | I77: (Select) | O77: 0 | Z77: =IF(ISERROR(VLOOKUP(M77,OS_DTAA_lookup,2,FALSE)),"",VLOOKUP(M77,OS_DTAA_lookup,2,FALSE)) ->  | AA77: =IF(ISERROR(IF(TRIM(MID(M77,1,SEARCH("-",M77)-1))="56(2)(i)","56i",IF(TRIM(MID(M77,1,SEARCH("-",M77)-1))="56(2)","56",TRIM(MID(M77,1,SEARCH("-",M77)-1))))),0,IF(TRIM(MID(M77,1,SEARCH("-",M77)-1))="56(2)(i)","56i",IF(TRIM(MID(M77,1,SEARCH("-",M77)-1))="56(2)","56",TRIM(MID(M77,1,SEARCH("-",M77)-1))))) -> 0 | AB77: =IF(AND(L77="No",Residentialstatuscheck="NRI"),0,G77) -> 0 | AC77: =IF(AA77="56i",Os.1a,IF(AA77="56",Os.1b,SUMIF(os.check,AA77,SRCamt))) -> 0 | AD77: =IF(AA77="56i",IF(Os.1a>=0,1,0),IF(AA77="56",IF(Os.1b>=0,1,0), COUNTIF(os.check,AA77))) -> 0 | AE77: =IF(AC77<AB77,0,1) -> 1 | AF77: =IF(OR(NOT(isdropdownblank(I77)),J77<>"",K77<>"",L77<>"",NOT(isdropdownblank(M77)),G77<>""),1,0) -> 0 | AK77: 111 | AL77: =SUMIF(OS_DTAASectionCode,"=5BB",os.Amount_income) -> 0 | AN77: 5A1aii | AO77: =IF(MID(sheet1.ResidentialStatus1,1,3)="NRI",SUMIFS(os.DTAA_AmtChk,os.TRC,"=Yes",OS_DTAASectionCode,"=5A1aii"),SUMIF(OS_DTAASectionCode,"=5A1aii",os.DTAA_AmtChk)) -> 0 | AP77: 1b | AQ77: =IF(MID(sheet1.ResidentialStatus1,1,3)="NRI",SUMIFS(os.DTAA_AmtChk,os.TRC,"=Yes",OS_DTAASectionCode,"=56"),SUMIF(OS_DTAASectionCode,"=56",os.DTAA_AmtChk)) -> 0 | AR77: 5A1aiii | AS77: =IF(MID(sheet1.ResidentialStatus1,1,3)="NRI",SUMIFS(os.DTAA_AmtChk,os.TRC,"=Yes",OS_DTAASectionCode,"=5A1aiii"),SUMIF(OS_DTAASectionCode,"=5A1aiii",os.DTAA_AmtChk)) -> 0 | AT77: 5AD1ip | AU77: =IF(MID(sheet1.ResidentialStatus1,1,3)="NRI",SUMIFS(os.DTAA_AmtChk,os.TRC,"=Yes",OS_DTAASectionCode,"=5AD1ip"),SUMIF(OS_DTAASectionCode,"=5AD1ip",os.DTAA_AmtChk)) -> 0
F78: =F77+1 -> 2 | H78: (Select) | I78: (Select) | O78: 0 | AA78: 0 | AB78: 0 | AC78: 0 | AD78: 0 | AE78: 1 | AF78: =IF(OR(NOT(isdropdownblank(I78)),J78<>"",K78<>"",L78<>"",NOT(isdropdownblank(M78)),G78<>""),1,0) -> 0 | AK78: 115BBDA | AL78: =SUMIF(OS_DTAASectionCode,"=5BBDA",os.Amount_income) -> 0 | AN78: 5A1ai | AO78: =IF(MID(sheet1.ResidentialStatus1,1,3)="NRI",SUMIFS(os.DTAA_AmtChk,os.TRC,"=Yes",OS_DTAASectionCode,"=5A1ai"),SUMIF(OS_DTAASectionCode,"=5A1ai",os.DTAA_AmtChk)) -> 0 | AP78: 1a | AQ78: =IF(MID(sheet1.ResidentialStatus1,1,3)="NRI",SUMIFS(os.DTAA_AmtChk,os.TRC,"=Yes",OS_DTAASectionCode,"=56i"),SUMIF(OS_DTAASectionCode,"=56i",os.DTAA_AmtChk)) -> 0 | AR78: 5A1aiiac | AS78: =IF(MID(sheet1.ResidentialStatus1,1,3)="NRI",SUMIFS(os.DTAA_AmtChk,os.TRC,"=Yes",OS_DTAASectionCode,"=5A1aiiac"),SUMIF(OS_DTAASectionCode,"=5A1aiiac",os.DTAA_AmtChk)) -> 0 | AT78: 5AD1i | AU78: =IF(MID(sheet1.ResidentialStatus1,1,3)="NRI",SUMIFS(os.DTAA_AmtChk,os.TRC,"=Yes",OS_DTAASectionCode,"=5AD1i"),SUMIF(OS_DTAASectionCode,"=5AD1i",os.DTAA_AmtChk)) -> 0
F79: =F78+1 -> 3 | H79: (Select) | I79: (Select) | O79: 0 | Q79: =SUMIFS(os.Amount_income,os.SectionAct,"*Dividend*") -> 0 | X79: os.BalanceNoRaceHorse | AA79: 0 | AB79: 0 | AC79: 0 | AD79: 0 | AE79: 1 | AF79: =IF(OR(NOT(isdropdownblank(I79)),J79<>"",K79<>"",L79<>"",NOT(isdropdownblank(M79)),G79<>""),1,0) -> 0 | AK79: 115BBE | AL79: =SUMIF(OS_DTAASectionCode,"=5BBE",os.Amount_income) -> 0 | AN79: 111 | AO79: =IF(MID(sheet1.ResidentialStatus1,1,3)="NRI",SUMIFS(os.DTAA_AmtChk,os.TRC,"=Yes",OS_DTAASectionCode,"=1"),SUMIF(OS_DTAASectionCode,"=1",os.DTAA_AmtChk)) -> 0 | AR79: 5ACA(1)(a) | AS79: =IF(MID(sheet1.ResidentialStatus1,1,3)="NRI",SUMIFS(os.DTAA_AmtChk,os.TRC,"=Yes",OS_DTAASectionCode,"=5ACA1a"),SUMIF(OS_DTAASectionCode,"=5ACA1a",os.DTAA_AmtChk)) -> 0 | AT79: 5BBC | AU79: =IF(MID(sheet1.ResidentialStatus1,1,3)="NRI",SUMIFS(os.DTAA_AmtChk,os.TRC,"=Yes",OS_DTAASectionCode,"=5BBC"),SUMIF(OS_DTAASectionCode,"=5BBC",os.DTAA_AmtChk)) -> 0 | AV79: 5A1aiiab | AW79: =IF(MID(sheet1.ResidentialStatus1,1,3)="NRI",SUMIFS(os.DTAA_AmtChk,os.TRC,"=Yes",OS_DTAASectionCode,"=5A1aiiab"),SUMIF(OS_DTAASectionCode,"=5A1aiiab",os.DTAA_AmtChk)) -> 0 | AX79: 5AC1a | AY79: =IF(MID(sheet1.ResidentialStatus1,1,3)="NRI",SUMIFS(os.DTAA_AmtChk,os.TRC,"=Yes",OS_DTAASectionCode,"=5AC1a"),SUMIF(OS_DTAASectionCode,"=5AC1a",os.DTAA_AmtChk)) -> 0 | AZ79: Total | BA79: =SUM(AO76:AO80,AS76:AS80,AU76:AU80,DTAA_5Ea_OS,DTAA_5A1aA_OS) -> 0
F80: =F79+1 -> 4 | H80: (Select) | I80: (Select) | O80: 0 | AA80: 0 | AB80: 0 | AC80: 0 | AD80: 0 | AE80: 1 | AF80: =IF(OR(NOT(isdropdownblank(I80)),J80<>"",K80<>"",L80<>"",NOT(isdropdownblank(M80)),G80<>""),1,0) -> 0 | AK80: 115BBF | AL80: =SUMIF(OS_DTAASectionCode,"=5BBF",os.Amount_income) -> 0 | AN80: 5BBF | AO80: =IF(MID(sheet1.ResidentialStatus1,1,3)="NRI",SUMIFS(os.DTAA_AmtChk,os.TRC,"=Yes",OS_DTAASectionCode,"=5BBF"),SUMIF(OS_DTAASectionCode,"=5BBF",os.DTAA_AmtChk)) -> 0 | AR80: 5BBG | AS80: =IF(MID(sheet1.ResidentialStatus1,1,3)="NRI",SUMIFS(os.DTAA_AmtChk,os.TRC,"=Yes",OS_DTAASectionCode,"=5BBG"),SUMIF(OS_DTAASectionCode,"=5BBG",os.DTAA_AmtChk)) -> 0 | AT80: 5BBDA | AU80: =IF(MID(sheet1.ResidentialStatus1,1,3)="NRI",SUMIFS(os.DTAA_AmtChk,os.TRC,"=Yes",OS_DTAASectionCode,"=5BBDA"),SUMIF(OS_DTAASectionCode,"=5BBDA",os.DTAA_AmtChk)) -> 0 | AV80: 5A1aiiaa | AW80: =IF(MID(sheet1.ResidentialStatus1,1,3)="NRI",SUMIFS(os.DTAA_AmtChk,os.TRC,"=Yes",OS_DTAASectionCode,"=5A1aiiaa"),SUMIF(OS_DTAASectionCode,"=5A1aiiaa",os.DTAA_AmtChk)) -> 0 | AX80: 5A1bB | AY80: =IF(MID(sheet1.ResidentialStatus1,1,3)="NRI",SUMIFS(os.DTAA_AmtChk,os.TRC,"=Yes",OS_DTAASectionCode,"=5A1bB"),SUMIF(OS_DTAASectionCode,"=5A1bB",os.DTAA_AmtChk)) -> 0 | AZ80: 5Ea | BA80: =IF(MID(sheet1.ResidentialStatus1,1,3)="NRI",SUMIFS(os.DTAA_AmtChk,os.TRC,"=Yes",OS_DTAASectionCode,"=5Ea"),SUMIF(OS_DTAASectionCode,"=5Ea",os.DTAA_AmtChk)) -> 0
F81: =F80+1 -> 5 | H81: (Select) | I81: (Select) | O81: 0 | AA81: 0 | AB81: 0 | AC81: 0 | AD81: 0 | AE81: 1 | AF81: =IF(OR(NOT(isdropdownblank(I81)),J81<>"",K81<>"",L81<>"",NOT(isdropdownblank(M81)),G81<>""),1,0) -> 0 | AL81: =SUMIF(OS_DTAASectionCode,"=5BBF",os.Amount_income) -> 0 | AO81: =IF(MID(sheet1.ResidentialStatus1,1,3)="NRI",SUMIFS(os.DTAA_AmtChk,os.TRC,"=Yes",OS_DTAASectionCode,"=5BBF"),SUMIF(OS_DTAASectionCode,"=5BBF",os.DTAA_AmtChk)) -> 0 | AS81: =IF(MID(sheet1.ResidentialStatus1,1,3)="NRI",SUMIFS(os.DTAA_AmtChk,os.TRC,"=Yes",OS_DTAASectionCode,"=5BBG"),SUMIF(OS_DTAASectionCode,"=5BBG",os.DTAA_AmtChk)) -> 0 | AU81: =IF(MID(sheet1.ResidentialStatus1,1,3)="NRI",SUMIFS(os.DTAA_AmtChk,os.TRC,"=Yes",OS_DTAASectionCode,"=5BBDA"),SUMIF(OS_DTAASectionCode,"=5BBDA",os.DTAA_AmtChk)) -> 0 | AW81: =IF(MID(sheet1.ResidentialStatus1,1,3)="NRI",SUMIFS(os.DTAA_AmtChk,os.TRC,"=Yes",OS_DTAASectionCode,"=5A1aiiaa"),SUMIF(OS_DTAASectionCode,"=5A1aiiaa",os.DTAA_AmtChk)) -> 0 | AY81: =IF(MID(sheet1.ResidentialStatus1,1,3)="NRI",SUMIFS(os.DTAA_AmtChk,os.TRC,"=Yes",OS_DTAASectionCode,"=5A1bB"),SUMIF(OS_DTAASectionCode,"=5A1bB",os.DTAA_AmtChk)) -> 0 | BA81: =IF(MID(sheet1.ResidentialStatus1,1,3)="NRI",SUMIFS(os.DTAA_AmtChk,os.TRC,"=Yes",OS_DTAASectionCode,"=5Ea"),SUMIF(OS_DTAASectionCode,"=5Ea",os.DTAA_AmtChk)) -> 0
F82: =F81+1 -> 6 | H82: (Select) | I82: (Select) | O82: 0 | AA82: 0 | AB82: 0 | AC82: 0 | AD82: 0 | AE82: 1 | AF82: =IF(OR(NOT(isdropdownblank(I82)),J82<>"",K82<>"",L82<>"",NOT(isdropdownblank(M82)),G82<>""),1,0) -> 0 | AL82: =SUMIF(OS_DTAASectionCode,"=5BBF",os.Amount_income) -> 0 | AO82: =IF(MID(sheet1.ResidentialStatus1,1,3)="NRI",SUMIFS(os.DTAA_AmtChk,os.TRC,"=Yes",OS_DTAASectionCode,"=5BBF"),SUMIF(OS_DTAASectionCode,"=5BBF",os.DTAA_AmtChk)) -> 0 | AS82: =IF(MID(sheet1.ResidentialStatus1,1,3)="NRI",SUMIFS(os.DTAA_AmtChk,os.TRC,"=Yes",OS_DTAASectionCode,"=5BBG"),SUMIF(OS_DTAASectionCode,"=5BBG",os.DTAA_AmtChk)) -> 0 | AU82: =IF(MID(sheet1.ResidentialStatus1,1,3)="NRI",SUMIFS(os.DTAA_AmtChk,os.TRC,"=Yes",OS_DTAASectionCode,"=5BBDA"),SUMIF(OS_DTAASectionCode,"=5BBDA",os.DTAA_AmtChk)) -> 0 | AW82: =IF(MID(sheet1.ResidentialStatus1,1,3)="NRI",SUMIFS(os.DTAA_AmtChk,os.TRC,"=Yes",OS_DTAASectionCode,"=5A1aiiaa"),SUMIF(OS_DTAASectionCode,"=5A1aiiaa",os.DTAA_AmtChk)) -> 0 | AY82: =IF(MID(sheet1.ResidentialStatus1,1,3)="NRI",SUMIFS(os.DTAA_AmtChk,os.TRC,"=Yes",OS_DTAASectionCode,"=5A1bB"),SUMIF(OS_DTAASectionCode,"=5A1bB",os.DTAA_AmtChk)) -> 0 | BA82: =IF(MID(sheet1.ResidentialStatus1,1,3)="NRI",SUMIFS(os.DTAA_AmtChk,os.TRC,"=Yes",OS_DTAASectionCode,"=5Ea"),SUMIF(OS_DTAASectionCode,"=5Ea",os.DTAA_AmtChk)) -> 0
AK83: 115BBG | AL83: =SUMIF(OS_DTAASectionCode,"=5BBG",os.Amount_income) -> 0 | AN83: 5BB | AO83: =IF(MID(sheet1.ResidentialStatus1,1,3)="NRI",SUMIFS(os.DTAA_AmtChk,os.TRC,"=Yes",OS_DTAASectionCode,"=5BB"),SUMIF(OS_DTAASectionCode,"=5BB",os.DTAA_AmtChk)) -> 0 | AT83: 5AC1b | AU83: =IF(MID(sheet1.ResidentialStatus1,1,3)="NRI",SUMIFS(os.DTAA_AmtChk,os.TRC,"=Yes",OS_DTAASectionCode,"=5AC1b"),SUMIF(OS_DTAASectionCode,"=5AC1b",os.DTAA_AmtChk)) -> 0
D84: 3 | E84: Deductions under section 57 (other than those relating to income chargeable at special rates under 2a, 2b & 2d) | AN84: 56(2)(i) | AO84: =IF(MID(sheet1.ResidentialStatus1,1,3)="NRI",SUMIFS(os.DTAA_AmtChk,os.TRC,"=Yes",OS_DTAASectionCode,"=56i"),SUMIF(OS_DTAASectionCode,"=56i",os.DTAA_AmtChk)) -> 0 | AP84: 56(2)(iii) | AQ84: =IF(MID(sheet1.ResidentialStatus1,1,3)="NRI",SUMIFS(os.DTAA_AmtChk,os.TRC,"=Yes",OS_DTAASectionCode,"=56iii"),SUMIF(OS_DTAASectionCode,"=56iii",os.DTAA_AmtChk)) -> 0
E85: a(i) | F85: Expenses / deductions other than “aii” (in case of other than family pension) | I85: 3ai | J85: 0 | AN85: 56(2)-Interest | AO85: =IF(MID(sheet1.ResidentialStatus1,1,3)="NRI",SUMIFS(os.DTAA_AmtChk,os.TRC,"=Yes",OS_DTAASectionCode,"=56"),SUMIF(OS_DTAASectionCode,"=56",os.DTAA_AmtChk)) -> 0 | AP85: 56(2)(x) | AQ85: =IF(MID(sheet1.ResidentialStatus1,1,3)="NRI",SUMIFS(os.DTAA_AmtChk,os.TRC,"=Yes",OS_DTAASectionCode,"=562x"),SUMIF(OS_DTAASectionCode,"=562x",os.DTAA_AmtChk)) -> 0
E86: a(ii) | F86: Deduction u/s 57(iia) (in case of family pension only) | I86: 3aii | J86: =ROUNDUP(IF(os_FamilyPension>0,MIN((os_FamilyPension/3),15000),0),0) -> 0 | AN86: 5A1aA | AO86: =IF(MID(sheet1.ResidentialStatus1,1,3)="NRI",SUMIFS(os.DTAA_AmtChk,os.TRC,"=Yes",OS_DTAASectionCode,"=5A1aA"),SUMIF(OS_DTAASectionCode,"=5A1aA",os.DTAA_AmtChk)) -> 0
E87: b | F87: Depreciation (available only if income offered in 1.C of "schedule OS") | I87: 3b | AN87: 5BBJ | AO87: =IF(MID(sheet1.ResidentialStatus1,1,3)="NRI",SUMIFS(os.DTAA_AmtChk,os.TRC,"=Yes",OS_DTAASectionCode,"=5BBJ"),SUMIF(OS_DTAASectionCode,"=5BBJ",os.DTAA_AmtChk)) -> 0
E88: c | F88: Interest expenditure on dividend u/s 57(1 ) (available only if income offered in 1a)
F89: Interest expenditure claimed | J89: 0
E90: i | F90: Eligible amount of interest expenditure u/s 57(i) - Computed Amount | I90: 3c | J90: 0 | T90: 0 | U90: =(os.InterestGross+os.RentFromMachPlantBldgs+os.Totalsec56+V90) -> 111000 | V90: =SUM(os.OtherSections) -> 0
E91: d | F91: Total | I91: 3d | J91: =os.Expenses+os_Deduction57iia+os.Depreciation+os.amountinterestexpenditure -> 0 | T91: =os.expenditureClaimed-MIN(os.expenditureClaimed,os.DividendGrossaii) -> 0 | U91: =IF(os.amountinterestexpenditure="",0,os.amountinterestexpenditure-MIN(os.amountinterestexpenditure,os.DividendGrossaii)) -> 0
D92: 4 | E92: Amounts not deductible u/s 58 | I92: 4 | J92: 0
D93: 5 | E93: Profits chargeable to tax u/s 59 | I93: 5 | J93: 0 | T93: 4
D94: 5a | E94: Income claimed for relief from taxation u/s 89A | I94: 5a | J94: 0 | T94: 22493200
D95: 6 | E95: Net Income from other sources chargeable at normal applicable rates 1(after reducing income related to DTAA portion)-3+4+5 -5a (If negative take the figure to 4i of schedule CYLA) | K95: 6 | L95: =(os.GrossIncomeChargeableToTax-os.TotDeductions+os.AmountnotDed58+os.Profit59-DTAA_1a_OS-DTAA_1b_OS-DTAA_1c_OS-DTAA_1d_OS-OSIncreliefus89A) -> 141000 | T95: 141000
D96: 7 | E96: Income from other sources (other than from owning race horses)(2+6) (enter 6 as nil, if negative) | K96: 7 | L96: =IF(L95<0,(J39),(J39+L95)) -> 141000 | T96: =IF(os.PassThroughIncome<0,0,SUMIF(os.NatureOfIncome,"1b",os.Amount_income)) -> 0
D97: 8 | E97: Income from the activity of owning and maintaining race horses | T97: =SUMIF(os.NatureOfIncome,"1c",os.Amount_income) -> 0 | U97: =IF(MID(sheet1.ResidentialStatus1,1,3)="NRI",SUMIFS(os.Amount_income,os.TRC,"=Yes",os.SectionAct,"5AC1a - 115AC(1)(a) - Income by way of interest on bonds purchased in foreign currency"),SUMIF(os.SectionAct,"5AC1a - 115AC(1)(a) - Income by way of interest on bonds purchased in foreign currency",os.Amount_income)) -> 0 | V97: =IF(MID(sheet1.ResidentialStatus1,1,3)="NRI",SUMIFS(os.Amount_income,os.TRC,"=Yes",os.SectionAct,"PTI_115AC(1)(a)-Income by way of interest on bonds purchased in foreign currency - non-resident"),SUMIF(os.SectionAct,"PTI_115AC(1)(a)-Income by way of interest on bonds purchased in foreign currency - non-resident",os.Amount_income)) -> 0 | W97: =IF(MID(sheet1.ResidentialStatus1,1,3)="NRI",SUMIFS(os.Amount_income,os.TRC,"=Yes",os.SectionAct,"5AC1b - 115AC1b - Income by way of Dividend on GDRs purchased in foreign currency - non-resident"),SUMIF(os.SectionAct,"5AC1b - 115AC1b - Income by way of Dividend on GDRs purchased in foreign currency - non-resident",os.Amount_income)) -> 0
E98: a | F98: Receipts | I98: 8a | J98: 0 | T98: =SUMIF(os.NatureOfIncome,"1d",os.Amount_income) -> 0 | U98: =IF(MID(sheet1.ResidentialStatus1,1,3)="NRI",SUMIFS(os.Amount_income,os.TRC,"=Yes",os.SectionAct,"5A1ai - 115A(1)(a)(i) - Dividends received by non-resident (not being company) or foreign company chargeable u/s 115A(1)(a)(i) other than first proviso to section 115A(1)(a)(A)"),SUMIF(os.SectionAct,"5A1ai - 115A(1)(a)(i) - Dividends received by non-resident (not being company) or foreign company chargeable u/s 115A(1)(a)(i) other than first proviso to section 115A(1)(a)(A)",os.Amount_income)) -> 0 | V98: =IF(MID(sheet1.ResidentialStatus1,1,3)="NRI",SUMIFS(os.Amount_income,os.TRC,"=Yes",os.SectionAct,"PTI_115A(1)(a)(i)-Dividends received by non-resident (not being company) or foreign company chargeable u/s 115A(1)(a)(i) other than first proviso to section 115A(1)(a)(A)"),SUMIF(os.SectionAct,"PTI_115A(1)(a)(i)-Dividends received by non-resident (not being company) or foreign company chargeable u/s 115A(1)(a)(i) other than first proviso to section 115A(1)(a)(A)",os.Amount_income)) -> 0 | W98: =DTAA_5A1ai+DTAA_5A1aiPTI -> 0
E99: b | F99: Deductions under section 57 in relation to receipts at 8a only | I99: 8b | J99: 0 | T99: =SUM(H116:L116) -> 0 | U99: =IF(MID(sheet1.ResidentialStatus1,1,3)="NRI",SUMIFS(os.Amount_income,os.TRC,"=Yes",os.SectionAct,"5AD1iDiv-Income (being dividend) received by an FII in respect of securities (other than units referred to in section 115AB) - chargeable u/s 115AD(1)(i)"),SUMIF(os.SectionAct,"5AD1iDiv-Income (being dividend) received by an FII in respect of securities (other than units referred to in section 115AB) - chargeable u/s 115AD(1)(i)",os.Amount_income)) -> 0 | V99: =IF(MID(sheet1.ResidentialStatus1,1,3)="NRI",SUMIFS(os.Amount_income,os.TRC,"=Yes",os.SectionAct,"PTI_5AD1iDiv-PTI-Income (being dividend) received by an FII in respect of securities (other than units referred to in section 115AB) - chargeable u/s 115AD(1)(i)"),SUMIF(os.SectionAct,"PTI_5AD1iDiv-PTI-Income (being dividend) received by an FII in respect of securities (other than units referred to in section 115AB) - chargeable u/s 115AD(1)(i)",os.Amount_income)) -> 0 | W99: =DTAA_5AD1i+DTAA_5AD1iPTI -> 0 | X99: =IF(MID(sheet1.ResidentialStatus1,1,3)="NRI",SUMIFS(os.Amount_income,os.TRC,"=Yes",os.SectionAct,"PTI_5AC1b-PTI -Income by way of Dividend on GDRs purchased in foreign currency - non-resident"),SUMIF(os.SectionAct,"PTI_5AC1b-PTI -Income by way of Dividend on GDRs purchased in foreign currency - non-resident",os.Amount_income)) -> 0 | Y99: =DTAA_5AC1b+DTAA_5AC1bPTI -> 0
E100: c | F100: Amounts not deductible u/s 58 | I100: 8c | J100: 0 | T100: =IF(MID(sheet1.ResidentialStatus1,1,3)="NRI",SUMIFS(os.Amount_income,os.TRC,"=Yes",os.NatureOfIncome,"1ai"),SUMIF(os.NatureOfIncome,"1ai",os.Amount_income)) -> 0 | U100: =IF(MID(sheet1.ResidentialStatus1,1,3)="NRI",SUMIFS(os.Amount_income,os.TRC,"=Yes",os.SectionAct,"5ACA1a - 115ACA(1)(a) - Income from GDR purchased in foreign currency - resident"),SUMIF(os.SectionAct,"5ACA1a - 115ACA(1)(a) - Income from GDR purchased in foreign currency - resident",os.Amount_income)) -> 0 | V100: =IF(MID(sheet1.ResidentialStatus1,1,3)="NRI",SUMIFS(os.Amount_income,os.TRC,"=Yes",os.SectionAct,"PTI_115ACA(1)(a)-Income from GDR purchased in foreign currency -resident"),SUMIF(os.SectionAct,"PTI_115ACA(1)(a)-Income from GDR purchased in foreign currency -resident",os.Amount_income)) -> 0 | W100: =DTAA_5ACA1a+DTAA_5ACA1aPTI -> 0
E101: d | F101: Profits chargeable to tax u/s 59 | I101: 8d | J101: 0 | T101: =SUMIF(os.NatureOfIncome,"2e",os.Amount_income) -> 0 | U101: =IF(MID(sheet1.ResidentialStatus1,1,3)="NRI",SUMIFS(os.Amount_income,os.TRC,"=Yes",os.SectionAct,"5A1aA - 115A(1)(a)(A) - Dividend received by non-resident (not being company) or foreign company from a unit in an International Financial Services Centre, as referred to in sub-section (1A) of section 80LA"),SUMIF(os.SectionAct,"5A1aA - 115A(1)(a)(A) - Dividend received by non-resident (not being company) or foreign company from a unit in an International Financial Services Centre, as referred to in sub-section (1A) of section 80LA",os.Amount_income)) -> 0 | V101: =IF(MID(sheet1.ResidentialStatus1,1,3)="NRI",SUMIFS(os.Amount_income,os.TRC,"=Yes",os.SectionAct,"PTI_115A(1)(a)(A)-Dividend received by non-resident (not being company) or foreign company from a unit in an International Financial Services Centre, as referred to in sub-section (1A) of section 80LA"),SUMIF(os.SectionAct,"PTI_115A(1)(a)(A)-Dividend received by non-resident (not being company) or foreign company from a unit in an International Financial Services Centre, as referred to in sub-section (1A) of section 80LA",os.Amount_income)) -> 0 | W101: =DTAA_5A1aA+DTAA_5A1aAPTI -> 0
E102: e | F102: Balance (8a - 8b + 8c + 8d) (if negative take the figure to 10xii of Schedule CFL) | K102: 8e | L102: =os.Receipts-os.DeductSec57+os.notDeductSec58+os.ProfitSec59 -> 0 | T102: =SUMIF(os.NatureOfIncome,"2d",os.Amount_income) -> 0
D103: 9 | E103: Income under the head “Income from other sources” (7 + 8e) (take 8e as nil if negative) | K103: 9 | L103: =SUM(os.TotOthSrcNoRaceHorse,MAX(0,os.BalanceOwnRaceHorse)) -> 141000 | T103: =IF(MID(sheet1.ResidentialStatus1,1,3)="NRI",SUMIFS(os.Amount_income,os.TRC,"=Yes",os.NatureOfIncome,"2ai"),SUMIF(os.NatureOfIncome,"2ai",os.Amount_income)) -> 0 | U103: =IF(MID(sheet1.ResidentialStatus1,1,3)="NRI",SUMIFS(os.Amount_income,os.TRC,"=Yes",os.NatureOfIncome,"2aii"),SUMIF(os.NatureOfIncome,"2aii",os.Amount_income)) -> 0
D104: 10 | E104: Information about accrual/receipt of income from Other Sources | T104: =SUM(H106:L106) -> 0
E105: Sl. No. | F105: Other Source Income | H105: Upto 15/6 (i) | I105: From 16/6 to 15/9 (ii) | J105: From 16/9 to 15/12 (iii) | K105: From 16/12 to 15/3 (iv) | L105: From 16/3 to 31/3 (v) | T105: =SUM(H107:L107) -> 0
E106: 1(i) | F106: Income by way of winnings from lotteries, crossword puzzles, races, games, gambling, betting etc. referred to in section 2(24)(ix) | H106: 0 | I106: 0 | J106: 0 | K106: 0 | L106: 0 | T106: =SUM(H108:L108) -> 30000 | U106: =tempBBDA+os.DividendGrossaii -> 30000 | AB106: 2ai | AC106: =os.WinLottRacePuzz -> 0 | AE106: =IF(MID(sheet1.ResidentialStatus1,1,3)="NRI",SUMIFS(os.Amount_income,os.TRC,"=Yes",os.SectionAct,"5BB-Winnings from lotteries, crossword puzzles, races, card games etc."),0) -> 0 | AH106: =AC106-AE106 -> 0
E107: 1(ii) | F107: Income by way of winnings from online games u/s 115BBJ | T107: =SUM(H109:L109) -> 0 | AB107: 2aii | AC107: =os.WinOnlineGame -> 0 | AE107: =IF(MID(sheet1.ResidentialStatus1,1,3)="NRI",SUMIFS(os.Amount_income,os.TRC,"=Yes",os.SectionAct,"5BBJ - Winnings from online games"),0) -> 0 | AH107: =AC107-AE107 -> 0
E108: 2 | F108: Dividend Income referred in Sl. No. 1a(i) | H108: 30000 | I108: 0 | J108: 0 | K108: 0 | L108: 0 | T108: 0
E109: 3(i) | F109: Dividend Income u/s 115A(1)(a)(i) @ 20% ( Including PTI Income) | H109: 0 | I109: 0 | J109: 0 | K109: 0 | L109: 0 | T109: 0 | AB109: 115A(1)(a)(i) | AC109: =SUMIF(os.SourceDescription,"5A1ai - 115A(1)(a)(i) - Dividends received by non-resident (not being company) or foreign company chargeable u/s 115A(1)(a)(i) other than first proviso to section 115A(1)(a)(A)",os.SourceAmount) -> 0 | AD109: =SUMIF(os.PTIDescription,"PTI_115A(1)(a)(i)-Dividends received by non-resident (not being company) or foreign company chargeable u/s 115A(1)(a)(i) other than first proviso to section 115A(1)(a)(A)",os.PTIAmount) -> 0 | AE109: =IF(MID(sheet1.ResidentialStatus1,1,3)="NRI",SUMIFS(os.Amount_income,os.TRC,"=Yes",os.SectionAct,"5A1ai - 115A(1)(a)(i) - Dividends received by non-resident (not being company) or foreign company chargeable u/s 115A(1)(a)(i) other than first proviso to section 115A(1)(a)(A)"),0) -> 0 | AF109: =IF(MID(sheet1.ResidentialStatus1,1,3)="NRI",SUMIFS(os.Amount_income,os.TRC,"=Yes",os.SectionAct,"PTI_115A(1)(a)(i)-Dividends received by non-resident (not being company) or foreign company chargeable u/s 115A(1)(a)(i) other than first proviso to section 115A(1)(a)(A)"),0) -> 0 | AG109: =AE109+AF109 -> 0 | AH109: =(AC109+AD109)-AG109 -> 0 | AI109: 5A1ai | AJ109: =MAX(0,MAX(0,SUMIF(os.check,AI109,os.SourceAmount))-MAX(0,IF(MID(sheet1.ResidentialStatus1,1,3)="NRI",SUMIFS(os.DTAA_AmtChk,os.TRC,"=Yes",OS_DTAASectionCode,AI109),SUMIF(OS_DTAASectionCode,AI109,os.DTAA_AmtChk)))) -> 0 | AK109: =MAX((Os_PTI_5A1ai-Os_PTI_5A1ai_DTAA),0) -> 0 | AL109: =SUM(AJ109,AK109) -> 0
E110: 3(ii) | F110: Dividend Income as per proviso to sec 115A(1)(a)(A) @10% (Including PTI Income) | H110: 0 | I110: 0 | J110: 0 | K110: 0 | L110: 0 | T110: 0 | AB110: 115A(1)(a)(A) | AC110: =SUMIF(os.SourceDescription,"5A1aA - 115A(1)(a)(A) - Dividend in the case of non-resident received from a unit in an International Financial Services Centre",os.SourceAmount) -> 0 | AD110: =SUMIF(os.PTIDescription,"PTI_115A(1)(a)(A)-Dividend received by non-resident (not being company) or foreign company from a unit in an International Financial Services Centre, as referred to in sub-section (1A) of section 80LA",os.PTIAmount) -> 0 | AE110: =IF(MID(sheet1.ResidentialStatus1,1,3)="NRI",SUMIFS(os.Amount_income,os.TRC,"=Yes",os.SectionAct,"5A1aA - 115A(1)(a)(A) - Dividend in the case of non-resident received from a unit in an International Financial Services Centre"),0) -> 0 | AF110: =IF(MID(sheet1.ResidentialStatus1,1,3)="NRI",SUMIFS(os.Amount_income,os.TRC,"=Yes",os.SectionAct,"PTI_115A(1)(a)(A)-Dividend received by non-resident (not being company) or foreign company from a unit in an International Financial Services Centre, as referred to in sub-section (1A) of section 80LA"),0) -> 0 | AG110: =AE110+AF110 -> 0 | AH110: =(AC110+AD110)-AG110 -> 0 | AI110: 5A1aA | AJ110: =MAX(0,MAX(0,SUMIF(os.check,AI110,os.SourceAmount))-MAX(0,IF(MID(sheet1.ResidentialStatus1,1,3)="NRI",SUMIFS(os.DTAA_AmtChk,os.TRC,"=Yes",OS_DTAASectionCode,AI110),SUMIF(OS_DTAASectionCode,AI110,os.DTAA_AmtChk)))) -> 0 | AK110: =MAX((Os_PTI_5A1aA-Os_PTI_5A1aA_DTAA),0) -> 0 | AL110: =SUM(AJ110,AK110) -> 0
E111: 4 | F111: Dividend Income u/s 115AC @ 10% (Including PTI Income) | H111: 0 | I111: 0 | J111: 0 | K111: 0 | L111: 0 | T111: 0 | AB111: 115AC | AC111: =SUMIF(os.SourceDescription,"5AC1b - 115AC1b - Income by way of Dividend on GDRs purchased in foreign currency - non-resident",os.SourceAmount) -> 0 | AD111: =SUMIF(os.PTIDescription,"PTI_5AC1b-PTI -Income by way of Dividend on GDRs purchased in foreign currency - non-resident",os.PTIAmount) -> 0 | AE111: =IF(MID(sheet1.ResidentialStatus1,1,3)="NRI",SUMIFS(os.Amount_income,os.TRC,"=Yes",os.SectionAct,"5AC1b - 115AC1b - Income by way of Dividend on GDRs purchased in foreign currency - non-resident"),0) -> 0 | AF111: =IF(MID(sheet1.ResidentialStatus1,1,3)="NRI",SUMIFS(os.Amount_income,os.TRC,"=Yes",os.SectionAct,"PTI_5AC1b-PTI -Income by way of Dividend on GDRs purchased in foreign currency - non-resident"),0) -> 0 | AG111: =AE111+AF111 -> 0 | AH111: =(AC111+AD111)-AG111 -> 0 | AI111: 5AC1b | AJ111: =MAX(0,MAX(0,SUMIF(os.check,AI111,os.SourceAmount))-MAX(0,IF(MID(sheet1.ResidentialStatus1,1,3)="NRI",SUMIFS(os.DTAA_AmtChk,os.TRC,"=Yes",OS_DTAASectionCode,AI111),SUMIF(OS_DTAASectionCode,AI111,os.DTAA_AmtChk)))) -> 0 | AK111: =MAX((OS_PTI_5AC1b-Os_PTI_5AC1b_DTAA),0) -> 0 | AL111: =SUM(AJ111,AK111) -> 0
E112: 5 | F112: Dividend Income u/s 115ACA (1)(a) @ 10% (Including PTI Income) | H112: 0 | I112: 0 | J112: 0 | K112: 0 | L112: 0 | T112: 0 | AB112: 115ACA (1)(a) | AC112: =SUMIF(os.SourceDescription,"5ACA1a - 115ACA(1)(a) - Income from GDR purchased in foreign currency - resident",os.SourceAmount) -> 0 | AD112: =SUMIF(os.PTIDescription,"PTI_115ACA(1)(a)-Income from GDR purchased in foreign currency -resident",os.PTIAmount) -> 0 | AE112: =IF(MID(sheet1.ResidentialStatus1,1,3)="RES",SUMIFS(os.Amount_income,os.SectionAct,"5ACA1a - 115ACA(1)(a) - Income from GDR purchased in foreign currency - resident"),0) -> 0 | AF112: =IF(MID(sheet1.ResidentialStatus1,1,3)="RES",SUMIFS(os.Amount_income,os.SectionAct,"PTI_115ACA(1)(a)-Income from GDR purchased in foreign currency -resident"),0) -> 0 | AG112: =AE112+AF112 -> 0 | AH112: =(AC112+AD112)-AG112 -> 0 | AI112: 5ACA1a | AJ112: =MAX(0,MAX(0,SUMIF(os.check,AI112,os.SourceAmount))-MAX(0,IF(MID(sheet1.ResidentialStatus1,1,3)="NRI",SUMIFS(os.DTAA_AmtChk,os.TRC,"=Yes",OS_DTAASectionCode,AI112),SUMIF(OS_DTAASectionCode,AI112,os.DTAA_AmtChk)))) -> 0 | AK112: =MAX((OS_PTI_5ACA1a-Os_PTI_5ACA1a_DTAA),0) -> 0 | AL112: =SUM(AJ112,AK112) -> 0
E113: 6 | F113: Dividend Income u/s 115A(1)(a)(iiac) @ 10% (Including PTI Income) | T113: 0
E114: 6 | F114: Dividend Income (other than units referred to in section 115AB) u/s 115AD(1)(i) @ 20% (Including PTI Income) | H114: 0 | I114: 0 | J114: 0 | K114: 0 | L114: 0 | T114: 0 | AB114: 115AD(1)(i) | AC114: =SUMIF(os.SourceDescription,"5AD1iDiv-Income (being dividend) received by an FII in respect of securities (other than units referred to in section 115AB) - chargeable u/s 115AD(1)(i)",os.SourceAmount) -> 0 | AD114: =SUMIF(os.PTIDescription,"PTI_5AD1iDiv-PTI-Income (being dividend) received by an FII in respect of securities (other than units referred to in section 115AB) - chargeable u/s 115AD(1)(i)",os.PTIAmount) -> 0 | AE114: =IF(MID(sheet1.ResidentialStatus1,1,3)="NRI",SUMIFS(os.Amount_income,os.TRC,"=Yes",os.SectionAct,"5AD1iDiv-Income (being dividend) received by an FII in respect of securities (other than units referred to in section 115AB) - chargeable u/s 115AD(1)(i)"),0) -> 0 | AF114: =IF(MID(sheet1.ResidentialStatus1,1,3)="NRI",SUMIFS(os.Amount_income,os.TRC,"=Yes",os.SectionAct,"PTI_5AD1iDiv-PTI-Income (being dividend) received by an FII in respect of securities (other than units referred to in section 115AB) - chargeable u/s 115AD(1)(i)"),0) -> 0 | AG114: =AE114+AF114 -> 0 | AH114: =(AC114+AD114)-AG114 -> 0 | AI114: 5AD1iDiv | AJ114: =MAX(0,MAX(0,SUMIF(os.check,AI114,os.SourceAmount))-MAX(0,IF(MID(sheet1.ResidentialStatus1,1,3)="NRI",SUMIFS(os.DTAA_AmtChk,os.TRC,"=Yes",OS_DTAASectionCode,AI114),SUMIF(OS_DTAASectionCode,AI114,os.DTAA_AmtChk)))) -> 0 | AK114: =MAX((OS_PTI_5AD1iDiv-Os_PTI_5AD1iDiv_DTAA),0) -> 0 | AL114: =SUM(AJ114,AK114) -> 0
E115: 7 | F115: Income from retirement benefit account maintained in a notified country u/s 89A (Taxable portion after reducing relief u/s 89A) | H115: 0 | I115: 0 | J115: 0 | K115: 0 | L115: 0 | AB115: u/s 89A | AC115: =OSIncomeNotified89A -> 0 | AD115: =OSIncreliefus89A -> 0 | AH115: =AC115-AD115 -> 0
E116: 8 | F116: Dividend income taxable at DTAA rates | H116: 0 | I116: 0 | J116: 0 | K116: 0 | L116: 0 | AB116: DividendDTAA_rates | AC116: =SUMIFS(os.Amount_income,os.SectionAct,"*Dividend*") -> 0 | AE116: =IF(MID(sheet1.ResidentialStatus1,1,3)="NRI",SUMIFS(os.Amount_income,os.TRC,"=Yes",os.SectionAct,"*Dividend*"),0) -> 0 | AF116: =IF(MID(sheet1.ResidentialStatus1,1,3)="NRI",SUMIFS(os.Amount_income,os.TRC,"=Yes",os.SectionAct,"*other than dividend*"),0) -> 0 | AH116: =AE116-AF116 -> 0
C117: NOTE | D117: Please include the income of the specified persons (spouse, minor child, etc.) referred to in Schedule SPI while computing the income under this head

Sheet CYLA - BFLA
C3: Schedule CYLA | F3: Details of Income after set-off of current years losses
C4: CURRENT YEAR LOSS ADJUSTMENT | D4: Sl.No | E4: Head/ Source of Income | F4: Income of current year (Fill this column only if income is zero or positive) | G4: House property loss of the current year set off | H4: Business Loss (other than speculation loss or specified business loss) of the current year set off | I4: Net loss from Other sources chargeable at normal applicable rates (other than loss from race horses) of the current year set off. | J4: Current year’s Income remaining after set off | Q4: tothpincome
D5: i | E5: Loss to be setoff -> | G5: Total loss (4 of Schedule – HP) | H5: Total loss (2v of item E of Schedule BP) | I5: Total loss (6 of Schedule-OS) | O5: HP | P5: BP | Q5: OS | S5: Remaining Set offHP Loss | T5: Remaining Set off BP | U5: Remaining Setoff OS
G6: =ABS(MIN(HP.TotalIncomeChargeableUnHP,0)) -> 0 | H6: 0 | I6: =ABS(MIN(os.BalanceNoRaceHorse+MAX(0,0),0)) -> 0 | O6: =ABS(MIN(HP.REStwolakh,0)) -> 0 | S6: =ABS(MIN(HP.TotalIncomeChargeableUnHP,0)) -> 0 | T6: =ABS(MIN(sheet12.NetPLBusOthThanSpec7A7B7C +MAX(sheet12.AdjustedPLFrmSpecuBus,0)++MAX(sheet12.AdjustedPLFrmSpecifiedBus,0),0)) -> 0 | U6: =ABS(MIN(os.BalanceNoRaceHorse+MAX(0,0),0)) -> 0 | AY6: OS_Total_Loss
F7: 1 | G7: 2 | H7: 3 | I7: 3 | J7: 4=1-2-3 | AY7: =SUM(I8:I19,rh.OthSrcLossNoRaceHorseSetoff4) -> 0
D8: ii | E8: Salaries | F8: =(SAL.IncomeFromSalary1) -> 22336000 | G8: 0 | H8: 0 | I8: 0 | J8: =ROUND((salary.IncOfCurYrUnderThatHead1-salary.HPlossCurYrSetoff1-salary.OthSrcLossNoRaceHorseSetoff1),0) -> 22336000 | O8: =IF(S6<(salary.IncOfCurYrUnderThatHead1-salary.OthSrcLossNoRaceHorseSetoff1),S6,(salary.IncOfCurYrUnderThatHead1-salary.OthSrcLossNoRaceHorseSetoff1)) -> 0 | Q8: =IF(U21<salary.IncOfCurYrUnderThatHead1,U21,salary.IncOfCurYrUnderThatHead1) -> 0 | R8: i | S8: =cyla.TotHPlossCurYr-salary.HPlossCurYrSetoff1 -> 0 | U8: =(U21-salary.OthSrcLossNoRaceHorseSetoff1) -> 0 | AM8: =SUM(salary.HPlossCurYrSetoff1,salary.OthSrcLossNoRaceHorseSetoff1) -> 0
D9: iii | E9: House property | F9: =MAX(0,HP.TotalIncomeChargeableUnHP) -> 16200 | H9: 0 | I9: 0 | J9: =ROUND((hp.IncOfCurYrUnderThatHead2-hp.BusLossSetoff2-hp.OthSrcLossNoRaceHorseSetoff2),0) -> 16200 | P9: =IF(T6<(hp.IncOfCurYrUnderThatHead2-hp.OthSrcLossNoRaceHorseSetoff2),T6,(hp.IncOfCurYrUnderThatHead2-hp.OthSrcLossNoRaceHorseSetoff2)) -> 0 | Q9: =IF(U8<hp.IncOfCurYrUnderThatHead2,U8,hp.IncOfCurYrUnderThatHead2) -> 0 | R9: ii | T9: =T6-hp.BusLossSetoff2 -> 0 | U9: =(U8-hp.OthSrcLossNoRaceHorseSetoff2) -> 0 | AM9: =SUM(G9,hp.OthSrcLossNoRaceHorseSetoff2) -> 0
D10: iv | E10: Business Income (excluding speculation profit and income from specified business) | F10: 0 | G10: 0 | I10: 0 | J10: 0 | O10: =IF(S8<(busprof.IncOfCurYrUnderThatHead-busprof.OthSrcLossNoRaceHorseSetoff),S8,(busprof.IncOfCurYrUnderThatHead-busprof.OthSrcLossNoRaceHorseSetoff)) -> 0 | Q10: =IF(U9<busprof.IncOfCurYrUnderThatHead,U9,busprof.IncOfCurYrUnderThatHead) -> 0 | R10: iii | S10: =S8-busprof.HPlossCurYrSetoff -> 0 | U10: =U9-busprof.OthSrcLossNoRaceHorseSetoff -> 0
D11: v | E11: Speculative Income | F11: 0 | G11: 0 | I11: 0 | J11: 0 | O11: =IF(S10<(busprofspec.IncOfCurYrUnderThatHead0a-busprofspec.OthSrcLossNoRaceHorseSetoff0a),S10,(busprofspec.IncOfCurYrUnderThatHead0a-busprofspec.OthSrcLossNoRaceHorseSetoff0a)) -> 0 | Q11: =IF(U10<busprofspec.IncOfCurYrUnderThatHead0a,U10,busprofspec.IncOfCurYrUnderThatHead0a) -> 0 | R11: iv | S11: =S10-busprofspec.HPlossCurYrSetoff0a -> 0 | U11: =(U10-busprofspec.OthSrcLossNoRaceHorseSetoff0a) -> 0
D12: vi | E12: Specified Business Income | F12: 0 | G12: 0 | I12: 0 | J12: 0 | O12: =IF(S11<(busprofspecified.IncOfCurYrUnderThatHead0b-busprofspecified.OthSrcLossNoRaceHorseSetoff0b),S11,(busprofspecified.IncOfCurYrUnderThatHead0b-busprofspecified.OthSrcLossNoRaceHorseSetoff0b)) -> 0 | Q12: =IF(U11<busprofspecified.IncOfCurYrUnderThatHead0b,U11,busprofspecified.IncOfCurYrUnderThatHead0b) -> 0 | R12: v | S12: =(S11-busprof0b.HPlossCurYrSetoff0b) -> 0 | U12: =U11-busprofspecified.OthSrcLossNoRaceHorseSetoff0b -> 0
D13: iv | E13: Short-term capital gain taxable @ 15% | F13: =MAX(0,IHLA.Eii7_CurrYrCapGain) -> 0 | G13: 0 | H13: 0 | I13: 0 | J13: =ROUND((F13-G13-H13-I13),0) -> 0 | O13: =IF(S18<(stcg.IncOfCurYrUnderThatHead1-stcg.OthSrcLossNoRaceHorseSetoff1),S18,(stcg.IncOfCurYrUnderThatHead1-stcg.OthSrcLossNoRaceHorseSetoff1)) -> 0 | P13: =IF(T18<(stcg.IncOfCurYrUnderThatHead1-stcg.OthSrcLossNoRaceHorseSetoff1-stcg.HPlossCurYrSetoff1),T18,(stcg.IncOfCurYrUnderThatHead1-stcg.OthSrcLossNoRaceHorseSetoff1-stcg.HPlossCurYrSetoff1)) -> 0 | Q13: =IF(U18<stcg.IncOfCurYrUnderThatHead1,U18,stcg.IncOfCurYrUnderThatHead1) -> 0 | R13: vi | S13: =S18-stcg.HPlossCurYrSetoff1 -> 0 | T13: =T18-stcg.BusLossSetoff1 -> 0 | U13: =U18-stcg.OthSrcLossNoRaceHorseSetoff1 -> 0 | AM13: =SUM(stcg.HPlossCurYrSetoff1,stcg.OthSrcLossNoRaceHorseSetoff1) -> 0
D14: v | E14: Short-term capital gain taxable @ 30% | F14: =MAX(0,IHLA.Eiii7_CurrYrCapGain) -> 0 | G14: 0 | H14: 0 | I14: 0 | J14: 0 | O14: =IF(S21<(stcg.IncOfCurYrUnderThatHead1a-stcg.OthSrcLossNoRaceHorseSetoff1a),S21,(stcg.IncOfCurYrUnderThatHead1a-stcg.OthSrcLossNoRaceHorseSetoff1a)) -> 0 | P14: =IF(T21<(stcg.IncOfCurYrUnderThatHead1a-stcg.OthSrcLossNoRaceHorseSetoff1a-stcg.HPlossCurYrSetoff1a),T21,(stcg.IncOfCurYrUnderThatHead1a-stcg.OthSrcLossNoRaceHorseSetoff1a-stcg.HPlossCurYrSetoff1a)) -> 0 | Q14: =IF(U12<stcg.IncOfCurYrUnderThatHead1a,U12,stcg.IncOfCurYrUnderThatHead1a) -> 0 | R14: vii | S14: =S21-stcg.HPlossCurYrSetoff1a -> 0 | T14: =T21-stcg.BusLossSetoff1a -> 0 | U14: =U12-stcg.OthSrcLossNoRaceHorseSetoff1a -> 0 | AM14: =SUM(stcg.HPlossCurYrSetoff1a,stcg.OthSrcLossNoRaceHorseSetoff1a) -> 0
D15: vi | E15: Short-term capital gain taxable @ applicable rates | F15: =MAX(0,IHLA.Eiv7_CurrYrCapGain) -> 0 | G15: 0 | H15: 0 | I15: 0 | J15: 0 | O15: =IF(S14<(stcg.IncOfCurYrUnderThatHead1b-stcg.OthSrcLossNoRaceHorseSetoff1b),S14,(stcg.IncOfCurYrUnderThatHead1b-stcg.OthSrcLossNoRaceHorseSetoff1b)) -> 0 | P15: =IF(T14<(stcg.IncOfCurYrUnderThatHead1b-stcg.OthSrcLossNoRaceHorseSetoff1b-stcg.HPlossCurYrSetoff1b),T14,(stcg.IncOfCurYrUnderThatHead1b-stcg.OthSrcLossNoRaceHorseSetoff1b-stcg.HPlossCurYrSetoff1b)) -> 0 | Q15: =IF(U14<stcg.IncOfCurYrUnderThatHead1b,U14,stcg.IncOfCurYrUnderThatHead1b) -> 0 | R15: viii | S15: =S14-stcg.HPlossCurYrSetoff1b -> 0 | T15: =T14-stcg.BusLossSetoff1b -> 0 | U15: =U14-stcg.OthSrcLossNoRaceHorseSetoff1b -> 0 | AM15: =SUM(stcg.HPlossCurYrSetoff1b,stcg.OthSrcLossNoRaceHorseSetoff1b) -> 0
D16: vii | E16: Short-term capital gain taxable at DTAA rates | F16: =MAX(0,IHLA.Ev7_DTAArates) -> 0 | G16: 0 | H16: 0 | I16: 0 | J16: 0 | AM16: =SUM(stcg.HPlossCurYrSetoff_DTAARates,stcg.OthSrcLossNoRaceHorseSetoff_DTAARates) -> 0
D17: viii | E17: Long term capital gain taxable @ 10% | F17: =MAX(0,IHLA.Ev7_CurrYrCapGain) -> 0 | G17: 0 | H17: 0 | I17: 0 | J17: 0 | O17: =IF(S13<(ltcg.IncOfCurYrUnderThatHead2-ltcg.OthSrcLossNoRaceHorseSetoff2),S13,(ltcg.IncOfCurYrUnderThatHead2-ltcg.OthSrcLossNoRaceHorseSetoff2)) -> 0 | P17: =IF(T13<(ltcg.IncOfCurYrUnderThatHead2-ltcg.OthSrcLossNoRaceHorseSetoff2-ltcg.HPlossCurYrSetoff2),T13,(ltcg.IncOfCurYrUnderThatHead2-ltcg.OthSrcLossNoRaceHorseSetoff2-ltcg.HPlossCurYrSetoff2)) -> 0 | Q17: =IF(U13<ltcg.IncOfCurYrUnderThatHead2,U13,ltcg.IncOfCurYrUnderThatHead2) -> 0 | R17: ix | S17: =S13-ltcg.HPlossCurYrSetoff2 -> 0 | T17: =T13-ltcg.BusLossSetoff2 -> 0 | U17: =U13-ltcg.OthSrcLossNoRaceHorseSetoff2 -> 0 | AM17: =SUM(ltcg.HPlossCurYrSetoff2,ltcg.OthSrcLossNoRaceHorseSetoff2) -> 0
D18: ix | E18: Long term capital gain taxable @ 20% | F18: =MAX(0,IHLA.Evi7_CurrYrCapGain) -> 0 | G18: 0 | H18: 0 | I18: 0 | J18: 0 | O18: =IF(S15<(ltcg.IncOfCurYrUnderThatHead2a-ltcg.OthSrcLossNoRaceHorseSetoff2a),S15,(ltcg.IncOfCurYrUnderThatHead2a-ltcg.OthSrcLossNoRaceHorseSetoff2a)) -> 0 | P18: =IF(T15<(ltcg.IncOfCurYrUnderThatHead2a-ltcg.OthSrcLossNoRaceHorseSetoff2a-ltcg.HPlossCurYrSetoff2a),T15,(ltcg.IncOfCurYrUnderThatHead2a-ltcg.OthSrcLossNoRaceHorseSetoff2a-ltcg.HPlossCurYrSetoff2a)) -> 0 | Q18: =IF(U15<ltcg.IncOfCurYrUnderThatHead2a,U15,ltcg.IncOfCurYrUnderThatHead2a) -> 0 | R18: x | S18: =S15-ltcg.HPlossCurYrSetoff2a -> 0 | T18: =(T15-ltcg.BusLossSetoff2a) -> 0 | U18: =U15-ltcg.OthSrcLossNoRaceHorseSetoff2a -> 0 | AM18: =SUM(ltcg.HPlossCurYrSetoff2a,ltcg.OthSrcLossNoRaceHorseSetoff2a) -> 0
D19: x | E19: Long term capital gains taxable @ DTAA rates | F19: =MAX(0,IHLA.E_LTCGv7_DTAArates) -> 0 | G19: 0 | H19: 0 | I19: 0 | J19: 0 | AM19: =SUM(ltcg.HPlossCurYrSetoff_DTAARates,ltcg.OthSrcLossNoRaceHorseSetoff_DTAARates) -> 0
D20: xi | E20: Net Income From Other sources chargeable at Normal Applicable rates | F20: =MAX(0,os.BalanceNoRaceHorse) -> 141000 | G20: 0 | H20: 0 | J20: 141000 | O20: =IF(S12<othSecinclnlhrs.IncOfCurYrUnderThatHead3,S12,othSecinclnlhrs.IncOfCurYrUnderThatHead3) -> 0 | P20: =IF(T9<(othSecinclnlhrs.IncOfCurYrUnderThatHead3-othSecinclnlhrs.HPlossCurYrSetoff3),T9,(othSecinclnlhrs.IncOfCurYrUnderThatHead3-othSecinclnlhrs.HPlossCurYrSetoff3)) -> 0 | R20: xi | S20: =S12-O20 -> 0 | T20: =T9-othSecinclnlhrs.BusLossSetoff3 -> 0 | AM20: =SUM(othSecinclnlhrs.HPlossCurYrSetoff3,I20) -> 0
D21: xii | E21: Profit from activity of owning and maintaining race horse | F21: =MAX(0,os.BalanceOwnRaceHorse) -> 0 | G21: 0 | H21: 0 | I21: 0 | J21: 0 | O21: =IF(S20<(rh.IncOfCurYrUnderThatHead4-rh.OthSrcLossNoRaceHorseSetoff4),S20,(rh.IncOfCurYrUnderThatHead4-rh.OthSrcLossNoRaceHorseSetoff4)) -> 0 | P21: =IF(T20<(rh.IncOfCurYrUnderThatHead4-rh.OthSrcLossNoRaceHorseSetoff4-rh.HPlossCurYrSetoff4),T20,(rh.IncOfCurYrUnderThatHead4-rh.OthSrcLossNoRaceHorseSetoff4-rh.HPlossCurYrSetoff4)) -> 0 | Q21: =IF(U6<rh.IncOfCurYrUnderThatHead4,U6,rh.IncOfCurYrUnderThatHead4) -> 0 | R21: xii | S21: =S20-rh.HPlossCurYrSetoff4 -> 0 | T21: =(T20-rh.BusLossSetoff4) -> 0 | U21: =U6-rh.OthSrcLossNoRaceHorseSetoff4 -> 0 | AM21: =SUM(rh.HPlossCurYrSetoff4,rh.OthSrcLossNoRaceHorseSetoff4) -> 0
D22: xiii | E22: Income from Other sources taxable at special rates in India as per DTAA rates | F22: 0 | G22: 0 | H22: 0 | I22: 0 | J22: 0
D23: xiii | E23: Total loss set-off(ii + iii + iv + v + vi + vii + viii + ix + x+xi+xii) | G23: =MIN(SUM(G8,G13:G21),cyla.TotHPlossCurYr,200000) -> 0 | H23: =SUM(H9,H13:H22) -> 0 | I23: =SUM(I8:I19,I21:I22) -> 0
D24: xiv | E24: Loss remaining after set-off (i - xii) | G24: =IF(bacValue=1,0,IF(sheet16.TotHPlossCurYrSetoff<200000,MAX(0,((cyla.TotHPlossCurYr1-G23)+(HP.REMloss))),HP.REMloss)) -> 0 | H24: 0 | I24: =MAX(0,(cyla.TotOthSrcLossNoRaceHorse-I23)) -> 0 | AM24: =SUM(G13:G21,salary.HPlossCurYrSetoff1) -> 0 | AN24: =SUM(J8:J21) -> 22493200
AM25: Col 2 | AN25: Col4 | AU25: Yes
D26: Do you want to edit the details auto-populated in table above ? | J26: No | AU26: No
C28: Schedule BFLA | F28: Details of Income after Set off of Brought Forward Losses of earlier years
C29: BROUGHT FORWARD LOSS ADJUSTMENT | D29: Sl. No. | E29: Head/ Source of Income | F29: Income after set off, if any, of current year’s losses as per 5 of Schedule CYLA) | G29: Brought forward loss set off | H29: Brought forward depreciation set off | I29: Current year’s income remaining after set off | S29: From CFL | W29: Remaining Set off | AC29: Depriciation | AI29: Tot CY LTCG Income | AK29: Tot Pys LTCG Loss
AH30: 0.2 | AI30: =ltcg.IncOfCurYrUndHeadFromCYLA4a -> 0 | AK30: =totofbfloss.LTCGLossCF8 -> 0
F31: 1 | G31: 2 | H31: 3 | I31: 3 | AB31: From UD | AC31: =UD.TotSetoff -> 0 | AH31: 0.1 | AI31: =ltcg.IncOfCurYrUndHeadFromCYLA4 -> 0
D32: i | E32: Salaries | F32: =(J8) -> 22336000 | I32: =(F32) -> 22336000 | V32: i | AC32: Remaining
D33: ii | E33: House property | F33: 16200 | G33: 0 | H33: 0 | I33: =MAX(0,(F33-G33-H33-0)) -> 16200 | M33: 0 | O33: =IF(S33<hp.IncOfCurYrUndHeadFromCYLA1,S33,hp.IncOfCurYrUndHeadFromCYLA1) -> 0 | P33: =IF(AC36<(hp.IncOfCurYrUndHeadFromCYLA1-hp.BFlossPrevYrUndSameHeadSetoff1),AC36,(hp.IncOfCurYrUndHeadFromCYLA1-hp.BFlossPrevYrUndSameHeadSetoff1)) -> 0 | R33: HP | S33: =totofbfloss.HPLossCF8 -> 0 | V33: ii | W33: =S33-hp.BFlossPrevYrUndSameHeadSetoff1 -> 0 | AC33: =AC36-hp.BFUnabsorbedDeprSetoff1 -> 0
D34: iii | E34: Business Income (excluding speculation profit and income from specified business) | F34: 0 | G34: 0 | H34: 0 | I34: 0 | M34: 0 | O34: =IF(S34<busipofincl.IncOfCurYrUndHeadFromCYLA2,S34,busipofincl.IncOfCurYrUndHeadFromCYLA2) -> 0 | P34: =IF(AC31<(busipofincl.IncOfCurYrUndHeadFromCYLA2-busipofincl.BFlossPrevYrUndSameHeadSetoff2),AC31,(busipofincl.IncOfCurYrUndHeadFromCYLA2-busipofincl.BFlossPrevYrUndSameHeadSetoff2)) -> 0 | R34: BP | S34: =totofbfloss.BusLossOthThanSpecLossCF8 -> 0 | V34: iii | W34: =S34-busipofincl.BFlossPrevYrUndSameHeadSetoff2 -> 0 | AC34: =(AC31-busipofincl.BFUnabsorbedDeprSetoff2) -> 0 | AJ34: Remaining LTCG set off Remaining
D35: iv | E35: Speculative Income | F35: 0 | G35: 0 | H35: 0 | I35: 0 | M35: 0 | O35: =IF(S35<busipofinclspec.IncOfCurYrUndHeadFromCYLA2a,IF((S35+W34)<=busipofinclspec.IncOfCurYrUndHeadFromCYLA2a,(S35+W34),busipofinclspec.IncOfCurYrUndHeadFromCYLA2a),busipofinclspec.IncOfCurYrUndHeadFromCYLA2a) -> 0 | P35: =IF(AC34<(busipofinclspec.IncOfCurYrUndHeadFromCYLA2a-busipofinclspec.BFlossPrevYrUndSameHeadSetoff2a),AC34,(busipofinclspec.IncOfCurYrUndHeadFromCYLA2a-busipofinclspec.BFlossPrevYrUndSameHeadSetoff2a)) -> 0 | R35: Spec BP | S35: =totofbfloss.LossFrmSpecBusCF8 -> 0 | V35: iv | W35: =(W34+S35-busipofinclspec.BFlossPrevYrUndSameHeadSetoff2a) -> 0 | AC35: =(AC34-P35) -> 0 | AJ35: =MAX(0,(AI30+AI31)-AK30) -> 0
D36: v | E36: Specified Business Income | F36: 0 | G36: 0 | H36: 0 | I36: 0 | M36: 0 | O36: =IF(S34=0,IF(S36=0,0,IF(S36<busipofinclspecified.IncOfCurYrUndHeadFromCYLA2b,IF((W35+S36)<=busipofinclspecified.IncOfCurYrUndHeadFromCYLA2b,(W35+S36),busipofinclspecified.IncOfCurYrUndHeadFromCYLA2b),busipofinclspecified.IncOfCurYrUndHeadFromCYLA2b)),IF(S36=0,IF(W35>0,IF(W34<busipofinclspecified.IncOfCurYrUndHeadFromCYLA2b,W34,busipofinclspecified.IncOfCurYrUndHeadFromCYLA2b),IF(S36=0,0,IF(S36<busipofinclspecified.IncOfCurYrUndHeadFromCYLA2b,IF((W35+S36)<=busipofinclspecified.IncOfCurYrUndHeadFromCYLA2b,(W35+S36),busipofinclspecified.IncOfCurYrUndHeadFromCYLA2b),busipofinclspecified.IncOfCurYrUndHeadFromCYLA2b))),IF(S36<busipofinclspecified.IncOfCurYrUndHeadFromCYLA2b,S36,busipofinclspecified.IncOfCurYrUndHeadFromCYLA2b))) -> 0 | P36: =IF(AC35<(busipofinclspecified.IncOfCurYrUndHeadFromCYLA2b-busipofinclspecified.BFlossPrevYrUndSameHeadSetoff2b),AC35,(busipofinclspecified.IncOfCurYrUndHeadFromCYLA2b-busipofinclspecified.BFlossPrevYrUndSameHeadSetoff2b)) -> 0 | R36: Spcif BP | S36: =totofbfloss.LossFrmSpecifiedBusCF8 -> 0 | V36: v | W36: =(W35+S36-busipofinclspecified.BFlossPrevYrUndSameHeadSetoff2b) -> 0 | AC36: =(AC35-busipofinclspecified.BFUnabsorbedDeprSetoff2b) -> 0 | AQ36: When only LTCG set off Exists
D37: iii | E37: Short-term capital gain taxable @ 15% | F37: 0 | G37: 0 | H37: 0 | I37: 0 | M37: 0 | O37: =IF(S38>0,IF(X42<stcg.IncOfCurYrUndHeadFromCYLA3,X42,stcg.IncOfCurYrUndHeadFromCYLA3),0) -> 0 | V37: vi | W37: =X42-stcg.BFlossPrevYrUndSameHeadSetoff3 -> 0 | X37: =X42-stcg.BFlossPrevYrUndSameHeadSetoff3 -> 0 | AJ37: After LTCG setoff at | AK37: Remaining Amt to set off | AM37: =SUM(stcg.BFlossPrevYrUndSameHeadSetoff3,stcg.IncOfCurYrAfterSetOffBFLosses3) -> 0 | AO37: Set off | AP37: 0.2 | AQ37: =IF(S38>0,IF(S41>0,IF(S41<ltcg.IncOfCurYrUndHeadFromCYLA4a,S41,ltcg.IncOfCurYrUndHeadFromCYLA4a),IF(W39<ltcg.IncOfCurYrUndHeadFromCYLA4a,W39,ltcg.IncOfCurYrUndHeadFromCYLA4a)),IF(S41>0,IF(S41<ltcg.IncOfCurYrUndHeadFromCYLA4a,S41,ltcg.IncOfCurYrUndHeadFromCYLA4a),0)) -> 0 | AV37: BF-Loss Total | AW37: STCG Total | AX37: LTCG Total
D38: iv | E38: Short-term capital gain taxable @ 30% | F38: 0 | G38: 0 | H38: 0 | I38: 0 | M38: 0 | O38: =IF(S38<stcg.IncOfCurYrUndHeadFromCYLA3a,S38,stcg.IncOfCurYrUndHeadFromCYLA3a) -> 0 | R38: sTCG | S38: =totofbfloss.STCGLossCF8 -> 0 | V38: vii | W38: =(S38-stcg.BFlossPrevYrUndSameHeadSetoff3a) -> 0 | AI38: 0.2 | AJ38: =IF(S38>0,IF(S41>0,IF(S41<ltcg.IncOfCurYrUndHeadFromCYLA4a,S41,ltcg.IncOfCurYrUndHeadFromCYLA4a),IF(W39<ltcg.IncOfCurYrUndHeadFromCYLA4a,W39,ltcg.IncOfCurYrUndHeadFromCYLA4a)),IF(S41<ltcg.IncOfCurYrUndHeadFromCYLA4a,S41,ltcg.IncOfCurYrUndHeadFromCYLA4a)) -> 0 | AK38: =ltcg.IncOfCurYrUndHeadFromCYLA4a-AJ38 -> 0 | AM38: =SUM(stcg.BFlossPrevYrUndSameHeadSetoff3a,stcg.IncOfCurYrAfterSetOffBFLosses3a) -> 0 | AP38: 0.1 | AQ38: =IF(S38>0,IF(S41>0,IF(W42<ltcg.IncOfCurYrUndHeadFromCYLA4,W42,ltcg.IncOfCurYrUndHeadFromCYLA4),IF(X37<ltcg.IncOfCurYrUndHeadFromCYLA4,X37,ltcg.IncOfCurYrUndHeadFromCYLA4)),IF(S41>0,IF(W42<ltcg.IncOfCurYrUndHeadFromCYLA4,W42,ltcg.IncOfCurYrUndHeadFromCYLA4),0)) -> 0 | AV38: =SUM(G37:G43) -> 0 | AW38: =SUM(G37:G40) -> 0 | AX38: =SUM(G41:G43) -> 0
D39: v | E39: Short-term capital gain taxable @ applicable rates | F39: 0 | G39: 0 | H39: 0 | I39: 0 | M39: 0 | O39: =IF(W38<stcg.IncOfCurYrUndHeadFromCYLA3b,W38,stcg.IncOfCurYrUndHeadFromCYLA3b) -> 0 | V39: viii | W39: =W38-stcg.BFlossPrevYrUndSameHeadSetoff3b -> 0 | AI39: 0.1 | AJ39: =IF(S38>0,IF(S41>0,IF(W42<ltcg.IncOfCurYrUndHeadFromCYLA4,W42,ltcg.IncOfCurYrUndHeadFromCYLA4),IF(W37<ltcg.IncOfCurYrUndHeadFromCYLA4,W37,ltcg.IncOfCurYrUndHeadFromCYLA4)),IF(S41>0,IF(W42<ltcg.IncOfCurYrUndHeadFromCYLA4,W42,ltcg.IncOfCurYrUndHeadFromCYLA4),0)) -> 0 | AK39: =ltcg.IncOfCurYrUndHeadFromCYLA4-AJ39 -> 0 | AM39: =SUM(stcg.BFlossPrevYrUndSameHeadSetoff3b,stcg.IncOfCurYrAfterSetOffBFLosses3b) -> 0 | AV39: CFL Total | AW39: Longterm Income | AX39: CFL_Short Term | AY39: Short and Long term Total | AZ39: CFL Long Term
D40: vi | E40: Short-term capital gain taxable at DTAA rates | F40: 0 | G40: 0 | H40: 0 | I40: 0 | M40: 0 | AM40: =SUM(stcg.BFlossPrevYrUndSameHeadSetoff3b_DTAARates,stcg.IncOfCurYrAfterSetOffBFLosses3b_DTAARates) -> 0 | AV40: =SUM(totofbfloss.STCGLossCF8,totofbfloss.LTCGLossCF8) -> 0 | AW40: =SUM(F41:F43) -> 0 | AX40: =totofbfloss.STCGLossCF8 -> 0 | AY40: =SUM(F37:F43) -> 0 | AZ40: =CFL_LTCG_Normal_2023 -> 0
D41: vii | E41: Long term capital gain taxable @ 10% | F41: 0 | G41: 0 | H41: 0 | I41: 0 | M41: 0 | O41: =IF(AK39>0,IF(X37>0,IF(X37>AK39,IF(S38>0,IF(S41>0,IF(W42<ltcg.IncOfCurYrUndHeadFromCYLA4,W42,ltcg.IncOfCurYrUndHeadFromCYLA4),IF(X37<ltcg.IncOfCurYrUndHeadFromCYLA4,X37,ltcg.IncOfCurYrUndHeadFromCYLA4)),IF(S41>0,IF(W42<ltcg.IncOfCurYrUndHeadFromCYLA4,W42,ltcg.IncOfCurYrUndHeadFromCYLA4),0))+AK39,(IF(S38>0,IF(S41>0,IF(W42<ltcg.IncOfCurYrUndHeadFromCYLA4,W42,ltcg.IncOfCurYrUndHeadFromCYLA4),IF(X37<ltcg.IncOfCurYrUndHeadFromCYLA4,X37,ltcg.IncOfCurYrUndHeadFromCYLA4)),IF(S41>0,IF(W42<ltcg.IncOfCurYrUndHeadFromCYLA4,W42,ltcg.IncOfCurYrUndHeadFromCYLA4),0))+X37)),0),IF(S38>0,IF(S41>0,IF(W42<ltcg.IncOfCurYrUndHeadFromCYLA4,W42,ltcg.IncOfCurYrUndHeadFromCYLA4),IF(X37<ltcg.IncOfCurYrUndHeadFromCYLA4,X37,ltcg.IncOfCurYrUndHeadFromCYLA4)),IF(S41>0,IF(W42<ltcg.IncOfCurYrUndHeadFromCYLA4,W42,ltcg.IncOfCurYrUndHeadFromCYLA4),0))) -> 0 | R41: LTCG | S41: =totofbfloss.LTCGLossCF8 -> 0 | V41: ix | W41: =IF(S41>0,W42-IF(S38>0,IF(S41>0,IF(W42<ltcg.IncOfCurYrUndHeadFromCYLA4,W42,ltcg.IncOfCurYrUndHeadFromCYLA4),IF(X37<ltcg.IncOfCurYrUndHeadFromCYLA4,X37,ltcg.IncOfCurYrUndHeadFromCYLA4)),IF(S41>0,IF(W42<ltcg.IncOfCurYrUndHeadFromCYLA4,W42,ltcg.IncOfCurYrUndHeadFromCYLA4),0)),X37-IF(S38>0,IF(S41>0,IF(W42<ltcg.IncOfCurYrUndHeadFromCYLA4,W42,ltcg.IncOfCurYrUndHeadFromCYLA4),IF(X37<ltcg.IncOfCurYrUndHeadFromCYLA4,X37,ltcg.IncOfCurYrUndHeadFromCYLA4)),IF(S41>0,IF(W42<ltcg.IncOfCurYrUndHeadFromCYLA4,W42,ltcg.IncOfCurYrUndHeadFromCYLA4),0))) -> 0 | AM41: =SUM(ltcg.BFlossPrevYrUndSameHeadSetoff4,ltcg.IncOfCurYrAfterSetOffBFLosses4) -> 0 | AV41: BFLA_Colum 3 Total | AW41: LTCG_Col3_Total
D42: viii | E42: Long term capital gain taxable @ 20% | F42: 0 | G42: 0 | H42: 0 | I42: 0 | M42: 0 | O42: =IF(AK38>0,IF(W39>0,IF(W39>AK38,IF(S38>0,IF(S41>0,IF(S41<ltcg.IncOfCurYrUndHeadFromCYLA4a,S41,ltcg.IncOfCurYrUndHeadFromCYLA4a),IF(W39<ltcg.IncOfCurYrUndHeadFromCYLA4a,W39,ltcg.IncOfCurYrUndHeadFromCYLA4a)),IF(S41>0,IF(S41<ltcg.IncOfCurYrUndHeadFromCYLA4a,S41,ltcg.IncOfCurYrUndHeadFromCYLA4a),0))+AK38),IF(S38>0,IF(S41>0,IF(S41<ltcg.IncOfCurYrUndHeadFromCYLA4a,S41,ltcg.IncOfCurYrUndHeadFromCYLA4a),IF(W39<ltcg.IncOfCurYrUndHeadFromCYLA4a,W39,ltcg.IncOfCurYrUndHeadFromCYLA4a)),IF(S41>0,IF(S41<ltcg.IncOfCurYrUndHeadFromCYLA4a,S41,ltcg.IncOfCurYrUndHeadFromCYLA4a),0))+W39),IF(S38>0,IF(S41>0,IF(S41<ltcg.IncOfCurYrUndHeadFromCYLA4a,S41,ltcg.IncOfCurYrUndHeadFromCYLA4a),IF(W39<ltcg.IncOfCurYrUndHeadFromCYLA4a,W39,ltcg.IncOfCurYrUndHeadFromCYLA4a)),IF(S41<ltcg.IncOfCurYrUndHeadFromCYLA4a,S41,ltcg.IncOfCurYrUndHeadFromCYLA4a))) -> 0 | V42: x | W42: =IF(S41>0,S41-(IF(S38>0,IF(S41>0,IF(S41<ltcg.IncOfCurYrUndHeadFromCYLA4a,S41,ltcg.IncOfCurYrUndHeadFromCYLA4a),IF(W39<ltcg.IncOfCurYrUndHeadFromCYLA4a,W39,ltcg.IncOfCurYrUndHeadFromCYLA4a)),IF(S41<ltcg.IncOfCurYrUndHeadFromCYLA4a,S41,ltcg.IncOfCurYrUndHeadFromCYLA4a))),W39-(IF(S38>0,IF(S41>0,IF(S41<ltcg.IncOfCurYrUndHeadFromCYLA4a,S41,ltcg.IncOfCurYrUndHeadFromCYLA4a),IF(W39<ltcg.IncOfCurYrUndHeadFromCYLA4a,W39,ltcg.IncOfCurYrUndHeadFromCYLA4a)),IF(S41<ltcg.IncOfCurYrUndHeadFromCYLA4a,S41,ltcg.IncOfCurYrUndHeadFromCYLA4a)))) -> 0 | X42: =MAX(0,W39-AK38) -> 0 | AI42: Amt to be set off at 20% LTCG | AK42: Amt to be Set off at 10% wen STCG has income | AM42: =SUM(ltcg.BFlossPrevYrUndSameHeadSetoff4a,ltcg.IncOfCurYrAfterSetOffBFLosses4a) -> 0 | AV42: =SUM(I37:I43) -> 0 | AW42: =SUM(I41:I43) -> 0
D43: ix | E43: Long term capital gains taxable @ DTAA rates | F43: 0 | G43: 0 | H43: 0 | I43: 0 | M43: 0 | AM43: =SUM(ltcg.BFlossPrevYrUndSameHeadSetoff_DTAARates,ltcg.IncOfCurYrAfterSetOffBFLosses_DTAARates) -> 0
D44: x | E44: Net Income from Other sources income chargeable at Normal Applicable Rates | F44: 141000 | H44: 0 | I44: 141000 | M44: 0 | P44: =IF(AC33<othsrcincl.IncOfCurYrUndHeadFromCYLA5,AC33,othsrcincl.IncOfCurYrUndHeadFromCYLA5) -> 0 | V44: xi | W44: LTCG | X44: STCG | AC44: =(AC33-othsrcincl.BFUnabsorbedDeprSetoff5) -> 0 | AI44: =IF(AK38>0,IF(W39>0,IF(W39>AK38,IF(S38>0,IF(S41>0,IF(S41<ltcg.IncOfCurYrUndHeadFromCYLA4a,S41,ltcg.IncOfCurYrUndHeadFromCYLA4a),IF(W39<ltcg.IncOfCurYrUndHeadFromCYLA4a,W39,ltcg.IncOfCurYrUndHeadFromCYLA4a)),IF(S41>0,IF(S41<ltcg.IncOfCurYrUndHeadFromCYLA4a,S41,ltcg.IncOfCurYrUndHeadFromCYLA4a),0))+AK38),IF(S38>0,IF(S41>0,IF(S41<ltcg.IncOfCurYrUndHeadFromCYLA4a,S41,ltcg.IncOfCurYrUndHeadFromCYLA4a),IF(W39<ltcg.IncOfCurYrUndHeadFromCYLA4a,W39,ltcg.IncOfCurYrUndHeadFromCYLA4a)),IF(S41>0,IF(S41<ltcg.IncOfCurYrUndHeadFromCYLA4a,S41,ltcg.IncOfCurYrUndHeadFromCYLA4a),0))+W39),IF(S38>0,IF(S41>0,IF(S41<ltcg.IncOfCurYrUndHeadFromCYLA4a,S41,ltcg.IncOfCurYrUndHeadFromCYLA4a),IF(W39<ltcg.IncOfCurYrUndHeadFromCYLA4a,W39,ltcg.IncOfCurYrUndHeadFromCYLA4a)),IF(S41<ltcg.IncOfCurYrUndHeadFromCYLA4a,S41,ltcg.IncOfCurYrUndHeadFromCYLA4a))) -> 0 | AK44: =IF(AK39>0,IF(X37>0,IF(X37>AK39,IF(S38>0,IF(S41>0,IF(W42<ltcg.IncOfCurYrUndHeadFromCYLA4,W42,ltcg.IncOfCurYrUndHeadFromCYLA4),IF(X37<ltcg.IncOfCurYrUndHeadFromCYLA4,X37,ltcg.IncOfCurYrUndHeadFromCYLA4)),IF(S41>0,IF(W42<ltcg.IncOfCurYrUndHeadFromCYLA4,W42,ltcg.IncOfCurYrUndHeadFromCYLA4),0))+AK39,(IF(S38>0,IF(S41>0,IF(W42<ltcg.IncOfCurYrUndHeadFromCYLA4,W42,ltcg.IncOfCurYrUndHeadFromCYLA4),IF(X37<ltcg.IncOfCurYrUndHeadFromCYLA4,X37,ltcg.IncOfCurYrUndHeadFromCYLA4)),IF(S41>0,IF(W42<ltcg.IncOfCurYrUndHeadFromCYLA4,W42,ltcg.IncOfCurYrUndHeadFromCYLA4),0))+X37)),0),IF(S38>0,IF(S41>0,IF(W42<ltcg.IncOfCurYrUndHeadFromCYLA4,W42,ltcg.IncOfCurYrUndHeadFromCYLA4),IF(X37<ltcg.IncOfCurYrUndHeadFromCYLA4,X37,ltcg.IncOfCurYrUndHeadFromCYLA4)),IF(S41>0,IF(W42<ltcg.IncOfCurYrUndHeadFromCYLA4,W42,ltcg.IncOfCurYrUndHeadFromCYLA4),0))) -> 0 | AM44: =SUM(othsrcincl.BFlossPrevYrUndSameHeadSetoff5,othsrcincl.IncOfCurYrAfterSetOffBFLosses5) -> 141000
D45: xi | E45: Profit from owning and maintaining race horses | F45: 0 | G45: 0 | H45: 0 | I45: 0 | M45: 0 | O45: =IF(S45<rh.IncOfCurYrUndHeadFromCYLA6,S45,rh.IncOfCurYrUndHeadFromCYLA6) -> 0 | R45: Maintain Horse | S45: =totofbfloss.OthSrcLossRaceHorseCF8 -> 0 | V45: xii | AM45: =SUM(rh.BFlossPrevYrUndSameHeadSetoff6,rh.IncOfCurYrAfterSetOffBFLosses6) -> 0
D46: xii | E46: Income from other sources income taxable at special rates in India as per DTAA | F46: 0 | H46: 0 | I46: =MAX(0,(F46-H46-0)) -> 0 | M46: 0
D47: xii | E47: Total of brought forward loss set off (2ii + 2iii + 2iv + 2v + 2vi + 2vii + 2viii + 2ix + 2x + 2xi ) | G47: =SUM(G33:G46) -> 0 | H47: =SUM(H33:H46) -> 0 | M47: =SUM(M33:M46) -> 0
D48: xiii | E48: Current year’s income remaining after set off Total of (3i + 3ii + 3iii + 3iv + 3v+ 3vi + 3vii + 3viii) | I48: =SUM(I32:I46) -> 22493200
D50: Do you want to edit the details auto-populated in table above ? | J50: No

Sheet CFL
C3: Schedule CFL | F3: Details of Losses to be carried forward to future Years
C4: CARRY FORWARD OF LOSS | D4: Sl. No. | E4: Assessment Year (1) | F4: Date of Filing (DD/MM/ YYYY) (2) | G4: House property loss (3) | J4: Loss from business other than loss from speculative business and specified business | M4: Loss from speculative business (6) | N4: Loss from Specified business (7) | O4: Short-term capital loss (4) | R4: Long-term Capital loss | U4: Loss from owning and maintaining race horses
J5: Brought forward Business Loss (5a) | K5: Amount as adjusted on account of opting for taxation u/s 115BAC (5b) | L5: Brought forward Business Loss available for set off during the year (5c=5a-5b)
D6: i | E6: 2010-11 | AD6: date for Validation
D7: ii | E7: 2011-12 | AD7: 2006-04-01
D8: iii | E8: 2012-13 | AD8: 2007-04-01
D9: iv | E9: 2013-14 | H9: 0 | I9: =G9+H9 -> 0 | Q9: =O9+P9 -> 0 | T9: =R9+S9 -> 0 | AD9: 2008-04-01
D10: v | E10: 2014-15 | H10: 0 | I10: =G10+H10 -> 0 | L10: =MAX(0,yr2003.BusLossOthThanSpecLossCF4a-yr2003.BusLossOthThanSpecLossCF4b) -> 0 | Q10: 0 | T10: 0 | AD10: 2009-04-01
D11: i | E11: 2015-16 | T11: 0 | AD11: 2010-04-01
D12: i | E12: 2016-17 | H12: 0 | I12: 0 | L12: =MAX(0,yr2005.BusLossOthThanSpecLossCF6a-yr2005.BusLossOthThanSpecLossCF6b) -> 0 | Q12: 0 | T12: 0 | AD12: 2011-04-01
D13: ii | E13: 2017-18 | H13: 0 | I13: 0 | L13: =MAX(0,yr2006.BusLossOthThanSpecLossCF7a-yr2006.BusLossOthThanSpecLossCF7b) -> 0 | Q13: 0 | T13: 0 | AD13: 2012-04-01
D14: iii | E14: 2018-19 | T14: 0
D15: iv | E15: 2019-20 | H15: 0 | I15: 0 | L15: =MAX(0,yr2007.BusLossOthThanSpecLossCF9a-yr2007.BusLossOthThanSpecLossCF9b) -> 0 | Q15: 0 | T15: 0
D16: v | E16: 2020-21 | I16: 0 | L16: =MAX(0,yr2020.BusLossOthThanSpecLossCF10a-yr2020.BusLossOthThanSpecLossCF10b) -> 0 | Q16: 0 | T16: 0
D17: vi | E17: 2021-22 | I17: 0 | L17: =MAX(0,yr2021.BusLossOthThanSpecLossCF11a-yr2021.BusLossOthThanSpecLossCF11b) -> 0 | Q17: 0 | T17: 0
D18: vii | E18: 2022-23
D19: viii | E19: 2023-24
D20: ix | E20: Total of earlier year losses b/f | G20: =SUM(G6:G19) -> 0 | I20: =SUM(I6:I16) -> 0 | L20: =SUM(L6:L17) -> 0 | M20: =SUM(M11:M17) -> 0 | N20: =SUM(CFL.specifiedLoss,yr1999.BusLossSpecBus,yr2020.LossFrmSpecifiedBusCF10,yr2021.LossFrmSpecifiedBusCF11) -> 0 | O20: =SUM(O6:O19) -> 0 | Q20: =SUM(Q6:Q16) -> 0 | R20: =SUM(R6:R19) -> 0 | T20: =SUM(T6:T16) -> 0 | U20: =SUM(U16:U19) -> 0 | AD20: 2013-04-01
D21: x | E21: Adjustment of above losses in Schedule BFLA | G21: 0 | I21: 0 | L21: 0 | M21: 0 | N21: 0 | O21: 0 | Q21: 0 | R21: 0 | T21: 0 | U21: 0
D22: xi | E22: 2024-25 (Current year losses) | G22: =sheet16.BalHPlossCurYrAftSetoff -> 0 | I22: 0 | L22: =sheet16.BalBusLossAftSetoff -> 0 | M22: =ABS(MIN(sheet12.AdjustedPLFrmSpecuBus,0)) -> 0 | N22: =ABS(MIN(sheet12.AdjustedPLFrmSpecifiedBus,0)) -> 0 | O22: =IHLA.Eviii2_StclSetoff15Per+IHLA.Eviii3_StclSetoff30Per+IHLA.Eviii4_StclSetoffAppRate+IHLA.Eviii5_StclSetoffDTAARate -> 0 | Q22: 0 | R22: =IHLA.Eviii5_LtclSetOff10Per+IHLA.Eviii6_LtclSetOff20Per+IHLA.Eviii8_LtclSetOffDTAARate -> 0 | T22: 0 | U22: =ABS(MIN(0,os.BalanceOwnRaceHorse)) -> 0 | X22: =sheet16.BalHPlossCurYrAftSetoff -> 0 | Y22: =sheet16.BalBusLossAftSetoff -> 0 | Z22: =ABS(MIN(0,sheet12.AdjustedPLFrmSpecuBus)) -> 0
D23: xii | E23: Total loss Carried Forward to future years | G23: =IF(CFL_HP_Normal_2016>adjtotloss.HPLossCF9,MAX(0,totofbfloss.HPLossCF8-CFL_HP_Normal_2016+yr2007.HPLossCF10),MAX(0,totofbfloss.HPLossCF8-adjtotloss.HPLossCF9+yr2007.HPLossCF10)) -> 0 | I23: 0 | L23: =IF(yr2003.BusLossOthThanSpecLossCF4>adjtotloss.BusLossOthThanSpecLossCF9,MAX(0,totofbfloss.BusLossOthThanSpecLossCF8-yr2003.BusLossOthThanSpecLossCF4+yr2007.BusLossOthThanSpecLossCF10),MAX(0,totofbfloss.BusLossOthThanSpecLossCF8-adjtotloss.BusLossOthThanSpecLossCF9+yr2007.BusLossOthThanSpecLossCF10)) -> 0 | M23: =IF(yr2006.LossFrmSpecBusCF9>adjtotloss.LossFrmSpecBusCF9,MAX(0,totofbfloss.LossFrmSpecBusCF8-yr2006.LossFrmSpecBusCF9+yr2007.LossFrmSpecBusCF10),MAX(totofbfloss.LossFrmSpecBusCF8-adjtotloss.LossFrmSpecBusCF9+yr2007.LossFrmSpecBusCF10)) -> 0 | N23: =MAX(0,totofbfloss.LossFrmSpecifiedBusCF8-adjtotloss.LossFrmSpecifiedBusCF9+yr2007.LossFrmSpecifiedBusCF10) -> 0 | O23: =IF(CFL_STCG_Normal_2016>adjtotloss.STCGLossCF9,MAX(0,totofbfloss.STCGLossCF8-CFL_STCG_Normal_2016+yr2007.STCGLossCF10),MAX(0,totofbfloss.STCGLossCF8-adjtotloss.STCGLossCF9+yr2007.STCGLossCF10)) -> 0 | Q23: 0 | R23: =IF(CFL_LTCG_Normal_2016>adjtotloss.LTCGLossCF9,MAX(0,totofbfloss.LTCGLossCF8-CFL_LTCG_Normal_2016+yr2007.LTCGLossCF10),MAX(0,totofbfloss.LTCGLossCF8-adjtotloss.LTCGLossCF9+yr2007.LTCGLossCF10)) -> 0 | T23: 0 | U23: =IF(yr2020.OthSrcLossRaceHorseCF10>adjtotloss.OthSrcLossRaceHorseCF9,MAX(0,totofbfloss.OthSrcLossRaceHorseCF8-yr2020.OthSrcLossRaceHorseCF10+yr2007.OthSrcLossRaceHorseCF10),MAX(0,totofbfloss.OthSrcLossRaceHorseCF8-adjtotloss.OthSrcLossRaceHorseCF9+yr2007.OthSrcLossRaceHorseCF10)) -> 0

Sheet Unabsorbed Depreciation (hidden)
C3: Schedule UD | G3: Unabsorbed depreciation and allowance under section 35(4)
E5: Depreciation | I5: Allowance under section 35(4)
C6: Sl. No. (1) | D6: Assessment Year (2) | E6: Amount of brought forward unabsorbed depreciation (3) | F6: Amount as adjusted on account of opting for taxation u/s 115BAC (3a) | G6: Amount of depreciation set-off against the current year income (4) | H6: Balance Carried forward to the next year (5) | I6: Amount of brought forward unabsorbed allowance (6) | J6: Amount of allowance set-off against the current year income (7) | K6: Balance Carried forward to the next year (8)
C7: 1 | D7: 2022-23
C8: =C7+1 -> 2 | H8: =MAX((E8-F8-G8),0) -> 0 | K8: =MAX((I8-J8),0) -> 0
C9: 3 | H9: =MAX((E9-F9-G9),0) -> 0 | K9: 0
C10: 4 | H10: 0 | K10: 0
C11: 5 | H11: 0 | K11: 0
C12: 6 | H12: 0 | K12: 0
C13: 7 | H13: 0 | K13: 0
C14: 8 | H14: 0 | K14: 0
C15: 9 | H15: 0 | K15: 0
C16: 10 | H16: 0 | K16: =MAX((I16-J16),0) -> 0
D17: Total | E17: =SUM(UD.BF) -> 0 | F17: =SUM(UD.115BAC) -> 0 | G17: =SUM(UD.Setoff) -> 0 | H17: =SUM(UD.Balance,UDCY.Balance) -> 0 | I17: =SUM(UD2.BF) -> 0 | J17: =SUM(UD2.Setoff) -> 0 | K17: =SUM(UD2.Balance,UDCY2.Balance) -> 0
C20: * Note: Assessment Year in Col (2) is mandatory

Sheet ICDS (hidden)
C3: Schedule ICDS | E3: Effect of Income Computation Disclosure Standards on profit
C4: Sl. No. | D4: ICDS | F4: Amount (+) or (-) | J4: =IF(OR(ICDS.AccPolicies<>"",ICDS.ValuationInv<>"",ICDS.ConsContracts<>"",ICDS.RevenueRecog<>"",ICDS.TangibleFixAssests<>"",ICDS.ChngRates<>"",ICDS.Govgrants<>"",ICDS.Securities<>"",ICDS.BorrowingCosts<>"",ICDS.ProvLiability<>""),TRUE,FALSE) -> FALSE
C5: (i) | D5: (ii) | F5: (iii)
C6: I | D6: Accounting Policies
C7: II | D7: Valuation of Inventories (other than the effect of change in method of valuation u/s 145A, if the same is separately reported at col. 4d or 4e of Part A-OI)
C8: III | D8: Construction Contracts
C9: IV | D9: Revenue Recognition
C10: V | D10: Tangible Fixed Assets
C11: VI | D11: Changes in Foreign Exchange Rates
C12: VII | D12: Government Grants
C13: VIII | D13: Securities(other than the effect of change in method of valuation u/s 145A, if the same is separately reported at col. 4d or 4e of Part A-OI)
C14: IX | D14: Borrowing Costs
C15: X | D15: Provisions, Contingent Liabilities and Contingent Assets
C16: Xi(a) | D16: Total effect of ICDS adjustments on profit (I+II+III+IV+V+VI+VII+VIII+IX+X) (if positive) | F16: =MAX(0,SUM(F6:F15)) -> 0
C17: Xi(b) | D17: Total effect of ICDS adjustments on profit (I+II+III+IV+V+VI+VII+VIII+IX+X) (if negative) | F17: =(MIN(0,SUM(F6:F15))*-1) -> 0

Sheet 10AA (hidden)
C1: Schedule 10A | F1: Deduction under section 10A
D2: 1 | E2: Deductions in respect of units located in Special Economic Zone
H3: Assessment Year Assessment year in which unit begins to manufacture/produce | I3: Amount of deduction
E4: 1 | F4: =CONCATENATE("Undertaking No.",E4) -> Undertaking No.1 | H4: (Select)
F5: Total Deductions under Section 10A | I5: =SUM(SEZA10.DedFromUndertaking) -> 0
C8: Schedule 10AA | F8: Deduction under section 10AA
C9: DEDUCTION U/S 10AA | D9: 1 | E9: Deductions in respect of units located in Special Economic Zone
H10: Assessment year in which unit begins to manufacture/produce / provide services | I10: Amount of deduction
E11: 1 | F11: =CONCATENATE("Undertaking No.",E11) -> Undertaking No.1 | H11: (Select)
E12: =E11+1 -> 2 | F12: =CONCATENATE("Undertaking No.",E12) -> Undertaking No.2 | H12: (Select)
E13: =E12+1 -> 3 | F13: =CONCATENATE("Undertaking No.",E13) -> Undertaking No.3 | H13: (Select)
F14: Total deduction under section 10AA (a + b) | I14: =SUM(AA10.DedFromUndertaking) -> 0
C18: Note: As per sec.10AA(1), the deduction will be available up to assessment year 2022-23.

Sheet 80G (hidden)
C3: Schedule 80G | D3: Details of donations entitled for deduction under section 80G (Please read NOTE below)
C4: A | D4: Donations entitled for 100% deduction without qualifying limit | T4: =SUM(PerYES10080G.EligibleAmt) -> 0 | U4: =SUM(Per5080G.EligibleAmt) -> 0 | V4: =ROUND(0.1*MAX(0,(TotalPendingIncome-(SUM('VI-A'!K6:K22)+SUM('VI-A'!K25)+SUM('VI-A'!K26)+MIN(60000,scvia.Section80GG)+SUM('VI-A'!K29:K38)+SUM('VI-A'!K40:K44)))),0) -> 2249320 | W4: =QualifyingAmount80G -> 2249320 | X4: =MAX(0,ROUND((CD_EligibleAmount-C_Eligible)/2,0)) -> 1124660
D5: SL.NO. | E5: Name of donee | F5: Address | G5: City or Town or District | H5: State Code | I5: PinCode | J5: PAN of Donee | L5: Amount of donation | O5: Eligible Amount of Donation | S5: =salary.IncOfCurYrAfterSetOffBFLosses+hp.IncOfCurYrAfterSetOffBFLosses1+busipofincl.IncOfCurYrAfterSetOffBFLosses2+busipofinclspec.IncOfCurYrAfterSetOffBFLosses2a+busipofinclspecified.IncOfCurYrAfterSetOffBFLosses2b+stcg.IncOfCurYrAfterSetOffBFLosses3b+othsrcincl.IncOfCurYrAfterSetOffBFLosses5+rh.IncOfCurYrAfterSetOffBFLosses6+SI_111+SI_115BBC+SI_115Ea -> 22493200
L6: Donation in Cash | M6: Donation in Other mode | N6: Total Donation
D7: 1 | H7: (SELECT) | N7: =SUM(L7,M7) -> 0 | O7: =MIN(VALUE(SUM(IF(L7>2000,0,L7),M7)),TotalPendingIncome) -> 0
D8: =D7+1 -> 2 | H8: (SELECT) | N8: =SUM(L8,M8) -> 0 | O8: =MIN(VALUE(SUM(IF(L8>2000,0,L8),M8)),TotalPendingIncome) -> 0
D9: =D8+1 -> 3 | H9: (SELECT) | N9: =SUM(L9,M9) -> 0 | O9: =MIN(VALUE(SUM(IF(L9>2000,0,L9),M9)),TotalPendingIncome) -> 0
D10: =D9+1 -> 4 | H10: (SELECT) | N10: =SUM(L10,M10) -> 0 | O10: =MIN(VALUE(SUM(IF(L10>2000,0,L10),M10)),TotalPendingIncome) -> 0
D12: TOTAL A | L12: =SUM(Per10080G.DonationInCash) -> 0 | M12: =SUM(Per10080G.DonationAmt) -> 0 | N12: =SUM(Per10080G.TotalDonationAmt) -> 0 | O12: =ROUND(MIN(SUM(Per10080G.EligibleAmt),TotalPendingIncome),0) -> 0
C16: B | D16: Donations entitled for 50% deduction without qualifying limit
D17: SL.NO. | E17: Name of donee | F17: Address | G17: City or Town or District | H17: State Code | I17: PinCode | J17: PAN of Donee | L17: Amount of donation | O17: Eligible Amount of Donation
L18: Donation in Cash | M18: Donation in Other mode | N18: Total Donation
D19: 1 | H19: (SELECT) | N19: =SUM(L19,M19) -> 0 | O19: =ROUND(MIN(VALUE(SUM(IF(L19>2000,0,L19),M19))/2,TotalPendingIncome),0) -> 0
D20: =D19+1 -> 2 | H20: (SELECT) | N20: =SUM(L20,M20) -> 0 | O20: =ROUND(MIN(VALUE(SUM(IF(L20>2000,0,L20),M20))/2,TotalPendingIncome),0) -> 0 | U20: DeductionSystemTotal | V20: =MIN(IF(AND(MID(sheet1.PAN,4,1)="P",MID(sheet1.Status,1,1)="I"),(VIASumWithout80G80GG+ scvia.Section80GG),( VIASumWithout80G80GG)),Sheet8b.GrossTotalIncome) -> 0
D21: =D20+1 -> 3 | H21: (SELECT) | N21: =SUM(L21,M21) -> 0 | O21: =ROUND(MIN(VALUE(SUM(IF(L21>2000,0,L21),M21))/2,TotalPendingIncome),0) -> 0 | U21: adjustGTI | V21: =MAX(0,IF(Sheet8b.GrossTotalIncome=Sheet8b.IncChargeableTaxSplRates,0,Sheet8b.GrossTotalIncome-deductionsSysTotal-Sheet8b.IncChargeableTaxSplRates+SI_111+SI_115Ea+SI_115BBC+SI_PTI_115EA+SI_PTI_115BBC)) -> 22493200
D22: =D21+1 -> 4 | H22: (SELECT) | N22: =SUM(L22,M22) -> 0 | O22: =ROUND(MIN(VALUE(SUM(IF(L22>2000,0,L22),M22))/2,TotalPendingIncome),0) -> 0 | U22: qualifyingLimit | V22: =ROUND(MAX(adjstGTI*0.1),0) -> 2249320
T23: residue | U23: =IF(TRUNC(qualifyingLimit)>PerYES10080G.TotElig100Percent,qualifyingLimit-PerYES10080G.TotElig100Percent,0) -> 2249320
D24: TOTAL B : | L24: =SUM(PerNO5080G.DonationInCash) -> 0 | M24: =SUM(PerNO5080G.DonationAmt) -> 0 | N24: =SUM(PerNO5080G.TotalDonationAmt) -> 0 | O24: =ROUND(MIN(SUM(PerNO5080G.EligibleAmt),TotalPendingIncome),0) -> 0 | U24: residue50perc
T27: ChapVIASumWithout80G80GG | U27: =SUM('VI-A'!K6:K20,'VI-A'!K26,'VI-A'!K29:K38,'VI-A'!K40:K43) -> 0
C29: C | D29: Donations entitled for 100% deduction subject to qualifying limit
D30: SL.NO. | E30: Name of donee | F30: Address | G30: City Or Town Or District | H30: State Code | I30: PinCode | J30: PAN of Donee | L30: Amount of donation | O30: Eligible Amount of Donation
L31: Donation in Cash | M31: Donation in Other mode | N31: Total Donation
D32: 1 | H32: (SELECT) | N32: =SUM(L32,M32) -> 0 | O32: =ROUND(MIN(MIN(VALUE(SUM(IF(L32>2000,0,L32),M32)),TotalPendingIncome),QualifyingAmount80G),0) -> 0
D33: =D32+1 -> 2 | H33: (SELECT) | N33: =SUM(L33,M33) -> 0 | O33: =ROUND(MIN(MIN(VALUE(SUM(IF(L33>2000,0,L33),M33)),TotalPendingIncome),QualifyingAmount80G),0) -> 0
D34: =D33+1 -> 3 | H34: (SELECT) | N34: =SUM(L34,M34) -> 0 | O34: =ROUND(MIN(MIN(VALUE(SUM(IF(L34>2000,0,L34),M34)),TotalPendingIncome),QualifyingAmount80G),0) -> 0
D35: =D34+1 -> 4 | H35: (SELECT) | N35: =SUM(L35,M35) -> 0 | O35: =ROUND(MIN(MIN(VALUE(SUM(IF(L35>2000,0,L35),M35)),TotalPendingIncome),QualifyingAmount80G),0) -> 0
D37: TOTAL C : | L37: =SUM(PerYES10080G.DonationInCash) -> 0 | M37: =SUM(PerYES10080G.DonationAmt) -> 0 | N37: =SUM(PerYES10080G.TotalDonationAmt) -> 0 | O37: =ROUND(MIN(C_Eligible,CD_EligibleAmount),0) -> 0
C41: D | D41: Donations entitled for 50% deduction subject to qualifying limit
D42: SL.NO. | E42: Name of donee | F42: Address | G42: City Or Town Or District | H42: State Code | I42: PinCode | J42: PAN of Donee | K42: ARN (Donation Reference Number) | L42: Amount of donation | O42: Eligible Amount of Donation
L43: Donation in Cash | M43: Donation in Other mode | N43: Total Donation
D44: 1 | H44: (SELECT) | N44: =SUM(L44,M44) -> 0 | O44: =ROUND(MIN(TotalPendingIncome,MIN(CDE_EligibleAmount,VALUE(SUM(IF(L44>2000,0,L44),M44)/2))),0) -> 0 | S44: =IF(L44>2000,0,L44) -> 0
D45: =D44+1 -> 2 | H45: (SELECT) | N45: =SUM(L45,M45) -> 0 | O45: =ROUND(MIN(TotalPendingIncome,MIN(CDE_EligibleAmount,VALUE(SUM(IF(L45>2000,0,L45),M45)/2))),0) -> 0 | S45: =IF(L45>2000,0,L45) -> 0
D46: =D45+1 -> 3 | H46: (SELECT) | N46: =SUM(L46,M46) -> 0 | O46: =ROUND(MIN(TotalPendingIncome,MIN(CDE_EligibleAmount,VALUE(SUM(IF(L46>2000,0,L46),M46)/2))),0) -> 0 | S46: =IF(L46>2000,0,L46) -> 0
D47: =D46+1 -> 4 | H47: (SELECT) | N47: =SUM(L47,M47) -> 0 | O47: =ROUND(MIN(TotalPendingIncome,MIN(CDE_EligibleAmount,VALUE(SUM(IF(L47>2000,0,L47),M47)/2))),0) -> 0 | S47: =IF(L47>2000,0,L47) -> 0
D49: TOTAL D | L49: =SUM(Per5080G.DonationInCash) -> 0 | M49: =SUM(Per5080G.DonationAmt) -> 0 | N49: =SUM(Per5080G.TotalDonationAmt) -> 0 | O49: =ROUND(MIN(TotalPendingIncome,MIN(CDE_EligibleAmount,VALUE((SUM(Per5080G.DonationInCash1)+M49)/2))),0) -> 0 | U49: =ROUND(MIN(TotalPendingIncome,MIN(CDE_EligibleAmount,VALUE(M49/2))),0) -> 0
C54: E | D54: TOTAL ELIGIBLE AMOUNT OF DONATIONS (AIII + BIII + CIII + DIII) | L54: =SUM(Per10080G.TotDon100Percent_InCash,PerNO5080G.TotDon100Percent_InCash,PerYES10080G.TotDon100Percent_InCash,Per5080G.TotDon100Percent_InCash) -> 0 | M54: =SUM(Per5080G.TotDon100Percent,PerYES10080G.TotDon100Percent,PerNO5080G.TotDon100Percent,Per10080G.TotDon100Percent) -> 0 | N54: =SUM(Per5080G.TotDon100Percent_Total,PerYES10080G.TotDon100Percent_Total,PerNO5080G.TotDon100Percent_Total,Per10080G.TotDon100Percent_Total) -> 0 | O54: =IF(bacValue=1,0,ROUND(SUM(Per5080G.TotElig100Percent,PerYES10080G.TotElig100Percent,PerNO5080G.TotElig100Percent,Per10080G.TotElig100Percent),0)) -> 0
C55: Note : In case of Donee is Government and PAN is not available then use "GGGGG0000G" as PAN.

Sheet 80D (hidden)
C3: 80D
C4: 1 | D4: If you are individual, whether you or any of your family member(excluding parents) is a senior citizen? If you are HUF, whether any member of HUF is a senior citizen? | L4: No
C5: a | D5: Self & Family | L5: =MIN(25000,SUM(Health_Insurance_80D,Preventive_Health_80D)) -> 14000
C6: (i) | D6: Health Insurance | L6: 14000
C7: (ii) | D7: Preventive Health Checkup
C8: b | D8: Self & Family Including Senior Citizen
C9: (i) | D9: Health Insurance
C10: (ii) | D10: Preventive Health Checkup
C11: (iii) | D11: Medical Expenditure (This deduction can be claimed on which health insurance is not claimed at (i) above)
C12: 2 | D12: Whether any one of your parents is a senior citizen | L12: Yes
C13: a | D13: Parents
C14: (i) | D14: Health Insurance
C15: (ii) | D15: Preventive Health Checkup
C16: b | D16: Parents Including Senior Citizen | L16: =MIN(50000,SUM(Health_Insurance3_80D,Preventive_Health3_80D,Medical_Expenditure2_80D)) -> 28000
C17: (i) | D17: Health Insurance | L17: 28000
C18: (ii) | D18: Preventive Health Checkup
C19: (iii) | D19: Medical Expenditure (This deduction can be claimed on which health insurance is not claimed at (i) above)
C20: 3 | D20: Eligible Amount of Deduction | L20: =IF(bacValue=1,0,MIN(GTI_LIMIT,MIN(100000,SUM(Self_And_Family_80D,Senior_Citizen_80D,Parents_80D,Parents_SC_80D)))) -> 0

Sheet RA (hidden)
C3: Schedule RA | E3: Details of donations to research associations etc. [deduction under sections 35(1)(ii) or 35(1)(iia) or 35(1)(iii) or 35(2AA)]
D5: Sl.No | E5: Name of Donee | F5: Address | G5: City or Town or District | H5: State Code | I5: Pincode | J5: PAN of donee | K5: Amount of donation
K6: Donation in cash | L6: Donation in other mode | M6: Total Donation | N6: Eligible Amount of Donation
D7: 1 | H7: (Select) | M7: =MAX(SUM(K7,L7),0) -> 0
D8: =D7+1 -> 2 | H8: (Select) | M8: =MAX(SUM(K8,L8),0) -> 0
D9: =D8+1 -> 3 | H9: (Select) | M9: =MAX(SUM(K9,L9),0) -> 0
D10: =D9+1 -> 4 | H10: (Select) | M10: =MAX(SUM(K10,L10),0) -> 0
D12: Total Donation | K12: =SUM(Donation_cash_80GGA) -> 0 | L12: =SUM(Donation_other_80GGA) -> 0 | M12: =SUM(Donation_total_80GGA) -> 0 | N12: =SUM(Donation_Eligible_80GGA) -> 0

Sheet 80GGA (hidden)
T1: =sheet10.ProfBfrTaxPL+sheet11.DebPLUs35ExcessAmt -> 0
C3: Schedule 80GGA | F3: Details of donations for scientific research or rural development
D5: Sl.No | E5: Relevant Clause under which deduction is claimed | F5: Name of Donee | G5: Address | H5: City or Town or District | I5: State Code | J5: Pincode | K5: PAN of donee | L5: Amount of donation
L6: Donation in cash | M6: Donation in other mode | N6: Total Donation | O6: Eligible Amount of Donation
D7: 1 | E7: (Select) | I7: (Select) | N7: =MAX(SUM(L7,M7),0) -> 0 | O7: =MIN(SUM(IF(L7>S7,0,L7),M7),Sheet8b.GrossTotalIncome) -> 0 | S7: =IF(L7=0,0,2000) -> 0
D8: =D7+1 -> 2 | E8: (Select) | I8: (Select) | N8: =MAX(SUM(L8,M8),0) -> 0 | O8: =MIN(SUM(IF(L8>S8,0,L8),M8),Sheet8b.GrossTotalIncome) -> 0 | S8: =IF(L8=0,0,2000) -> 0
D9: =D8+1 -> 3 | E9: (Select) | I9: (Select) | N9: =MAX(SUM(L9,M9),0) -> 0 | O9: =MIN(SUM(IF(L9>S9,0,L9),M9),Sheet8b.GrossTotalIncome) -> 0 | S9: =IF(L9=0,0,2000) -> 0
D10: =D9+1 -> 4 | E10: (Select) | I10: (Select) | N10: =MAX(SUM(L10,M10),0) -> 0 | O10: =MIN(SUM(IF(L10>S10,0,L10),M10),Sheet8b.GrossTotalIncome) -> 0 | S10: =IF(L10=0,0,2000) -> 0
D12: Total Donation | L12: =SUM(Donation_cash_80GGANew) -> 0 | M12: =SUM(Donation_other_80GGANew) -> 0 | N12: =IF(bacValue=1,0,SUM(Donation_total_80GGANew)) -> 0 | O12: =IF(MID(sheet1.ReturnFileSec,1,2)="12",0,IF(OR(bacValue=1,NOBCODE00001=0,BP_80GGA>0),0,IF(Sheet8b.TotProfBusGain>0,0,MIN(SUM(Donation_Eligible_80GGANew),TotalPendingIncome)))) -> 0
S13: =NOBCODE00001 -> 1

Sheet 80 (hidden)
C3: (Note: If no entry is made in first row then other rows will not be considered)
C4: Schedule 80-IA | F4: Deductions under section 80-IA
D6: a | E6: Deduction in respect of profits of an undertaking referred to in section 80-IA(4)(ii) [Telecommunication services]
E7: =1 -> 1 | F7: =CONCATENATE("Undertaking ",E7) -> Undertaking 1
E8: =1+E7 -> 2 | F8: =CONCATENATE("Undertaking ",E8) -> Undertaking 2
E9: =1+E8 -> 3 | F9: =CONCATENATE("Undertaking ",E9) -> Undertaking 3
D11: b | E11: Deduction in respect of profits of an undertaking referred to in section 80-IA(4)(iii) [Industrial park and SEZs]
E12: 1 | F12: =CONCATENATE("Undertaking ",E12) -> Undertaking 1
E13: =E12+1 -> 2 | F13: =CONCATENATE("Undertaking ",E13) -> Undertaking 2
D15: a | E15: Deduction in respect of profits of an undertaking referred to in section 80-IA(4)(iv) [Power]
E16: 1 | F16: =CONCATENATE("Undertaking ",E16) -> Undertaking 1
E17: =E16+1 -> 2 | F17: =CONCATENATE("Undertaking ",E17) -> Undertaking 2
D19: d | E19: Deduction in respect of profits of an undertaking referred to in section 80-IA(4)(v) [Revival of power generating plant] and deduction in respect of profits of an undertaking referred to in section 80-IA(4)(vi) [Cross-country natural gas distribution network]
E20: 1 | F20: =CONCATENATE("Undertaking ",E20) -> Undertaking 1
E21: =E20+1 -> 2 | F21: =CONCATENATE("Undertaking ",E21) -> Undertaking 2
C23: b | D23: Total deductions under section 80-IA (a1 + a2 ) | H23: =IF(bacValue=1,0,SUM(IA80.DeductProfUs80_IA_4_i,IA80.DeductProfUs80_IA_4_ii,IA80.DeductProfUs80_IA_4_iii,IA80.DeductProfUs80_IA_4_iv)) -> 0
C25: Schedule 80-IB | F25: Deductions under section 80-IB
D27: A | E27: Deduction in respect of industrial undertaking located in Jammu & Kashmir or Ladakh [Section 80-IB(4)]
E28: 1 | F28: =CONCATENATE("Undertaking ",E28) -> Undertaking 1
E29: =E28+1 -> 2 | F29: =CONCATENATE("Undertaking ",E29) -> Undertaking 2
D31: b | E31: Deduction in respect of industrial undertaking located in industrially backward states specified in Eighth Schedule [Section 80-IB(4)]
E32: 1 | F32: =CONCATENATE("Undertaking ",E32) -> Undertaking 1
E33: =E32+1 -> 2 | F33: =CONCATENATE("Undertaking ",E33) -> Undertaking 2
D35: c | E35: Deduction in respect of industrial undertaking located in industrially backward districts [Section 80-IB(5)]
E36: 1 | F36: =CONCATENATE("Undertaking ",E36) -> Undertaking 1
E37: =E36+1 -> 2 | F37: =CONCATENATE("Undertaking ",E37) -> Undertaking 2
D39: b | E39: Deduction in the case of multiplex theatre [Section 80-IB(7A)]
E40: 1 | F40: =CONCATENATE("Undertaking ",E40) -> Undertaking 1
E41: =E40+1 -> 2 | F41: =CONCATENATE("Undertaking ",E41) -> Undertaking 2
D43: c | E43: Deduction in the case of convention centre [Section 80-IB(7B)]
E44: 1 | F44: =CONCATENATE("Undertaking ",E44) -> Undertaking 1
E45: =E44+1 -> 2 | F45: =CONCATENATE("Undertaking ",E45) -> Undertaking 2
D47: B | E47: Deduction in the case of undertaking which begins commercial production or refining of mineral oil [Section 80-IB(9)]
E48: 1 | F48: =CONCATENATE("Undertaking ",E48) -> Undertaking 1
E49: =E48+1 -> 2 | F49: =CONCATENATE("Undertaking ",E49) -> Undertaking 2
D51: C | E51: Deduction in the case of an undertaking developing and building housing projects [Section 80-IB(10)]
E52: 1 | F52: =CONCATENATE("Undertaking ",E52) -> Undertaking 1
E53: =E52+1 -> 2 | F53: =CONCATENATE("Undertaking ",E53) -> Undertaking 2
D55: h | E55: Deduction in the case of an undertaking operating a cold chain facility [Section 80-IB(11)]
E56: 1 | F56: =CONCATENATE("Undertaking ",E56) -> Undertaking 1
E57: =E56+1 -> 2 | F57: =CONCATENATE("Undertaking ",E57) -> Undertaking 2
D59: D | E59: Deduction in the case of an undertaking engaged in processing, preservation and packaging of fruits and vegetables , meat, meat products, poultry, marine or dairy products [Section 80-IB(11A)]
E60: 1 | F60: =CONCATENATE("Undertaking ",E60) -> Undertaking 1
E61: =E60+1 -> 2 | F61: =CONCATENATE("Undertaking ",E61) -> Undertaking 2
D63: E | E63: Deduction in the case of an undertaking engaged in integrated business of handling, storage and transportation of food grains [Section 80-IB(11A)]
E64: 1 | F64: =CONCATENATE("Undertaking ",E64) -> Undertaking 1
E65: =E64+1 -> 2 | F65: =CONCATENATE("Undertaking ",E65) -> Undertaking 2
D67: h | E67: Deduction in the case of an undertaking engaged in operating and maintaining a rural hospital [Section 80-IB(11B)]
E68: 1 | F68: =CONCATENATE("Undertaking ",E68) -> Undertaking 1
E69: =E68+1 -> 2 | F69: =CONCATENATE("Undertaking ",E69) -> Undertaking 2
D71: i | E71: Deduction in the case of an undertaking engaged in operating and maintaining a hospital in any area, other than excluded area [Section 80-IB(11C)
E72: 1 | F72: =CONCATENATE("Undertaking ",E72) -> Undertaking 1
E73: =E72+1 -> 2 | F73: =CONCATENATE("Undertaking ",E73) -> Undertaking 2
C75: F | D75: Total deduction under section 80-IB (Total of A1 to E2) | H75: =IF(bacValue=1,0,SUM(IB80.DeductJKLocUs80_IB_4,IB80.DeductBackStatesUs80_IB_4,IB80.DeductBackDisttUs80_IB_5,IB80.DeductMultiplexUs80_IB_7A,IB80.DeductConvCentUs80_IB_7B,IB80.DeductMinOilUs80_IB_9,IB80.DeductHousUs80_IB_10,IB80.DeductColdChainUs80_IB_11,IB80.DeductFruitVegUs80_IB_11A,IB80.DeductFoodGrainUs80_IB_11A,IB80.DeductRurHospUs80_IB_11B,IB80.DeductHospAnyAreaUs80IB_11C)) -> 0
C77: Schedule 80-IC or 80-IE | F77: Deductions under section 80-IC or 80-IE
D79: a | E79: Deduction in respect of industrial undertaking located in Sikkim
E80: 1 | F80: =CONCATENATE("Undertaking ",E80) -> Undertaking 1
E81: =E80+1 -> 2 | F81: =CONCATENATE("Undertaking ",E81) -> Undertaking 2
D83: b | E83: Deduction in respect of industrial undertaking located in Himachal Pradesh
E84: 1 | F84: =CONCATENATE("Undertaking ",E84) -> Undertaking 1
E85: =E84+1 -> 2 | F85: =CONCATENATE("Undertaking ",E85) -> Undertaking 2
D87: c | E87: Deduction in respect of industrial undertaking located in Uttaranchal
E88: 1 | F88: =CONCATENATE("Undertaking ",E88) -> Undertaking 1
E89: =E88+1 -> 2 | F89: =CONCATENATE("Undertaking ",E89) -> Undertaking 2
D91: d | E91: Deduction in respect of industrial undertaking located in North-East
E92: da | F92: Assam
F93: 1 | G93: =CONCATENATE("Undertaking ",F93) -> Undertaking 1
F94: =F93+1 -> 2 | G94: =CONCATENATE("Undertaking ",F94) -> Undertaking 2
E96: db | F96: Arunachal Pradesh
F97: 1 | G97: =CONCATENATE("Undertaking ",F97) -> Undertaking 1
F98: =F97+1 -> 2 | G98: =CONCATENATE("Undertaking ",F98) -> Undertaking 2
E100: dc | F100: Manipur
F101: 1 | G101: =CONCATENATE("Undertaking ",F101) -> Undertaking 1
F102: =F101+1 -> 2 | G102: =CONCATENATE("Undertaking ",F102) -> Undertaking 2
E104: dd | F104: Mizoram
F105: 1 | G105: =CONCATENATE("Undertaking ",F105) -> Undertaking 1
F106: =F105+1 -> 2 | G106: =CONCATENATE("Undertaking ",F106) -> Undertaking 2
E108: de | F108: Meghalaya
F109: 1 | G109: =CONCATENATE("Undertaking ",F109) -> Undertaking 1
F110: =F109+1 -> 2 | G110: =CONCATENATE("Undertaking ",F110) -> Undertaking 2
E112: df | F112: Nagaland
F113: 1 | G113: =CONCATENATE("Undertaking ",F113) -> Undertaking 1
F114: =F113+1 -> 2 | G114: =CONCATENATE("Undertaking ",F114) -> Undertaking 2
E116: dg | F116: Tripura
F117: 1 | G117: =CONCATENATE("Undertaking ",F117) -> Undertaking 1
F118: =F117+1 -> 2 | G118: =CONCATENATE("Undertaking ",F118) -> Undertaking 2
E120: dh | F120: Total of deduction for undertakings located in North-east (Total of da 1 to dg 2 ) | H120: =IF(bacValue=1,0,SUM(IC80.Assam,IC80.ArunachalPradesh,IC80.Manipur,IC80.Mizoram,IC80.Meghalaya,IC80.Nagaland,IC80.Tripura)) -> 0
D122: e | E122: Total deduction under section 80-IC or 80-IE (a+b+c+dh) | H122: =IF(bacValue=1,0,SUM(IC80.DeductInSikkim,IC80.DeductInHimachalP,IC80.DeductInUttaranchal,IC80.TotDeductInNorthEast)) -> 0

Sheet VI-A
Q2: SAL.TotalGrossSalary | AF2: Central Govt | AG2: 0
C3: Schedule VI-A | E3: Deductions under Chapter VI-A | V3: GTI_Limit | W3: =MAX(0,ROUND((Sheet8b.GrossTotalIncome-Sheet8b.IncChargeableTaxSplRates),0)) -> 22493200 | Y3: =MAX(0,MIN(GTI_LIMIT)) -> 22493200 | AF3: State Govt | AG3: 0
AF4: Public SU | AG4: 0
C5: TOTAL DEDUCTIONS | D5: 1. Part B- Deduction in respect of certain payments | K5: System Calculated | V5: Max_Amount | W5: =IF(GTI_LIMIT>150000,150000,GTI_LIMIT) -> 150000 | AF5: Pensioner | AG5: 0
D6: a | E6: 80C - Life insurance premia, deferred annuity, contributions to provident fund, subscription to certain equity shares or debentures, etc. | H6: a | I6: 0 | K6: =MIN(MIN(VALUE(scvia.Section80C),150000),GTI_LIMIT) -> 0 | W6: =SUM(scvia.Section80C,scvia.Section80CCC) -> 0 | AF6: OTHER | AG6: 1 | BC6: =IF(AND(MID(sheet1.Status,1,1)="I",BC7=1),1,0) -> 0 | BR6: =IF(MID(sheet1.Status,1,1)="H",0,IF(SAL.TotalGrossSalary=0,MIN(VALUE(scvia.Section80CCD_SE),MIN(150000,IF(OR(Temp_Pensioner>0,Temp_Null_1>0),ROUND(Sheet8b.GrossTotalIncome*0.2,0),ROUND(Temp_DA_BS*0.1,0))),Max_Amount-scvia.Section80C_Calc-scvia.Section80CCC_Calc),MIN(VALUE(scvia.Section80CCD_SE),Max_Amount-scvia.Section80C_Calc-scvia.Section80CCC_Calc,MIN(150000,MAX(0,,IF(OR(Temp_Pensioner>0,Temp_Null_1>0),ROUND(Sheet8b.GrossTotalIncome*0.2,0),ROUND(Temp_DA_BS*0.1,0))))))) -> 0
D7: b | E7: 80CCC - Payment in respect Pension Fund | H7: b | I7: 0 | K7: =IF(MID(sheet1.Status,1,1)="H",0,MIN(MIN(VALUE(scvia.Section80CCC), 150000,150000 - scvia.Section80C_Calc),GTI_LIMIT)) -> 0 | AF7: Select or null | AG7: 1 | AH7: =IF(SalarySectionCount=Temp_Null,Temp_Null,0) -> 0 | BC7: =IF(AND(age>59,MID(sheet1.ResidentialStatus1, 1, 2) = "NR"),1,0) -> 0
D8: c | E8: 80CCD(1) - Contribution to pension scheme of Central Government | H8: c | I8: 0 | K8: =IF(OR(Temp80C>150000,Temp80C>GTI_LIMIT),0,IF(MID(sheet1.Status,1,1)="H",0,IF(SAL.TotalGrossSalary=0,MIN(VALUE(scvia.Section80CCD_SE),MIN(150000,IF(OR(Temp_Pensioner>0,Temp_Null_1>0),ROUND(Sheet8b.GrossTotalIncome*0.2,0),ROUND(Temp_DA_BS*0.1,0))),Max_Amount-scvia.Section80C_Calc-scvia.Section80CCC_Calc),MIN(VALUE(scvia.Section80CCD_SE),Max_Amount-scvia.Section80C_Calc-scvia.Section80CCC_Calc,MIN(150000,MAX(0,,IF(OR(Temp_Pensioner>0,Temp_Null_1>0),ROUND(Sheet8b.GrossTotalIncome*0.2,0),ROUND(Temp_DA_BS*0.1,0)))))))) -> 0 | O8: 19471800 | Q8: Salaryded | R8: 0 | AD8: =IF(AND(MID(sheet1.Status,1,1)="I",AD9=1),1,0) -> 0 | AF8: DA or Basic salary | AG8: 19410000 | BC8: =IF(OR(age<= 59,MID(sheet1.ResidentialStatus1, 1, 2) = "NR"),1,0) -> 1
D9: d | E9: 80CCD(1B) - Contribution to pension scheme of Central Government | H9: d | I9: 0 | K9: =IF(MID(sheet1.Status,1,1)="I",MIN(VALUE(scvia.Section80CCD1B_SE),50000,GTI_LIMIT),0) -> 0 | AD9: =IF(AND(age>59,MID(sheet1.ResidentialStatus1, 1, 2) = "NR"),1,0) -> 0 | AG9: =IF(MID(sheet1.Status,1,1)="H",0,IF(SAL.TotalGrossSalary=0,MIN(VALUE(scvia.Section80CCD_SE),MIN(150000,ROUND(Sheet8b.GrossTotalIncome*0.2,0)),Max_Amount-scvia.Section80C_Calc-scvia.Section80CCC_Calc),MIN(VALUE(scvia.Section80CCD_SE),Max_Amount-scvia.Section80C_Calc-scvia.Section80CCC_Calc,MIN(150000,MAX(0,ROUND(Sheet11.Salaries80CCD2*0.1,0)))))) -> 0 | BC9: =IF(AND(MID(sheet1.Status,1,1)="I",BC8=1),1,0) -> 1
D10: e | E10: 80CCD(2) - Contribution to pension scheme of Central Government by the Employer | H10: e | I10: 0 | K10: =ROUND(IF(MID(sheet1.Status,1,1)="H",0,MIN(MIN(VALUE(scvia.Section80CCD), MAX(0,IF(OR(Temp_CG>0,Temp_SG>0),0.14*(Temp_DA_BS),IF(OR(Temp_SG>0,Temp_PSU>0,Temp_OTH>0),0.1*(Temp_DA_BS),0)))),GTI_LIMIT)),0) -> 0 | W10: Tot Income | AC10: 19471800 | AD10: =IF(OR(age<=59,MID(sheet1.ResidentialStatus1, 1, 2) = "NR"),1,0) -> 1 | AF10: HRA | AG10: 0 | BC10: =IF(OR(MID(SELECT80D,1,1) ="(", MID(SELECT80D,1,1)=""),0,MID(SELECT80D,1,1)) -> 0
D11: f | E11: 80CCG - Investment made under an equity savings scheme | H11: f | K11: =IF(MID(sheet1.Status,1,1)="H",0,MIN(IF(MID(sheet1.ResidentialStatus1,1,3)="NRI",0,IF((GTI_LIMIT +Sheet8b.IncChargeableTaxSplRates)> 1200000,0,MIN(VALUE(scvia.Section80CCG),25000))),GTI_LIMIT)) -> 0 | Q11: =IF(AND(BC10="1",P16=1),1,IF(AND(BC10="3",P16=2),2,IF(AND(BC10="5",P16=3),3,IF(AND(BC10="6",OR(P16=1,P16=2,P16=3)),4,0)))) -> 0 | R11: =IF(Q11=1,MIN(25000,(IncD.Section80DC_Calc+BC14)),IF(Q11=2,MIN(25000,(IncD.Section80DC_Calc+BC14)),IF(Q11=3,MIN(50000,(IncD.Section80DC_Calc+BC14)),IF(Q11=4,MIN(75000,(IncD.Section80DC_Calc+BC14)),(IncD.Section80DC_Calc+BC14))))) -> 0 | W11: =ROUND(Sheet8b.TotalIncome,0) -> 22493200 | AD11: =IF(AND(MID(sheet1.Status,1,1)="I",AD10=1),1,0) -> 1 | AF11: HRA | AH11: GTI_LIMIT | AI11: =MAX(0,VALUE(Sheet2.GrossTotalIncome)-VALUE(Sheet2.IncChargeableTaxSplRates)) ->  | BC11: =IF(OR(BC10="1",BC10="3"),25000,IF(OR(BC10="2",BC10="4"),IF(AND(BC10="2",BC6=1),25000,50000),IF(BC10="5",50000,IF(BC10="6",75000,IF(BC10="7",IF(BC9=1,75000,100000),0))))) -> 0
D12: f | E12: 80CCF | H12: f | K12: IF(GTI_LIMIT > 1200000,0,MIN(VALUE(scvia.Section80CCG),25000))),GTI_LIMIT)) | AF12: HRA Sec 13A | AG12: 0
D13: f | E13: 80D-Deduction in respect of Health Insurance premia | H13: f | I13: =Eligible_Amount_80D -> 0 | K13: =scvia.Section80DValue -> 0 | R13: =IF(ISERROR(R11),0,R11) -> 0 | AC13: =IF( OR(MID(SELECT80D,1,1) ="(", MID(SELECT80D,1,1)=""),0,MID(SELECT80D,1,1)) -> 0 | AD13: =IF(OR(AC13="1",AC13="3"),25000,IF(OR(AC13="2",AC13="4"),IF(AND(AC13="2",AD8=1),25000,50000),IF(AC13="5",50000,IF(AC13="6",75000,IF(AC13="7",IF(AD11=1,75000,100000),0))))) -> 0 | AE13: =MIN(VALUE(scvia.Section80D),MIN(GTI_LIMIT,AD13)) -> 0 | AF13: HRA Sec 13A | AG13: 0 | AH13: Max Amount | AI13: =IF(GTI_LIMIT>150000,150000,GTI_LIMIT) -> 150000
E14: (A) Health Insurance Premium | AC14: =IF( OR(MID(SELECT80DB,1,1) ="(", MID(SELECT80DB,1,1)=""),0,MID(SELECT80DB,1,1)) -> 0 | AD14: =IF(AC14="1",50000,IF(AC14="2",50000,IF(AC14="3",100000,0))) -> 0 | AE14: =IF(MID(sheet1.Status,1,1)<>"I",MIN(VALUE(scvia.Section80DB),MIN(GTI_LIMIT,50000)),IF(AND(MID(sheet1.ResidentialStatus1,1,3)<>"NRI",age>=80),MIN(VALUE(scvia.Section80DB),MIN(GTI_LIMIT,AD14)),MIN(VALUE(scvia.Section80DB),MIN(GTI_LIMIT,AD14)))) ->  | AF14: HRA Sec 13A | BC14: =IF(MID(sheet1.Status,1,1)<>"I",MIN(VALUE(scvia.Section80D),MIN(GTI_LIMIT,50000)),IF(AND(MID(sheet1.ResidentialStatus1,1,3)<>"NRI",age>59),MIN(VALUE(scvia.Section80D),MIN(GTI_LIMIT,BC11)),MIN(VALUE(scvia.Section80D),MIN(GTI_LIMIT,BC11)))) -> 0
E15: (B) Medical expenditure | K15: =T15 -> 0 | O15: 80DB | P15: =IF( OR(MID(SELECT80DB,1,1) ="(", MID(SELECT80DB,1,1)=""),0,MID(SELECT80DB,1,1)) -> 0 | Q15: =IF(P15="1",50000,IF(P15="2",50000,IF(P15="3",100000,0))) -> 0 | R15: =IF(AND(INT(MID(sheet1.DOB,4,2))=4,INT(MID(sheet1.DOB,1,2))=1),IF(MID(sheet1.ResidentialStatus1,1,2)="NR",Q15,Q15),Q15) -> 0 | S15: =IF(MID(sheet1.Status,1,1)="H",MIN(50000,MIN(VALUE(IncD.Section80DB),GTI_LIMIT)),MIN(MIN(IF(INT(MID(sheet1.DOB,7,4))<1939,IF(MID(sheet1.ResidentialStatus1,1,2)="NR",Q15,Q15),IF(INT(MID(sheet1.DOB,7,4))=1939, IF(INT(MID(sheet1.DOB,4,2))<4,IF(MID(sheet1.ResidentialStatus1,1,2)="NR",Q15,Q15),R15),Q15)),VALUE(IncD.Section80DB)),GTI_LIMIT)) -> 0 | T15: =IF(MID(sheet1.Status,1,1)="H",MIN(50000,SUM(R13,IF(ISERROR(IncD.Section80DB_Calc),0,IncD.Section80DB_Calc))),MIN(100000,SUM(R13,IF(ISERROR(IncD.Section80DB_Calc),0,IncD.Section80DB_Calc)))) -> 0 | AC15: =IF( OR(MID(SELECT80DC,1,1) ="(", MID(SELECT80DC,1,1)=""),0,MID(SELECT80DC,1,1)) -> 0 | AD15: =MIN(MIN(IF(AC15="1",5000,IF(AC15="2",5000,IF(AC15="3",5000,0))),GTI_LIMIT),IF(scvia.Section80DC="",0,scvia.Section80DC)) ->  | AE15: =AD15 ->  | AF15: HRA Sec 13A
E16: (C) Preventive health check-up | O16: 80DC | P16: =IF(MID(SELECT80DC,1,1)="1",1,IF(MID(SELECT80DC,1,1)="2",2,IF(MID(SELECT80DC,1,1)="3",3,0))) -> 0 | Q16: =IF(P16=1,5000,IF(P16=2,5000,IF(P16=3,5000,0))) -> 0 | R16: =MIN(Q16,VALUE(IF(IncD.Section80DC="",0,IncD.Section80DC)),GTI_LIMIT) -> 0 | AC16: =IF( OR(MID(SELECT80DD,1,1) ="(", MID(SELECT80DD,1,1)=""),0,MID(SELECT80DD,1,1)) ->  | AD16: =IF(AC16="1",75000,IF(AC16="2",125000,0)) ->  | AF16: HRA Sec 13A
D17: g | E17: 80 DD - Maintenance including medical treatment of a dependant who is a person with disability. (Please fill 80DD Schedule. This field is auto-populated from schedule.) | H17: g | I17: =IF(MID(sheet1.ResidentialStatus1,1,3)<>"NRI",Amtdeduction_80DD,0) -> 0 | K17: =IF(MID(sheet1.ResidentialStatus1,1,3)<>"NRI",Amtdeduction_80DD,0) -> 0 | W17: OneFrthofTI | AC17: =IF( OR(MID(SELECT80DDB,1,1) ="(", MID(SELECT80DDB,1,1)=""),0,MID(SELECT80DDB,1,1)) -> 0 | AD17: =IF(AC17="1",40000,IF(AC17="2",100000,0)) -> 0 | AF17: Total 17(1) | AG17: 19471800 | AW17: 80DD | AX17: =IF(MID(SELECT80DD,1,1)="1",1,IF(MID(SELECT80DD,1,1)="2",2,0)) ->  | AY17: =IF(VALUE(scvia.Section80DD)>0,IF(AX17=1,75000,IF(AX17=2,125000,0)),0) -> 0
D18: h | E18: 80 DDB - Medical treatment of specified disease | F18: (Select) | H18: h | I18: 0 | K18: =MIN(IF(MID(sheet1.ResidentialStatus1,1,3)<>"NRI",MIN(Sec80DDBref,VALUE(scvia.Section80DDB)),0),GTI_LIMIT) -> 0 | W18: =ROUND(0.25*totInc_temp,0) ->  | AF18: Inc 89A | AG18: 0 | AW18: 80DDB | AX18: =IF(MID(SELECT80DDB,1,1)="1",1,IF(MID(SELECT80DDB,1,1)="2",2,IF(MID(SELECT80DDB,1,1)="3",3,0))) -> 0 | AY18: =IF(AX18=1,40000,IF(AX18=2,100000,0)) -> 0
D19: i | E19: 80 E - Interest on loan taken for higher education | H19: i | I19: 0 | K19: =IF(MID(sheet1.Status,1,1)="H",0,MIN(VALUE(scvia.Section80E),GTI_LIMIT)) -> 0 | Q19: GG | AF19: Inc 89AOther | AG19: 0
D20: j | E20: 80EE - Interest on loan taken for residential house property | H20: j | K20: =MIN(IF(MID(sheet1.Status,1,1)="H",0,MIN(VALUE(scvia.Section80EE),GTI_LIMIT)),50000) -> 0 | Q20: =SUM(K6:K23)+SUM(K26:K26)+SUM(K29:K38)+SUM(K40:K42) -> 0
D21: k | E21: 80EEA-Deduction in respect of interest on loan taken for certain house property | H21: k | K21: =MAX(0,IF(MID(sheet1.Status,1,1)="H",0,MIN(MIN(VALUE(scvia.Section80EEA),GTI_LIMIT),150000))) -> 0
D22: l | E22: 80EEB-Deduction in respect of purchase of electric vehicle | H22: l | I22: 0 | K22: =MAX(0,IF(MID(sheet1.Status,1,1)="H",0,MIN(MIN(VALUE(scvia.Section80EEB),GTI_LIMIT),150000))) -> 0
D23: m | E23: 80 G - Donations to certain funds, charitable institutions, etc (Please fill 80G Schedule. This field is auto-populated from schedule.) | H23: m | I23: =Per5080G.TotalEligibleDonationsUs80G -> 0 | K23: =Per5080G.TotalEligibleDonationsUs80G -> 0
D24: n | E24: 80 GG - Rent paid | H24: n | I24: 0 | K24: =MIN(MIN(ROUND(IF(MID(sheet1.Status,1,1)="H",0,MIN(60000, 0.25*(MAX(0,GTI_LIMIT-Q20)))),0),VALUE(scvia.Section80GG)),GTI_LIMIT) -> 0 | Z24: =ROUND(Sheet8b.GrossTotalIncome*0.2,0) -> 4498640
D25: o | E25: 80GGA - Certain donations for scientific research or rural development (Please fill 80GGA Schedule. This field is auto-populated from schedule.) | H25: o | I25: =Total_Donation_Total_80GGANew -> 0 | K25: =IF(bacValue=1,0,IF(Sheet8b.TotProfBusGain>0,0,Total_Donation_Eligible_80GGANew)) -> 0 | Z25: =Max_Amount-scvia.Section80C_Calc-scvia.Section80CCC_Calc -> 150000
D26: p | E26: 80 GGC - Donation to Political party (Please fill 80GGC Schedule. This field is auto-populated from schedule.) | H26: p | I26: =IF(bacValue=1,0,Total_Donation_80GGC) -> 0 | K26: =IF(bacValue=1,0,Total_Donation_Eligible_80GGC) -> 0 | U26: 10-11-13A-13B
D27: Total Deduction under Part B (total of a to o(i)) | I27: =SUM(I6:I26) -> 0 | K27: =MIN(SUM(K6:K26),Sheet8b.GrossTotalIncome-Sheet8b.IncChargeableTaxSplRates) -> 0 | U27: =(Sheet8b.GrossTotalIncome-Sheet8b.IncChargeableTaxSplRates-Sheet8b.PartCchapterVIA) -> 22493200
D28: 2. Part C,CA and D- Deduction in respect of certain incomes/other deduction
D29: p | E29: 80IA (b of Schedule 80-IA) - Profits and gains from industrial undertakings or enterprises engaged in infrastructure development, etc. | H29: p | I29: =IA80.TotSchedule80_IA -> 0 | K29: =scvia.Section80IA -> 0
D30: q | E30: 80IAB - Profits and gains by an undertaking or enterprise engaged in development of Special Economic Zone | H30: q | I30: 0 | K30: =scvia.Section80IAB -> 0 | W30: Tot Deductions Without 80GG | AA30: SUM of Individual Deductions
D31: r | E31: 80IB (F of Schedule 80-IB) - Profits and gains from certain industrial undertakings other than infrastructure development undertakings | H31: r | I31: =IB80.TotSchedule80_IB -> 0 | K31: =scvia.Section80IB -> 0 | W31: =SUM('VI-A'!K6:K23,'VI-A'!K26,'VI-A'!K29:K38,'VI-A'!K40:K43) -> 0 | AA31: dedPartB | AB31: =MIN(GTI_LIMIT,SUM(K6:K23,scvia.Section80GGC_Calc)) -> 0
D32: s | E32: 80-IBA - Profits and gains from housing projects | H32: s | I32: 0 | K32: =scvia.Section80IBA -> 0
D33: t | E33: 80IC / 80IE (e of Schedule 80-IC/ 80-IE) - Special provisions in respect of certain undertakings or enterprises in certain special category States/Special provisions in respect of certain undertakings in North-Eastern States Note: values in the latest statutory forms avaliable at the time of processing the return to be adopted | H33: t | I33: =IC80.TotSchedule80_IC -> 0 | K33: =scvia.Section80IC -> 0 | AA33: dedPartCA | AB33: =MIN(GTI_LIMIT,SUM(K40:K42)) -> 0
D34: t | E34: 80ID | H34: t | K34: =MIN(VALUE(scvia.Section80ID),GTI_LIMIT_PartC)*1 -> 0 | AA34: dedPartC | AB34: =MIN(GTI_LIMIT_PartC,SUM(K29:K38)) -> 0
D35: u | E35: 80JJA - Profits and gains from business of collecting and processing of bio-degradable waste. | H35: u | I35: 0 | K35: =scvia.Section80JJA -> 0 | P35: =MIN(MIN(scvia.Section80GG,0),MIN(24000,0.25*MAX(0,(Sheet8b.GrossTotalIncome-SUM(K6:K23,K26,K29:K38,K40:K42))))) -> 0
D36: v | E36: 80JJAA - Employment of new employees | H36: v | I36: 0 | K36: =scvia.Section80JJAA -> 0
D37: q | E37: 80QQB - Royalty income of authors of certain books. Note: This deduction shall be allowed only if Form 10CCD and return is filed by the assessee within due date | H37: q | I37: 0 | K37: =MIN(IF(MID(sheet1.ResidentialStatus1,1,3)="NRI",0,IF(MID(sheet1.Status,1,1)<>"I",0,MIN(MIN(VALUE(scvia.Section80QQB),300000),MAX(0,MIN(GTI_LIMIT,MAX(0,os.TotalAnyOtherIncome+PL_TotalOfCreditsToProfit))))))) -> 0
D38: r | E38: 80RRB - Royalty on patents Note: This deduction shall be allowed only if the assessee has filed Form 10CCE and return within due date | H38: r | I38: 0 | K38: =MIN(IF(MID(sheet1.ResidentialStatus1,1,3)="NRI",0,IF(MID(sheet1.Status,1,1)<>"I",0,MIN(MIN(VALUE(scvia.Section80RRB),300000),MAX(0,MIN(GTI_LIMIT,MAX(0,os.TotalAnyOtherIncome+PL_TotalOfCreditsToProfit))))))) -> 0 | AA38: DedViA
D39: Total Deduction under Part C (total of p to x) | H39: 2 | I39: =SUM(I29:I33,I35:I38) -> 0 | K39: =MAX(0,MIN(SUM(scvia.Section80IA_Calc,scvia.Section80IAB_Calc,scvia.Section80IB_Calc,scvia.Section80IC_Calc,scvia.Section80JJA_Calc,scvia.Section80QQB_Calc,scvia.Section80RRB_Calc,scvia.Section80JJAA_Calc,scvia.Section80IBA_Calc),(Sheet8b.GrossTotalIncome-Sheet8b.IncChargeableTaxSplRates),Sheet8b.GrossTotalIncome-Sheet8b.IncChargeableTaxSplRates)) -> 0 | AA39: =IF(Sheet8b.GrossTotalIncome>0,IF(Tot_Inc_Without_80GG>GTI_LIMIT,GTI_LIMIT,Tot_Inc_Without_80GG),Tot_Inc_Without_80GG) -> 0
D40: s | E40: 80TTA - Interest on saving bank Accounts incase of other than Resident senior citizens | H40: s | I40: 0 | K40: =MIN(othsrcincl.IncOfCurYrAfterSetOffBFLosses5,MIN(MIN(VALUE(scvia.Section80TTA),10000),MAX(0,MIN(GTI_LIMIT,MAX(0,os.SavingBank))))) -> 0 | AA40: totInc
D41: t | E41: 80TTB - Interest on deposits in case of Resident senior citizens | H41: t | I41: 0 | K41: =MIN(othsrcincl.IncOfCurYrAfterSetOffBFLosses5,MIN(MIN(VALUE(scvia.Section80TTB),50000),MAX(0,MIN(GTI_LIMIT,MAX(0,os.SavingBank+os.TermDeposit))))) -> 0
D42: u | E42: 80 U - In case of a person with disability. (Please fill 80U Schedule. This field is auto-populated from schedule.) | H42: u | I42: =IF(MID(sheet1.ResidentialStatus1,1,3)="NRI",0,IF(MID(sheet1.Status,1,1)<>"I",0,Amtdeduction_80U)) -> 0 | K42: =IF(MID(sheet1.ResidentialStatus1,1,3)="NRI",0,IF(MID(sheet1.Status,1,1)<>"I",0,Amtdeduction_80U)) -> 0 | P42: New | Q42: Old | AA42: totInc | AW42: 80U | AX42: =IF(MID(SELECT80U,1,1)="1",1,IF(MID(SELECT80U,1,1)="2",2,0)) ->  | AY42: =IF(AX42=1,75000,IF(AX42=2,125000,0)) -> 
D43: Total Deduction under Part CA and D (total of I,ii and iii) | H43: 3 | I43: =SUM(scvia.Section80TTA,scvia.Section80TTB,scvia.Section80U) -> 0 | K43: =MAX(0,MIN(SUM(K40:K42),Sheet8b.GrossTotalIncome-Sheet8b.IncChargeableTaxSplRates)) -> 0
D44: ua | E44: 80CCH-Contribution to Agnipath Scheme | H44: ua | K44: =IF(bacValue=2,MIN(MIN(IF(ISBLANK(Anyother80CCH),0,Anyother80CCH),Anyother80CCH_PreCalc),288000),IF(bacValue=1,MIN(MIN(IF(ISBLANK(Anyother80CCH),0,Anyother80CCH),Anyother80CCH_PreCalc_Newreg),288000))) -> 0 | P44: 0 | Q44: 11683080
D45: ub | E45: Any other deductions | H45: ub
D46: v | E46: Deductions (Total of a to ua) | H46: v | I46: =(scvia.TotPartBchapterVIA+scvia.TotPartCchapterVIA+scvia.TotPartCAandDchapterVIA+Anyother80CCH) -> 0 | K46: =ROUND(MAX(0,MIN((scvia.TotPartBchapterVIA_Calc+scvia.TotPartCchapterVIA_Calc+scvia.TotPartCAandDchapterVIA_Calc+Anyother80CCH_Calc),Sheet8b.GrossTotalIncome-Sheet8b.IncChargeableTaxSplRates)),0) -> 0

Sheet 80U-80DD (hidden)
D4: Schedule 80U | E4: Details of deduction in case of a person with disability | AA4: 80UU | AB4: =IF(MID(Naturedisability_80U,1,1)="1",1,IF(MID(Naturedisability_80U,1,1)="2",2,0)) -> 0
D5: Nature of disability | E5: Amount of deduction | F5: Date of filing of Form 10IA | G5: Ack. No. of Form 10IA filed | H5: UDID Number (If available) | AA5: =IF(AB4=1,75000,IF(AB4=2,125000,0)) -> 0
D6: (Select) | E6: =IF(bacValue=1,0,MIN(IF(MID(sheet1.ResidentialStatus1,1,3)="NRI",0,IF(MID(sheet1.Status,1,1)<>"I",0,Naturedisability_80U_v)),GTI_LIMIT)) -> 0
D14: Section 80DD | E14: Details of deduction in respect of maintenance including medical treatment of a dependent who is a person with disability. | AA14: 80DD | AB14: =IF(MID(Naturedisability_80DD,1,1)="1",1,IF(MID(Naturedisability_80DD,1,1)="2",2,0)) -> 0
D15: Nature of disability | E15: Amount of Deduction | F15: Type of dependent | G15: PAN of the dependent | H15: Aadhaar of the dependent | I15: Date of filing of Form 10IA | J15: Ack. No. of Form 10IA filed | K15: UDID Number (If available) | AA15: =IF(AB14=1,75000,IF(AB14=2,125000,0)) -> 0
D16: (Select) | E16: =IF(bacValue=1,0,MIN(IF(MID(sheet1.ResidentialStatus1,1,3)<>"NRI",Naturedisability_80DD_v,0),GTI_LIMIT)) -> 0 | F16: (Select)

Sheet 80GGC (hidden)
D4: Schedule 80GGC | F4: Details of contribution made to political parties
D6: Sl.No. | E6: Date | F6: Amount of contribution | I6: Eligible Amount of Contribution | J6: Transaction Reference number for UPI transfer or Cheque number/IMPS/NEFT/RTGS reference number | K6: IFSC code of Bank
F7: Contribution in cash | G7: Contribution in other mode | H7: Total contribution
D8: 1 | H8: =MAX(SUM(F8,G8),0) -> 0 | I8: =MIN(SUM(IF(F8>0,0,F8),G8),GTI_LIMIT) -> 0
D9: =D8+1 -> 2 | H9: =MAX(SUM(F9,G9),0) -> 0 | I9: =MIN(SUM(IF(F9>0,0,F9),G9),GTI_LIMIT) -> 0
D10: =D9+1 -> 3 | H10: 0 | I10: =MIN(SUM(IF(F10>0,0,F10),G10),GTI_LIMIT) -> 0
D11: 4 | H11: 0 | I11: =MIN(SUM(IF(F11>0,0,F11),G11),GTI_LIMIT) -> 0
D13: Total Contribution | F13: =SUM(Donationincash_80GGC) -> 0 | G13: =SUM(Donationinothermode_80GGC) -> 0 | H13: =IF(bacValue=1,0,SUM(TotalDonation_80GGC)) -> 0 | I13: =IF(bacValue=1,0,SUM(EligibleAmountofDonation_80GGC)) -> 0
D14: (Do not delete blank rows)

Sheet SPI - SI
C3: Schedule SPI | E3: Income of specified persons (spouse, minor child etc.) includable in income of the assessee as per section 64 | O3: =MIN(100000,G23) -> 0
D5: Sl. No. | E5: Name of person | F5: PAN of person (optional) | G5: Aadhaar Number of the person | H5: Relationship | I5: Amount (Rs) | J5: Head of Income in which included | O5: =MIN(100000-O3-O6,G64) -> 0
D6: 1 | J6: (Select) | O6: =MIN(100000-O3,G48) -> 0
D7: =D6+1 -> 2 | J7: (Select)
D8: =D7+1 -> 3 | J8: (Select)
D9: =D8+1 -> 4 | J9: (Select)
D10: =D9+1 -> 5 | J10: (Select)
D11: =D10+1 -> 6 | J11: (Select)
I12: =SUM(SPI.AmtIncluded) -> 0
O14: 0 | P14: 0 | Q14: 0
C15: Please click on Recalculate initially, and also subsequently if Gender, Date of Birth , Residential Status or Assessee Status (Indl / HUF etc) is changed (Note "Recalculate button is provided in Sheet PART B - TI - TTI)
C16: Schedule SI | E16: Income chargeable to tax at special rates (please see instructions No. 7 for rate of tax)
C17: SPECIAL RATE | D17: Sl. No. | E17: Section | F17: Special rate (%) | G17: Income (i) | H17: Taxable Income after adjusting for Min Chargeable to Tax (ii) | I17: Tax thereon (iii) | AB17: SI Table to XML
D18: 1 | E18: 111 - Tax on accumulated balance of recognised PF | F18: 1 | G18: =R18 -> 0 | H18: =SI_111 -> 0 | I18: =os.TaxBenefitTotal -> 0 | O18: 1 | Q18: 1 | R18: =MAX(0,MAX(0,os.IncomeBenefitTotal)-MAX(0,IF(MID(sheet1.ResidentialStatus1,1,3)="NRI",SUMIFS(os.DTAA_AmtChk,os.TRC,"=Yes",OS_DTAASectionCode,Q18),SUMIF(OS_DTAASectionCode,Q18,os.DTAA_AmtChk)))) -> 0 | U18: ExemptionUnderSI | AB18: 1 | AC18: =F18 -> 1 | AD18: =SI_111 -> 0 | AE18: =SI_111_taxableInc -> 0 | AF18: =I18 -> 0
D19: =D18+1 -> 2 | E19: Other source income chargeable under DTAA rates | F19: 1 | G19: =os.DTAA_Amt -> 0 | H19: =DTAA_Inc_OS -> 0 | I19: 0 | O19: DTAAOS | Q19: DTAA | R19: =MAX(0,MAX(0,SUMIF(os.check,Q19,os.SourceAmount))-MAX(0,IF(MID(sheet1.ResidentialStatus1,1,3)="NRI",SUMIFS(os.DTAA_AmtChk,os.TRC,"=Yes",OS_DTAASectionCode,Q19),SUMIF(OS_DTAASectionCode,Q19,os.DTAA_AmtChk)))) -> 0 | T19: ExemptionAmt | U19: =IF(MID(sheet1.ResidentialStatus1,1,3)="NRI",0,IF(bacValue=1,300000,IF(AND(MID(sheet1.Status,1,1)="I",age>59,age<80,OR(MID(sheet1.ResidentialStatus1,1,3)="RES",MID(sheet1.ResidentialStatus1,1,3)="NOR")),300000,IF(AND(MID(sheet1.Status,1,1)="I",age>=80,OR(MID(sheet1.ResidentialStatus1,1,3)="RES",MID(sheet1.ResidentialStatus1,1,3)="NOR")),500000,IF(AND(OR(MID(sheet1.Status,1,1)="I",MID(sheet1.Status,1,1)="H"),OR(MID(sheet1.ResidentialStatus1,1,3)="RES",MID(sheet1.ResidentialStatus1,1,3)="NOR")),250000,0))))) -> 300000 | AB19: 1A | AC19: =F20 -> 15 | AD19: =splRateInc1A -> 0 | AE19: =taxableInc1A -> 0 | AF19: =I20 -> 0
D20: =D19+1 -> 3 | E20: 111A (STCG on shares where STT paid) | F20: 15 | G20: =BFLAtemp15Sec111a -> 0 | H20: =temp111A_exmp -> 0 | I20: =ROUND(H20*F20/100,0) -> 0 | O20: 1A | Q20: 1A | R20: 0 | AB20: 21 | AC20: =F21 -> 20 | AD20: =splRateInc21 -> 0 | AE20: =taxableInc21 -> 0 | AF20: =I21 -> 0
D21: 4 | E21: 112 (LTCG on others) | F21: 20 | G21: =BFLAtemp20Sec112 -> 0 | H21: =temp112_exmp -> 0 | I21: 0 | O21: 21 | Q21: 21 | R21: 0 | T21: partbSetoffInc | U21: =Sheet8b.TotalIncome-Sheet8b.IncChargeableTaxSplRates -> 22493200 | AB21: 22 | AC21: =F22 -> 10 | AD21: =splRateInc22 -> 0 | AE21: =taxableInc22 -> 0 | AF21: =I22 -> 0
D22: 5 | E22: 112 proviso (LTCG on listed securities/ units without indexation) | F22: 10 | G22: =BFLAtemp10SecPro -> 0 | H22: =temp112pro_exmp -> 0 | I22: 0 | O22: 22 | Q22: 22 | R22: 0 | AB22: 21ciii | AC22: =F24 -> 10 | AD22: =G24 -> 0 | AE22: =H24 -> 0 | AF22: =I24 -> 0
D23: 6 | E23: 112A (LTCG on sale of shares or units on which STT is paid) | F23: 10 | G23: =BFLAtemp10Sec112A -> 0 | H23: =temp112A_exmp -> 0 | I23: =ROUND(IF(H23>100000,(H23-100000)*F23/100,0),0) -> 0 | O23: 2A | Q23: 2A | R23: 0 | AB23: 2A | AC23: =F23 -> 10 | AD23: =G23 -> 0 | AE23: =H23 -> 0 | AF23: =I23 -> 0
D24: 7 | E24: 112(1)(c)(iii)(LTCG on unlisted securities in case of non-residents) | F24: 10 | G24: =BFLAtemp10Sec1121c2 -> 0 | H24: =G24 -> 0 | I24: 0 | O24: 21ciii | Q24: 21ciii | R24: 0 | AB24: 5BB | AC24: =F25 -> 30 | AD24: =splRateInc115BB -> 0 | AE24: =taxableInc115BB -> 0 | AF24: =I25 -> 0
D25: 8 | E25: 115BB (Winnings from lotteries, puzzles, races, games etc.) | F25: 30 | G25: =R25 -> 0 | H25: 0 | I25: =ROUND(H25*F25/100,0) -> 0 | O25: 5BB | Q25: 5BB | R25: =MAX(0,MAX(0,os.WinLottRacePuzz)-MAX(0,IF(MID(sheet1.ResidentialStatus1,1,3)="NRI",SUMIFS(os.DTAA_AmtChk,os.TRC,"=Yes",OS_DTAASectionCode,Q25),SUMIF(OS_DTAASectionCode,Q25,os.DTAA_AmtChk)))) -> 0 | AB25: 5ADii | AC25: =F27 -> 30 | AD25: =G27 -> 0 | AE25: =H27 -> 0 | AF25: =I27 -> 0
D26: 9 | E26: 115BBJ Winnings from online games | F26: 30 | G26: =R26 -> 0 | H26: =G26 -> 0 | I26: 0 | O26: 5BBJ | Q26: 5BBJ | R26: =MAX(0,MAX(0,os.WinOnlineGame)-MAX(0,IF(MID(sheet1.ResidentialStatus1,1,3)="NRI",SUMIFS(os.DTAA_AmtChk,os.TRC,"=Yes",OS_DTAASectionCode,Q26),SUMIF(OS_DTAASectionCode,Q26,os.DTAA_AmtChk)))) -> 0 | AB26: 5BBJ | AC26: =F26 -> 30 | AD26: =G26 -> 0 | AE26: =H26 -> 0 | AF26: =I26 -> 0
D27: 10 | E27: 115AD(1)(ii) -STCG (other than on equity share or equity oriented mutual fund referred to in section 111A) by an FII | F27: 30 | G27: =BFLAtemp115AD30 -> 0 | H27: 0 | I27: 0 | O27: 5ADii | Q27: 5ADii | R27: =MAX(0,MAX(0,SUMIF(os.check,Q27,os.SourceAmount))-MAX(0,IF(MID(sheet1.ResidentialStatus1,1,3)="NRI",SUMIFS(os.DTAA_AmtChk,os.TRC,"=Yes",OS_DTAASectionCode,Q27),SUMIF(OS_DTAASectionCode,Q27,os.DTAA_AmtChk)))) -> 0 | AB27: 5ADiiiP | AC27: =F48 -> 10 | AD27: =G48 -> 0 | AE27: =H48 -> 0 | AF27: =I48 -> 0
D28: 11 | E28: 115BBF-Tax on income from patent (a) Income under head business or profession | F28: 10 | G28: =sheet10.Inc115BBF -> 0 | H28: 0 | I28: 0 | O28: 5BBF_BP | Q28: 5Ea | R28: =MAX(0,MAX(0,SUMIF(os.check,Q28,os.SourceAmount))-MAX(0,IF(MID(sheet1.ResidentialStatus1,1,3)="NRI",SUMIFS(os.DTAA_AmtChk,os.TRC,"=Yes",OS_DTAASectionCode,Q28),SUMIF(OS_DTAASectionCode,Q28,os.DTAA_AmtChk)))) -> 0 | AB28: 5BBF_BP | AC28: =F28 -> 10 | AD28: 0 | AE28: 0 | AF28: 0
D29: 12 | E29: 115BBG-Tax on Transfer of carbon credits (a) Income under head business or profession | F29: 10 | G29: =sheet10.Inc115BBG -> 0 | H29: 0 | I29: 0 | O29: 5BBG_BP | AB29: 5BBG_BP | AC29: 10 | AD29: 0 | AE29: 0 | AF29: 0
D30: =D27+1 -> 11 | E30: 115AD(1)(b)(ii)- Short term capital gains referred to in section 111A | F30: 15 | G30: =BFLAtemp15Sec115ad1bii -> 0 | H30: 0 | I30: 0 | O30: 5AD1biip | Q30: 5AD1biip | R30: =MAX(0,MAX(0,SUMIF(os.check,Q30,os.SourceAmount))-MAX(0,IF(MID(sheet1.ResidentialStatus1,1,3)="NRI",SUMIFS(os.DTAA_AmtChk,os.TRC,"=Yes",OS_DTAASectionCode,Q30),SUMIF(OS_DTAASectionCode,Q30,os.DTAA_AmtChk)))) -> 0 | AB30: DTAASTCG | AC30: =F60 -> 1 | AD30: 0 | AE30: 0 | AF30: 0
D31: 12 | E31: 115A(1)(a)(i)- Dividends interest and income from units purchase in foreign currency | F31: 20 | G31: =R31 -> 0 | H31: 0 | I31: 0 | O31: 5A1ai | Q31: 5A1ai | R31: 0 | T31: Final Exemption Allowed | U31: =IF(AND(U21>0,U21>=U19),0,U19-U21) -> 0 | AB31: DTAALTCG | AC31: 1 | AD31: 0 | AE31: 0 | AF31: 0
D32: 13 | E32: 115A(1)(a)(A)- Dividend in the case of non-resident received from a unit in an International Financial Services Centre | F32: 10 | G32: =R32 -> 0 | H32: =G32 -> 0 | I32: =ROUND(H32*F32/100,0) -> 0 | O32: 5A1aA | Q32: 5A1aA | R32: 0 | AB32: DTAAOS | AC32: =F19 -> 1 | AD32: =DTAA_Inc_OS -> 0 | AE32: =DTAA_INCOME_OS -> 0 | AF32: =DTAA_TAX_OS -> 0
D33: 14 | E33: 115A(1)(a)(ii)- Interest received from govt/Indian Concerns received in Foreign Currency | F33: 20 | G33: =R33 -> 0 | H33: =G33 -> 0 | I33: 0 | O33: 5A1aii | Q33: 5A1aii | R33: 0 | W33: Exemption Remaining after Set off | AB33: 5BBA | AC33: =F49 -> 20 | AD33: =G49 -> 0 | AE33: =H49 -> 0 | AF33: =I49 -> 0
D34: 15 | E34: 115A(1) (a)(iia) -Interest from Infrastructure Debt Fund | F34: 5 | G34: 0 | H34: 0 | I34: 0 | O34: 5A1aiia | Q34: 5A1aiia | R34: 0 | S34: For 112 | U34: =IF(U31<G21,MAX(0,(G21-U31)),0) -> 0 | W34: =IF(U31<G21,0,(U31-G21)) -> 0 | AB34: 5AD1iP | AC34: =F46 -> 5 | AD34: =G46 -> 0 | AE34: =H46 -> 0 | AF34: =I46 -> 0
D35: 16 | E35: 115A(1) (a)(iiaa) -Interest as per Sec. 194LC | F35: 5 | G35: 0 | H35: 0 | I35: 0 | O35: 5A1aiiaa | Q35: 5A1aiiaa | R35: 0 | S35: FOR 111A | U35: =IF(W34<G20,MAX(0,G20-W34),0) -> 0 | W35: =IF(W34<G20,0,(W34-G20)) -> 0 | AB35: 5BBF | AC35: =F54 -> 10 | AD35: =G54 -> 0 | AE35: =H54 -> 0 | AF35: =I54 -> 0
D36: 17 | E36: 115A(1) (a)(iiab) -Interest as per Sec. 194LD | F36: 5 | G36: 0 | H36: 0 | I36: 0 | O36: 5A1aiiab | Q36: 5A1aiiab | R36: 0 | S36: For 112(proviso) | U36: =IF(W40<G22,MAX(G22-W40),0) -> 0 | W36: =IF(W40<G22,0,(W40-G22)) -> 0 | AB36: 5BBG | AC36: =F56 -> 10 | AD36: =G56 -> 0 | AE36: =H56 -> 0 | AF36: =I56 -> 0
D37: 18 | E37: 115A(1) (a)(iiac) -Interest as per Sec. 194LBA | F37: 5 | G37: 0 | H37: =G37 -> 0 | I37: =ROUND(H37*F37/100,0) -> 0 | O37: 5A1aiiac | Q37: 5A1aiiac | R37: 0 | S37: For 112A | U37: =IF(W36<G23,MAX(0,(G23-W36)),0) -> 0 | W37: =IF(W36<G23,0,(W36-G23)) -> 0 | AB37: 5A1ai | AC37: =F31 -> 20 | AD37: =G31 -> 0 | AE37: =H31 -> 0 | AF37: =I31 -> 0
D38: 19 | E38: 115A(1) (a)(iii) - Income received in respect of units of UTI purchased in Foreign Currency | F38: 20 | G38: 0 | H38: 0 | I38: 0 | O38: 5A1aiii | Q38: 5A1aiii | R38: 0 | S38: PTI 112A | U38: =IF(W37<G64,MAX(0,(G64-W37)),0) -> 0 | W38: =IF(W37<G64,0,(W37-G64)) -> 0 | AB38: 5A1aii | AC38: =F33 -> 20 | AD38: =G33 -> 0 | AE38: =H33 -> 0 | AF38: =I33 -> 0
E39: Para E II of Part I of Ist Sch of FA - Income from royalty or technical services - Non-domestic company | F39: 50 | G39: =R39 -> 0 | H39: 0 | I39: 0 | O39: FA | Q39: FA | R39: =MAX(0,MAX(0,SUMIF(os.check,Q39,os.SourceAmount))-MAX(0,SUMIF(OS_DTAASectionCode,Q39,os.DTAA_AmtChk))) -> 0 | AB39: 5A1aA | AC39: 10 | AD39: =G32 -> 0 | AE39: =H32 -> 0 | AF39: =I32 -> 0
D40: =D38+1 -> 20 | E40: 115A(1)(b)- Income from royalty or fees for technical services received from Government or Indian concern - chargeable u/s 115A(1)(b) | F40: 10 | G40: 0 | H40: 0 | I40: 0 | O40: 5A1bA | Q40: 5A1bA | R40: =MAX(0,MAX(0,SUMIF(os.check,O40,os.SourceAmount))-MAX(0,IF(MID(sheet1.ResidentialStatus1,1,3)="NRI",SUMIFS(os.DTAA_AmtChk,os.TRC,"=Yes",OS_DTAASectionCode,Q40),SUMIF(OS_DTAASectionCode,Q40,os.DTAA_AmtChk)))) -> 0 | S40: PTI15 | U40: =IF(W35<G62,MAX(G62-W35),0) -> 0 | W40: =IF(W35<G62,0,(W35-G62)) -> 0 | AB40: 5A1aiia | AC40: =F34 -> 5 | AD40: 0 | AE40: 0 | AF40: 0
D41: =D40+1 -> 21 | E41: 115AC(1)(a) - Income by way of interest on bonds purchased in foreign currency | F41: 10 | G41: =R41 -> 0 | H41: 0 | I41: 0 | O41: 5AC1a | Q41: 5AC1a | R41: =MAX(0,MAX(0,SUMIF(os.check,Q41,os.SourceAmount))-MAX(0,IF(MID(sheet1.ResidentialStatus1,1,3)="NRI",SUMIFS(os.DTAA_AmtChk,os.TRC,"=Yes",OS_DTAASectionCode,Q41),SUMIF(OS_DTAASectionCode,Q41,os.DTAA_AmtChk)))) -> 0 | AB41: 5A1aiiaa | AC41: 5 | AD41: 0 | AE41: 0 | AF41: 0
D42: 22 | E42: 115AC(1)(c) -LTCG arising from the transfer of bonds or GDR purchased in foreign currency - non-resident | F42: 10 | G42: =BFLAtemp10Sec115AC1 -> 0 | H42: 0 | I42: 0 | O42: 5AC1c | Q42: 5AC1c | R42: 0 | AB42: 5A1aiiab | AC42: 5 | AD42: 0 | AE42: 0 | AF42: 0
D43: 23 | E43: 115ACA(1)(a) - Income from GDR purchased in foreign currency -resident | F43: 10 | G43: =R43 -> 0 | H43: 0 | I43: 0 | O43: 5ACA1a | Q43: 5ACA1a | R43: 0 | AB43: 5A1aiiac | AC43: 5 | AD43: 0 | AE43: 0 | AF43: 0
D44: 24 | E44: 115ACA(1)(b) - LTCG arising from the transfer of GDR purchased in foreign currency -resident | F44: 10 | G44: =BFLAtemp10Sec115ACA1 -> 0 | H44: =G44 -> 0 | I44: 0 | O44: 5ACA1b | Q44: 5ACA1b | R44: 0 | AB44: 5A1aiii | AC44: =F38 -> 20 | AD44: 0 | AE44: 0 | AF44: 0
D45: 25 | E45: 115AD(1)(i) -Income (other than dividend) received by an FII in respect of securities (other than units as per Sec 115AB) | F45: 20 | G45: =R45 -> 0 | H45: 0 | I45: 0 | O45: 5AD1i | Q45: 5AD1i | R45: 0 | AB45: FA | AC45: 50 | AD45: 0 | AE45: 0 | AF45: 0
D46: 26 | E46: 115AD(1)(i) -Income received by an FII in respect of bonds or government securities as per Sec 194LD | F46: 5 | G46: =R46 -> 0 | H46: 0 | I46: 0 | O46: 5AD1iP | Q46: 5AD1iP | R46: 0 | AB46: 5A1bA | AC46: =F40 -> 10 | AD46: =G40 -> 0 | AE46: =H40 -> 0 | AF46: =I40 -> 0
D47: 27 | E47: 115AD(1)(iii)-Long term capital gains by an FII | F47: 10 | G47: =BFLAtemp10Sec115AD3 -> 0 | H47: 0 | I47: 0 | O47: 5ADiii | Q47: 5ADiii | R47: 0 | AB47: 5AC1a | AC47: =F41 -> 10 | AD47: 0 | AE47: 0 | AF47: 0
D48: 28 | E48: 115AD(1)(iii)Proviso-Securities referred in section 112A read with section 115AD | F48: 10 | G48: =BFLAtemp10Sec115AD3_Proviso -> 0 | H48: =G48 -> 0 | I48: =ROUND(IF(H48>O6,(H48-O6)*F48/100,0),0) -> 0 | O48: 5ADiiiP | AB48: 5AC1c | AC48: 10 | AD48: 0 | AE48: 0 | AF48: 0
D49: 29 | E49: 115BBA - Income received by non-residents sportsmen or sports associations | F49: 20 | G49: =R49 -> 0 | H49: 0 | I49: 0 | O49: 5BBA | Q49: 5BBA | R49: =MAX(0,MAX(0,SUMIF(os.check,Q49,os.SourceAmount))-MAX(0,IF(MID(sheet1.ResidentialStatus1,1,3)="NRI",SUMIFS(os.DTAA_AmtChk,os.TRC,"=Yes",OS_DTAASectionCode,Q49),SUMIF(OS_DTAASectionCode,Q49,os.DTAA_AmtChk)))) -> 0 | AB49: 5ACA1a | AC49: 10 | AD49: 0 | AE49: 0 | AF49: 0
D50: 30 | E50: 115BBC - Anonymous donations | F50: 30 | G50: =R50 -> 0 | H50: 0 | I50: 0 | O50: 5BBC | Q50: 5BBC | R50: 0 | AB50: 5ACA1b | AC50: 10 | AD50: 0 | AE50: 0 | AF50: 0
D51: 31 | E51: 115BBDA (Dividend income from domestic company exceeding Rs.10lakh) | F51: 0 | G51: 0 | H51: 0 | I51: 0 | O51: 5BBDA | Q51: 5BBDA | R51: 0 | AB51: 5AD1i | AC51: 20 | AD51: 0 | AE51: 0 | AF51: 0
D52: =D49+1 -> 30 | E52: 115BBE - Income referred to in sections 68 or 69 or 69A or 69B or 69C or 69D | F52: 60 | G52: =os.Total115BE -> 0 | H52: 0 | I52: 0 | O52: 5BBE | Q52: 5BBE | R52: 0 | AB52: 5ADiii | AC52: =F47 -> 10 | AD52: =G47 -> 0 | AE52: =H47 -> 0 | AF52: =I47 -> 0
D53: 31 | E53: 115BBF-Income from patent | O53: 5BBF_XXXX | Q53: 5BBF | R53: =MAX(0,MAX(0,SUMIF(os.check,Q53,os.SourceAmount))-MAX(0,IF(MID(sheet1.ResidentialStatus1,1,3)="NRI",SUMIFS(os.DTAA_AmtChk,os.TRC,"=Yes",os.DTAAcheck,Q53),SUMIF(os.DTAAcheck,Q53,os.DTAA_AmtChk)))) -> 0 | AB53: 5BBC | AC53: =F50 -> 30 | AD53: =G50 -> 0 | AE53: =H50 -> 0 | AF53: =I50 -> 0
D54: =D52+1 -> 31 | E54: 115BBF-Tax on Income from Patent | F54: 10 | G54: =R53 -> 0 | H54: =G54 -> 0 | I54: =ROUND(H54*F54/100,0) -> 0 | O54: 5BBF | Q54: 5Eacg | R54: 0 | AB54: 5BBE | AC54: =F52 -> 60 | AD54: =G52 -> 0 | AE54: =H52 -> 0 | AF54: =I52 -> 0
D55: 32 | E55: 115BBG-Transfer of carbon credits | O55: 5BBG_XXXX | AB55: 5BBDA | AC55: =F51 -> 0 | AD55: =G51 -> 0 | AE55: =H51 -> 0 | AF55: =I51 -> 0
D56: =D54+1 -> 32 | E56: 115BBG-Tax on Income from transfer of carbon credits | F56: 10 | G56: =R57 -> 0 | H56: =G56 -> 0 | I56: =ROUND(H56*F56/100,0) -> 0 | O56: 5BBG | Q56: 5Eb | R56: =MAX(0,MAX(0,SUMIF(os.check,Q56,os.SourceAmount))-MAX(0,IF(MID(sheet1.ResidentialStatus1,1,3)="NRI",SUMIFS(os.DTAA_AmtChk,os.TRC,"=Yes",OS_DTAASectionCode,Q56),SUMIF(OS_DTAASectionCode,Q56,os.DTAA_AmtChk)))) -> 0 | AB56: 5Ea | AC56: =F57 -> 20 | AD56: =G57 -> 0 | AE56: =H57 -> 0 | AF56: =I57 -> 0
D57: 33 | E57: 115E(a) - Investment income | F57: 20 | G57: =R28 -> 0 | H57: 0 | I57: 0 | O57: 5Ea | Q57: 5BBG | R57: =MAX(0,MAX(0,SUMIF(os.check,Q57,os.SourceAmount))-MAX(0,IF(MID(sheet1.ResidentialStatus1,1,3)="NRI",SUMIFS(os.DTAA_AmtChk,os.TRC,"=Yes",os.DTAAcheck,Q57),SUMIF(os.DTAAcheck,Q57,os.DTAA_AmtChk)))) -> 0 | AB57: 5BBF_XXXX | AC57: =F54 -> 10 | AD57: =G53 -> 0 | AE57: =H53 -> 0 | AF57: =I53 -> 0
D58: 34 | E58: 115E(a)-LTCG on any asset other than a specified asset-non resident Indian | F58: 20 | G58: =BFLAtemp20Sec11EA -> 0 | H58: 0 | I58: =ROUND(H58*F58/100,0) -> 0 | O58: 5Eacg | AB58: 5BBG_XXXX | AC58: =F56 -> 10 | AD58: =G55 -> 0 | AE58: =H55 -> 0 | AF58: =I55 -> 0
D59: =D58+1 -> 35 | E59: 115E(b) - Income by way of long term capital gains | F59: 10 | G59: =BFLAtemp10Sec115Eb -> 0 | H59: =G59 -> 0 | I59: =ROUND(H59*F59/100,0) -> 0 | O59: 5Eb | AB59: 5Eacg | AC59: =F58 -> 20 | AD59: 0 | AE59: 0 | AF59: 0
D60: =D59+1 -> 36 | E60: STCG Chargeable under DTAA rates | F60: 1 | G60: =stcg.IncOfCurYrAfterSetOffBFLosses3b_DTAARates -> 0 | H60: 0 | I60: 0 | O60: STCGDTAA | AB60: 5Eb | AC60: 10 | AD60: 0 | AE60: 0 | AF60: 0
D61: 37 | E61: LTCG Chargeable under DTAA rates | F61: 1 | G61: =ltcg.IncOfCurYrAfterSetOffBFLosses_DTAARates -> 0 | H61: 0 | I61: 0 | O61: LTCGDTAA | AB61: 5AD1biip | AC61: =F30 -> 15 | AD61: =G30 -> 0 | AE61: =H30 -> 0 | AF61: =I30 -> 0
D62: 38 | E62: Pass Through Income in the nature of Short Term Capital Gain chargeable @ 15% | F62: 15 | G62: =BFLAtempPTI15 -> 0 | H62: =tempPTI15_exmp -> 0 | I62: =ROUND(H62*F62/100,0) -> 0 | O62: PTI_STCG15P | AB62: PTI_STCG15P | AC62: =F62 -> 15 | AD62: =G62 -> 0 | AE62: =H62 -> 0 | AF62: =I62 -> 0
D63: =D62+1 -> 39 | E63: Pass Through Income in the nature of Short Term Capital Gain chargeable @ 30% | F63: 30 | G63: =BFLAtempPTI30 -> 0 | H63: 0 | I63: =ROUND(H63*F63/100,0) -> 0 | O63: PTI_STCG30P | AB63: PTI_STCG30P | AC63: 30 | AD63: 0 | AE63: 0 | AF63: 0
